Workbook

Sheet CAPA

Sheet DADOS
B2: DATA | D2: 2023-01-05
B4: CLIENTE | E4: 1
B6: REVISÃO | D6: R00
B8: PROJETO | D8: CONSTRUÇÃO DE COBERTURA DA QUADRA COLINA DE SANTA BARBARA
B10: BDI TIPO 1 | D10: 0.2652
B12: BDI TIPO 2 | D12: 0.2025
B14: BANCOS DE DADOS | D14: SINAPI: 11/2022 Minas Gerais SETOP: 10/2022 Minas Gerais SICRO : 07/2022 Minas Gerais SUDECAP: 10/2022 Minas Gerais
B16: RESPONSÁVEL | D16: FLÁVIA CRISTINA BARBOSA
B18: CREA | D18: CREA - MG 187.842/D
B20: TIPO | D20: PROJETO EXECUTIVO

Sheet CLIENTES
B1: PREFEITURA MUNICIPAL DE POUSO ALEGRE
B2: PREFEITURA MUNICIPAL DE CACHOEIRA DE MINAS
B3: PREFEITURA MUNICIPAL DE ITAJUBÁ
B4: PREFEITURA MUNICIPAL DE SANTA RITA DO SAPUCAÍ
B5: RYZA
B6: FAPEPE

Sheet ORC
A3: 1000 | D3: A | E3: ADMINISTRAÇÃO DE OBRA | M3: =SUMIF(A:A,D3,M:M) -> 0 | N3: =SUMIF(A:A,D3,N:N) -> 0
D4: A.B | M4: =IFERROR(SUMIFS(M:M,A:A,LEFT(D4,SEARCH(".",D4)-1),B:B,RIGHT(D4,LEN(D4)-SEARCH(".",D4))),"") -> 0 | N4: =IFERROR(SUMIFS(N:N,A:A,LEFT(D4,SEARCH(".",D4)-1),B:B,RIGHT(D4,LEN(D4)-SEARCH(".",D4))),"") -> 0
D5: A.B.C | M5: =IFERROR(SUMIFS(M:M,A:A,LEFT(D5,SEARCH(".",D5)-1),B:B,LEFT(RIGHT(D5,LEN(D5)-SEARCH(".",D5)),SEARCH(".",RIGHT(D5,LEN(D5)-SEARCH(".",D5)))-1),C:C,RIGHT(D5,LEN(D5)-SEARCH(".",D5,SEARCH(".",D5)+1))),"") -> 0 | N5: =IFERROR(SUMIFS(N:N,A:A,LEFT(D5,SEARCH(".",D5)-1),B:B,LEFT(RIGHT(D5,LEN(D5)-SEARCH(".",D5)),SEARCH(".",RIGHT(D5,LEN(D5)-SEARCH(".",D5)))-1),C:C,RIGHT(D5,LEN(D5)-SEARCH(".",D5,SEARCH(".",D5)+1))),"") -> 0
A6: =IFERROR(LEFT(D6,SEARCH(".",D6)-1),"") -> a | B6: =IFERROR(LEFT(RIGHT(D6,LEN(D6)-SEARCH(".",D6)),SEARCH(".",RIGHT(D6,LEN(D6)-SEARCH(".",D6)))-1),"") -> a/a | C6: =IFERROR(IF(LEN(D6)-LEN(SUBSTITUTE(D6,".",""))<>3,"",MID(D6,SEARCH(".",D6,SEARCH(".",D6)+1)+1,LEN(D6)-SEARCH(".",D6,SEARCH(".",D6)+1)-(LEN(D6)-(SEARCH(".",D6,SEARCH(".",D6,SEARCH(".",D6)+1)+1)-1)))),"") ->  | D6: a.a/a.a.a/a.a.a.a | E6: =IF($G6="SINAPI",VLOOKUP($F6,DADOS_SINAPI,2,0),IF(G6="SETOP",VLOOKUP($F6,DADOS_SETOP,2,0),IF(G6="CPU",VLOOKUP($F6,DADOS_COMPOSICAO,2,0),IF(G6="SICRO",VLOOKUP($F6,DADOS_SICRO,2,0),IF(G6="SUDECAP",VLOOKUP(F6,DADOS_SUDECAP,2,0),IF(G6="COTAÇÃO",VLOOKUP($F6,DADOS_COTACAO,2,0),"")))))) ->  | H6: =IF(G6="SINAPI",VLOOKUP($F6,DADOS_SINAPI,3,0),IF(G6="SETOP",VLOOKUP($F6,DADOS_SETOP,3,0),IF(G6="CPU",VLOOKUP($F6,DADOS_COMPOSICAO,10,0),IF(G6="SICRO",VLOOKUP($F6,DADOS_SICRO,3,0),IF(G6="SUDECAP",VLOOKUP(F6,DADOS_SUDECAP,3,0),IF(G6="COTAÇÃO",VLOOKUP($F6,DADOS_COTACAO,9,0),"")))))) ->  | J6: =IF(G6="SINAPI",VLOOKUP($F6,DADOS_SINAPI,4,0),IF(G6="SETOP",VLOOKUP($F6,DADOS_SETOP,4,0),IF(G6="CPU",VLOOKUP($F6,DADOS_COMPOSICAO,13,0),IF(G6="SICRO",VLOOKUP($F6,DADOS_SICRO,4,0),IF(G6="SUDECAP",VLOOKUP(F6,DADOS_SUDECAP,4,0),IF(G6="COTAÇÃO",VLOOKUP(F6,DADOS_COTACAO,12,0),"")))))) ->  | K6: BDI 1 | L6: =TRUNC(J6*(1+$N$17),2) ->  | M6: =IFERROR(TRUNC(I6*J6,2),"") ->  | N6: =IFERROR(TRUNC(L6*I6,2),"") -> 
A7: =IFERROR(LEFT(D7,SEARCH(".",D7)-1),"") -> a | B7: =IFERROR(LEFT(RIGHT(D7,LEN(D7)-SEARCH(".",D7)),SEARCH(".",RIGHT(D7,LEN(D7)-SEARCH(".",D7)))-1),"") -> a/a | C7: =IFERROR(IF(LEN(D7)-LEN(SUBSTITUTE(D7,".",""))<>3,"",MID(D7,SEARCH(".",D7,SEARCH(".",D7)+1)+1,LEN(D7)-SEARCH(".",D7,SEARCH(".",D7)+1)-(LEN(D7)-(SEARCH(".",D7,SEARCH(".",D7,SEARCH(".",D7)+1)+1)-1)))),"") ->  | D7: a.a/a.a.a/a.a.a.a | E7: =VLOOKUP($F7,DADOS_COTACAO,2,0) ->  | G7: COTAÇÃO | H7: =VLOOKUP($F7,DADOS_COTACAO,9,0) ->  | J7: =VLOOKUP($F7,DADOS_COTACAO,12,0) ->  | K7: BDI 2 | L7: =TRUNC(J7*(1+$N$18),2) ->  | M7: =IFERROR(TRUNC(I7*J7,2),"") ->  | N7: =IFERROR(TRUNC(L7*I7,2),"") -> 
A8: 2000
E11: PLANILHA ORÇAMENTÁRIA | M11: Revisão: | N11: =DADOS!D6 -> R00 | O11: a
M12: Data: | N12: =DADOS!D2 -> 2023-01-05
D13: Projeto: | E13: =DADOS!D8 -> CONSTRUÇÃO DE COBERTURA DA QUADRA COLINA DE SANTA BARBARA | M13: Bancos:
D14: Responsável: | F14: Cliente: | M14: =DADOS!D14 -> SINAPI: 11/2022 Minas Gerais SETOP: 10/2022 Minas Gerais SICRO : 07/2022 Minas Gerais SUDECAP: 10/2022 Minas Gerais
M17: BDI 1: | N17: =DADOS!D10 -> 0.2652
M18: BDI 2: | N18: =DADOS!D12 -> 0.2025
D20: =E11&" DE "&DADOS!D20&" - "&E13 -> PLANILHA ORÇAMENTÁRIA DE PROJETO EXECUTIVO - CONSTRUÇÃO DE COBERTURA DA QUADRA COLINA DE SANTA BARBARA
D22: Item | E22: Descrição | F22: Código | G22: Banco | H22: Unidade | I22: Quantidade | J22: Valor Unitário | K22: BDI | L22: Valor Unit. com BDI | M22: Total | N22: Total com BDI
M23: =ROUND(I23*J23,2) -> 0 | N23: =ROUND(L23*I23,2) -> 0
A24: 1000 | D24: 1 | E24: CANTEIRO DE OBRA | M24: =SUMIF(A:A,D24,M:M) -> 5443.37 | N24: =SUMIF(A:A,D24,N:N) -> 6886.92
A25: =IFERROR(LEFT(D25,SEARCH(".",D25)-1),"") -> 1 | B25: =IFERROR(LEFT(RIGHT(D25,LEN(D25)-SEARCH(".",D25)),SEARCH(".",RIGHT(D25,LEN(D25)-SEARCH(".",D25)))-1),"") ->  | C25: =IFERROR(IF(LEN(D25)-LEN(SUBSTITUTE(D25,".",""))<>3,"",MID(D25,SEARCH(".",D25,SEARCH(".",D25)+1)+1,LEN(D25)-SEARCH(".",D25,SEARCH(".",D25)+1)-(LEN(D25)-(SEARCH(".",D25,SEARCH(".",D25,SEARCH(".",D25)+1)+1)-1)))),"") ->  | D25: 1.1 | E25: =IF($G25="SINAPI",VLOOKUP($F25,DADOS_SINAPI,2,0),IF(G25="SETOP",VLOOKUP($F25,DADOS_SETOP,2,0),IF(G25="CPU",VLOOKUP($F25,DADOS_COMPOSICAO,2,0),IF(G25="SICRO",VLOOKUP($F25,DADOS_SICRO,2,0),IF(G25="SUDECAP",VLOOKUP(F25,DADOS_SUDECAP,2,0),IF(G25="COTAÇÃO",VLOOKUP($F25,DADOS_COTACAO,2,0),"")))))) -> LOCAÇÃO DE CONTAINER COM ISOLAMENTO TÉRMICO, TIPO 3, PARA DEPÓSITO/FERRAMENTARIA DE OBRA, COM MEDIDAS REFERENCIAIS DE (6) METROS COMPRIMENTO, (2,3) METROS LARGURA E (2,5) METROS ALTURA ÚTIL INTERNA, INCLUSIVE LIGAÇÕES ELÉTRICAS INTERNAS, EXCLUSIVE MOBILIZAÇÃO/DESMOBILIZAÇÃO E LIGAÇÕES PROVISÓRIAS EXTERNAS | F25: ED-16350 | G25: SETOP | H25: =IF(G25="SINAPI",VLOOKUP($F25,DADOS_SINAPI,3,0),IF(G25="SETOP",VLOOKUP($F25,DADOS_SETOP,3,0),IF(G25="CPU",VLOOKUP($F25,DADOS_COMPOSICAO,10,0),IF(G25="SICRO",VLOOKUP($F25,DADOS_SICRO,3,0),IF(G25="SUDECAP",VLOOKUP(F25,DADOS_SUDECAP,3,0),IF(G25="COTAÇÃO",VLOOKUP($F25,DADOS_COTACAO,9,0),"")))))) -> mês | I25: =F27 -> 3 | J25: =IF(G25="SINAPI",VLOOKUP($F25,DADOS_SINAPI,4,0),IF(G25="SETOP",VLOOKUP($F25,DADOS_SETOP,4,0),IF(G25="CPU",VLOOKUP($F25,DADOS_COMPOSICAO,13,0),IF(G25="SICRO",VLOOKUP($F25,DADOS_SICRO,4,0),IF(G25="SUDECAP",VLOOKUP(F25,DADOS_SUDECAP,4,0),IF(G25="COTAÇÃO",VLOOKUP(F25,DADOS_COTACAO,12,0),"")))))) -> 676.39 | K25: BDI 1 | L25: =TRUNC(J25*(1+$N$17),2) -> 855.76 | M25: =IFERROR(TRUNC(I25*J25,2),"") -> 2029.17 | N25: =IFERROR(TRUNC(L25*I25,2),"") -> 2567.28
A26: 2000
A27: 2000 | E27: Quantidade | F27: 3 | G27: meses
A28: 2000
A29: =IFERROR(LEFT(D29,SEARCH(".",D29)-1),"") -> 1 | B29: =IFERROR(LEFT(RIGHT(D29,LEN(D29)-SEARCH(".",D29)),SEARCH(".",RIGHT(D29,LEN(D29)-SEARCH(".",D29)))-1),"") ->  | C29: =IFERROR(IF(LEN(D29)-LEN(SUBSTITUTE(D29,".",""))<>3,"",MID(D29,SEARCH(".",D29,SEARCH(".",D29)+1)+1,LEN(D29)-SEARCH(".",D29,SEARCH(".",D29)+1)-(LEN(D29)-(SEARCH(".",D29,SEARCH(".",D29,SEARCH(".",D29)+1)+1)-1)))),"") ->  | D29: 1.2 | E29: =IF($G29="SINAPI",VLOOKUP($F29,DADOS_SINAPI,2,0),IF(G29="SETOP",VLOOKUP($F29,DADOS_SETOP,2,0),IF(G29="CPU",VLOOKUP($F29,DADOS_COMPOSICAO,2,0),IF(G29="SICRO",VLOOKUP($F29,DADOS_SICRO,2,0),IF(G29="SUDECAP",VLOOKUP(F29,DADOS_SUDECAP,2,0),IF(G29="COTAÇÃO",VLOOKUP($F29,DADOS_COTACAO,2,0),"")))))) -> LIGAÇÕES PROVISÓRIAS PARA CONTAINER TIPO 3 (CORRESPONDENTE AO CÓDIGO ED-16350) | F29: ED-16358 | G29: SETOP | H29: =IF(G29="SINAPI",VLOOKUP($F29,DADOS_SINAPI,3,0),IF(G29="SETOP",VLOOKUP($F29,DADOS_SETOP,3,0),IF(G29="CPU",VLOOKUP($F29,DADOS_COMPOSICAO,10,0),IF(G29="SICRO",VLOOKUP($F29,DADOS_SICRO,3,0),IF(G29="SUDECAP",VLOOKUP(F29,DADOS_SUDECAP,3,0),IF(G29="COTAÇÃO",VLOOKUP($F29,DADOS_COTACAO,9,0),"")))))) -> un | I29: =F31 -> 1 | J29: =IF(G29="SINAPI",VLOOKUP($F29,DADOS_SINAPI,4,0),IF(G29="SETOP",VLOOKUP($F29,DADOS_SETOP,4,0),IF(G29="CPU",VLOOKUP($F29,DADOS_COMPOSICAO,13,0),IF(G29="SICRO",VLOOKUP($F29,DADOS_SICRO,4,0),IF(G29="SUDECAP",VLOOKUP(F29,DADOS_SUDECAP,4,0),IF(G29="COTAÇÃO",VLOOKUP(F29,DADOS_COTACAO,12,0),"")))))) -> 327.92 | K29: BDI 1 | L29: =TRUNC(J29*(1+$N$17),2) -> 414.88 | M29: =IFERROR(TRUNC(I29*J29,2),"") -> 327.92 | N29: =IFERROR(TRUNC(L29*I29,2),"") -> 414.88
A30: 2000
A31: 2000 | E31: Quantidade | F31: 1 | G31: un
A32: 2000
A33: =IFERROR(LEFT(D33,SEARCH(".",D33)-1),"") -> 1 | B33: =IFERROR(LEFT(RIGHT(D33,LEN(D33)-SEARCH(".",D33)),SEARCH(".",RIGHT(D33,LEN(D33)-SEARCH(".",D33)))-1),"") ->  | C33: =IFERROR(IF(LEN(D33)-LEN(SUBSTITUTE(D33,".",""))<>3,"",MID(D33,SEARCH(".",D33,SEARCH(".",D33)+1)+1,LEN(D33)-SEARCH(".",D33,SEARCH(".",D33)+1)-(LEN(D33)-(SEARCH(".",D33,SEARCH(".",D33,SEARCH(".",D33)+1)+1)-1)))),"") ->  | D33: 1.3 | E33: =IF($G33="SINAPI",VLOOKUP($F33,DADOS_SINAPI,2,0),IF(G33="SETOP",VLOOKUP($F33,DADOS_SETOP,2,0),IF(G33="CPU",VLOOKUP($F33,DADOS_COMPOSICAO,2,0),IF(G33="SICRO",VLOOKUP($F33,DADOS_SICRO,2,0),IF(G33="SUDECAP",VLOOKUP(F33,DADOS_SUDECAP,2,0),IF(G33="COTAÇÃO",VLOOKUP($F33,DADOS_COTACAO,2,0),"")))))) -> MOBILIZAÇÃO E DESMOBILIZAÇÃO DE CONTAINER, INCLUSIVE CARGA, DESCARGA E TRANSPORTE EM CAMINHÃO CARROCERIA COM GUINDAUTO (MUNCK), EXCLUSIVE LOCAÇÃO DO CONTAINER | F33: ED-50137 | G33: SETOP | H33: =IF(G33="SINAPI",VLOOKUP($F33,DADOS_SINAPI,3,0),IF(G33="SETOP",VLOOKUP($F33,DADOS_SETOP,3,0),IF(G33="CPU",VLOOKUP($F33,DADOS_COMPOSICAO,10,0),IF(G33="SICRO",VLOOKUP($F33,DADOS_SICRO,3,0),IF(G33="SUDECAP",VLOOKUP(F33,DADOS_SUDECAP,3,0),IF(G33="COTAÇÃO",VLOOKUP($F33,DADOS_COTACAO,9,0),"")))))) -> un | I33: =F35 -> 1 | J33: =IF(G33="SINAPI",VLOOKUP($F33,DADOS_SINAPI,4,0),IF(G33="SETOP",VLOOKUP($F33,DADOS_SETOP,4,0),IF(G33="CPU",VLOOKUP($F33,DADOS_COMPOSICAO,13,0),IF(G33="SICRO",VLOOKUP($F33,DADOS_SICRO,4,0),IF(G33="SUDECAP",VLOOKUP(F33,DADOS_SUDECAP,4,0),IF(G33="COTAÇÃO",VLOOKUP(F33,DADOS_COTACAO,12,0),"")))))) -> 686.28 | K33: BDI 1 | L33: =TRUNC(J33*(1+$N$17),2) -> 868.28 | M33: =IFERROR(TRUNC(I33*J33,2),"") -> 686.28 | N33: =IFERROR(TRUNC(L33*I33,2),"") -> 868.28
A34: 2000
A35: 2000 | E35: Quantidade | F35: 1 | G35: un
A36: 2000
A37: =IFERROR(LEFT(D37,SEARCH(".",D37)-1),"") -> 1 | B37: =IFERROR(LEFT(RIGHT(D37,LEN(D37)-SEARCH(".",D37)),SEARCH(".",RIGHT(D37,LEN(D37)-SEARCH(".",D37)))-1),"") ->  | C37: =IFERROR(IF(LEN(D37)-LEN(SUBSTITUTE(D37,".",""))<>3,"",MID(D37,SEARCH(".",D37,SEARCH(".",D37)+1)+1,LEN(D37)-SEARCH(".",D37,SEARCH(".",D37)+1)-(LEN(D37)-(SEARCH(".",D37,SEARCH(".",D37,SEARCH(".",D37)+1)+1)-1)))),"") ->  | D37: 1.4 | E37: =IF($G37="SINAPI",VLOOKUP($F37,DADOS_SINAPI,2,0),IF(G37="SETOP",VLOOKUP($F37,DADOS_SETOP,2,0),IF(G37="CPU",VLOOKUP($F37,DADOS_COMPOSICAO,2,0),IF(G37="SICRO",VLOOKUP($F37,DADOS_SICRO,2,0),IF(G37="SUDECAP",VLOOKUP(F37,DADOS_SUDECAP,2,0),IF(G37="COTAÇÃO",VLOOKUP($F37,DADOS_COTACAO,2,0),"")))))) -> LOCAÇÃO DE BANHEIRO QUÍMICO, DIMENSÃO (110X120X230)CM, LINHA PADRÃO, CONTENDO UMA (1) PIA/HIGIENIZADOR DE MÃOS, INCLUSIVE MANUTENÇÃO E MOBILIZAÇÃO/DESMOBILIZAÇÃO | F37: ED-50155 | G37: SETOP | H37: =IF(G37="SINAPI",VLOOKUP($F37,DADOS_SINAPI,3,0),IF(G37="SETOP",VLOOKUP($F37,DADOS_SETOP,3,0),IF(G37="CPU",VLOOKUP($F37,DADOS_COMPOSICAO,10,0),IF(G37="SICRO",VLOOKUP($F37,DADOS_SICRO,3,0),IF(G37="SUDECAP",VLOOKUP(F37,DADOS_SUDECAP,3,0),IF(G37="COTAÇÃO",VLOOKUP($F37,DADOS_COTACAO,9,0),"")))))) -> mês | I37: =F39 -> 3 | J37: =IF(G37="SINAPI",VLOOKUP($F37,DADOS_SINAPI,4,0),IF(G37="SETOP",VLOOKUP($F37,DADOS_SETOP,4,0),IF(G37="CPU",VLOOKUP($F37,DADOS_COMPOSICAO,13,0),IF(G37="SICRO",VLOOKUP($F37,DADOS_SICRO,4,0),IF(G37="SUDECAP",VLOOKUP(F37,DADOS_SUDECAP,4,0),IF(G37="COTAÇÃO",VLOOKUP(F37,DADOS_COTACAO,12,0),"")))))) -> 800 | K37: BDI 1 | L37: =TRUNC(J37*(1+$N$17),2) -> 1012.16 | M37: =IFERROR(TRUNC(I37*J37,2),"") -> 2400 | N37: =IFERROR(TRUNC(L37*I37,2),"") -> 3036.48
A38: 2000
A39: 2000 | E39: Quantidade | F39: 3 | G39: meses
A40: 2000
A41: 1000 | D41: 2 | E41: SERVIÇOS PRELIMINARES | M41: =SUMIF(A:A,D41,M:M) -> 11342.76 | N41: =SUMIF(A:A,D41,N:N) -> 14349.93
A42: =IFERROR(LEFT(D42,SEARCH(".",D42)-1),"") -> 2 | B42: =IFERROR(LEFT(RIGHT(D42,LEN(D42)-SEARCH(".",D42)),SEARCH(".",RIGHT(D42,LEN(D42)-SEARCH(".",D42)))-1),"") ->  | C42: =IFERROR(IF(LEN(D42)-LEN(SUBSTITUTE(D42,".",""))<>3,"",MID(D42,SEARCH(".",D42,SEARCH(".",D42)+1)+1,LEN(D42)-SEARCH(".",D42,SEARCH(".",D42)+1)-(LEN(D42)-(SEARCH(".",D42,SEARCH(".",D42,SEARCH(".",D42)+1)+1)-1)))),"") ->  | D42: 2.1 | E42: =IF($G42="SINAPI",VLOOKUP($F42,DADOS_SINAPI,2,0),IF(G42="SETOP",VLOOKUP($F42,DADOS_SETOP,2,0),IF(G42="CPU",VLOOKUP($F42,DADOS_COMPOSICAO,2,0),IF(G42="SICRO",VLOOKUP($F42,DADOS_SICRO,2,0),IF(G42="SUDECAP",VLOOKUP(F42,DADOS_SUDECAP,2,0),IF(G42="COTAÇÃO",VLOOKUP($F42,DADOS_COTACAO,2,0),"")))))) -> FORNECIMENTO E COLOCAÇÃO DE PLACA DE OBRA EM CHAPA GALVANIZADA #26, ESP. 0,45MM, DIMENSÃO (4X3)M, PLOTADA COM ADESIVO VINÍLICO, AFIXADA COM REBITES 4,8X40MM, EM ESTRUTURA METÁLICA DE METALON 20X20MM, ESP. 1,25MM, INCLUSIVE SUPORTE EM EUCALIPTO AUTOCLAVADO PINTADO COM TINTA PVA DUAS (2) DEMÃOS | F42: ED-28428 | G42: SETOP | H42: =IF(G42="SINAPI",VLOOKUP($F42,DADOS_SINAPI,3,0),IF(G42="SETOP",VLOOKUP($F42,DADOS_SETOP,3,0),IF(G42="CPU",VLOOKUP($F42,DADOS_COMPOSICAO,10,0),IF(G42="SICRO",VLOOKUP($F42,DADOS_SICRO,3,0),IF(G42="SUDECAP",VLOOKUP(F42,DADOS_SUDECAP,3,0),IF(G42="COTAÇÃO",VLOOKUP($F42,DADOS_COTACAO,9,0),"")))))) -> un | I42: =F44 -> 1 | J42: =IF(G42="SINAPI",VLOOKUP($F42,DADOS_SINAPI,4,0),IF(G42="SETOP",VLOOKUP($F42,DADOS_SETOP,4,0),IF(G42="CPU",VLOOKUP($F42,DADOS_COMPOSICAO,13,0),IF(G42="SICRO",VLOOKUP($F42,DADOS_SICRO,4,0),IF(G42="SUDECAP",VLOOKUP(F42,DADOS_SUDECAP,4,0),IF(G42="COTAÇÃO",VLOOKUP(F42,DADOS_COTACAO,12,0),"")))))) -> 3574.56 | K42: BDI 1 | L42: =TRUNC(J42*(1+$N$17),2) -> 4522.53 | M42: =IFERROR(TRUNC(I42*J42,2),"") -> 3574.56 | N42: =IFERROR(TRUNC(L42*I42,2),"") -> 4522.53
A43: 2000
A44: 2000 | E44: Quantidade | F44: 1 | G44: un
A45: 2000
A46: =IFERROR(LEFT(D46,SEARCH(".",D46)-1),"") -> 2 | B46: =IFERROR(LEFT(RIGHT(D46,LEN(D46)-SEARCH(".",D46)),SEARCH(".",RIGHT(D46,LEN(D46)-SEARCH(".",D46)))-1),"") ->  | C46: =IFERROR(IF(LEN(D46)-LEN(SUBSTITUTE(D46,".",""))<>3,"",MID(D46,SEARCH(".",D46,SEARCH(".",D46)+1)+1,LEN(D46)-SEARCH(".",D46,SEARCH(".",D46)+1)-(LEN(D46)-(SEARCH(".",D46,SEARCH(".",D46,SEARCH(".",D46)+1)+1)-1)))),"") ->  | D46: 2.2 | E46: =IF($G46="SINAPI",VLOOKUP($F46,DADOS_SINAPI,2,0),IF(G46="SETOP",VLOOKUP($F46,DADOS_SETOP,2,0),IF(G46="CPU",VLOOKUP($F46,DADOS_COMPOSICAO,2,0),IF(G46="SICRO",VLOOKUP($F46,DADOS_SICRO,2,0),IF(G46="SUDECAP",VLOOKUP(F46,DADOS_SUDECAP,2,0),IF(G46="COTAÇÃO",VLOOKUP($F46,DADOS_COTACAO,2,0),"")))))) -> LOCAÇÃO DE OBRA COM GABARITO DE TÁBUAS CORRIDAS PONTALETADAS A CADA 2,00M, REAPROVEITAMENTO (2X), INCLUSIVE ACOMPANHAMENTO DE EQUIPE TOPOGRÁFICA PARA MARCAÇÃO DE PONTO TOPOGRÁFICO | F46: ED-17989 | G46: SETOP | H46: =IF(G46="SINAPI",VLOOKUP($F46,DADOS_SINAPI,3,0),IF(G46="SETOP",VLOOKUP($F46,DADOS_SETOP,3,0),IF(G46="CPU",VLOOKUP($F46,DADOS_COMPOSICAO,10,0),IF(G46="SICRO",VLOOKUP($F46,DADOS_SICRO,3,0),IF(G46="SUDECAP",VLOOKUP(F46,DADOS_SUDECAP,3,0),IF(G46="COTAÇÃO",VLOOKUP($F46,DADOS_COTACAO,9,0),"")))))) -> m | I46: =F48 -> 132 | J46: =IF(G46="SINAPI",VLOOKUP($F46,DADOS_SINAPI,4,0),IF(G46="SETOP",VLOOKUP($F46,DADOS_SETOP,4,0),IF(G46="CPU",VLOOKUP($F46,DADOS_COMPOSICAO,13,0),IF(G46="SICRO",VLOOKUP($F46,DADOS_SICRO,4,0),IF(G46="SUDECAP",VLOOKUP(F46,DADOS_SUDECAP,4,0),IF(G46="COTAÇÃO",VLOOKUP(F46,DADOS_COTACAO,12,0),"")))))) -> 58.85 | K46: BDI 1 | L46: =TRUNC(J46*(1+$N$17),2) -> 74.45 | M46: =IFERROR(TRUNC(I46*J46,2),"") -> 7768.2 | N46: =IFERROR(TRUNC(L46*I46,2),"") -> 9827.4
A47: 2000
A48: 2000 | E48: Quantidade | F48: =66*2 -> 132 | G48: m
A49: 2000
A50: 1000 | D50: 3 | E50: FUNDAÇÃO | M50: =SUMIF(A:A,D50,M:M) -> 115855.07 | N50: =SUMIF(A:A,D50,N:N) -> 146564.97
D51: 3.1 | E51: ESCAVAÇÕES | M51: =IFERROR(SUMIFS(M:M,A:A,LEFT(D51,SEARCH(".",D51)-1),B:B,RIGHT(D51,LEN(D51)-SEARCH(".",D51))),"") -> 5466.22 | N51: =IFERROR(SUMIFS(N:N,A:A,LEFT(D51,SEARCH(".",D51)-1),B:B,RIGHT(D51,LEN(D51)-SEARCH(".",D51))),"") -> 6914.13
A52: =IFERROR(LEFT(D52,SEARCH(".",D52)-1),"") -> 3 | B52: =IFERROR(LEFT(RIGHT(D52,LEN(D52)-SEARCH(".",D52)),SEARCH(".",RIGHT(D52,LEN(D52)-SEARCH(".",D52)))-1),"") -> 1 | C52: =IFERROR(IF(LEN(D52)-LEN(SUBSTITUTE(D52,".",""))<>3,"",MID(D52,SEARCH(".",D52,SEARCH(".",D52)+1)+1,LEN(D52)-SEARCH(".",D52,SEARCH(".",D52)+1)-(LEN(D52)-(SEARCH(".",D52,SEARCH(".",D52,SEARCH(".",D52)+1)+1)-1)))),"") ->  | D52: 3.1.1 | E52: =IF($G52="SINAPI",VLOOKUP($F52,DADOS_SINAPI,2,0),IF(G52="SETOP",VLOOKUP($F52,DADOS_SETOP,2,0),IF(G52="CPU",VLOOKUP($F52,DADOS_COMPOSICAO,2,0),IF(G52="SICRO",VLOOKUP($F52,DADOS_SICRO,2,0),IF(G52="SUDECAP",VLOOKUP(F52,DADOS_SUDECAP,2,0),IF(G52="COTAÇÃO",VLOOKUP($F52,DADOS_COTACAO,2,0),"")))))) -> ESCAVAÇÃO MANUAL DE VALA PARA VIGA BALDRAME (INCLUINDO ESCAVAÇÃO PARA COLOCAÇÃO DE FÔRMAS). AF_06/2017 | F52: 96527 | G52: SINAPI | H52: =IF(G52="SINAPI",VLOOKUP($F52,DADOS_SINAPI,3,0),IF(G52="SETOP",VLOOKUP($F52,DADOS_SETOP,3,0),IF(G52="CPU",VLOOKUP($F52,DADOS_COMPOSICAO,10,0),IF(G52="SICRO",VLOOKUP($F52,DADOS_SICRO,3,0),IF(G52="SUDECAP",VLOOKUP(F52,DADOS_SUDECAP,3,0),IF(G52="COTAÇÃO",VLOOKUP($F52,DADOS_COTACAO,9,0),"")))))) -> M3 | I52: =F56 -> 21.24 | J52: =IF(G52="SINAPI",VLOOKUP($F52,DADOS_SINAPI,4,0),IF(G52="SETOP",VLOOKUP($F52,DADOS_SETOP,4,0),IF(G52="CPU",VLOOKUP($F52,DADOS_COMPOSICAO,13,0),IF(G52="SICRO",VLOOKUP($F52,DADOS_SICRO,4,0),IF(G52="SUDECAP",VLOOKUP(F52,DADOS_SUDECAP,4,0),IF(G52="COTAÇÃO",VLOOKUP(F52,DADOS_COTACAO,12,0),"")))))) -> 103.73 | K52: BDI 1 | L52: =TRUNC(J52*(1+$N$17),2) -> 131.23 | M52: =IFERROR(TRUNC(I52*J52,2),"") -> 2203.22 | N52: =IFERROR(TRUNC(L52*I52,2),"") -> 2787.32
A53: 2000
A54: 2000 | E54: Comprimento total das vigas baldrame | F54: 118 | G54: m
A55: 2000 | E55: Área da seção (30x60) | F55: 0.18 | G55: m²
A56: 2000 | E56: Volume de escavação | F56: =F55*F54 -> 21.24 | G56: m³
A57: 2000
A58: =IFERROR(LEFT(D58,SEARCH(".",D58)-1),"") -> 3 | B58: =IFERROR(LEFT(RIGHT(D58,LEN(D58)-SEARCH(".",D58)),SEARCH(".",RIGHT(D58,LEN(D58)-SEARCH(".",D58)))-1),"") -> 1 | C58: =IFERROR(IF(LEN(D58)-LEN(SUBSTITUTE(D58,".",""))<>3,"",MID(D58,SEARCH(".",D58,SEARCH(".",D58)+1)+1,LEN(D58)-SEARCH(".",D58,SEARCH(".",D58)+1)-(LEN(D58)-(SEARCH(".",D58,SEARCH(".",D58,SEARCH(".",D58)+1)+1)-1)))),"") ->  | D58: 3.1.2 | E58: =IF($G58="SINAPI",VLOOKUP($F58,DADOS_SINAPI,2,0),IF(G58="SETOP",VLOOKUP($F58,DADOS_SETOP,2,0),IF(G58="CPU",VLOOKUP($F58,DADOS_COMPOSICAO,2,0),IF(G58="SICRO",VLOOKUP($F58,DADOS_SICRO,2,0),IF(G58="SUDECAP",VLOOKUP(F58,DADOS_SUDECAP,2,0),IF(G58="COTAÇÃO",VLOOKUP($F58,DADOS_COTACAO,2,0),"")))))) -> ESCAVAÇÃO MANUAL PARA BLOCO DE COROAMENTO OU SAPATA (INCLUINDO ESCAVAÇÃO PARA COLOCAÇÃO DE FÔRMAS). AF_06/2017 | F58: 96523 | G58: SINAPI | H58: =IF(G58="SINAPI",VLOOKUP($F58,DADOS_SINAPI,3,0),IF(G58="SETOP",VLOOKUP($F58,DADOS_SETOP,3,0),IF(G58="CPU",VLOOKUP($F58,DADOS_COMPOSICAO,10,0),IF(G58="SICRO",VLOOKUP($F58,DADOS_SICRO,3,0),IF(G58="SUDECAP",VLOOKUP(F58,DADOS_SUDECAP,3,0),IF(G58="COTAÇÃO",VLOOKUP($F58,DADOS_COTACAO,9,0),"")))))) -> M3 | I58: =F63 -> 14.28 | J58: =IF(G58="SINAPI",VLOOKUP($F58,DADOS_SINAPI,4,0),IF(G58="SETOP",VLOOKUP($F58,DADOS_SETOP,4,0),IF(G58="CPU",VLOOKUP($F58,DADOS_COMPOSICAO,13,0),IF(G58="SICRO",VLOOKUP($F58,DADOS_SICRO,4,0),IF(G58="SUDECAP",VLOOKUP(F58,DADOS_SUDECAP,4,0),IF(G58="COTAÇÃO",VLOOKUP(F58,DADOS_COTACAO,12,0),"")))))) -> 79.13 | K58: BDI 1 | L58: =TRUNC(J58*(1+$N$17),2) -> 100.11 | M58: =IFERROR(TRUNC(I58*J58,2),"") -> 1129.97 | N58: =IFERROR(TRUNC(L58*I58,2),"") -> 1429.57
A59: 2000
A60: 2000 | E60: Altura dos blocos | F60: 0.75 | G60: m
A61: 2000 | E61: Quantidade de blocos | F61: 14 | G61: un
A62: 2000 | E62: Área dos blocos | F62: 19.04 | G62: m²
A63: 2000 | E63: Volume de escavação | F63: =F62*F60 -> 14.28 | G63: m³
A64: 2000
A65: =IFERROR(LEFT(D65,SEARCH(".",D65)-1),"") -> 3 | B65: =IFERROR(LEFT(RIGHT(D65,LEN(D65)-SEARCH(".",D65)),SEARCH(".",RIGHT(D65,LEN(D65)-SEARCH(".",D65)))-1),"") -> 1 | C65: =IFERROR(IF(LEN(D65)-LEN(SUBSTITUTE(D65,".",""))<>3,"",MID(D65,SEARCH(".",D65,SEARCH(".",D65)+1)+1,LEN(D65)-SEARCH(".",D65,SEARCH(".",D65)+1)-(LEN(D65)-(SEARCH(".",D65,SEARCH(".",D65,SEARCH(".",D65)+1)+1)-1)))),"") ->  | D65: 3.1.3 | E65: =IF($G65="SINAPI",VLOOKUP($F65,DADOS_SINAPI,2,0),IF(G65="SETOP",VLOOKUP($F65,DADOS_SETOP,2,0),IF(G65="CPU",VLOOKUP($F65,DADOS_COMPOSICAO,2,0),IF(G65="SICRO",VLOOKUP($F65,DADOS_SICRO,2,0),IF(G65="SUDECAP",VLOOKUP(F65,DADOS_SUDECAP,2,0),IF(G65="COTAÇÃO",VLOOKUP($F65,DADOS_COTACAO,2,0),"")))))) -> REATERRO MANUAL DE VALAS COM COMPACTAÇÃO MECANIZADA. AF_04/2016 | F65: 93382 | G65: SINAPI | H65: =IF(G65="SINAPI",VLOOKUP($F65,DADOS_SINAPI,3,0),IF(G65="SETOP",VLOOKUP($F65,DADOS_SETOP,3,0),IF(G65="CPU",VLOOKUP($F65,DADOS_COMPOSICAO,10,0),IF(G65="SICRO",VLOOKUP($F65,DADOS_SICRO,3,0),IF(G65="SUDECAP",VLOOKUP(F65,DADOS_SUDECAP,3,0),IF(G65="COTAÇÃO",VLOOKUP($F65,DADOS_COTACAO,9,0),"")))))) -> M3 | I65: =F70 -> 18.926 | J65: =IF(G65="SINAPI",VLOOKUP($F65,DADOS_SINAPI,4,0),IF(G65="SETOP",VLOOKUP($F65,DADOS_SETOP,4,0),IF(G65="CPU",VLOOKUP($F65,DADOS_COMPOSICAO,13,0),IF(G65="SICRO",VLOOKUP($F65,DADOS_SICRO,4,0),IF(G65="SUDECAP",VLOOKUP(F65,DADOS_SUDECAP,4,0),IF(G65="COTAÇÃO",VLOOKUP(F65,DADOS_COTACAO,12,0),"")))))) -> 28.1 | K65: BDI 1 | L65: =TRUNC(J65*(1+$N$17),2) -> 35.55 | M65: =IFERROR(TRUNC(I65*J65,2),"") -> 531.82 | N65: =IFERROR(TRUNC(L65*I65,2),"") -> 672.81
A66: 2000
A67: 2000 | E67: Volume total escavado | F67: =F63+F56 -> 35.52 | G67: m³
A68: 2000 | E68: Volume de concreto | F68: 27.25 | G68: m³
A69: 2000 | E69: Empolamento | F69: 30 | G69: %
A70: 2000 | E70: Total de reaterro | F70: =F67*1.3-F68 -> 18.926 | G70: m³
A71: 2000
A72: =IFERROR(LEFT(D72,SEARCH(".",D72)-1),"") -> 3 | B72: =IFERROR(LEFT(RIGHT(D72,LEN(D72)-SEARCH(".",D72)),SEARCH(".",RIGHT(D72,LEN(D72)-SEARCH(".",D72)))-1),"") -> 1 | C72: =IFERROR(IF(LEN(D72)-LEN(SUBSTITUTE(D72,".",""))<>3,"",MID(D72,SEARCH(".",D72,SEARCH(".",D72)+1)+1,LEN(D72)-SEARCH(".",D72,SEARCH(".",D72)+1)-(LEN(D72)-(SEARCH(".",D72,SEARCH(".",D72,SEARCH(".",D72)+1)+1)-1)))),"") ->  | D72: 3.1.4 | E72: =IF($G72="SINAPI",VLOOKUP($F72,DADOS_SINAPI,2,0),IF(G72="SETOP",VLOOKUP($F72,DADOS_SETOP,2,0),IF(G72="CPU",VLOOKUP($F72,DADOS_COMPOSICAO,2,0),IF(G72="SICRO",VLOOKUP($F72,DADOS_SICRO,2,0),IF(G72="SUDECAP",VLOOKUP(F72,DADOS_SUDECAP,2,0),IF(G72="COTAÇÃO",VLOOKUP($F72,DADOS_COTACAO,2,0),"")))))) -> LASTRO DE CONCRETO MAGRO, APLICADO EM BLOCOS DE COROAMENTO OU SAPATAS, ESPESSURA DE 5 CM. AF_08/2017 | F72: 96619 | G72: SINAPI | H72: =IF(G72="SINAPI",VLOOKUP($F72,DADOS_SINAPI,3,0),IF(G72="SETOP",VLOOKUP($F72,DADOS_SETOP,3,0),IF(G72="CPU",VLOOKUP($F72,DADOS_COMPOSICAO,10,0),IF(G72="SICRO",VLOOKUP($F72,DADOS_SICRO,3,0),IF(G72="SUDECAP",VLOOKUP(F72,DADOS_SUDECAP,3,0),IF(G72="COTAÇÃO",VLOOKUP($F72,DADOS_COTACAO,9,0),"")))))) -> M2 | I72: =F75 -> 19.04 | J72: =IF(G72="SINAPI",VLOOKUP($F72,DADOS_SINAPI,4,0),IF(G72="SETOP",VLOOKUP($F72,DADOS_SETOP,4,0),IF(G72="CPU",VLOOKUP($F72,DADOS_COMPOSICAO,13,0),IF(G72="SICRO",VLOOKUP($F72,DADOS_SICRO,4,0),IF(G72="SUDECAP",VLOOKUP(F72,DADOS_SUDECAP,4,0),IF(G72="COTAÇÃO",VLOOKUP(F72,DADOS_COTACAO,12,0),"")))))) -> 30.26 | K72: BDI 1 | L72: =TRUNC(J72*(1+$N$17),2) -> 38.28 | M72: =IFERROR(TRUNC(I72*J72,2),"") -> 576.15 | N72: =IFERROR(TRUNC(L72*I72,2),"") -> 728.85
A73: 2000
A74: 2000 | E74: Área dos blocos | F74: 19.04 | G74: m²
A75: 2000 | E75: Área total | F75: 19.04 | G75: m²
A76: 2000
A77: =IFERROR(LEFT(D77,SEARCH(".",D77)-1),"") -> 3 | B77: =IFERROR(LEFT(RIGHT(D77,LEN(D77)-SEARCH(".",D77)),SEARCH(".",RIGHT(D77,LEN(D77)-SEARCH(".",D77)))-1),"") -> 1 | C77: =IFERROR(IF(LEN(D77)-LEN(SUBSTITUTE(D77,".",""))<>3,"",MID(D77,SEARCH(".",D77,SEARCH(".",D77)+1)+1,LEN(D77)-SEARCH(".",D77,SEARCH(".",D77)+1)-(LEN(D77)-(SEARCH(".",D77,SEARCH(".",D77,SEARCH(".",D77)+1)+1)-1)))),"") ->  | D77: 3.1.5 | E77: =IF($G77="SINAPI",VLOOKUP($F77,DADOS_SINAPI,2,0),IF(G77="SETOP",VLOOKUP($F77,DADOS_SETOP,2,0),IF(G77="CPU",VLOOKUP($F77,DADOS_COMPOSICAO,2,0),IF(G77="SICRO",VLOOKUP($F77,DADOS_SICRO,2,0),IF(G77="SUDECAP",VLOOKUP(F77,DADOS_SUDECAP,2,0),IF(G77="COTAÇÃO",VLOOKUP($F77,DADOS_COTACAO,2,0),"")))))) -> CARGA, MANOBRA E DESCARGA DE SOLOS E MATERIAIS GRANULARES EM CAMINHÃO BASCULANTE 6 M³ - CARGA COM ESCAVADEIRA HIDRÁULICA (CAÇAMBA DE 1,20 M³ / 155 HP) E DESCARGA LIVRE (UNIDADE: M3). AF_07/2020 | F77: 100977 | G77: SINAPI | H77: =IF(G77="SINAPI",VLOOKUP($F77,DADOS_SINAPI,3,0),IF(G77="SETOP",VLOOKUP($F77,DADOS_SETOP,3,0),IF(G77="CPU",VLOOKUP($F77,DADOS_COMPOSICAO,10,0),IF(G77="SICRO",VLOOKUP($F77,DADOS_SICRO,3,0),IF(G77="SUDECAP",VLOOKUP(F77,DADOS_SUDECAP,3,0),IF(G77="COTAÇÃO",VLOOKUP($F77,DADOS_COTACAO,9,0),"")))))) -> M3 | I77: =F82 -> 21.5722 | J77: =IF(G77="SINAPI",VLOOKUP($F77,DADOS_SINAPI,4,0),IF(G77="SETOP",VLOOKUP($F77,DADOS_SETOP,4,0),IF(G77="CPU",VLOOKUP($F77,DADOS_COMPOSICAO,13,0),IF(G77="SICRO",VLOOKUP($F77,DADOS_SICRO,4,0),IF(G77="SUDECAP",VLOOKUP(F77,DADOS_SUDECAP,4,0),IF(G77="COTAÇÃO",VLOOKUP(F77,DADOS_COTACAO,12,0),"")))))) -> 6.99 | K77: BDI 1 | L77: =TRUNC(J77*(1+$N$17),2) -> 8.84 | M77: =IFERROR(TRUNC(I77*J77,2),"") -> 150.78 | N77: =IFERROR(TRUNC(L77*I77,2),"") -> 190.69
A78: 2000 | G78: =F78*1.3 -> 0
A79: 2000 | E79: Volume de escavação | F79: =F67 -> 35.52 | G79: m³
A80: 2000 | E80: Volume de reaterro | F80: =F70 -> 18.926 | G80: m³
A81: 2000 | E81: Empolamento | F81: 30 | G81: %
A82: 2000 | E82: Volume total de bora fora | F82: =(F79-F80)*1.3 -> 21.5722 | G82: m³
A83: 2000
A84: =IFERROR(LEFT(D84,SEARCH(".",D84)-1),"") -> 3 | B84: =IFERROR(LEFT(RIGHT(D84,LEN(D84)-SEARCH(".",D84)),SEARCH(".",RIGHT(D84,LEN(D84)-SEARCH(".",D84)))-1),"") -> 1 | C84: =IFERROR(IF(LEN(D84)-LEN(SUBSTITUTE(D84,".",""))<>3,"",MID(D84,SEARCH(".",D84,SEARCH(".",D84)+1)+1,LEN(D84)-SEARCH(".",D84,SEARCH(".",D84)+1)-(LEN(D84)-(SEARCH(".",D84,SEARCH(".",D84,SEARCH(".",D84)+1)+1)-1)))),"") ->  | D84: 3.1.6 | E84: =IF($G84="SINAPI",VLOOKUP($F84,DADOS_SINAPI,2,0),IF(G84="SETOP",VLOOKUP($F84,DADOS_SETOP,2,0),IF(G84="CPU",VLOOKUP($F84,DADOS_COMPOSICAO,2,0),IF(G84="SICRO",VLOOKUP($F84,DADOS_SICRO,2,0),IF(G84="SUDECAP",VLOOKUP(F84,DADOS_SUDECAP,2,0),IF(G84="COTAÇÃO",VLOOKUP($F84,DADOS_COTACAO,2,0),"")))))) -> ESPALHAMENTO DE MATERIAL COM TRATOR DE ESTEIRAS. AF_11/2019 | F84: 100574 | G84: SINAPI | H84: =IF(G84="SINAPI",VLOOKUP($F84,DADOS_SINAPI,3,0),IF(G84="SETOP",VLOOKUP($F84,DADOS_SETOP,3,0),IF(G84="CPU",VLOOKUP($F84,DADOS_COMPOSICAO,10,0),IF(G84="SICRO",VLOOKUP($F84,DADOS_SICRO,3,0),IF(G84="SUDECAP",VLOOKUP(F84,DADOS_SUDECAP,3,0),IF(G84="COTAÇÃO",VLOOKUP($F84,DADOS_COTACAO,9,0),"")))))) -> M3 | I84: =F86 -> 21.5722 | J84: =IF(G84="SINAPI",VLOOKUP($F84,DADOS_SINAPI,4,0),IF(G84="SETOP",VLOOKUP($F84,DADOS_SETOP,4,0),IF(G84="CPU",VLOOKUP($F84,DADOS_COMPOSICAO,13,0),IF(G84="SICRO",VLOOKUP($F84,DADOS_SICRO,4,0),IF(G84="SUDECAP",VLOOKUP(F84,DADOS_SUDECAP,4,0),IF(G84="COTAÇÃO",VLOOKUP(F84,DADOS_COTACAO,12,0),"")))))) -> 1.36 | K84: BDI 1 | L84: =TRUNC(J84*(1+$N$17),2) -> 1.72 | M84: =IFERROR(TRUNC(I84*J84,2),"") -> 29.33 | N84: =IFERROR(TRUNC(L84*I84,2),"") -> 37.1
A85: 2000
A86: 2000 | E86: Volume total de bora fora | F86: =F82 -> 21.5722 | G86: m³
A87: 2000
A88: =IFERROR(LEFT(D88,SEARCH(".",D88)-1),"") -> 3 | B88: =IFERROR(LEFT(RIGHT(D88,LEN(D88)-SEARCH(".",D88)),SEARCH(".",RIGHT(D88,LEN(D88)-SEARCH(".",D88)))-1),"") -> 1 | C88: =IFERROR(IF(LEN(D88)-LEN(SUBSTITUTE(D88,".",""))<>3,"",MID(D88,SEARCH(".",D88,SEARCH(".",D88)+1)+1,LEN(D88)-SEARCH(".",D88,SEARCH(".",D88)+1)-(LEN(D88)-(SEARCH(".",D88,SEARCH(".",D88,SEARCH(".",D88)+1)+1)-1)))),"") ->  | D88: 3.1.7 | E88: =IF($G88="SINAPI",VLOOKUP($F88,DADOS_SINAPI,2,0),IF(G88="SETOP",VLOOKUP($F88,DADOS_SETOP,2,0),IF(G88="CPU",VLOOKUP($F88,DADOS_COMPOSICAO,2,0),IF(G88="SICRO",VLOOKUP($F88,DADOS_SICRO,2,0),IF(G88="SUDECAP",VLOOKUP(F88,DADOS_SUDECAP,2,0),IF(G88="COTAÇÃO",VLOOKUP($F88,DADOS_COTACAO,2,0),"")))))) -> TRANSPORTE COM CAMINHÃO BASCULANTE DE 6 M³, EM VIA URBANA EM REVESTIMENTO PRIMÁRIO (UNIDADE: M3XKM). AF_07/2020 | F88: 97913 | G88: SINAPI | H88: =IF(G88="SINAPI",VLOOKUP($F88,DADOS_SINAPI,3,0),IF(G88="SETOP",VLOOKUP($F88,DADOS_SETOP,3,0),IF(G88="CPU",VLOOKUP($F88,DADOS_COMPOSICAO,10,0),IF(G88="SICRO",VLOOKUP($F88,DADOS_SICRO,3,0),IF(G88="SUDECAP",VLOOKUP(F88,DADOS_SUDECAP,3,0),IF(G88="COTAÇÃO",VLOOKUP($F88,DADOS_COTACAO,9,0),"")))))) -> M3XKM | I88: =F92 -> 191.99258 | J88: =IF(G88="SINAPI",VLOOKUP($F88,DADOS_SINAPI,4,0),IF(G88="SETOP",VLOOKUP($F88,DADOS_SETOP,4,0),IF(G88="CPU",VLOOKUP($F88,DADOS_COMPOSICAO,13,0),IF(G88="SICRO",VLOOKUP($F88,DADOS_SICRO,4,0),IF(G88="SUDECAP",VLOOKUP(F88,DADOS_SUDECAP,4,0),IF(G88="COTAÇÃO",VLOOKUP(F88,DADOS_COTACAO,12,0),"")))))) -> 2.89 | K88: BDI 1 | L88: =TRUNC(J88*(1+$N$17),2) -> 3.65 | M88: =IFERROR(TRUNC(I88*J88,2),"") -> 554.85 | N88: =IFERROR(TRUNC(L88*I88,2),"") -> 700.77
A89: 2000
A90: 2000 | E90: Volume total de bota fora | F90: =F82 -> 21.5722 | G90: m³
A91: 2000 | E91: Distância de transporte | F91: 8.9 | G91: km
A92: 2000 | E92: Total | F92: =F90*F91 -> 191.99258 | G92: m³.km
A93: 2000
A94: =IFERROR(LEFT(D94,SEARCH(".",D94)-1),"") -> 3 | B94: =IFERROR(LEFT(RIGHT(D94,LEN(D94)-SEARCH(".",D94)),SEARCH(".",RIGHT(D94,LEN(D94)-SEARCH(".",D94)))-1),"") -> 1 | C94: =IFERROR(IF(LEN(D94)-LEN(SUBSTITUTE(D94,".",""))<>3,"",MID(D94,SEARCH(".",D94,SEARCH(".",D94)+1)+1,LEN(D94)-SEARCH(".",D94,SEARCH(".",D94)+1)-(LEN(D94)-(SEARCH(".",D94,SEARCH(".",D94,SEARCH(".",D94)+1)+1)-1)))),"") ->  | D94: 3.1.8 | E94: =IF($G94="SINAPI",VLOOKUP($F94,DADOS_SINAPI,2,0),IF(G94="SETOP",VLOOKUP($F94,DADOS_SETOP,2,0),IF(G94="CPU",VLOOKUP($F94,DADOS_COMPOSICAO,2,0),IF(G94="SICRO",VLOOKUP($F94,DADOS_SICRO,2,0),IF(G94="SUDECAP",VLOOKUP(F94,DADOS_SUDECAP,2,0),IF(G94="COTAÇÃO",VLOOKUP($F94,DADOS_COTACAO,2,0),"")))))) -> LASTRO DE BRITA 2 OU 3 APILOADO MANUALMENTE | F94: ED-49813 | G94: SETOP | H94: =IF(G94="SINAPI",VLOOKUP($F94,DADOS_SINAPI,3,0),IF(G94="SETOP",VLOOKUP($F94,DADOS_SETOP,3,0),IF(G94="CPU",VLOOKUP($F94,DADOS_COMPOSICAO,10,0),IF(G94="SICRO",VLOOKUP($F94,DADOS_SICRO,3,0),IF(G94="SUDECAP",VLOOKUP(F94,DADOS_SUDECAP,3,0),IF(G94="COTAÇÃO",VLOOKUP($F94,DADOS_COTACAO,9,0),"")))))) -> m3 | I94: =F99 -> 1.77 | J94: =IF(G94="SINAPI",VLOOKUP($F94,DADOS_SINAPI,4,0),IF(G94="SETOP",VLOOKUP($F94,DADOS_SETOP,4,0),IF(G94="CPU",VLOOKUP($F94,DADOS_COMPOSICAO,13,0),IF(G94="SICRO",VLOOKUP($F94,DADOS_SICRO,4,0),IF(G94="SUDECAP",VLOOKUP(F94,DADOS_SUDECAP,4,0),IF(G94="COTAÇÃO",VLOOKUP(F94,DADOS_COTACAO,12,0),"")))))) -> 163.9 | K94: BDI 1 | L94: =TRUNC(J94*(1+$N$17),2) -> 207.36 | M94: =IFERROR(TRUNC(I94*J94,2),"") -> 290.1 | N94: =IFERROR(TRUNC(L94*I94,2),"") -> 367.02
A95: 2000
A96: 2000 | E96: Comprimento das vigas baldrames | F96: 118 | G96: m
A97: 2000 | E97: Largura da seção | F97: 0.3 | G97: m
A98: 2000 | E98: Espessura da camada | F98: 0.05 | G98: m
A99: 2000 | E99: Volume de brita | F99: =F96*F97*F98 -> 1.77 | G99: m³
A100: 2000
D101: 3.2 | E101: ESTACAS | M101: =IFERROR(SUMIFS(M:M,A:A,LEFT(D101,SEARCH(".",D101)-1),B:B,RIGHT(D101,LEN(D101)-SEARCH(".",D101))),"") -> 54059.57 | N101: =IFERROR(SUMIFS(N:N,A:A,LEFT(D101,SEARCH(".",D101)-1),B:B,RIGHT(D101,LEN(D101)-SEARCH(".",D101))),"") -> 68395.62
A102: =IFERROR(LEFT(D102,SEARCH(".",D102)-1),"") -> 3 | B102: =IFERROR(LEFT(RIGHT(D102,LEN(D102)-SEARCH(".",D102)),SEARCH(".",RIGHT(D102,LEN(D102)-SEARCH(".",D102)))-1),"") -> 2 | C102: =IFERROR(IF(LEN(D102)-LEN(SUBSTITUTE(D102,".",""))<>3,"",MID(D102,SEARCH(".",D102,SEARCH(".",D102)+1)+1,LEN(D102)-SEARCH(".",D102,SEARCH(".",D102)+1)-(LEN(D102)-(SEARCH(".",D102,SEARCH(".",D102,SEARCH(".",D102)+1)+1)-1)))),"") ->  | D102: 3.2.1 | E102: =IF($G102="SINAPI",VLOOKUP($F102,DADOS_SINAPI,2,0),IF(G102="SETOP",VLOOKUP($F102,DADOS_SETOP,2,0),IF(G102="CPU",VLOOKUP($F102,DADOS_COMPOSICAO,2,0),IF(G102="SICRO",VLOOKUP($F102,DADOS_SICRO,2,0),IF(G102="SUDECAP",VLOOKUP(F102,DADOS_SUDECAP,2,0),IF(G102="COTAÇÃO",VLOOKUP($F102,DADOS_COTACAO,2,0),"")))))) -> ESTACA HÉLICE CONTÍNUA, DIÂMETRO DE 30 CM, INCLUSO CONCRETO FCK=30MPA E ARMADURA MÍNIMA (EXCLUSIVE MOBILIZAÇÃO, DESMOBILIZAÇÃO E BOMBEAMENTO). AF_12/2019 | F102: 100651 | G102: SINAPI | H102: =IF(G102="SINAPI",VLOOKUP($F102,DADOS_SINAPI,3,0),IF(G102="SETOP",VLOOKUP($F102,DADOS_SETOP,3,0),IF(G102="CPU",VLOOKUP($F102,DADOS_COMPOSICAO,10,0),IF(G102="SICRO",VLOOKUP($F102,DADOS_SICRO,3,0),IF(G102="SUDECAP",VLOOKUP(F102,DADOS_SUDECAP,3,0),IF(G102="COTAÇÃO",VLOOKUP($F102,DADOS_COTACAO,9,0),"")))))) -> M | I102: =F106 -> 280 | J102: =IF(G102="SINAPI",VLOOKUP($F102,DADOS_SINAPI,4,0),IF(G102="SETOP",VLOOKUP($F102,DADOS_SETOP,4,0),IF(G102="CPU",VLOOKUP($F102,DADOS_COMPOSICAO,13,0),IF(G102="SICRO",VLOOKUP($F102,DADOS_SICRO,4,0),IF(G102="SUDECAP",VLOOKUP(F102,DADOS_SUDECAP,4,0),IF(G102="COTAÇÃO",VLOOKUP(F102,DADOS_COTACAO,12,0),"")))))) -> 150.91 | K102: BDI 1 | L102: =TRUNC(J102*(1+$N$17),2) -> 190.93 | M102: =IFERROR(TRUNC(I102*J102,2),"") -> 42254.8 | N102: =IFERROR(TRUNC(L102*I102,2),"") -> 53460.4
A103: 2000
A104: 2000 | E104: Quantidade | F104: 28 | G104: un
A105: 2000 | E105: Profundidade | F105: 10 | G105: m
A106: 2000 | E106: Total | F106: =F104*F105 -> 280 | G106: m
A107: 2000
A108: =IFERROR(LEFT(D108,SEARCH(".",D108)-1),"") -> 3 | B108: =IFERROR(LEFT(RIGHT(D108,LEN(D108)-SEARCH(".",D108)),SEARCH(".",RIGHT(D108,LEN(D108)-SEARCH(".",D108)))-1),"") -> 2 | C108: =IFERROR(IF(LEN(D108)-LEN(SUBSTITUTE(D108,".",""))<>3,"",MID(D108,SEARCH(".",D108,SEARCH(".",D108)+1)+1,LEN(D108)-SEARCH(".",D108,SEARCH(".",D108)+1)-(LEN(D108)-(SEARCH(".",D108,SEARCH(".",D108,SEARCH(".",D108)+1)+1)-1)))),"") ->  | D108: 3.2.2 | E108: =IF($G108="SINAPI",VLOOKUP($F108,DADOS_SINAPI,2,0),IF(G108="SETOP",VLOOKUP($F108,DADOS_SETOP,2,0),IF(G108="CPU",VLOOKUP($F108,DADOS_COMPOSICAO,2,0),IF(G108="SICRO",VLOOKUP($F108,DADOS_SICRO,2,0),IF(G108="SUDECAP",VLOOKUP(F108,DADOS_SUDECAP,2,0),IF(G108="COTAÇÃO",VLOOKUP($F108,DADOS_COTACAO,2,0),"")))))) -> CORTE E PREPARO DE CABEÇA DE ESTACAS | F108: ED-49738 | G108: SETOP | H108: =IF(G108="SINAPI",VLOOKUP($F108,DADOS_SINAPI,3,0),IF(G108="SETOP",VLOOKUP($F108,DADOS_SETOP,3,0),IF(G108="CPU",VLOOKUP($F108,DADOS_COMPOSICAO,10,0),IF(G108="SICRO",VLOOKUP($F108,DADOS_SICRO,3,0),IF(G108="SUDECAP",VLOOKUP(F108,DADOS_SUDECAP,3,0),IF(G108="COTAÇÃO",VLOOKUP($F108,DADOS_COTACAO,9,0),"")))))) -> U | I108: =F110 -> 28 | J108: =IF(G108="SINAPI",VLOOKUP($F108,DADOS_SINAPI,4,0),IF(G108="SETOP",VLOOKUP($F108,DADOS_SETOP,4,0),IF(G108="CPU",VLOOKUP($F108,DADOS_COMPOSICAO,13,0),IF(G108="SICRO",VLOOKUP($F108,DADOS_SICRO,4,0),IF(G108="SUDECAP",VLOOKUP(F108,DADOS_SUDECAP,4,0),IF(G108="COTAÇÃO",VLOOKUP(F108,DADOS_COTACAO,12,0),"")))))) -> 51.33 | K108: BDI 1 | L108: =TRUNC(J108*(1+$N$17),2) -> 64.94 | M108: =IFERROR(TRUNC(I108*J108,2),"") -> 1437.24 | N108: =IFERROR(TRUNC(L108*I108,2),"") -> 1818.32
A109: 2000
A110: 2000 | E110: Quantidade | F110: 28 | G110: un
A111: 2000
A112: =IFERROR(LEFT(D112,SEARCH(".",D112)-1),"") -> 3 | B112: =IFERROR(LEFT(RIGHT(D112,LEN(D112)-SEARCH(".",D112)),SEARCH(".",RIGHT(D112,LEN(D112)-SEARCH(".",D112)))-1),"") -> 2 | C112: =IFERROR(IF(LEN(D112)-LEN(SUBSTITUTE(D112,".",""))<>3,"",MID(D112,SEARCH(".",D112,SEARCH(".",D112)+1)+1,LEN(D112)-SEARCH(".",D112,SEARCH(".",D112)+1)-(LEN(D112)-(SEARCH(".",D112,SEARCH(".",D112,SEARCH(".",D112)+1)+1)-1)))),"") ->  | D112: 3.2.3 | E112: =IF($G112="SINAPI",VLOOKUP($F112,DADOS_SINAPI,2,0),IF(G112="SETOP",VLOOKUP($F112,DADOS_SETOP,2,0),IF(G112="CPU",VLOOKUP($F112,DADOS_COMPOSICAO,2,0),IF(G112="SICRO",VLOOKUP($F112,DADOS_SICRO,2,0),IF(G112="SUDECAP",VLOOKUP(F112,DADOS_SUDECAP,2,0),IF(G112="COTAÇÃO",VLOOKUP($F112,DADOS_COTACAO,2,0),"")))))) -> MOBILIZAÇÃO E DESMOBILIZAÇÃO DE EQUIPAMENTO PARA ESTACA TIPO HÉLICE CONTÍNUA DMT ATÉ 50 KM | F112: ED-49713 | G112: SETOP | H112: =IF(G112="SINAPI",VLOOKUP($F112,DADOS_SINAPI,3,0),IF(G112="SETOP",VLOOKUP($F112,DADOS_SETOP,3,0),IF(G112="CPU",VLOOKUP($F112,DADOS_COMPOSICAO,10,0),IF(G112="SICRO",VLOOKUP($F112,DADOS_SICRO,3,0),IF(G112="SUDECAP",VLOOKUP(F112,DADOS_SUDECAP,3,0),IF(G112="COTAÇÃO",VLOOKUP($F112,DADOS_COTACAO,9,0),"")))))) -> un | I112: =F114 -> 1 | J112: =IF(G112="SINAPI",VLOOKUP($F112,DADOS_SINAPI,4,0),IF(G112="SETOP",VLOOKUP($F112,DADOS_SETOP,4,0),IF(G112="CPU",VLOOKUP($F112,DADOS_COMPOSICAO,13,0),IF(G112="SICRO",VLOOKUP($F112,DADOS_SICRO,4,0),IF(G112="SUDECAP",VLOOKUP(F112,DADOS_SUDECAP,4,0),IF(G112="COTAÇÃO",VLOOKUP(F112,DADOS_COTACAO,12,0),"")))))) -> 9644.73 | K112: BDI 1 | L112: =TRUNC(J112*(1+$N$17),2) -> 12202.51 | M112: =IFERROR(TRUNC(I112*J112,2),"") -> 9644.73 | N112: =IFERROR(TRUNC(L112*I112,2),"") -> 12202.51
A113: 2000
A114: 2000 | E114: Quantidade | F114: 1 | G114: un
A115: 2000
A116: =IFERROR(LEFT(D116,SEARCH(".",D116)-1),"") -> 3 | B116: =IFERROR(LEFT(RIGHT(D116,LEN(D116)-SEARCH(".",D116)),SEARCH(".",RIGHT(D116,LEN(D116)-SEARCH(".",D116)))-1),"") -> 2 | C116: =IFERROR(IF(LEN(D116)-LEN(SUBSTITUTE(D116,".",""))<>3,"",MID(D116,SEARCH(".",D116,SEARCH(".",D116)+1)+1,LEN(D116)-SEARCH(".",D116,SEARCH(".",D116)+1)-(LEN(D116)-(SEARCH(".",D116,SEARCH(".",D116,SEARCH(".",D116)+1)+1)-1)))),"") ->  | D116: 3.2.4 | E116: =IF($G116="SINAPI",VLOOKUP($F116,DADOS_SINAPI,2,0),IF(G116="SETOP",VLOOKUP($F116,DADOS_SETOP,2,0),IF(G116="CPU",VLOOKUP($F116,DADOS_COMPOSICAO,2,0),IF(G116="SICRO",VLOOKUP($F116,DADOS_SICRO,2,0),IF(G116="SUDECAP",VLOOKUP(F116,DADOS_SUDECAP,2,0),IF(G116="COTAÇÃO",VLOOKUP($F116,DADOS_COTACAO,2,0),"")))))) -> LANÇAMENTO COM USO DE BOMBA, ADENSAMENTO E ACABAMENTO DE CONCRETO EM ESTRUTURAS. AF_02/2022 | F116: 103673 | G116: SINAPI | H116: =IF(G116="SINAPI",VLOOKUP($F116,DADOS_SINAPI,3,0),IF(G116="SETOP",VLOOKUP($F116,DADOS_SETOP,3,0),IF(G116="CPU",VLOOKUP($F116,DADOS_COMPOSICAO,10,0),IF(G116="SICRO",VLOOKUP($F116,DADOS_SICRO,3,0),IF(G116="SUDECAP",VLOOKUP(F116,DADOS_SUDECAP,3,0),IF(G116="COTAÇÃO",VLOOKUP($F116,DADOS_COTACAO,9,0),"")))))) -> M3 | I116: =F120 -> 21.77123709 | J116: =IF(G116="SINAPI",VLOOKUP($F116,DADOS_SINAPI,4,0),IF(G116="SETOP",VLOOKUP($F116,DADOS_SETOP,4,0),IF(G116="CPU",VLOOKUP($F116,DADOS_COMPOSICAO,13,0),IF(G116="SICRO",VLOOKUP($F116,DADOS_SICRO,4,0),IF(G116="SUDECAP",VLOOKUP(F116,DADOS_SUDECAP,4,0),IF(G116="COTAÇÃO",VLOOKUP(F116,DADOS_COTACAO,12,0),"")))))) -> 33.2 | K116: BDI 1 | L116: =TRUNC(J116*(1+$N$17),2) -> 42 | M116: =IFERROR(TRUNC(I116*J116,2),"") -> 722.8 | N116: =IFERROR(TRUNC(L116*I116,2),"") -> 914.39
A117: 2000
A118: 2000 | E118: Comprimento das estacas | F118: =F106 -> 280 | G118: m
A119: 2000 | E119: Área da seção | F119: =0.3*0.3*PI()/4 -> 0.07068583471 | G119: m²
A120: 2000 | E120: Volume total de concreto + 10% | F120: =F118*F119*1.1 -> 21.77123709 | G120: m³
A121: 2000
D122: 3.3 | E122: ESTRUTURAS DE CONCRETO | M122: =IFERROR(SUMIFS(M:M,A:A,LEFT(D122,SEARCH(".",D122)-1),B:B,RIGHT(D122,LEN(D122)-SEARCH(".",D122))),"") -> 56329.28 | N122: =IFERROR(SUMIFS(N:N,A:A,LEFT(D122,SEARCH(".",D122)-1),B:B,RIGHT(D122,LEN(D122)-SEARCH(".",D122))),"") -> 71255.22
A123: =IFERROR(LEFT(D123,SEARCH(".",D123)-1),"") -> 3 | B123: =IFERROR(LEFT(RIGHT(D123,LEN(D123)-SEARCH(".",D123)),SEARCH(".",RIGHT(D123,LEN(D123)-SEARCH(".",D123)))-1),"") -> 3 | C123: =IFERROR(IF(LEN(D123)-LEN(SUBSTITUTE(D123,".",""))<>3,"",MID(D123,SEARCH(".",D123,SEARCH(".",D123)+1)+1,LEN(D123)-SEARCH(".",D123,SEARCH(".",D123)+1)-(LEN(D123)-(SEARCH(".",D123,SEARCH(".",D123,SEARCH(".",D123)+1)+1)-1)))),"") ->  | D123: 3.3.1 | E123: =IF($G123="SINAPI",VLOOKUP($F123,DADOS_SINAPI,2,0),IF(G123="SETOP",VLOOKUP($F123,DADOS_SETOP,2,0),IF(G123="CPU",VLOOKUP($F123,DADOS_COMPOSICAO,2,0),IF(G123="SICRO",VLOOKUP($F123,DADOS_SICRO,2,0),IF(G123="SUDECAP",VLOOKUP(F123,DADOS_SUDECAP,2,0),IF(G123="COTAÇÃO",VLOOKUP($F123,DADOS_COTACAO,2,0),"")))))) -> CORTE, DOBRA E MONTAGEM DE AÇO CA-50/60 | F123: ED-48298 | G123: SETOP | H123: =IF(G123="SINAPI",VLOOKUP($F123,DADOS_SINAPI,3,0),IF(G123="SETOP",VLOOKUP($F123,DADOS_SETOP,3,0),IF(G123="CPU",VLOOKUP($F123,DADOS_COMPOSICAO,10,0),IF(G123="SICRO",VLOOKUP($F123,DADOS_SICRO,3,0),IF(G123="SUDECAP",VLOOKUP(F123,DADOS_SUDECAP,3,0),IF(G123="COTAÇÃO",VLOOKUP($F123,DADOS_COTACAO,9,0),"")))))) -> Kg | I123: =F128 -> 1347.3 | J123: =IF(G123="SINAPI",VLOOKUP($F123,DADOS_SINAPI,4,0),IF(G123="SETOP",VLOOKUP($F123,DADOS_SETOP,4,0),IF(G123="CPU",VLOOKUP($F123,DADOS_COMPOSICAO,13,0),IF(G123="SICRO",VLOOKUP($F123,DADOS_SICRO,4,0),IF(G123="SUDECAP",VLOOKUP(F123,DADOS_SUDECAP,4,0),IF(G123="COTAÇÃO",VLOOKUP(F123,DADOS_COTACAO,12,0),"")))))) -> 13.42 | K123: BDI 1 | L123: =TRUNC(J123*(1+$N$17),2) -> 16.97 | M123: =IFERROR(TRUNC(I123*J123,2),"") -> 18080.76 | N123: =IFERROR(TRUNC(L123*I123,2),"") -> 22863.68
A124: 2000
A125: 2000 | E125: Aço vigas baldrame | F125: 428.1 | G125: kg
A126: 2000 | E126: Aço blocos de coroamento | F126: 370.1 | G126: kg
A127: 2000 | E127: Aço pilaretes | F127: 549.1 | G127: kg
A128: 2000 | E128: Peso total | F128: =SUM(F125:F127) -> 1347.3 | G128: kg
A129: 2000
A130: =IFERROR(LEFT(D130,SEARCH(".",D130)-1),"") -> 3 | B130: =IFERROR(LEFT(RIGHT(D130,LEN(D130)-SEARCH(".",D130)),SEARCH(".",RIGHT(D130,LEN(D130)-SEARCH(".",D130)))-1),"") -> 3 | C130: =IFERROR(IF(LEN(D130)-LEN(SUBSTITUTE(D130,".",""))<>3,"",MID(D130,SEARCH(".",D130,SEARCH(".",D130)+1)+1,LEN(D130)-SEARCH(".",D130,SEARCH(".",D130)+1)-(LEN(D130)-(SEARCH(".",D130,SEARCH(".",D130,SEARCH(".",D130)+1)+1)-1)))),"") ->  | D130: 3.3.2 | E130: =IF($G130="SINAPI",VLOOKUP($F130,DADOS_SINAPI,2,0),IF(G130="SETOP",VLOOKUP($F130,DADOS_SETOP,2,0),IF(G130="CPU",VLOOKUP($F130,DADOS_COMPOSICAO,2,0),IF(G130="SICRO",VLOOKUP($F130,DADOS_SICRO,2,0),IF(G130="SUDECAP",VLOOKUP(F130,DADOS_SUDECAP,2,0),IF(G130="COTAÇÃO",VLOOKUP($F130,DADOS_COTACAO,2,0),"")))))) -> FORNECIMENTO DE CONCRETO ESTRUTURAL, USINADO, COM FCK 30 MPA, INCLUSIVE LANÇAMENTO, ADENSAMENTO E ACABAMENTO (FUNDAÇÃO) | F130: ED-49799 | G130: SETOP | H130: =IF(G130="SINAPI",VLOOKUP($F130,DADOS_SINAPI,3,0),IF(G130="SETOP",VLOOKUP($F130,DADOS_SETOP,3,0),IF(G130="CPU",VLOOKUP($F130,DADOS_COMPOSICAO,10,0),IF(G130="SICRO",VLOOKUP($F130,DADOS_SICRO,3,0),IF(G130="SUDECAP",VLOOKUP(F130,DADOS_SUDECAP,3,0),IF(G130="COTAÇÃO",VLOOKUP($F130,DADOS_COTACAO,9,0),"")))))) -> m3 | I130: =F135 -> 27.25 | J130: =IF(G130="SINAPI",VLOOKUP($F130,DADOS_SINAPI,4,0),IF(G130="SETOP",VLOOKUP($F130,DADOS_SETOP,4,0),IF(G130="CPU",VLOOKUP($F130,DADOS_COMPOSICAO,13,0),IF(G130="SICRO",VLOOKUP($F130,DADOS_SICRO,4,0),IF(G130="SUDECAP",VLOOKUP(F130,DADOS_SUDECAP,4,0),IF(G130="COTAÇÃO",VLOOKUP(F130,DADOS_COTACAO,12,0),"")))))) -> 719.99 | K130: BDI 1 | L130: =TRUNC(J130*(1+$N$17),2) -> 910.93 | M130: =IFERROR(TRUNC(I130*J130,2),"") -> 19619.72 | N130: =IFERROR(TRUNC(L130*I130,2),"") -> 24822.84
A131: 2000
A132: 2000 | E132: Concreto vigas baldrame | F132: 11.77 | G132: m³
A133: 2000 | E133: Concreto blocos de coroamento | F133: 10.09 | G133: m³
A134: 2000 | E134: Concreto de pilaretes | F134: 5.39 | G134: m³
A135: 2000 | E135: Volume total | F135: =SUM(F132:F134) -> 27.25 | G135: m³
A136: 2000
A137: =IFERROR(LEFT(D137,SEARCH(".",D137)-1),"") -> 3 | B137: =IFERROR(LEFT(RIGHT(D137,LEN(D137)-SEARCH(".",D137)),SEARCH(".",RIGHT(D137,LEN(D137)-SEARCH(".",D137)))-1),"") -> 3 | C137: =IFERROR(IF(LEN(D137)-LEN(SUBSTITUTE(D137,".",""))<>3,"",MID(D137,SEARCH(".",D137,SEARCH(".",D137)+1)+1,LEN(D137)-SEARCH(".",D137,SEARCH(".",D137)+1)-(LEN(D137)-(SEARCH(".",D137,SEARCH(".",D137,SEARCH(".",D137)+1)+1)-1)))),"") ->  | D137: 3.3.3 | E137: =IF($G137="SINAPI",VLOOKUP($F137,DADOS_SINAPI,2,0),IF(G137="SETOP",VLOOKUP($F137,DADOS_SETOP,2,0),IF(G137="CPU",VLOOKUP($F137,DADOS_COMPOSICAO,2,0),IF(G137="SICRO",VLOOKUP($F137,DADOS_SICRO,2,0),IF(G137="SUDECAP",VLOOKUP(F137,DADOS_SUDECAP,2,0),IF(G137="COTAÇÃO",VLOOKUP($F137,DADOS_COTACAO,2,0),"")))))) -> FORMA E DESFORMA DE COMPENSADO PLASTIFICADO, ESP. 12MM, REAPROVEITAMENTO (3X) (FUNDAÇÃO) | F137: ED-8571 | G137: SETOP | H137: =IF(G137="SINAPI",VLOOKUP($F137,DADOS_SINAPI,3,0),IF(G137="SETOP",VLOOKUP($F137,DADOS_SETOP,3,0),IF(G137="CPU",VLOOKUP($F137,DADOS_COMPOSICAO,10,0),IF(G137="SICRO",VLOOKUP($F137,DADOS_SICRO,3,0),IF(G137="SUDECAP",VLOOKUP(F137,DADOS_SUDECAP,3,0),IF(G137="COTAÇÃO",VLOOKUP($F137,DADOS_COTACAO,9,0),"")))))) -> m2 | I137: =F142 -> 254.11 | J137: =IF(G137="SINAPI",VLOOKUP($F137,DADOS_SINAPI,4,0),IF(G137="SETOP",VLOOKUP($F137,DADOS_SETOP,4,0),IF(G137="CPU",VLOOKUP($F137,DADOS_COMPOSICAO,13,0),IF(G137="SICRO",VLOOKUP($F137,DADOS_SICRO,4,0),IF(G137="SUDECAP",VLOOKUP(F137,DADOS_SUDECAP,4,0),IF(G137="COTAÇÃO",VLOOKUP(F137,DADOS_COTACAO,12,0),"")))))) -> 73.31 | K137: BDI 1 | L137: =TRUNC(J137*(1+$N$17),2) -> 92.75 | M137: =IFERROR(TRUNC(I137*J137,2),"") -> 18628.8 | N137: =IFERROR(TRUNC(L137*I137,2),"") -> 23568.7
A138: 2000
A139: 2000 | E139: Forma viga baldrame | F139: 156.81 | G139: m²
A140: 2000 | E140: Forma blocos de coroamento | F140: 41.86 | G140: m²
A141: 2000 | E141: Forma pilaretes | F141: 55.44 | G141: m²
A142: 2000 | E142: Área total | F142: =SUM(F139:F141) -> 254.11 | G142: m²
A143: 2000
A144: 1000 | D144: 4 | E144: COBERTURA METÁLICA | M144: =SUMIF(A:A,D144,M:M) -> 1144221.85 | N144: =SUMIF(A:A,D144,N:N) -> 1447539.43
A145: =IFERROR(LEFT(D145,SEARCH(".",D145)-1),"") -> 4 | B145: =IFERROR(LEFT(RIGHT(D145,LEN(D145)-SEARCH(".",D145)),SEARCH(".",RIGHT(D145,LEN(D145)-SEARCH(".",D145)))-1),"") ->  | C145: =IFERROR(IF(LEN(D145)-LEN(SUBSTITUTE(D145,".",""))<>3,"",MID(D145,SEARCH(".",D145,SEARCH(".",D145)+1)+1,LEN(D145)-SEARCH(".",D145,SEARCH(".",D145)+1)-(LEN(D145)-(SEARCH(".",D145,SEARCH(".",D145,SEARCH(".",D145)+1)+1)-1)))),"") ->  | D145: 4.1 | E145: =IF($G145="SINAPI",VLOOKUP($F145,DADOS_SINAPI,2,0),IF(G145="SETOP",VLOOKUP($F145,DADOS_SETOP,2,0),IF(G145="CPU",VLOOKUP($F145,DADOS_COMPOSICAO,2,0),IF(G145="SICRO",VLOOKUP($F145,DADOS_SICRO,2,0),IF(G145="SUDECAP",VLOOKUP(F145,DADOS_SUDECAP,2,0),IF(G145="COTAÇÃO",VLOOKUP($F145,DADOS_COTACAO,2,0),"")))))) -> FORNECIMENTO DE ESTRUTURA METÁLICA EM PERFIL LAMINADO, INCLUSIVE FABRICAÇÃO, TRANSPORTE, MONTAGEM E APLICAÇÃO DE FUNDO PREPARADOR ANTICORROSIVO EM SUPERFÍCIE METÁLICA, UMA (1) DEMÃO | F145: ED-49664 | G145: SETOP | H145: =IF(G145="SINAPI",VLOOKUP($F145,DADOS_SINAPI,3,0),IF(G145="SETOP",VLOOKUP($F145,DADOS_SETOP,3,0),IF(G145="CPU",VLOOKUP($F145,DADOS_COMPOSICAO,10,0),IF(G145="SICRO",VLOOKUP($F145,DADOS_SICRO,3,0),IF(G145="SUDECAP",VLOOKUP(F145,DADOS_SUDECAP,3,0),IF(G145="COTAÇÃO",VLOOKUP($F145,DADOS_COTACAO,9,0),"")))))) -> Kg | I145: =F147 -> 34935 | J145: =IF(G145="SINAPI",VLOOKUP($F145,DADOS_SINAPI,4,0),IF(G145="SETOP",VLOOKUP($F145,DADOS_SETOP,4,0),IF(G145="CPU",VLOOKUP($F145,DADOS_COMPOSICAO,13,0),IF(G145="SICRO",VLOOKUP($F145,DADOS_SICRO,4,0),IF(G145="SUDECAP",VLOOKUP(F145,DADOS_SUDECAP,4,0),IF(G145="COTAÇÃO",VLOOKUP(F145,DADOS_COTACAO,12,0),"")))))) -> 25.05 | K145: BDI 1 | L145: =TRUNC(J145*(1+$N$17),2) -> 31.69 | M145: =IFERROR(TRUNC(I145*J145,2),"") -> 875121.75 | N145: =IFERROR(TRUNC(L145*I145,2),"") -> 1107090.15
A146: 2000
A147: 2000 | E147: Peso da Cobertura | F147: 34935 | G147: kg
A148: 2000
A149: =IFERROR(LEFT(D149,SEARCH(".",D149)-1),"") -> 4 | B149: =IFERROR(LEFT(RIGHT(D149,LEN(D149)-SEARCH(".",D149)),SEARCH(".",RIGHT(D149,LEN(D149)-SEARCH(".",D149)))-1),"") ->  | C149: =IFERROR(IF(LEN(D149)-LEN(SUBSTITUTE(D149,".",""))<>3,"",MID(D149,SEARCH(".",D149,SEARCH(".",D149)+1)+1,LEN(D149)-SEARCH(".",D149,SEARCH(".",D149)+1)-(LEN(D149)-(SEARCH(".",D149,SEARCH(".",D149,SEARCH(".",D149)+1)+1)-1)))),"") ->  | D149: 4.2 | E149: =IF($G149="SINAPI",VLOOKUP($F149,DADOS_SINAPI,2,0),IF(G149="SETOP",VLOOKUP($F149,DADOS_SETOP,2,0),IF(G149="CPU",VLOOKUP($F149,DADOS_COMPOSICAO,2,0),IF(G149="SICRO",VLOOKUP($F149,DADOS_SICRO,2,0),IF(G149="SUDECAP",VLOOKUP(F149,DADOS_SUDECAP,2,0),IF(G149="COTAÇÃO",VLOOKUP($F149,DADOS_COTACAO,2,0),"")))))) -> COBERTURA EM TELHA METÁLICA GALVANIZADA TRAPEZOIDAL, TIPO SIMPLES, ESP. 0,50MM, ACABAMENTO NATURAL, INCLUSIVE ACESSÓRIOS PARA FIXAÇÃO, FORNECIMENTO E INSTALAÇÃO | F149: ED-48428 | G149: SETOP | H149: =IF(G149="SINAPI",VLOOKUP($F149,DADOS_SINAPI,3,0),IF(G149="SETOP",VLOOKUP($F149,DADOS_SETOP,3,0),IF(G149="CPU",VLOOKUP($F149,DADOS_COMPOSICAO,10,0),IF(G149="SICRO",VLOOKUP($F149,DADOS_SICRO,3,0),IF(G149="SUDECAP",VLOOKUP(F149,DADOS_SUDECAP,3,0),IF(G149="COTAÇÃO",VLOOKUP($F149,DADOS_COTACAO,9,0),"")))))) -> m2 | I149: =F151 -> 1455.03 | J149: =IF(G149="SINAPI",VLOOKUP($F149,DADOS_SINAPI,4,0),IF(G149="SETOP",VLOOKUP($F149,DADOS_SETOP,4,0),IF(G149="CPU",VLOOKUP($F149,DADOS_COMPOSICAO,13,0),IF(G149="SICRO",VLOOKUP($F149,DADOS_SICRO,4,0),IF(G149="SUDECAP",VLOOKUP(F149,DADOS_SUDECAP,4,0),IF(G149="COTAÇÃO",VLOOKUP(F149,DADOS_COTACAO,12,0),"")))))) -> 99.53 | K149: BDI 1 | L149: =TRUNC(J149*(1+$N$17),2) -> 125.92 | M149: =IFERROR(TRUNC(I149*J149,2),"") -> 144819.13 | N149: =IFERROR(TRUNC(L149*I149,2),"") -> 183217.37
A150: 2000
A151: 2000 | E151: Área | F151: 1455.03 | G151: m²
A152: 2000
A153: =IFERROR(LEFT(D153,SEARCH(".",D153)-1),"") -> 4 | B153: =IFERROR(LEFT(RIGHT(D153,LEN(D153)-SEARCH(".",D153)),SEARCH(".",RIGHT(D153,LEN(D153)-SEARCH(".",D153)))-1),"") ->  | C153: =IFERROR(IF(LEN(D153)-LEN(SUBSTITUTE(D153,".",""))<>3,"",MID(D153,SEARCH(".",D153,SEARCH(".",D153)+1)+1,LEN(D153)-SEARCH(".",D153,SEARCH(".",D153)+1)-(LEN(D153)-(SEARCH(".",D153,SEARCH(".",D153,SEARCH(".",D153)+1)+1)-1)))),"") ->  | D153: 4.3 | E153: =IF($G153="SINAPI",VLOOKUP($F153,DADOS_SINAPI,2,0),IF(G153="SETOP",VLOOKUP($F153,DADOS_SETOP,2,0),IF(G153="CPU",VLOOKUP($F153,DADOS_COMPOSICAO,2,0),IF(G153="SICRO",VLOOKUP($F153,DADOS_SICRO,2,0),IF(G153="SUDECAP",VLOOKUP(F153,DADOS_SUDECAP,2,0),IF(G153="COTAÇÃO",VLOOKUP($F153,DADOS_COTACAO,2,0),"")))))) -> COLOCAÇÃO DE CUMEEIRA GALVANIZADA TRAPEZOIDAL E = 0,50 MM, SIMPLES | F153: ED-48402 | G153: SETOP | H153: =IF(G153="SINAPI",VLOOKUP($F153,DADOS_SINAPI,3,0),IF(G153="SETOP",VLOOKUP($F153,DADOS_SETOP,3,0),IF(G153="CPU",VLOOKUP($F153,DADOS_COMPOSICAO,10,0),IF(G153="SICRO",VLOOKUP($F153,DADOS_SICRO,3,0),IF(G153="SUDECAP",VLOOKUP(F153,DADOS_SUDECAP,3,0),IF(G153="COTAÇÃO",VLOOKUP($F153,DADOS_COTACAO,9,0),"")))))) -> m | I153: =F155 -> 42.84 | J153: =IF(G153="SINAPI",VLOOKUP($F153,DADOS_SINAPI,4,0),IF(G153="SETOP",VLOOKUP($F153,DADOS_SETOP,4,0),IF(G153="CPU",VLOOKUP($F153,DADOS_COMPOSICAO,13,0),IF(G153="SICRO",VLOOKUP($F153,DADOS_SICRO,4,0),IF(G153="SUDECAP",VLOOKUP(F153,DADOS_SUDECAP,4,0),IF(G153="COTAÇÃO",VLOOKUP(F153,DADOS_COTACAO,12,0),"")))))) -> 54.62 | K153: BDI 1 | L153: =TRUNC(J153*(1+$N$17),2) -> 69.1 | M153: =IFERROR(TRUNC(I153*J153,2),"") -> 2339.92 | N153: =IFERROR(TRUNC(L153*I153,2),"") -> 2960.24
A154: 2000
A155: 2000 | E155: Comprimento | F155: 42.84 | G155: m
A156: 2000
A157: =IFERROR(LEFT(D157,SEARCH(".",D157)-1),"") -> 4 | B157: =IFERROR(LEFT(RIGHT(D157,LEN(D157)-SEARCH(".",D157)),SEARCH(".",RIGHT(D157,LEN(D157)-SEARCH(".",D157)))-1),"") ->  | C157: =IFERROR(IF(LEN(D157)-LEN(SUBSTITUTE(D157,".",""))<>3,"",MID(D157,SEARCH(".",D157,SEARCH(".",D157)+1)+1,LEN(D157)-SEARCH(".",D157,SEARCH(".",D157)+1)-(LEN(D157)-(SEARCH(".",D157,SEARCH(".",D157,SEARCH(".",D157)+1)+1)-1)))),"") ->  | D157: 4.4 | E157: =IF($G157="SINAPI",VLOOKUP($F157,DADOS_SINAPI,2,0),IF(G157="SETOP",VLOOKUP($F157,DADOS_SETOP,2,0),IF(G157="CPU",VLOOKUP($F157,DADOS_COMPOSICAO,2,0),IF(G157="SICRO",VLOOKUP($F157,DADOS_SICRO,2,0),IF(G157="SUDECAP",VLOOKUP(F157,DADOS_SUDECAP,2,0),IF(G157="COTAÇÃO",VLOOKUP($F157,DADOS_COTACAO,2,0),"")))))) -> PINTURA ESMALTE EM ESTRUTURA METÁLICA, DUAS (2) DEMÃOS, INCLUSIVE UMA (1) DEMÃO FUNDO ANTICORROSIVO | F157: ED-50497 | G157: SETOP | H157: =IF(G157="SINAPI",VLOOKUP($F157,DADOS_SINAPI,3,0),IF(G157="SETOP",VLOOKUP($F157,DADOS_SETOP,3,0),IF(G157="CPU",VLOOKUP($F157,DADOS_COMPOSICAO,10,0),IF(G157="SICRO",VLOOKUP($F157,DADOS_SICRO,3,0),IF(G157="SUDECAP",VLOOKUP(F157,DADOS_SUDECAP,3,0),IF(G157="COTAÇÃO",VLOOKUP($F157,DADOS_COTACAO,9,0),"")))))) -> m2 | I157: =F162 -> 3690.71 | J157: =IF(G157="SINAPI",VLOOKUP($F157,DADOS_SINAPI,4,0),IF(G157="SETOP",VLOOKUP($F157,DADOS_SETOP,4,0),IF(G157="CPU",VLOOKUP($F157,DADOS_COMPOSICAO,13,0),IF(G157="SICRO",VLOOKUP($F157,DADOS_SICRO,4,0),IF(G157="SUDECAP",VLOOKUP(F157,DADOS_SUDECAP,4,0),IF(G157="COTAÇÃO",VLOOKUP(F157,DADOS_COTACAO,12,0),"")))))) -> 33.04 | K157: BDI 1 | L157: =TRUNC(J157*(1+$N$17),2) -> 41.8 | M157: =IFERROR(TRUNC(I157*J157,2),"") -> 121941.05 | N157: =IFERROR(TRUNC(L157*I157,2),"") -> 154271.67
A158: 2000
A159: 2000 | E159: Pintura das telhas | F159: 2910.06 | G159: m²
A160: 2000 | E160: Pintura da cumeeira | F160: 51.41 | G160: m²
A161: 2000 | E161: Pintura dos perfis | F161: 729.24 | G161: m²
A162: 2000 | E162: Total | F162: =SUM(F159:F161) -> 3690.71 | G162: m²
A163: 2000
A164: 1000 | D164: 5 | E164: DRENAGEM PLUVIAL | M164: =SUMIF(A:A,D164,M:M) -> 40969.36 | N164: =SUMIF(A:A,D164,N:N) -> 51830.55
D165: 5.1 | E165: TUBULAÇÕES E CONEXÕES | M165: =IFERROR(SUMIFS(M:M,A:A,LEFT(D165,SEARCH(".",D165)-1),B:B,RIGHT(D165,LEN(D165)-SEARCH(".",D165))),"") -> 37441.72 | N165: =IFERROR(SUMIFS(N:N,A:A,LEFT(D165,SEARCH(".",D165)-1),B:B,RIGHT(D165,LEN(D165)-SEARCH(".",D165))),"") -> 47367.94
A166: =IFERROR(LEFT(D166,SEARCH(".",D166)-1),"") -> 5 | B166: =IFERROR(LEFT(RIGHT(D166,LEN(D166)-SEARCH(".",D166)),SEARCH(".",RIGHT(D166,LEN(D166)-SEARCH(".",D166)))-1),"") -> 1 | C166: =IFERROR(IF(LEN(D166)-LEN(SUBSTITUTE(D166,".",""))<>3,"",MID(D166,SEARCH(".",D166,SEARCH(".",D166)+1)+1,LEN(D166)-SEARCH(".",D166,SEARCH(".",D166)+1)-(LEN(D166)-(SEARCH(".",D166,SEARCH(".",D166,SEARCH(".",D166)+1)+1)-1)))),"") ->  | D166: 5.1.1 | E166: =IF($G166="SINAPI",VLOOKUP($F166,DADOS_SINAPI,2,0),IF(G166="SETOP",VLOOKUP($F166,DADOS_SETOP,2,0),IF(G166="CPU",VLOOKUP($F166,DADOS_COMPOSICAO,2,0),IF(G166="SICRO",VLOOKUP($F166,DADOS_SICRO,2,0),IF(G166="SUDECAP",VLOOKUP(F166,DADOS_SUDECAP,2,0),IF(G166="COTAÇÃO",VLOOKUP($F166,DADOS_COTACAO,2,0),"")))))) -> JOELHO 45 GRAUS, PVC, SERIE R, ÁGUA PLUVIAL, DN 100 MM, JUNTA ELÁSTICA, FORNECIDO E INSTALADO EM RAMAL DE ENCAMINHAMENTO. AF_06/2022 | F166: 89531 | G166: SINAPI | H166: =IF(G166="SINAPI",VLOOKUP($F166,DADOS_SINAPI,3,0),IF(G166="SETOP",VLOOKUP($F166,DADOS_SETOP,3,0),IF(G166="CPU",VLOOKUP($F166,DADOS_COMPOSICAO,10,0),IF(G166="SICRO",VLOOKUP($F166,DADOS_SICRO,3,0),IF(G166="SUDECAP",VLOOKUP(F166,DADOS_SUDECAP,3,0),IF(G166="COTAÇÃO",VLOOKUP($F166,DADOS_COTACAO,9,0),"")))))) -> UN | I166: =F168 -> 4 | J166: =IF(G166="SINAPI",VLOOKUP($F166,DADOS_SINAPI,4,0),IF(G166="SETOP",VLOOKUP($F166,DADOS_SETOP,4,0),IF(G166="CPU",VLOOKUP($F166,DADOS_COMPOSICAO,13,0),IF(G166="SICRO",VLOOKUP($F166,DADOS_SICRO,4,0),IF(G166="SUDECAP",VLOOKUP(F166,DADOS_SUDECAP,4,0),IF(G166="COTAÇÃO",VLOOKUP(F166,DADOS_COTACAO,12,0),"")))))) -> 40.59 | K166: BDI 1 | L166: =TRUNC(J166*(1+$N$17),2) -> 51.35 | M166: =IFERROR(TRUNC(I166*J166,2),"") -> 162.36 | N166: =IFERROR(TRUNC(L166*I166,2),"") -> 205.4
A167: 2000
A168: 2000 | E168: Quantidade | F168: 4 | G168: un
A169: 2000
A170: =IFERROR(LEFT(D170,SEARCH(".",D170)-1),"") -> 5 | B170: =IFERROR(LEFT(RIGHT(D170,LEN(D170)-SEARCH(".",D170)),SEARCH(".",RIGHT(D170,LEN(D170)-SEARCH(".",D170)))-1),"") -> 1 | C170: =IFERROR(IF(LEN(D170)-LEN(SUBSTITUTE(D170,".",""))<>3,"",MID(D170,SEARCH(".",D170,SEARCH(".",D170)+1)+1,LEN(D170)-SEARCH(".",D170,SEARCH(".",D170)+1)-(LEN(D170)-(SEARCH(".",D170,SEARCH(".",D170,SEARCH(".",D170)+1)+1)-1)))),"") ->  | D170: 5.1.2 | E170: =IF($G170="SINAPI",VLOOKUP($F170,DADOS_SINAPI,2,0),IF(G170="SETOP",VLOOKUP($F170,DADOS_SETOP,2,0),IF(G170="CPU",VLOOKUP($F170,DADOS_COMPOSICAO,2,0),IF(G170="SICRO",VLOOKUP($F170,DADOS_SICRO,2,0),IF(G170="SUDECAP",VLOOKUP(F170,DADOS_SUDECAP,2,0),IF(G170="COTAÇÃO",VLOOKUP($F170,DADOS_COTACAO,2,0),"")))))) -> JOELHO 90 GRAUS, PVC, SERIE R, ÁGUA PLUVIAL, DN 100 MM, JUNTA ELÁSTICA, FORNECIDO E INSTALADO EM RAMAL DE ENCAMINHAMENTO. AF_06/2022 | F170: 89529 | G170: SINAPI | H170: =IF(G170="SINAPI",VLOOKUP($F170,DADOS_SINAPI,3,0),IF(G170="SETOP",VLOOKUP($F170,DADOS_SETOP,3,0),IF(G170="CPU",VLOOKUP($F170,DADOS_COMPOSICAO,10,0),IF(G170="SICRO",VLOOKUP($F170,DADOS_SICRO,3,0),IF(G170="SUDECAP",VLOOKUP(F170,DADOS_SUDECAP,3,0),IF(G170="COTAÇÃO",VLOOKUP($F170,DADOS_COTACAO,9,0),"")))))) -> UN | I170: =F172 -> 12 | J170: =IF(G170="SINAPI",VLOOKUP($F170,DADOS_SINAPI,4,0),IF(G170="SETOP",VLOOKUP($F170,DADOS_SETOP,4,0),IF(G170="CPU",VLOOKUP($F170,DADOS_COMPOSICAO,13,0),IF(G170="SICRO",VLOOKUP($F170,DADOS_SICRO,4,0),IF(G170="SUDECAP",VLOOKUP(F170,DADOS_SUDECAP,4,0),IF(G170="COTAÇÃO",VLOOKUP(F170,DADOS_COTACAO,12,0),"")))))) -> 39.3 | K170: BDI 1 | L170: =TRUNC(J170*(1+$N$17),2) -> 49.72 | M170: =IFERROR(TRUNC(I170*J170,2),"") -> 471.6 | N170: =IFERROR(TRUNC(L170*I170,2),"") -> 596.64
A171: 2000
A172: 2000 | E172: Quantidade | F172: 12 | G172: un
A173: 2000
A174: =IFERROR(LEFT(D174,SEARCH(".",D174)-1),"") -> 5 | B174: =IFERROR(LEFT(RIGHT(D174,LEN(D174)-SEARCH(".",D174)),SEARCH(".",RIGHT(D174,LEN(D174)-SEARCH(".",D174)))-1),"") -> 1 | C174: =IFERROR(IF(LEN(D174)-LEN(SUBSTITUTE(D174,".",""))<>3,"",MID(D174,SEARCH(".",D174,SEARCH(".",D174)+1)+1,LEN(D174)-SEARCH(".",D174,SEARCH(".",D174)+1)-(LEN(D174)-(SEARCH(".",D174,SEARCH(".",D174,SEARCH(".",D174)+1)+1)-1)))),"") ->  | D174: 5.1.3 | E174: =IF($G174="SINAPI",VLOOKUP($F174,DADOS_SINAPI,2,0),IF(G174="SETOP",VLOOKUP($F174,DADOS_SETOP,2,0),IF(G174="CPU",VLOOKUP($F174,DADOS_COMPOSICAO,2,0),IF(G174="SICRO",VLOOKUP($F174,DADOS_SICRO,2,0),IF(G174="SUDECAP",VLOOKUP(F174,DADOS_SUDECAP,2,0),IF(G174="COTAÇÃO",VLOOKUP($F174,DADOS_COTACAO,2,0),"")))))) -> JUNÇÃO SIMPLES, PVC, SERIE R, ÁGUA PLUVIAL, DN 100 X 100 MM, JUNTA ELÁSTICA, FORNECIDO E INSTALADO EM RAMAL DE ENCAMINHAMENTO. AF_06/2022 | F174: 89567 | G174: SINAPI | H174: =IF(G174="SINAPI",VLOOKUP($F174,DADOS_SINAPI,3,0),IF(G174="SETOP",VLOOKUP($F174,DADOS_SETOP,3,0),IF(G174="CPU",VLOOKUP($F174,DADOS_COMPOSICAO,10,0),IF(G174="SICRO",VLOOKUP($F174,DADOS_SICRO,3,0),IF(G174="SUDECAP",VLOOKUP(F174,DADOS_SUDECAP,3,0),IF(G174="COTAÇÃO",VLOOKUP($F174,DADOS_COTACAO,9,0),"")))))) -> UN | I174: =F176 -> 4 | J174: =IF(G174="SINAPI",VLOOKUP($F174,DADOS_SINAPI,4,0),IF(G174="SETOP",VLOOKUP($F174,DADOS_SETOP,4,0),IF(G174="CPU",VLOOKUP($F174,DADOS_COMPOSICAO,13,0),IF(G174="SICRO",VLOOKUP($F174,DADOS_SICRO,4,0),IF(G174="SUDECAP",VLOOKUP(F174,DADOS_SUDECAP,4,0),IF(G174="COTAÇÃO",VLOOKUP(F174,DADOS_COTACAO,12,0),"")))))) -> 89.5 | K174: BDI 1 | L174: =TRUNC(J174*(1+$N$17),2) -> 113.23 | M174: =IFERROR(TRUNC(I174*J174,2),"") -> 358 | N174: =IFERROR(TRUNC(L174*I174,2),"") -> 452.92
A175: 2000
A176: 2000 | E176: Quantidade | F176: 4 | G176: un
A177: 2000
A178: =IFERROR(LEFT(D178,SEARCH(".",D178)-1),"") -> 5 | B178: =IFERROR(LEFT(RIGHT(D178,LEN(D178)-SEARCH(".",D178)),SEARCH(".",RIGHT(D178,LEN(D178)-SEARCH(".",D178)))-1),"") -> 1 | C178: =IFERROR(IF(LEN(D178)-LEN(SUBSTITUTE(D178,".",""))<>3,"",MID(D178,SEARCH(".",D178,SEARCH(".",D178)+1)+1,LEN(D178)-SEARCH(".",D178,SEARCH(".",D178)+1)-(LEN(D178)-(SEARCH(".",D178,SEARCH(".",D178,SEARCH(".",D178)+1)+1)-1)))),"") ->  | D178: 5.1.4 | E178: =IF($G178="SINAPI",VLOOKUP($F178,DADOS_SINAPI,2,0),IF(G178="SETOP",VLOOKUP($F178,DADOS_SETOP,2,0),IF(G178="CPU",VLOOKUP($F178,DADOS_COMPOSICAO,2,0),IF(G178="SICRO",VLOOKUP($F178,DADOS_SICRO,2,0),IF(G178="SUDECAP",VLOOKUP(F178,DADOS_SUDECAP,2,0),IF(G178="COTAÇÃO",VLOOKUP($F178,DADOS_COTACAO,2,0),"")))))) -> JUNÇÃO SIMPLES, PVC, SERIE R, ÁGUA PLUVIAL, DN 150 X 100 MM, JUNTA ELÁSTICA, FORNECIDO E INSTALADO EM CONDUTORES VERTICAIS DE ÁGUAS PLUVIAIS. AF_06/2022 | F178: 89699 | G178: SINAPI | H178: =IF(G178="SINAPI",VLOOKUP($F178,DADOS_SINAPI,3,0),IF(G178="SETOP",VLOOKUP($F178,DADOS_SETOP,3,0),IF(G178="CPU",VLOOKUP($F178,DADOS_COMPOSICAO,10,0),IF(G178="SICRO",VLOOKUP($F178,DADOS_SICRO,3,0),IF(G178="SUDECAP",VLOOKUP(F178,DADOS_SUDECAP,3,0),IF(G178="COTAÇÃO",VLOOKUP($F178,DADOS_COTACAO,9,0),"")))))) -> UN | I178: =F180 -> 4 | J178: =IF(G178="SINAPI",VLOOKUP($F178,DADOS_SINAPI,4,0),IF(G178="SETOP",VLOOKUP($F178,DADOS_SETOP,4,0),IF(G178="CPU",VLOOKUP($F178,DADOS_COMPOSICAO,13,0),IF(G178="SICRO",VLOOKUP($F178,DADOS_SICRO,4,0),IF(G178="SUDECAP",VLOOKUP(F178,DADOS_SUDECAP,4,0),IF(G178="COTAÇÃO",VLOOKUP(F178,DADOS_COTACAO,12,0),"")))))) -> 223.02 | K178: BDI 1 | L178: =TRUNC(J178*(1+$N$17),2) -> 282.16 | M178: =IFERROR(TRUNC(I178*J178,2),"") -> 892.08 | N178: =IFERROR(TRUNC(L178*I178,2),"") -> 1128.64
A179: 2000
A180: 2000 | E180: Quantidade | F180: 4 | G180: un
A181: 2000
A182: =IFERROR(LEFT(D182,SEARCH(".",D182)-1),"") -> 5 | B182: =IFERROR(LEFT(RIGHT(D182,LEN(D182)-SEARCH(".",D182)),SEARCH(".",RIGHT(D182,LEN(D182)-SEARCH(".",D182)))-1),"") -> 1 | C182: =IFERROR(IF(LEN(D182)-LEN(SUBSTITUTE(D182,".",""))<>3,"",MID(D182,SEARCH(".",D182,SEARCH(".",D182)+1)+1,LEN(D182)-SEARCH(".",D182,SEARCH(".",D182)+1)-(LEN(D182)-(SEARCH(".",D182,SEARCH(".",D182,SEARCH(".",D182)+1)+1)-1)))),"") ->  | D182: 5.1.5 | E182: =IF($G182="SINAPI",VLOOKUP($F182,DADOS_SINAPI,2,0),IF(G182="SETOP",VLOOKUP($F182,DADOS_SETOP,2,0),IF(G182="CPU",VLOOKUP($F182,DADOS_COMPOSICAO,2,0),IF(G182="SICRO",VLOOKUP($F182,DADOS_SICRO,2,0),IF(G182="SUDECAP",VLOOKUP(F182,DADOS_SUDECAP,2,0),IF(G182="COTAÇÃO",VLOOKUP($F182,DADOS_COTACAO,2,0),"")))))) -> REDUÇÃO EXCÊNTRICA, PVC, SERIE R, ÁGUA PLUVIAL, DN 150 X 100 MM, JUNTA ELÁSTICA, FORNECIDO E INSTALADO EM CONDUTORES VERTICAIS DE ÁGUAS PLUVIAIS. AF_06/2022 | F182: 89681 | G182: SINAPI | H182: =IF(G182="SINAPI",VLOOKUP($F182,DADOS_SINAPI,3,0),IF(G182="SETOP",VLOOKUP($F182,DADOS_SETOP,3,0),IF(G182="CPU",VLOOKUP($F182,DADOS_COMPOSICAO,10,0),IF(G182="SICRO",VLOOKUP($F182,DADOS_SICRO,3,0),IF(G182="SUDECAP",VLOOKUP(F182,DADOS_SUDECAP,3,0),IF(G182="COTAÇÃO",VLOOKUP($F182,DADOS_COTACAO,9,0),"")))))) -> UN | I182: =F184 -> 2 | J182: =IF(G182="SINAPI",VLOOKUP($F182,DADOS_SINAPI,4,0),IF(G182="SETOP",VLOOKUP($F182,DADOS_SETOP,4,0),IF(G182="CPU",VLOOKUP($F182,DADOS_COMPOSICAO,13,0),IF(G182="SICRO",VLOOKUP($F182,DADOS_SICRO,4,0),IF(G182="SUDECAP",VLOOKUP(F182,DADOS_SUDECAP,4,0),IF(G182="COTAÇÃO",VLOOKUP(F182,DADOS_COTACAO,12,0),"")))))) -> 98.53 | K182: BDI 1 | L182: =TRUNC(J182*(1+$N$17),2) -> 124.66 | M182: =IFERROR(TRUNC(I182*J182,2),"") -> 197.06 | N182: =IFERROR(TRUNC(L182*I182,2),"") -> 249.32
A183: 2000
A184: 2000 | E184: Quantidade | F184: 2 | G184: un
A185: 2000
A186: =IFERROR(LEFT(D186,SEARCH(".",D186)-1),"") -> 5 | B186: =IFERROR(LEFT(RIGHT(D186,LEN(D186)-SEARCH(".",D186)),SEARCH(".",RIGHT(D186,LEN(D186)-SEARCH(".",D186)))-1),"") -> 1 | C186: =IFERROR(IF(LEN(D186)-LEN(SUBSTITUTE(D186,".",""))<>3,"",MID(D186,SEARCH(".",D186,SEARCH(".",D186)+1)+1,LEN(D186)-SEARCH(".",D186,SEARCH(".",D186)+1)-(LEN(D186)-(SEARCH(".",D186,SEARCH(".",D186,SEARCH(".",D186)+1)+1)-1)))),"") ->  | D186: 5.1.6 | E186: =IF($G186="SINAPI",VLOOKUP($F186,DADOS_SINAPI,2,0),IF(G186="SETOP",VLOOKUP($F186,DADOS_SETOP,2,0),IF(G186="CPU",VLOOKUP($F186,DADOS_COMPOSICAO,2,0),IF(G186="SICRO",VLOOKUP($F186,DADOS_SICRO,2,0),IF(G186="SUDECAP",VLOOKUP(F186,DADOS_SUDECAP,2,0),IF(G186="COTAÇÃO",VLOOKUP($F186,DADOS_COTACAO,2,0),"")))))) -> TUBO PVC, SÉRIE R, ÁGUA PLUVIAL, DN 100 MM, FORNECIDO E INSTALADO EM RAMAL DE ENCAMINHAMENTO. AF_06/2022 | F186: 89512 | G186: SINAPI | H186: =IF(G186="SINAPI",VLOOKUP($F186,DADOS_SINAPI,3,0),IF(G186="SETOP",VLOOKUP($F186,DADOS_SETOP,3,0),IF(G186="CPU",VLOOKUP($F186,DADOS_COMPOSICAO,10,0),IF(G186="SICRO",VLOOKUP($F186,DADOS_SICRO,3,0),IF(G186="SUDECAP",VLOOKUP(F186,DADOS_SUDECAP,3,0),IF(G186="COTAÇÃO",VLOOKUP($F186,DADOS_COTACAO,9,0),"")))))) -> M | I186: =F188 -> 177.07 | J186: =IF(G186="SINAPI",VLOOKUP($F186,DADOS_SINAPI,4,0),IF(G186="SETOP",VLOOKUP($F186,DADOS_SETOP,4,0),IF(G186="CPU",VLOOKUP($F186,DADOS_COMPOSICAO,13,0),IF(G186="SICRO",VLOOKUP($F186,DADOS_SICRO,4,0),IF(G186="SUDECAP",VLOOKUP(F186,DADOS_SUDECAP,4,0),IF(G186="COTAÇÃO",VLOOKUP(F186,DADOS_COTACAO,12,0),"")))))) -> 52.75 | K186: BDI 1 | L186: =TRUNC(J186*(1+$N$17),2) -> 66.73 | M186: =IFERROR(TRUNC(I186*J186,2),"") -> 9340.44 | N186: =IFERROR(TRUNC(L186*I186,2),"") -> 11815.88
A187: 2000
A188: 2000 | E188: Quantidade | F188: 177.07 | G188: m
A189: 2000
A190: =IFERROR(LEFT(D190,SEARCH(".",D190)-1),"") -> 5 | B190: =IFERROR(LEFT(RIGHT(D190,LEN(D190)-SEARCH(".",D190)),SEARCH(".",RIGHT(D190,LEN(D190)-SEARCH(".",D190)))-1),"") -> 1 | C190: =IFERROR(IF(LEN(D190)-LEN(SUBSTITUTE(D190,".",""))<>3,"",MID(D190,SEARCH(".",D190,SEARCH(".",D190)+1)+1,LEN(D190)-SEARCH(".",D190,SEARCH(".",D190)+1)-(LEN(D190)-(SEARCH(".",D190,SEARCH(".",D190,SEARCH(".",D190)+1)+1)-1)))),"") ->  | D190: 5.1.7 | E190: =IF($G190="SINAPI",VLOOKUP($F190,DADOS_SINAPI,2,0),IF(G190="SETOP",VLOOKUP($F190,DADOS_SETOP,2,0),IF(G190="CPU",VLOOKUP($F190,DADOS_COMPOSICAO,2,0),IF(G190="SICRO",VLOOKUP($F190,DADOS_SICRO,2,0),IF(G190="SUDECAP",VLOOKUP(F190,DADOS_SUDECAP,2,0),IF(G190="COTAÇÃO",VLOOKUP($F190,DADOS_COTACAO,2,0),"")))))) -> TUBO PVC, SÉRIE R, ÁGUA PLUVIAL, DN 150 MM, FORNECIDO E INSTALADO EM CONDUTORES VERTICAIS DE ÁGUAS PLUVIAIS. AF_06/2022 | F190: 89580 | G190: SINAPI | H190: =IF(G190="SINAPI",VLOOKUP($F190,DADOS_SINAPI,3,0),IF(G190="SETOP",VLOOKUP($F190,DADOS_SETOP,3,0),IF(G190="CPU",VLOOKUP($F190,DADOS_COMPOSICAO,10,0),IF(G190="SICRO",VLOOKUP($F190,DADOS_SICRO,3,0),IF(G190="SUDECAP",VLOOKUP(F190,DADOS_SUDECAP,3,0),IF(G190="COTAÇÃO",VLOOKUP($F190,DADOS_COTACAO,9,0),"")))))) -> M | I190: =F192 -> 107.6 | J190: =IF(G190="SINAPI",VLOOKUP($F190,DADOS_SINAPI,4,0),IF(G190="SETOP",VLOOKUP($F190,DADOS_SETOP,4,0),IF(G190="CPU",VLOOKUP($F190,DADOS_COMPOSICAO,13,0),IF(G190="SICRO",VLOOKUP($F190,DADOS_SICRO,4,0),IF(G190="SUDECAP",VLOOKUP(F190,DADOS_SUDECAP,4,0),IF(G190="COTAÇÃO",VLOOKUP(F190,DADOS_COTACAO,12,0),"")))))) -> 82.35 | K190: BDI 1 | L190: =TRUNC(J190*(1+$N$17),2) -> 104.18 | M190: =IFERROR(TRUNC(I190*J190,2),"") -> 8860.86 | N190: =IFERROR(TRUNC(L190*I190,2),"") -> 11209.76
A191: 2000
A192: 2000 | E192: Quantidade | F192: 107.6 | G192: m
A193: 2000
A194: =IFERROR(LEFT(D194,SEARCH(".",D194)-1),"") -> 5 | B194: =IFERROR(LEFT(RIGHT(D194,LEN(D194)-SEARCH(".",D194)),SEARCH(".",RIGHT(D194,LEN(D194)-SEARCH(".",D194)))-1),"") -> 1 | C194: =IFERROR(IF(LEN(D194)-LEN(SUBSTITUTE(D194,".",""))<>3,"",MID(D194,SEARCH(".",D194,SEARCH(".",D194)+1)+1,LEN(D194)-SEARCH(".",D194,SEARCH(".",D194)+1)-(LEN(D194)-(SEARCH(".",D194,SEARCH(".",D194,SEARCH(".",D194)+1)+1)-1)))),"") ->  | D194: 5.1.8 | E194: =IF($G194="SINAPI",VLOOKUP($F194,DADOS_SINAPI,2,0),IF(G194="SETOP",VLOOKUP($F194,DADOS_SETOP,2,0),IF(G194="CPU",VLOOKUP($F194,DADOS_COMPOSICAO,2,0),IF(G194="SICRO",VLOOKUP($F194,DADOS_SICRO,2,0),IF(G194="SUDECAP",VLOOKUP(F194,DADOS_SUDECAP,2,0),IF(G194="COTAÇÃO",VLOOKUP($F194,DADOS_COTACAO,2,0),"")))))) -> CALHA EM CHAPA DE AÇO GALVANIZADO NÚMERO 24, DESENVOLVIMENTO DE 100 CM, INCLUSO TRANSPORTE VERTICAL. AF_07/2019 | F194: 94229 | G194: SINAPI | H194: =IF(G194="SINAPI",VLOOKUP($F194,DADOS_SINAPI,3,0),IF(G194="SETOP",VLOOKUP($F194,DADOS_SETOP,3,0),IF(G194="CPU",VLOOKUP($F194,DADOS_COMPOSICAO,10,0),IF(G194="SICRO",VLOOKUP($F194,DADOS_SICRO,3,0),IF(G194="SUDECAP",VLOOKUP(F194,DADOS_SUDECAP,3,0),IF(G194="COTAÇÃO",VLOOKUP($F194,DADOS_COTACAO,9,0),"")))))) -> M | I194: =F196 -> 84 | J194: =IF(G194="SINAPI",VLOOKUP($F194,DADOS_SINAPI,4,0),IF(G194="SETOP",VLOOKUP($F194,DADOS_SETOP,4,0),IF(G194="CPU",VLOOKUP($F194,DADOS_COMPOSICAO,13,0),IF(G194="SICRO",VLOOKUP($F194,DADOS_SICRO,4,0),IF(G194="SUDECAP",VLOOKUP(F194,DADOS_SUDECAP,4,0),IF(G194="COTAÇÃO",VLOOKUP(F194,DADOS_COTACAO,12,0),"")))))) -> 194.37 | K194: BDI 1 | L194: =TRUNC(J194*(1+$N$17),2) -> 245.91 | M194: =IFERROR(TRUNC(I194*J194,2),"") -> 16327.08 | N194: =IFERROR(TRUNC(L194*I194,2),"") -> 20656.44
A195: 2000
A196: 2000 | E196: Quantidade | F196: 84 | G196: m
A197: 2000
A198: =IFERROR(LEFT(D198,SEARCH(".",D198)-1),"") -> 5 | B198: =IFERROR(LEFT(RIGHT(D198,LEN(D198)-SEARCH(".",D198)),SEARCH(".",RIGHT(D198,LEN(D198)-SEARCH(".",D198)))-1),"") -> 1 | C198: =IFERROR(IF(LEN(D198)-LEN(SUBSTITUTE(D198,".",""))<>3,"",MID(D198,SEARCH(".",D198,SEARCH(".",D198)+1)+1,LEN(D198)-SEARCH(".",D198,SEARCH(".",D198)+1)-(LEN(D198)-(SEARCH(".",D198,SEARCH(".",D198,SEARCH(".",D198)+1)+1)-1)))),"") ->  | D198: 5.1.9 | E198: =IF($G198="SINAPI",VLOOKUP($F198,DADOS_SINAPI,2,0),IF(G198="SETOP",VLOOKUP($F198,DADOS_SETOP,2,0),IF(G198="CPU",VLOOKUP($F198,DADOS_COMPOSICAO,2,0),IF(G198="SICRO",VLOOKUP($F198,DADOS_SICRO,2,0),IF(G198="SUDECAP",VLOOKUP(F198,DADOS_SUDECAP,2,0),IF(G198="COTAÇÃO",VLOOKUP($F198,DADOS_COTACAO,2,0),"")))))) -> CAIXA DE ESGOTO DE INSPEÇÃO/PASSAGEM EM ALVENARIA (60X60X60CM), REVESTIMENTO EM ARGAMASSA COM ADITIVO IMPERMEABILIZANTE, COM TAMPA DE CONCRETO, INCLUSIVE ESCAVAÇÃO, REATERRO E TRANSPORTE E RETIRADA DO MATERIAL ESCAVADO (EM CAÇAMBA) | F198: ED-49883 | G198: SETOP | H198: =IF(G198="SINAPI",VLOOKUP($F198,DADOS_SINAPI,3,0),IF(G198="SETOP",VLOOKUP($F198,DADOS_SETOP,3,0),IF(G198="CPU",VLOOKUP($F198,DADOS_COMPOSICAO,10,0),IF(G198="SICRO",VLOOKUP($F198,DADOS_SICRO,3,0),IF(G198="SUDECAP",VLOOKUP(F198,DADOS_SUDECAP,3,0),IF(G198="COTAÇÃO",VLOOKUP($F198,DADOS_COTACAO,9,0),"")))))) -> un | I198: =F200 -> 2 | J198: =IF(G198="SINAPI",VLOOKUP($F198,DADOS_SINAPI,4,0),IF(G198="SETOP",VLOOKUP($F198,DADOS_SETOP,4,0),IF(G198="CPU",VLOOKUP($F198,DADOS_COMPOSICAO,13,0),IF(G198="SICRO",VLOOKUP($F198,DADOS_SICRO,4,0),IF(G198="SUDECAP",VLOOKUP(F198,DADOS_SUDECAP,4,0),IF(G198="COTAÇÃO",VLOOKUP(F198,DADOS_COTACAO,12,0),"")))))) -> 416.12 | K198: BDI 1 | L198: =TRUNC(J198*(1+$N$17),2) -> 526.47 | M198: =IFERROR(TRUNC(I198*J198,2),"") -> 832.24 | N198: =IFERROR(TRUNC(L198*I198,2),"") -> 1052.94
A199: 2000
A200: 2000 | E200: Quantidade | F200: 2 | G200: un
A201: 2000
D202: 5.2 | E202: ESCAVAÇÕES | M202: =IFERROR(SUMIFS(M:M,A:A,LEFT(D202,SEARCH(".",D202)-1),B:B,RIGHT(D202,LEN(D202)-SEARCH(".",D202))),"") -> 3527.64 | N202: =IFERROR(SUMIFS(N:N,A:A,LEFT(D202,SEARCH(".",D202)-1),B:B,RIGHT(D202,LEN(D202)-SEARCH(".",D202))),"") -> 4462.61
A203: =IFERROR(LEFT(D203,SEARCH(".",D203)-1),"") -> 5 | B203: =IFERROR(LEFT(RIGHT(D203,LEN(D203)-SEARCH(".",D203)),SEARCH(".",RIGHT(D203,LEN(D203)-SEARCH(".",D203)))-1),"") -> 2 | C203: =IFERROR(IF(LEN(D203)-LEN(SUBSTITUTE(D203,".",""))<>3,"",MID(D203,SEARCH(".",D203,SEARCH(".",D203)+1)+1,LEN(D203)-SEARCH(".",D203,SEARCH(".",D203)+1)-(LEN(D203)-(SEARCH(".",D203,SEARCH(".",D203,SEARCH(".",D203)+1)+1)-1)))),"") ->  | D203: 5.2.1 | E203: =IF($G203="SINAPI",VLOOKUP($F203,DADOS_SINAPI,2,0),IF(G203="SETOP",VLOOKUP($F203,DADOS_SETOP,2,0),IF(G203="CPU",VLOOKUP($F203,DADOS_COMPOSICAO,2,0),IF(G203="SICRO",VLOOKUP($F203,DADOS_SICRO,2,0),IF(G203="SUDECAP",VLOOKUP(F203,DADOS_SUDECAP,2,0),IF(G203="COTAÇÃO",VLOOKUP($F203,DADOS_COTACAO,2,0),"")))))) -> ESCAVAÇÃO MANUAL DE VALA COM PROFUNDIDADE MENOR OU IGUAL A 1,30 M. AF_02/2021 | F203: 93358 | G203: SINAPI | H203: =IF(G203="SINAPI",VLOOKUP($F203,DADOS_SINAPI,3,0),IF(G203="SETOP",VLOOKUP($F203,DADOS_SETOP,3,0),IF(G203="CPU",VLOOKUP($F203,DADOS_COMPOSICAO,10,0),IF(G203="SICRO",VLOOKUP($F203,DADOS_SICRO,3,0),IF(G203="SUDECAP",VLOOKUP(F203,DADOS_SUDECAP,3,0),IF(G203="COTAÇÃO",VLOOKUP($F203,DADOS_COTACAO,9,0),"")))))) -> M3 | I203: =F208 -> 32.852 | J203: =IF(G203="SINAPI",VLOOKUP($F203,DADOS_SINAPI,4,0),IF(G203="SETOP",VLOOKUP($F203,DADOS_SETOP,4,0),IF(G203="CPU",VLOOKUP($F203,DADOS_COMPOSICAO,13,0),IF(G203="SICRO",VLOOKUP($F203,DADOS_SICRO,4,0),IF(G203="SUDECAP",VLOOKUP(F203,DADOS_SUDECAP,4,0),IF(G203="COTAÇÃO",VLOOKUP(F203,DADOS_COTACAO,12,0),"")))))) -> 66.85 | K203: BDI 1 | L203: =TRUNC(J203*(1+$N$17),2) -> 84.57 | M203: =IFERROR(TRUNC(I203*J203,2),"") -> 2196.15 | N203: =IFERROR(TRUNC(L203*I203,2),"") -> 2778.29
A204: 2000
A205: 2000 | E205: Comprimento | F205: 164.26 | G205: m
A206: 2000 | E206: Largura | F206: 0.4 | G206: m
A207: 2000 | E207: Profundidade | F207: 0.5 | G207: m
A208: 2000 | E208: Total | F208: =F205*F206*F207 -> 32.852 | G208: m³
... 19 more rows

Sheet ABC
A2: CURVA ABC DE SERVIÇOS | H2: Revisão: | I2: =DADOS!D6 -> R00
H3: Data: | I3: =DADOS!D2 -> 2023-01-05
A4: Projeto: | C4: Responsável: | D4: Cliente: | H4: Bancos:
A5: =DADOS!D8 -> CONSTRUÇÃO DE COBERTURA DA QUADRA COLINA DE SANTA BARBARA | H5: =DADOS!D14 -> SINAPI: 11/2022 Minas Gerais SETOP: 10/2022 Minas Gerais SICRO : 07/2022 Minas Gerais SUDECAP: 10/2022 Minas Gerais
H8: BDI 1: | I8: =DADOS!D10 -> 0.2652
H9: BDI 2: | I9: =DADOS!D12 -> 0.2025
A11: =A2&" DE "&DADOS!D20&" - "&A5 -> CURVA ABC DE SERVIÇOS DE PROJETO EXECUTIVO - CONSTRUÇÃO DE COBERTURA DA QUADRA COLINA DE SANTA BARBARA
A13: Código | B13: Banco | C13: Descrição | D13: Unidade | E13: Quantidade | F13: Valor Unitário | G13: Total | H13: Peso (%) | I13: Peso Acumulado (%)
A15: ED-49664 | B15: SETOP | C15: FORNECIMENTO DE ESTRUTURA METÁLICA EM PERFIL LAMINADO, INCLUSIVE FABRICAÇÃO, TRANSPORTE, MONTAGEM E APLICAÇÃO DE FUNDO PREPARADOR ANTICORROSIVO EM SUPERFÍCIE METÁLICA, UMA (1) DEMÃO | D15: Kg | E15: 34935 | F15: 31.69 | G15: 1107090.15 | H15: 0.6536507879 | I15: 0.6536507879
A16: ED-48428 | B16: SETOP | C16: COBERTURA EM TELHA METÁLICA GALVANIZADA TRAPEZOIDAL, TIPO SIMPLES, ESP. 0,50MM, ACABAMENTO NATURAL, INCLUSIVE ACESSÓRIOS PARA FIXAÇÃO, FORNECIMENTO E INSTALAÇÃO | D16: m2 | E16: 1455.03 | F16: 125.92 | G16: 183217.37 | H16: 0.1081756334 | I16: 0.7618264213
A17: ED-50497 | B17: SETOP | C17: PINTURA ESMALTE EM ESTRUTURA METÁLICA, DUAS (2) DEMÃOS, INCLUSIVE UMA (1) DEMÃO FUNDO ANTICORROSIVO | D17: m2 | E17: 3690.71 | F17: 41.8 | G17: 154271.67 | H17: 0.0910854447 | I17: 0.852911866
A18: 100651 | B18: SINAPI | C18: ESTACA HÉLICE CONTÍNUA, DIÂMETRO DE 30 CM, INCLUSO CONCRETO FCK=30MPA E ARMADURA MÍNIMA (EXCLUSIVE MOBILIZAÇÃO, DESMOBILIZAÇÃO E BOMBEAMENTO). AF_12/2019 | D18: M | E18: 280 | F18: 190.93 | G18: 53460.4 | H18: 0.03156421596 | I18: 0.884476082
A19: ED-49799 | B19: SETOP | C19: FORNECIMENTO DE CONCRETO ESTRUTURAL, USINADO, COM FCK 30 MPA, INCLUSIVE LANÇAMENTO, ADENSAMENTO E ACABAMENTO (FUNDAÇÃO) | D19: m3 | E19: 27.25 | F19: 910.93 | G19: 24822.84 | H19: 0.01465595997 | I19: 0.8991320419
A20: ED-8571 | B20: SETOP | C20: FORMA E DESFORMA DE COMPENSADO PLASTIFICADO, ESP. 12MM, REAPROVEITAMENTO (3X) (FUNDAÇÃO) | D20: m2 | E20: 254.11 | F20: 92.75 | G20: 23568.7 | H20: 0.01391548766 | I20: 0.9130475296
A21: ED-48298 | B21: SETOP | C21: CORTE, DOBRA E MONTAGEM DE AÇO CA-50/60 | D21: Kg | E21: 1347.3 | F21: 16.97 | G21: 22863.68 | H21: 0.01349922808 | I21: 0.9265467577
A22: 94229 | B22: SINAPI | C22: CALHA EM CHAPA DE AÇO GALVANIZADO NÚMERO 24, DESENVOLVIMENTO DE 100 CM, INCLUSO TRANSPORTE VERTICAL. AF_07/2019 | D22: M | E22: 84 | F22: 245.91 | G22: 20656.44 | H22: 0.01219602422 | I22: 0.9387427819
A23: 94995 | B23: SINAPI | C23: EXECUÇÃO DE PASSEIO (CALÇADA) OU PISO DE CONCRETO COM CONCRETO MOLDADO IN LOCO, USINADO, ACABAMENTO CONVENCIONAL, ESPESSURA 8 CM, ARMADO. AF_08/2022 | D23: M2 | E23: 137.13 | F23: 135.66 | G23: 18603.05 | H23: 0.01098365683 | I23: 0.9497264387
A24: ED-49713 | B24: SETOP | C24: MOBILIZAÇÃO E DESMOBILIZAÇÃO DE EQUIPAMENTO PARA ESTACA TIPO HÉLICE CONTÍNUA DMT ATÉ 50 KM | D24: un | E24: 1 | F24: 12202.51 | G24: 12202.51 | H24: 0.007204634849 | I24: 0.9569310736
A25: 89512 | B25: SINAPI | C25: TUBO PVC, SÉRIE R, ÁGUA PLUVIAL, DN 100 MM, FORNECIDO E INSTALADO EM RAMAL DE ENCAMINHAMENTO. AF_06/2022 | D25: M | E25: 177.07 | F25: 66.73 | G25: 11815.88 | H25: 0.006976359849 | I25: 0.9639074334
A26: 89580 | B26: SINAPI | C26: TUBO PVC, SÉRIE R, ÁGUA PLUVIAL, DN 150 MM, FORNECIDO E INSTALADO EM CONDUTORES VERTICAIS DE ÁGUAS PLUVIAIS. AF_06/2022 | D26: M | E26: 107.6 | F26: 104.18 | G26: 11209.76 | H26: 0.006618493043 | I26: 0.9705259265
A27: ED-17989 | B27: SETOP | C27: LOCAÇÃO DE OBRA COM GABARITO DE TÁBUAS CORRIDAS PONTALETADAS A CADA 2,00M, REAPROVEITAMENTO (2X), INCLUSIVE ACOMPANHAMENTO DE EQUIPE TOPOGRÁFICA PARA MARCAÇÃO DE PONTO TOPOGRÁFICO | D27: m | E27: 132 | F27: 74.45 | G27: 9827.4 | H27: 0.005802316778 | I27: 0.9763282432
A28: ED-50266 | B28: SETOP | C28: LIMPEZA FINAL PARA ENTREGA DA OBRA | D28: m2 | E28: 968 | F28: 8.19 | G28: 7927.92 | H28: 0.004680821299 | I28: 0.9810090645
A29: ED-28428 | B29: SETOP | C29: FORNECIMENTO E COLOCAÇÃO DE PLACA DE OBRA EM CHAPA GALVANIZADA #26, ESP. 0,45MM, DIMENSÃO (4X3)M, PLOTADA COM ADESIVO VINÍLICO, AFIXADA COM REBITES 4,8X40MM, EM ESTRUTURA METÁLICA DE METALON 20X20MM, ESP. 1,25MM, INCLUSIVE SUPORTE EM EUCALIPTO AUTOCLAVADO PINTADO COM TINTA PVA DUAS (2) DEMÃOS | D29: un | E29: 1 | F29: 4522.53 | G29: 4522.53 | H29: 0.002670202872 | I29: 0.9836792674
A30: ED-50155 | B30: SETOP | C30: LOCAÇÃO DE BANHEIRO QUÍMICO, DIMENSÃO (110X120X230)CM, LINHA PADRÃO, CONTENDO UMA (1) PIA/HIGIENIZADOR DE MÃOS, INCLUSIVE MANUTENÇÃO E MOBILIZAÇÃO/DESMOBILIZAÇÃO | D30: mês | E30: 3 | F30: 1012.16 | G30: 3036.48 | H30: 0.001792805712 | I30: 0.9854720731
A31: ED-48402 | B31: SETOP | C31: COLOCAÇÃO DE CUMEEIRA GALVANIZADA TRAPEZOIDAL E = 0,50 MM, SIMPLES | D31: m | E31: 42.84 | F31: 69.1 | G31: 2960.24 | H31: 0.00174779191 | I31: 0.987219865
A32: 96527 | B32: SINAPI | C32: ESCAVAÇÃO MANUAL DE VALA PARA VIGA BALDRAME (INCLUINDO ESCAVAÇÃO PARA COLOCAÇÃO DE FÔRMAS). AF_06/2017 | D32: M3 | E32: 21.24 | F32: 131.23 | G32: 2787.32 | H32: 0.001645696075 | I32: 0.9888655611
A33: 93358 | B33: SINAPI | C33: ESCAVAÇÃO MANUAL DE VALA COM PROFUNDIDADE MENOR OU IGUAL A 1,30 M. AF_02/2021 | D33: M3 | E33: 32.852 | F33: 84.57 | G33: 2778.29 | H33: 0.001640364561 | I33: 0.9905059257
A34: ED-16350 | B34: SETOP | C34: LOCAÇÃO DE CONTAINER COM ISOLAMENTO TÉRMICO, TIPO 3, PARA DEPÓSITO/FERRAMENTARIA DE OBRA, COM MEDIDAS REFERENCIAIS DE (6) METROS COMPRIMENTO, (2,3) METROS LARGURA E (2,5) METROS ALTURA ÚTIL INTERNA, INCLUSIVE LIGAÇÕES ELÉTRICAS INTERNAS, EXCLUSIVE MOBILIZAÇÃO/DESMOBILIZAÇÃO E LIGAÇÕES PROVISÓRIAS EXTERNAS | D34: mês | E34: 3 | F34: 855.76 | G34: 2567.28 | H34: 0.001515779537 | I34: 0.9920217052
A35: ED-49738 | B35: SETOP | C35: CORTE E PREPARO DE CABEÇA DE ESTACAS | D35: U | E35: 28 | F35: 64.94 | G35: 1818.32 | H35: 0.0010735768 | I35: 0.993095282
A36: 96995 | B36: SINAPI | C36: REATERRO MANUAL APILOADO COM SOQUETE. AF_10/2017 | D36: M3 | E36: 32.852 | F36: 51.27 | G36: 1684.32 | H36: 0.0009944602027 | I36: 0.9940897422
A37: 96523 | B37: SINAPI | C37: ESCAVAÇÃO MANUAL PARA BLOCO DE COROAMENTO OU SAPATA (INCLUINDO ESCAVAÇÃO PARA COLOCAÇÃO DE FÔRMAS). AF_06/2017 | D37: M3 | E37: 14.28 | F37: 100.11 | G37: 1429.57 | H37: 0.0008440501045 | I37: 0.9949337923
A38: 89699 | B38: SINAPI | C38: JUNÇÃO SIMPLES, PVC, SERIE R, ÁGUA PLUVIAL, DN 150 X 100 MM, JUNTA ELÁSTICA, FORNECIDO E INSTALADO EM CONDUTORES VERTICAIS DE ÁGUAS PLUVIAIS. AF_06/2022 | D38: UN | E38: 4 | F38: 282.16 | G38: 1128.64 | H38: 0.0006663743013 | I38: 0.9956001666
A39: ED-49883 | B39: SETOP | C39: CAIXA DE ESGOTO DE INSPEÇÃO/PASSAGEM EM ALVENARIA (60X60X60CM), REVESTIMENTO EM ARGAMASSA COM ADITIVO IMPERMEABILIZANTE, COM TAMPA DE CONCRETO, INCLUSIVE ESCAVAÇÃO, REATERRO E TRANSPORTE E RETIRADA DO MATERIAL ESCAVADO (EM CAÇAMBA) | D39: un | E39: 2 | F39: 526.47 | G39: 1052.94 | H39: 0.0006216793281 | I39: 0.9962218459
A40: 103673 | B40: SINAPI | C40: LANÇAMENTO COM USO DE BOMBA, ADENSAMENTO E ACABAMENTO DE CONCRETO EM ESTRUTURAS. AF_02/2022 | D40: M3 | E40: 21.77123709 | F40: 42 | G40: 914.39 | H40: 0.000539876309 | I40: 0.9967617222
A41: ED-50137 | B41: SETOP | C41: MOBILIZAÇÃO E DESMOBILIZAÇÃO DE CONTAINER, INCLUSIVE CARGA, DESCARGA E TRANSPORTE EM CAMINHÃO CARROCERIA COM GUINDAUTO (MUNCK), EXCLUSIVE LOCAÇÃO DO CONTAINER | D41: un | E41: 1 | F41: 868.28 | G41: 868.28 | H41: 0.0005126519336 | I41: 0.9972743742
A42: 96619 | B42: SINAPI | C42: LASTRO DE CONCRETO MAGRO, APLICADO EM BLOCOS DE COROAMENTO OU SAPATAS, ESPESSURA DE 5 CM. AF_08/2017 | D42: M2 | E42: 19.04 | F42: 38.28 | G42: 728.85 | H42: 0.0004303293429 | I42: 0.9977047035
A43: 97913 | B43: SINAPI | C43: TRANSPORTE COM CAMINHÃO BASCULANTE DE 6 M³, EM VIA URBANA EM REVESTIMENTO PRIMÁRIO (UNIDADE: M3XKM). AF_07/2020 | D43: M3XKM | E43: 191.99258 | F43: 3.65 | G43: 700.77 | H43: 0.0004137502828 | I43: 0.9981184538
A44: 93382 | B44: SINAPI | C44: REATERRO MANUAL DE VALAS COM COMPACTAÇÃO MECANIZADA. AF_04/2016 | D44: M3 | E44: 18.926 | F44: 35.55 | G44: 672.81 | H44: 0.0003972420734 | I44: 0.9985156959
A45: 89529 | B45: SINAPI | C45: JOELHO 90 GRAUS, PVC, SERIE R, ÁGUA PLUVIAL, DN 100 MM, JUNTA ELÁSTICA, FORNECIDO E INSTALADO EM RAMAL DE ENCAMINHAMENTO. AF_06/2022 | D45: UN | E45: 12 | F45: 49.72 | G45: 596.64 | H45: 0.0003522696016 | I45: 0.9988679655
A46: 89567 | B46: SINAPI | C46: JUNÇÃO SIMPLES, PVC, SERIE R, ÁGUA PLUVIAL, DN 100 X 100 MM, JUNTA ELÁSTICA, FORNECIDO E INSTALADO EM RAMAL DE ENCAMINHAMENTO. AF_06/2022 | D46: UN | E46: 4 | F46: 113.23 | G46: 452.92 | H46: 0.0002674140989 | I46: 0.9991353796
A47: ED-16358 | B47: SETOP | C47: LIGAÇÕES PROVISÓRIAS PARA CONTAINER TIPO 3 (CORRESPONDENTE AO CÓDIGO ED-16350) | D47: un | E47: 1 | F47: 414.88 | G47: 414.88 | H47: 0.000244954432 | I47: 0.999380334
A48: ED-49813 | B48: SETOP | C48: LASTRO DE BRITA 2 OU 3 APILOADO MANUALMENTE | D48: m3 | E48: 1.77 | F48: 207.36 | G48: 367.02 | H48: 0.0002166968175 | I48: 0.9995970308
A49: 89681 | B49: SINAPI | C49: REDUÇÃO EXCÊNTRICA, PVC, SERIE R, ÁGUA PLUVIAL, DN 150 X 100 MM, JUNTA ELÁSTICA, FORNECIDO E INSTALADO EM CONDUTORES VERTICAIS DE ÁGUAS PLUVIAIS. AF_06/2022 | D49: UN | E49: 2 | F49: 124.66 | G49: 249.32 | H49: 0.0001472041048 | I49: 0.9997442349
A50: 89531 | B50: SINAPI | C50: JOELHO 45 GRAUS, PVC, SERIE R, ÁGUA PLUVIAL, DN 100 MM, JUNTA ELÁSTICA, FORNECIDO E INSTALADO EM RAMAL DE ENCAMINHAMENTO. AF_06/2022 | D50: UN | E50: 4 | F50: 51.35 | G50: 205.4 | H50: 0.0001212727544 | I50: 0.9998655077
A51: 100977 | B51: SINAPI | C51: CARGA, MANOBRA E DESCARGA DE SOLOS E MATERIAIS GRANULARES EM CAMINHÃO BASCULANTE 6 M³ - CARGA COM ESCAVADEIRA HIDRÁULICA (CAÇAMBA DE 1,20 M³ / 155 HP) E DESCARGA LIVRE (UNIDADE: M3). AF_07/2020 | D51: M3 | E51: 21.5722 | F51: 8.84 | G51: 190.69 | H51: 0.0001125876413 | I51: 0.9999780953
A52: 100574 | B52: SINAPI | C52: ESPALHAMENTO DE MATERIAL COM TRATOR DE ESTEIRAS. AF_11/2019 | D52: M3 | E52: 21.5722 | F52: 1.72 | G52: 37.1 | H52: 2.190466985e-05 | I52: 1
A54: TOTAL INCLUINDO ADMINISTRAÇÃO | H54: =ORC!M224 -> 1338809.49
A55: BDI | H55: =ORC!M225 -> 354893.28
A56: TOTAL GERAL | H56: =IF(ORC!M226=SUM(G:G),ORC!M226,"ERRO") -> 1693702.77
D60: RESPONSÁVEL TÉCNICO: | F60: =DADOS!D16 -> FLÁVIA CRISTINA BARBOSA
F61: =DADOS!D18 -> CREA - MG 187.842/D

Sheet Auxiliar_ABC (hidden)
A1: ED-49664 | B1: SETOP | C1: FORNECIMENTO DE ESTRUTURA METÁLICA EM PERFIL LAMINADO, INCLUSIVE FABRICAÇÃO, TRANSPORTE, MONTAGEM E APLICAÇÃO DE FUNDO PREPARADOR ANTICORROSIVO EM SUPERFÍCIE METÁLICA, UMA (1) DEMÃO | D1: Kg | E1: 34935 | F1: 31.69 | G1: 1107090.15 | H1: 0.6536507879 | I1: 0.6536507879 | R1: QUANTIDADE TOTAL | V1: VALOR TOTAL | W1: % | X1: =W1 -> %
A2: ED-48428 | B2: SETOP | C2: COBERTURA EM TELHA METÁLICA GALVANIZADA TRAPEZOIDAL, TIPO SIMPLES, ESP. 0,50MM, ACABAMENTO NATURAL, INCLUSIVE ACESSÓRIOS PARA FIXAÇÃO, FORNECIMENTO E INSTALAÇÃO | D2: m2 | E2: 1455.03 | F2: 125.92 | G2: 183217.37 | H2: 0.1081756334 | I2: 0.7618264213 | R2: =SUMIF(ORC!$F:$F,O2,ORC!$I:$I) -> 0 | V2: =SUMIF(ORC!$F:$F,O2,ORC!$N:$N) -> 0 | W2: =V2/SUM($I:$I) -> 0 | X2: =W2+X1 -> 
A3: ED-50497 | B3: SETOP | C3: PINTURA ESMALTE EM ESTRUTURA METÁLICA, DUAS (2) DEMÃOS, INCLUSIVE UMA (1) DEMÃO FUNDO ANTICORROSIVO | D3: m2 | E3: 3690.71 | F3: 41.8 | G3: 154271.67 | H3: 0.0910854447 | I3: 0.852911866
A4: 100651 | B4: SINAPI | C4: ESTACA HÉLICE CONTÍNUA, DIÂMETRO DE 30 CM, INCLUSO CONCRETO FCK=30MPA E ARMADURA MÍNIMA (EXCLUSIVE MOBILIZAÇÃO, DESMOBILIZAÇÃO E BOMBEAMENTO). AF_12/2019 | D4: M | E4: 280 | F4: 190.93 | G4: 53460.4 | H4: 0.03156421596 | I4: 0.884476082
A5: ED-49799 | B5: SETOP | C5: FORNECIMENTO DE CONCRETO ESTRUTURAL, USINADO, COM FCK 30 MPA, INCLUSIVE LANÇAMENTO, ADENSAMENTO E ACABAMENTO (FUNDAÇÃO) | D5: m3 | E5: 27.25 | F5: 910.93 | G5: 24822.84 | H5: 0.01465595997 | I5: 0.8991320419
A6: ED-8571 | B6: SETOP | C6: FORMA E DESFORMA DE COMPENSADO PLASTIFICADO, ESP. 12MM, REAPROVEITAMENTO (3X) (FUNDAÇÃO) | D6: m2 | E6: 254.11 | F6: 92.75 | G6: 23568.7 | H6: 0.01391548766 | I6: 0.9130475296
A7: ED-48298 | B7: SETOP | C7: CORTE, DOBRA E MONTAGEM DE AÇO CA-50/60 | D7: Kg | E7: 1347.3 | F7: 16.97 | G7: 22863.68 | H7: 0.01349922808 | I7: 0.9265467577
A8: 94229 | B8: SINAPI | C8: CALHA EM CHAPA DE AÇO GALVANIZADO NÚMERO 24, DESENVOLVIMENTO DE 100 CM, INCLUSO TRANSPORTE VERTICAL. AF_07/2019 | D8: M | E8: 84 | F8: 245.91 | G8: 20656.44 | H8: 0.01219602422 | I8: 0.9387427819
A9: 94995 | B9: SINAPI | C9: EXECUÇÃO DE PASSEIO (CALÇADA) OU PISO DE CONCRETO COM CONCRETO MOLDADO IN LOCO, USINADO, ACABAMENTO CONVENCIONAL, ESPESSURA 8 CM, ARMADO. AF_08/2022 | D9: M2 | E9: 137.13 | F9: 135.66 | G9: 18603.05 | H9: 0.01098365683 | I9: 0.9497264387
A10: ED-49713 | B10: SETOP | C10: MOBILIZAÇÃO E DESMOBILIZAÇÃO DE EQUIPAMENTO PARA ESTACA TIPO HÉLICE CONTÍNUA DMT ATÉ 50 KM | D10: un | E10: 1 | F10: 12202.51 | G10: 12202.51 | H10: 0.007204634849 | I10: 0.9569310736
A11: 89512 | B11: SINAPI | C11: TUBO PVC, SÉRIE R, ÁGUA PLUVIAL, DN 100 MM, FORNECIDO E INSTALADO EM RAMAL DE ENCAMINHAMENTO. AF_06/2022 | D11: M | E11: 177.07 | F11: 66.73 | G11: 11815.88 | H11: 0.006976359849 | I11: 0.9639074334
A12: 89580 | B12: SINAPI | C12: TUBO PVC, SÉRIE R, ÁGUA PLUVIAL, DN 150 MM, FORNECIDO E INSTALADO EM CONDUTORES VERTICAIS DE ÁGUAS PLUVIAIS. AF_06/2022 | D12: M | E12: 107.6 | F12: 104.18 | G12: 11209.76 | H12: 0.006618493043 | I12: 0.9705259265
A13: ED-17989 | B13: SETOP | C13: LOCAÇÃO DE OBRA COM GABARITO DE TÁBUAS CORRIDAS PONTALETADAS A CADA 2,00M, REAPROVEITAMENTO (2X), INCLUSIVE ACOMPANHAMENTO DE EQUIPE TOPOGRÁFICA PARA MARCAÇÃO DE PONTO TOPOGRÁFICO | D13: m | E13: 132 | F13: 74.45 | G13: 9827.4 | H13: 0.005802316778 | I13: 0.9763282432
A14: ED-50266 | B14: SETOP | C14: LIMPEZA FINAL PARA ENTREGA DA OBRA | D14: m2 | E14: 968 | F14: 8.19 | G14: 7927.92 | H14: 0.004680821299 | I14: 0.9810090645
A15: ED-28428 | B15: SETOP | C15: FORNECIMENTO E COLOCAÇÃO DE PLACA DE OBRA EM CHAPA GALVANIZADA #26, ESP. 0,45MM, DIMENSÃO (4X3)M, PLOTADA COM ADESIVO VINÍLICO, AFIXADA COM REBITES 4,8X40MM, EM ESTRUTURA METÁLICA DE METALON 20X20MM, ESP. 1,25MM, INCLUSIVE SUPORTE EM EUCALIPTO AUTOCLAVADO PINTADO COM TINTA PVA DUAS (2) DEMÃOS | D15: un | E15: 1 | F15: 4522.53 | G15: 4522.53 | H15: 0.002670202872 | I15: 0.9836792674
A16: ED-50155 | B16: SETOP | C16: LOCAÇÃO DE BANHEIRO QUÍMICO, DIMENSÃO (110X120X230)CM, LINHA PADRÃO, CONTENDO UMA (1) PIA/HIGIENIZADOR DE MÃOS, INCLUSIVE MANUTENÇÃO E MOBILIZAÇÃO/DESMOBILIZAÇÃO | D16: mês | E16: 3 | F16: 1012.16 | G16: 3036.48 | H16: 0.001792805712 | I16: 0.9854720731
A17: ED-48402 | B17: SETOP | C17: COLOCAÇÃO DE CUMEEIRA GALVANIZADA TRAPEZOIDAL E = 0,50 MM, SIMPLES | D17: m | E17: 42.84 | F17: 69.1 | G17: 2960.24 | H17: 0.00174779191 | I17: 0.987219865
A18: 96527 | B18: SINAPI | C18: ESCAVAÇÃO MANUAL DE VALA PARA VIGA BALDRAME (INCLUINDO ESCAVAÇÃO PARA COLOCAÇÃO DE FÔRMAS). AF_06/2017 | D18: M3 | E18: 21.24 | F18: 131.23 | G18: 2787.32 | H18: 0.001645696075 | I18: 0.9888655611
A19: 93358 | B19: SINAPI | C19: ESCAVAÇÃO MANUAL DE VALA COM PROFUNDIDADE MENOR OU IGUAL A 1,30 M. AF_02/2021 | D19: M3 | E19: 32.852 | F19: 84.57 | G19: 2778.29 | H19: 0.001640364561 | I19: 0.9905059257
A20: ED-16350 | B20: SETOP | C20: LOCAÇÃO DE CONTAINER COM ISOLAMENTO TÉRMICO, TIPO 3, PARA DEPÓSITO/FERRAMENTARIA DE OBRA, COM MEDIDAS REFERENCIAIS DE (6) METROS COMPRIMENTO, (2,3) METROS LARGURA E (2,5) METROS ALTURA ÚTIL INTERNA, INCLUSIVE LIGAÇÕES ELÉTRICAS INTERNAS, EXCLUSIVE MOBILIZAÇÃO/DESMOBILIZAÇÃO E LIGAÇÕES PROVISÓRIAS EXTERNAS | D20: mês | E20: 3 | F20: 855.76 | G20: 2567.28 | H20: 0.001515779537 | I20: 0.9920217052
A21: ED-49738 | B21: SETOP | C21: CORTE E PREPARO DE CABEÇA DE ESTACAS | D21: U | E21: 28 | F21: 64.94 | G21: 1818.32 | H21: 0.0010735768 | I21: 0.993095282
A22: 96995 | B22: SINAPI | C22: REATERRO MANUAL APILOADO COM SOQUETE. AF_10/2017 | D22: M3 | E22: 32.852 | F22: 51.27 | G22: 1684.32 | H22: 0.0009944602027 | I22: 0.9940897422
A23: 96523 | B23: SINAPI | C23: ESCAVAÇÃO MANUAL PARA BLOCO DE COROAMENTO OU SAPATA (INCLUINDO ESCAVAÇÃO PARA COLOCAÇÃO DE FÔRMAS). AF_06/2017 | D23: M3 | E23: 14.28 | F23: 100.11 | G23: 1429.57 | H23: 0.0008440501045 | I23: 0.9949337923
A24: 89699 | B24: SINAPI | C24: JUNÇÃO SIMPLES, PVC, SERIE R, ÁGUA PLUVIAL, DN 150 X 100 MM, JUNTA ELÁSTICA, FORNECIDO E INSTALADO EM CONDUTORES VERTICAIS DE ÁGUAS PLUVIAIS. AF_06/2022 | D24: UN | E24: 4 | F24: 282.16 | G24: 1128.64 | H24: 0.0006663743013 | I24: 0.9956001666
A25: ED-49883 | B25: SETOP | C25: CAIXA DE ESGOTO DE INSPEÇÃO/PASSAGEM EM ALVENARIA (60X60X60CM), REVESTIMENTO EM ARGAMASSA COM ADITIVO IMPERMEABILIZANTE, COM TAMPA DE CONCRETO, INCLUSIVE ESCAVAÇÃO, REATERRO E TRANSPORTE E RETIRADA DO MATERIAL ESCAVADO (EM CAÇAMBA) | D25: un | E25: 2 | F25: 526.47 | G25: 1052.94 | H25: 0.0006216793281 | I25: 0.9962218459
A26: 103673 | B26: SINAPI | C26: LANÇAMENTO COM USO DE BOMBA, ADENSAMENTO E ACABAMENTO DE CONCRETO EM ESTRUTURAS. AF_02/2022 | D26: M3 | E26: 21.77123709 | F26: 42 | G26: 914.39 | H26: 0.000539876309 | I26: 0.9967617222
A27: ED-50137 | B27: SETOP | C27: MOBILIZAÇÃO E DESMOBILIZAÇÃO DE CONTAINER, INCLUSIVE CARGA, DESCARGA E TRANSPORTE EM CAMINHÃO CARROCERIA COM GUINDAUTO (MUNCK), EXCLUSIVE LOCAÇÃO DO CONTAINER | D27: un | E27: 1 | F27: 868.28 | G27: 868.28 | H27: 0.0005126519336 | I27: 0.9972743742
A28: 96619 | B28: SINAPI | C28: LASTRO DE CONCRETO MAGRO, APLICADO EM BLOCOS DE COROAMENTO OU SAPATAS, ESPESSURA DE 5 CM. AF_08/2017 | D28: M2 | E28: 19.04 | F28: 38.28 | G28: 728.85 | H28: 0.0004303293429 | I28: 0.9977047035
A29: 97913 | B29: SINAPI | C29: TRANSPORTE COM CAMINHÃO BASCULANTE DE 6 M³, EM VIA URBANA EM REVESTIMENTO PRIMÁRIO (UNIDADE: M3XKM). AF_07/2020 | D29: M3XKM | E29: 191.99258 | F29: 3.65 | G29: 700.77 | H29: 0.0004137502828 | I29: 0.9981184538
A30: 93382 | B30: SINAPI | C30: REATERRO MANUAL DE VALAS COM COMPACTAÇÃO MECANIZADA. AF_04/2016 | D30: M3 | E30: 18.926 | F30: 35.55 | G30: 672.81 | H30: 0.0003972420734 | I30: 0.9985156959
A31: 89529 | B31: SINAPI | C31: JOELHO 90 GRAUS, PVC, SERIE R, ÁGUA PLUVIAL, DN 100 MM, JUNTA ELÁSTICA, FORNECIDO E INSTALADO EM RAMAL DE ENCAMINHAMENTO. AF_06/2022 | D31: UN | E31: 12 | F31: 49.72 | G31: 596.64 | H31: 0.0003522696016 | I31: 0.9988679655
A32: 89567 | B32: SINAPI | C32: JUNÇÃO SIMPLES, PVC, SERIE R, ÁGUA PLUVIAL, DN 100 X 100 MM, JUNTA ELÁSTICA, FORNECIDO E INSTALADO EM RAMAL DE ENCAMINHAMENTO. AF_06/2022 | D32: UN | E32: 4 | F32: 113.23 | G32: 452.92 | H32: 0.0002674140989 | I32: 0.9991353796
A33: ED-16358 | B33: SETOP | C33: LIGAÇÕES PROVISÓRIAS PARA CONTAINER TIPO 3 (CORRESPONDENTE AO CÓDIGO ED-16350) | D33: un | E33: 1 | F33: 414.88 | G33: 414.88 | H33: 0.000244954432 | I33: 0.999380334
A34: ED-49813 | B34: SETOP | C34: LASTRO DE BRITA 2 OU 3 APILOADO MANUALMENTE | D34: m3 | E34: 1.77 | F34: 207.36 | G34: 367.02 | H34: 0.0002166968175 | I34: 0.9995970308
A35: 89681 | B35: SINAPI | C35: REDUÇÃO EXCÊNTRICA, PVC, SERIE R, ÁGUA PLUVIAL, DN 150 X 100 MM, JUNTA ELÁSTICA, FORNECIDO E INSTALADO EM CONDUTORES VERTICAIS DE ÁGUAS PLUVIAIS. AF_06/2022 | D35: UN | E35: 2 | F35: 124.66 | G35: 249.32 | H35: 0.0001472041048 | I35: 0.9997442349
A36: 89531 | B36: SINAPI | C36: JOELHO 45 GRAUS, PVC, SERIE R, ÁGUA PLUVIAL, DN 100 MM, JUNTA ELÁSTICA, FORNECIDO E INSTALADO EM RAMAL DE ENCAMINHAMENTO. AF_06/2022 | D36: UN | E36: 4 | F36: 51.35 | G36: 205.4 | H36: 0.0001212727544 | I36: 0.9998655077
A37: 100977 | B37: SINAPI | C37: CARGA, MANOBRA E DESCARGA DE SOLOS E MATERIAIS GRANULARES EM CAMINHÃO BASCULANTE 6 M³ - CARGA COM ESCAVADEIRA HIDRÁULICA (CAÇAMBA DE 1,20 M³ / 155 HP) E DESCARGA LIVRE (UNIDADE: M3). AF_07/2020 | D37: M3 | E37: 21.5722 | F37: 8.84 | G37: 190.69 | H37: 0.0001125876413 | I37: 0.9999780953
A38: 100574 | B38: SINAPI | C38: ESPALHAMENTO DE MATERIAL COM TRATOR DE ESTEIRAS. AF_11/2019 | D38: M3 | E38: 21.5722 | F38: 1.72 | G38: 37.1 | H38: 2.190466985e-05 | I38: 1

Sheet Auxiliar_ABC2 (hidden)
A1: 1 | D1: 1.1 | E1: LOCAÇÃO DE CONTAINER COM ISOLAMENTO TÉRMICO, TIPO 3, PARA DEPÓSITO/FERRAMENTARIA DE OBRA, COM MEDIDAS REFERENCIAIS DE (6) METROS COMPRIMENTO, (2,3) METROS LARGURA E (2,5) METROS ALTURA ÚTIL INTERNA, INCLUSIVE LIGAÇÕES ELÉTRICAS INTERNAS, EXCLUSIVE MOBILIZAÇÃO/DESMOBILIZAÇÃO E LIGAÇÕES PROVISÓRIAS EXTERNAS | F1: ED-16350 | G1: SETOP | H1: mês | I1: 3 | J1: 676.39 | K1: BDI 1 | L1: 855.76 | M1: 2029.17 | N1: 2567.28
A2: 1 | D2: 1.2 | E2: LIGAÇÕES PROVISÓRIAS PARA CONTAINER TIPO 3 (CORRESPONDENTE AO CÓDIGO ED-16350) | F2: ED-16358 | G2: SETOP | H2: un | I2: 1 | J2: 327.92 | K2: BDI 1 | L2: 414.88 | M2: 327.92 | N2: 414.88
A3: 1 | D3: 1.3 | E3: MOBILIZAÇÃO E DESMOBILIZAÇÃO DE CONTAINER, INCLUSIVE CARGA, DESCARGA E TRANSPORTE EM CAMINHÃO CARROCERIA COM GUINDAUTO (MUNCK), EXCLUSIVE LOCAÇÃO DO CONTAINER | F3: ED-50137 | G3: SETOP | H3: un | I3: 1 | J3: 686.28 | K3: BDI 1 | L3: 868.28 | M3: 686.28 | N3: 868.28
A4: 1 | D4: 1.4 | E4: LOCAÇÃO DE BANHEIRO QUÍMICO, DIMENSÃO (110X120X230)CM, LINHA PADRÃO, CONTENDO UMA (1) PIA/HIGIENIZADOR DE MÃOS, INCLUSIVE MANUTENÇÃO E MOBILIZAÇÃO/DESMOBILIZAÇÃO | F4: ED-50155 | G4: SETOP | H4: mês | I4: 3 | J4: 800 | K4: BDI 1 | L4: 1012.16 | M4: 2400 | N4: 3036.48
A5: 2 | D5: 2.1 | E5: FORNECIMENTO E COLOCAÇÃO DE PLACA DE OBRA EM CHAPA GALVANIZADA #26, ESP. 0,45MM, DIMENSÃO (4X3)M, PLOTADA COM ADESIVO VINÍLICO, AFIXADA COM REBITES 4,8X40MM, EM ESTRUTURA METÁLICA DE METALON 20X20MM, ESP. 1,25MM, INCLUSIVE SUPORTE EM EUCALIPTO AUTOCLAVADO PINTADO COM TINTA PVA DUAS (2) DEMÃOS | F5: ED-28428 | G5: SETOP | H5: un | I5: 1 | J5: 3574.56 | K5: BDI 1 | L5: 4522.53 | M5: 3574.56 | N5: 4522.53
A6: 2 | D6: 2.2 | E6: LOCAÇÃO DE OBRA COM GABARITO DE TÁBUAS CORRIDAS PONTALETADAS A CADA 2,00M, REAPROVEITAMENTO (2X), INCLUSIVE ACOMPANHAMENTO DE EQUIPE TOPOGRÁFICA PARA MARCAÇÃO DE PONTO TOPOGRÁFICO | F6: ED-17989 | G6: SETOP | H6: m | I6: 132 | J6: 58.85 | K6: BDI 1 | L6: 74.45 | M6: 7768.2 | N6: 9827.4
A7: 3 | B7: 1 | D7: 3.1.1 | E7: ESCAVAÇÃO MANUAL DE VALA PARA VIGA BALDRAME (INCLUINDO ESCAVAÇÃO PARA COLOCAÇÃO DE FÔRMAS). AF_06/2017 | F7: 96527 | G7: SINAPI | H7: M3 | I7: 21.24 | J7: 103.73 | K7: BDI 1 | L7: 131.23 | M7: 2203.22 | N7: 2787.32
A8: 3 | B8: 1 | D8: 3.1.2 | E8: ESCAVAÇÃO MANUAL PARA BLOCO DE COROAMENTO OU SAPATA (INCLUINDO ESCAVAÇÃO PARA COLOCAÇÃO DE FÔRMAS). AF_06/2017 | F8: 96523 | G8: SINAPI | H8: M3 | I8: 14.28 | J8: 79.13 | K8: BDI 1 | L8: 100.11 | M8: 1129.97 | N8: 1429.57
A9: 3 | B9: 1 | D9: 3.1.3 | E9: REATERRO MANUAL DE VALAS COM COMPACTAÇÃO MECANIZADA. AF_04/2016 | F9: 93382 | G9: SINAPI | H9: M3 | I9: 18.926 | J9: 28.1 | K9: BDI 1 | L9: 35.55 | M9: 531.82 | N9: 672.81
A10: 3 | B10: 1 | D10: 3.1.4 | E10: LASTRO DE CONCRETO MAGRO, APLICADO EM BLOCOS DE COROAMENTO OU SAPATAS, ESPESSURA DE 5 CM. AF_08/2017 | F10: 96619 | G10: SINAPI | H10: M2 | I10: 19.04 | J10: 30.26 | K10: BDI 1 | L10: 38.28 | M10: 576.15 | N10: 728.85
A11: 3 | B11: 1 | D11: 3.1.5 | E11: CARGA, MANOBRA E DESCARGA DE SOLOS E MATERIAIS GRANULARES EM CAMINHÃO BASCULANTE 6 M³ - CARGA COM ESCAVADEIRA HIDRÁULICA (CAÇAMBA DE 1,20 M³ / 155 HP) E DESCARGA LIVRE (UNIDADE: M3). AF_07/2020 | F11: 100977 | G11: SINAPI | H11: M3 | I11: 21.5722 | J11: 6.99 | K11: BDI 1 | L11: 8.84 | M11: 150.78 | N11: 190.69
A12: 3 | B12: 1 | D12: 3.1.6 | E12: ESPALHAMENTO DE MATERIAL COM TRATOR DE ESTEIRAS. AF_11/2019 | F12: 100574 | G12: SINAPI | H12: M3 | I12: 21.5722 | J12: 1.36 | K12: BDI 1 | L12: 1.72 | M12: 29.33 | N12: 37.1
A13: 3 | B13: 1 | D13: 3.1.7 | E13: TRANSPORTE COM CAMINHÃO BASCULANTE DE 6 M³, EM VIA URBANA EM REVESTIMENTO PRIMÁRIO (UNIDADE: M3XKM). AF_07/2020 | F13: 97913 | G13: SINAPI | H13: M3XKM | I13: 191.99258 | J13: 2.89 | K13: BDI 1 | L13: 3.65 | M13: 554.85 | N13: 700.77
A14: 3 | B14: 1 | D14: 3.1.8 | E14: LASTRO DE BRITA 2 OU 3 APILOADO MANUALMENTE | F14: ED-49813 | G14: SETOP | H14: m3 | I14: 1.77 | J14: 163.9 | K14: BDI 1 | L14: 207.36 | M14: 290.1 | N14: 367.02
A15: 3 | B15: 2 | D15: 3.2.1 | E15: ESTACA HÉLICE CONTÍNUA, DIÂMETRO DE 30 CM, INCLUSO CONCRETO FCK=30MPA E ARMADURA MÍNIMA (EXCLUSIVE MOBILIZAÇÃO, DESMOBILIZAÇÃO E BOMBEAMENTO). AF_12/2019 | F15: 100651 | G15: SINAPI | H15: M | I15: 280 | J15: 150.91 | K15: BDI 1 | L15: 190.93 | M15: 42254.8 | N15: 53460.4
A16: 3 | B16: 2 | D16: 3.2.2 | E16: CORTE E PREPARO DE CABEÇA DE ESTACAS | F16: ED-49738 | G16: SETOP | H16: U | I16: 28 | J16: 51.33 | K16: BDI 1 | L16: 64.94 | M16: 1437.24 | N16: 1818.32
A17: 3 | B17: 2 | D17: 3.2.3 | E17: MOBILIZAÇÃO E DESMOBILIZAÇÃO DE EQUIPAMENTO PARA ESTACA TIPO HÉLICE CONTÍNUA DMT ATÉ 50 KM | F17: ED-49713 | G17: SETOP | H17: un | I17: 1 | J17: 9644.73 | K17: BDI 1 | L17: 12202.51 | M17: 9644.73 | N17: 12202.51
A18: 3 | B18: 2 | D18: 3.2.4 | E18: LANÇAMENTO COM USO DE BOMBA, ADENSAMENTO E ACABAMENTO DE CONCRETO EM ESTRUTURAS. AF_02/2022 | F18: 103673 | G18: SINAPI | H18: M3 | I18: 21.77123709 | J18: 33.2 | K18: BDI 1 | L18: 42 | M18: 722.8 | N18: 914.39
A19: 3 | B19: 3 | D19: 3.3.1 | E19: CORTE, DOBRA E MONTAGEM DE AÇO CA-50/60 | F19: ED-48298 | G19: SETOP | H19: Kg | I19: 1347.3 | J19: 13.42 | K19: BDI 1 | L19: 16.97 | M19: 18080.76 | N19: 22863.68
A20: 3 | B20: 3 | D20: 3.3.2 | E20: FORNECIMENTO DE CONCRETO ESTRUTURAL, USINADO, COM FCK 30 MPA, INCLUSIVE LANÇAMENTO, ADENSAMENTO E ACABAMENTO (FUNDAÇÃO) | F20: ED-49799 | G20: SETOP | H20: m3 | I20: 27.25 | J20: 719.99 | K20: BDI 1 | L20: 910.93 | M20: 19619.72 | N20: 24822.84
A21: 3 | B21: 3 | D21: 3.3.3 | E21: FORMA E DESFORMA DE COMPENSADO PLASTIFICADO, ESP. 12MM, REAPROVEITAMENTO (3X) (FUNDAÇÃO) | F21: ED-8571 | G21: SETOP | H21: m2 | I21: 254.11 | J21: 73.31 | K21: BDI 1 | L21: 92.75 | M21: 18628.8 | N21: 23568.7
A22: 4 | D22: 4.1 | E22: FORNECIMENTO DE ESTRUTURA METÁLICA EM PERFIL LAMINADO, INCLUSIVE FABRICAÇÃO, TRANSPORTE, MONTAGEM E APLICAÇÃO DE FUNDO PREPARADOR ANTICORROSIVO EM SUPERFÍCIE METÁLICA, UMA (1) DEMÃO | F22: ED-49664 | G22: SETOP | H22: Kg | I22: 34935 | J22: 25.05 | K22: BDI 1 | L22: 31.69 | M22: 875121.75 | N22: 1107090.15
A23: 4 | D23: 4.2 | E23: COBERTURA EM TELHA METÁLICA GALVANIZADA TRAPEZOIDAL, TIPO SIMPLES, ESP. 0,50MM, ACABAMENTO NATURAL, INCLUSIVE ACESSÓRIOS PARA FIXAÇÃO, FORNECIMENTO E INSTALAÇÃO | F23: ED-48428 | G23: SETOP | H23: m2 | I23: 1455.03 | J23: 99.53 | K23: BDI 1 | L23: 125.92 | M23: 144819.13 | N23: 183217.37
A24: 4 | D24: 4.3 | E24: COLOCAÇÃO DE CUMEEIRA GALVANIZADA TRAPEZOIDAL E = 0,50 MM, SIMPLES | F24: ED-48402 | G24: SETOP | H24: m | I24: 42.84 | J24: 54.62 | K24: BDI 1 | L24: 69.1 | M24: 2339.92 | N24: 2960.24
A25: 4 | D25: 4.4 | E25: PINTURA ESMALTE EM ESTRUTURA METÁLICA, DUAS (2) DEMÃOS, INCLUSIVE UMA (1) DEMÃO FUNDO ANTICORROSIVO | F25: ED-50497 | G25: SETOP | H25: m2 | I25: 3690.71 | J25: 33.04 | K25: BDI 1 | L25: 41.8 | M25: 121941.05 | N25: 154271.67
A26: 5 | B26: 1 | D26: 5.1.1 | E26: JOELHO 45 GRAUS, PVC, SERIE R, ÁGUA PLUVIAL, DN 100 MM, JUNTA ELÁSTICA, FORNECIDO E INSTALADO EM RAMAL DE ENCAMINHAMENTO. AF_06/2022 | F26: 89531 | G26: SINAPI | H26: UN | I26: 4 | J26: 40.59 | K26: BDI 1 | L26: 51.35 | M26: 162.36 | N26: 205.4
A27: 5 | B27: 1 | D27: 5.1.2 | E27: JOELHO 90 GRAUS, PVC, SERIE R, ÁGUA PLUVIAL, DN 100 MM, JUNTA ELÁSTICA, FORNECIDO E INSTALADO EM RAMAL DE ENCAMINHAMENTO. AF_06/2022 | F27: 89529 | G27: SINAPI | H27: UN | I27: 12 | J27: 39.3 | K27: BDI 1 | L27: 49.72 | M27: 471.6 | N27: 596.64
A28: 5 | B28: 1 | D28: 5.1.3 | E28: JUNÇÃO SIMPLES, PVC, SERIE R, ÁGUA PLUVIAL, DN 100 X 100 MM, JUNTA ELÁSTICA, FORNECIDO E INSTALADO EM RAMAL DE ENCAMINHAMENTO. AF_06/2022 | F28: 89567 | G28: SINAPI | H28: UN | I28: 4 | J28: 89.5 | K28: BDI 1 | L28: 113.23 | M28: 358 | N28: 452.92
A29: 5 | B29: 1 | D29: 5.1.4 | E29: JUNÇÃO SIMPLES, PVC, SERIE R, ÁGUA PLUVIAL, DN 150 X 100 MM, JUNTA ELÁSTICA, FORNECIDO E INSTALADO EM CONDUTORES VERTICAIS DE ÁGUAS PLUVIAIS. AF_06/2022 | F29: 89699 | G29: SINAPI | H29: UN | I29: 4 | J29: 223.02 | K29: BDI 1 | L29: 282.16 | M29: 892.08 | N29: 1128.64
A30: 5 | B30: 1 | D30: 5.1.5 | E30: REDUÇÃO EXCÊNTRICA, PVC, SERIE R, ÁGUA PLUVIAL, DN 150 X 100 MM, JUNTA ELÁSTICA, FORNECIDO E INSTALADO EM CONDUTORES VERTICAIS DE ÁGUAS PLUVIAIS. AF_06/2022 | F30: 89681 | G30: SINAPI | H30: UN | I30: 2 | J30: 98.53 | K30: BDI 1 | L30: 124.66 | M30: 197.06 | N30: 249.32
A31: 5 | B31: 1 | D31: 5.1.6 | E31: TUBO PVC, SÉRIE R, ÁGUA PLUVIAL, DN 100 MM, FORNECIDO E INSTALADO EM RAMAL DE ENCAMINHAMENTO. AF_06/2022 | F31: 89512 | G31: SINAPI | H31: M | I31: 177.07 | J31: 52.75 | K31: BDI 1 | L31: 66.73 | M31: 9340.44 | N31: 11815.88
A32: 5 | B32: 1 | D32: 5.1.7 | E32: TUBO PVC, SÉRIE R, ÁGUA PLUVIAL, DN 150 MM, FORNECIDO E INSTALADO EM CONDUTORES VERTICAIS DE ÁGUAS PLUVIAIS. AF_06/2022 | F32: 89580 | G32: SINAPI | H32: M | I32: 107.6 | J32: 82.35 | K32: BDI 1 | L32: 104.18 | M32: 8860.86 | N32: 11209.76
A33: 5 | B33: 1 | D33: 5.1.8 | E33: CALHA EM CHAPA DE AÇO GALVANIZADO NÚMERO 24, DESENVOLVIMENTO DE 100 CM, INCLUSO TRANSPORTE VERTICAL. AF_07/2019 | F33: 94229 | G33: SINAPI | H33: M | I33: 84 | J33: 194.37 | K33: BDI 1 | L33: 245.91 | M33: 16327.08 | N33: 20656.44
A34: 5 | B34: 1 | D34: 5.1.9 | E34: CAIXA DE ESGOTO DE INSPEÇÃO/PASSAGEM EM ALVENARIA (60X60X60CM), REVESTIMENTO EM ARGAMASSA COM ADITIVO IMPERMEABILIZANTE, COM TAMPA DE CONCRETO, INCLUSIVE ESCAVAÇÃO, REATERRO E TRANSPORTE E RETIRADA DO MATERIAL ESCAVADO (EM CAÇAMBA) | F34: ED-49883 | G34: SETOP | H34: un | I34: 2 | J34: 416.12 | K34: BDI 1 | L34: 526.47 | M34: 832.24 | N34: 1052.94
A35: 5 | B35: 2 | D35: 5.2.1 | E35: ESCAVAÇÃO MANUAL DE VALA COM PROFUNDIDADE MENOR OU IGUAL A 1,30 M. AF_02/2021 | F35: 93358 | G35: SINAPI | H35: M3 | I35: 32.852 | J35: 66.85 | K35: BDI 1 | L35: 84.57 | M35: 2196.15 | N35: 2778.29
A36: 5 | B36: 2 | D36: 5.2.2 | E36: REATERRO MANUAL APILOADO COM SOQUETE. AF_10/2017 | F36: 96995 | G36: SINAPI | H36: M3 | I36: 32.852 | J36: 40.53 | K36: BDI 1 | L36: 51.27 | M36: 1331.49 | N36: 1684.32
A37: 6 | D37: 6.1 | E37: EXECUÇÃO DE PASSEIO (CALÇADA) OU PISO DE CONCRETO COM CONCRETO MOLDADO IN LOCO, USINADO, ACABAMENTO CONVENCIONAL, ESPESSURA 8 CM, ARMADO. AF_08/2022 | F37: 94995 | G37: SINAPI | H37: M2 | I37: 137.13 | J37: 107.23 | K37: BDI 1 | L37: 135.66 | M37: 14704.44 | N37: 18603.05
A38: 6 | D38: 6.2 | E38: LIMPEZA FINAL PARA ENTREGA DA OBRA | F38: ED-50266 | G38: SETOP | H38: m2 | I38: 968 | J38: 6.48 | K38: BDI 1 | L38: 8.19 | M38: 6272.64 | N38: 7927.92

Sheet CPU
A2: COMPOSIÇÕES DE CUSTO | L2: Revisão: | M2: =DADOS!D6 -> R00
L3: Data: | M3: =DADOS!D2 -> 2023-01-05
A4: Projeto: | D4: Cliente: | H4: Cliente: | L4: Bancos:
A5: =DADOS!D8 -> CONSTRUÇÃO DE COBERTURA DA QUADRA COLINA DE SANTA BARBARA | L5: =DADOS!D14 -> SINAPI: 11/2022 Minas Gerais SETOP: 10/2022 Minas Gerais SICRO : 07/2022 Minas Gerais SUDECAP: 10/2022 Minas Gerais
L8: BDI 1: | M8: =DADOS!D10 -> 0.2652
L9: BDI 2: | M9: =DADOS!D12 -> 0.2025
A11: =A2&" DE "&DADOS!D20&" - "&A5 -> COMPOSIÇÕES DE CUSTO DE PROJETO EXECUTIVO - CONSTRUÇÃO DE COBERTURA DA QUADRA COLINA DE SANTA BARBARA
A13: CÓDIGO | B13: DESCRIÇÃO | I13: Banco | J13: Unid. | K13: Coeficiente | L13: Preço Unit. | M13: Total
A15: 1 | B15: =VLOOKUP(A15,ORC!$D$24:$N$226,2,0) -> CANTEIRO DE OBRA
A16: DAC-1.1 | B16: REMOÇÃO DAS CHAPAS DE POLICARBONATO | I16: CPU | J16: M2 | M16: =SUM(M17:M18) -> 7721.1
B17: 21013 | C17: =IF(I17="SINAPI",VLOOKUP(B17,DADOS_SINAPI,2,0),IF(I17="SETOP",VLOOKUP(B17,DADOS_SETOP,2,0),IF(I17="SICRO",VLOOKUP(B17,DADOS_SICRO,2,0),IF(I17="SUDECAP",VLOOKUP(B17,DADOS_SUDECAP,2,0),IF(I17="COTAÇÃO",VLOOKUP(B17,DADOS_COTACAO,2,0),VLOOKUP(B17,DADOS_COMPOSICAO,2,0)))))) -> TUBO ACO GALVANIZADO COM COSTURA, CLASSE LEVE, DN 50 MM ( 2"), E = 3,00 MM, *4,40* KG/M (NBR 5580) | I17: SINAPI | J17: =IF(I17="SINAPI",VLOOKUP(B17,DADOS_SINAPI,3,0),IF(I17="SETOP",VLOOKUP(B17,DADOS_SETOP,3,0),IF(I17="SICRO",VLOOKUP(B17,DADOS_SICRO,3,0),IF(I17="SUDECAP",VLOOKUP(B17,DADOS_SUDECAP,3,0),IF(I17="COTAÇÃO",VLOOKUP(B17,DADOS_COTACAO,9,0),VLOOKUP(B17,DADOS_COMPOSICAO,10,0)))))) -> M | K17: 1 | L17: =IF(I17="SINAPI",VLOOKUP(B17,DADOS_SINAPI,4,0),IF(I17="SETOP",VLOOKUP(B17,DADOS_SETOP,4,0),IF(I17="SICRO",VLOOKUP(B17,DADOS_SICRO,4,0),IF(I17="SUDECAP",VLOOKUP(B17,DADOS_SUDECAP,4,0),IF(I17="COTAÇÃO",VLOOKUP(B17,DADOS_COTACAO,12,0),VLOOKUP(B17,DADOS_COMPOSICAO,13,0)))))) -> 79.05 | M17: =K17*L17 -> 79.05
B18: CO-27421 | C18: =IF(I18="SINAPI",VLOOKUP(B18,DADOS_SINAPI,2,0),IF(I18="SETOP",VLOOKUP(B18,DADOS_SETOP,2,0),IF(I18="SICRO",VLOOKUP(B18,DADOS_SICRO,2,0),IF(I18="SUDECAP",VLOOKUP(B18,DADOS_SUDECAP,2,0),IF(I18="COTAÇÃO",VLOOKUP(B18,DADOS_COTACAO,2,0),VLOOKUP(B18,DADOS_COMPOSICAO,2,0)))))) -> ANTEPROJETO DE IMPLANTAÇÃO DE EDIFICAÇÃO PADRÃO COM ÁREA DE PROJEÇÃO > 3.000 M2 | I18: SETOP | J18: =IF(I18="SINAPI",VLOOKUP(B18,DADOS_SINAPI,3,0),IF(I18="SETOP",VLOOKUP(B18,DADOS_SETOP,3,0),IF(I18="SICRO",VLOOKUP(B18,DADOS_SICRO,3,0),IF(I18="SUDECAP",VLOOKUP(B18,DADOS_SUDECAP,3,0),IF(I18="COTAÇÃO",VLOOKUP(B18,DADOS_COTACAO,9,0),VLOOKUP(B18,DADOS_COMPOSICAO,10,0)))))) -> un | K18: 1 | L18: =IF(I18="SINAPI",VLOOKUP(B18,DADOS_SINAPI,4,0),IF(I18="SETOP",VLOOKUP(B18,DADOS_SETOP,4,0),IF(I18="SICRO",VLOOKUP(B18,DADOS_SICRO,4,0),IF(I18="SUDECAP",VLOOKUP(B18,DADOS_SUDECAP,4,0),IF(I18="COTAÇÃO",VLOOKUP(B18,DADOS_COTACAO,12,0),VLOOKUP(B18,DADOS_COMPOSICAO,13,0)))))) -> 7642.05 | M18: 7642.05
A20: 2 | B20: =VLOOKUP(A20,ORC!$D$24:$N$226,2,0) -> SERVIÇOS PRELIMINARES
A21: DAC-2.1 | B21: REMOÇÃO DA COBERTURA COMPLETA | I21: CPU | J21: M2 | M21: =SUM(M22:M23) -> 475.7046
B22: 50.27.16 | C22: =IF(I22="SINAPI",VLOOKUP(B22,DADOS_SINAPI,2,0),IF(I22="SETOP",VLOOKUP(B22,DADOS_SETOP,2,0),IF(I22="SICRO",VLOOKUP(B22,DADOS_SICRO,2,0),IF(I22="SUDECAP",VLOOKUP(B22,DADOS_SUDECAP,2,0),IF(I22="COTAÇÃO",VLOOKUP(B22,DADOS_COTACAO,2,0),VLOOKUP(B22,DADOS_COMPOSICAO,2,0)))))) -> CHP/ GUINDASTE WTTA - 16G | I22: SUDECAP | J22: =IF(I22="SINAPI",VLOOKUP(B22,DADOS_SINAPI,3,0),IF(I22="SETOP",VLOOKUP(B22,DADOS_SETOP,3,0),IF(I22="SICRO",VLOOKUP(B22,DADOS_SICRO,3,0),IF(I22="SUDECAP",VLOOKUP(B22,DADOS_SUDECAP,3,0),IF(I22="COTAÇÃO",VLOOKUP(B22,DADOS_COTACAO,9,0),VLOOKUP(B22,DADOS_COMPOSICAO,10,0)))))) -> H | K22: 1 | L22: =IF(I22="SINAPI",VLOOKUP(B22,DADOS_SINAPI,4,0),IF(I22="SETOP",VLOOKUP(B22,DADOS_SETOP,4,0),IF(I22="SICRO",VLOOKUP(B22,DADOS_SICRO,4,0),IF(I22="SUDECAP",VLOOKUP(B22,DADOS_SUDECAP,4,0),IF(I22="COTAÇÃO",VLOOKUP(B22,DADOS_COTACAO,12,0),VLOOKUP(B22,DADOS_COMPOSICAO,13,0)))))) -> 464.29 | M22: =K22*L22 -> 464.29
B23: M0009 | C23: =IF(I23="SINAPI",VLOOKUP(B23,DADOS_SINAPI,2,0),IF(I23="SETOP",VLOOKUP(B23,DADOS_SETOP,2,0),IF(I23="SICRO",VLOOKUP(B23,DADOS_SICRO,2,0),IF(I23="SUDECAP",VLOOKUP(B23,DADOS_SUDECAP,2,0),IF(I23="COTAÇÃO",VLOOKUP(B23,DADOS_COTACAO,2,0),VLOOKUP(B23,DADOS_COMPOSICAO,2,0)))))) -> Aço CP 175 RB | I23: SICRO | J23: =IF(I23="SINAPI",VLOOKUP(B23,DADOS_SINAPI,3,0),IF(I23="SETOP",VLOOKUP(B23,DADOS_SETOP,3,0),IF(I23="SICRO",VLOOKUP(B23,DADOS_SICRO,3,0),IF(I23="SUDECAP",VLOOKUP(B23,DADOS_SUDECAP,3,0),IF(I23="COTAÇÃO",VLOOKUP(B23,DADOS_COTACAO,9,0),VLOOKUP(B23,DADOS_COMPOSICAO,10,0)))))) -> kg | K23: 1 | L23: =IF(I23="SINAPI",VLOOKUP(B23,DADOS_SINAPI,4,0),IF(I23="SETOP",VLOOKUP(B23,DADOS_SETOP,4,0),IF(I23="SICRO",VLOOKUP(B23,DADOS_SICRO,4,0),IF(I23="SUDECAP",VLOOKUP(B23,DADOS_SUDECAP,4,0),IF(I23="COTAÇÃO",VLOOKUP(B23,DADOS_COTACAO,12,0),VLOOKUP(B23,DADOS_COMPOSICAO,13,0)))))) -> 11.4146 | M23: 11.4146
B24: DAC-1.1 | C24: =IF(I24="SINAPI",VLOOKUP(B24,DADOS_SINAPI,2,0),IF(I24="SETOP",VLOOKUP(B24,DADOS_SETOP,2,0),IF(I24="SICRO",VLOOKUP(B24,DADOS_SICRO,2,0),IF(I24="SUDECAP",VLOOKUP(B24,DADOS_SUDECAP,2,0),IF(I24="COTAÇÃO",VLOOKUP(B24,DADOS_COTACAO,2,0),VLOOKUP(B24,DADOS_COMPOSICAO,2,0)))))) -> REMOÇÃO DAS CHAPAS DE POLICARBONATO | I24: CPU | J24: =IF(I24="SINAPI",VLOOKUP(B24,DADOS_SINAPI,3,0),IF(I24="SETOP",VLOOKUP(B24,DADOS_SETOP,3,0),IF(I24="SICRO",VLOOKUP(B24,DADOS_SICRO,3,0),IF(I24="SUDECAP",VLOOKUP(B24,DADOS_SUDECAP,3,0),IF(I24="COTAÇÃO",VLOOKUP(B24,DADOS_COTACAO,9,0),VLOOKUP(B24,DADOS_COMPOSICAO,10,0)))))) -> M2 | K24: 1 | L24: =IF(I24="SINAPI",VLOOKUP(B24,DADOS_SINAPI,4,0),IF(I24="SETOP",VLOOKUP(B24,DADOS_SETOP,4,0),IF(I24="SICRO",VLOOKUP(B24,DADOS_SICRO,4,0),IF(I24="SUDECAP",VLOOKUP(B24,DADOS_SUDECAP,4,0),IF(I24="COTAÇÃO",VLOOKUP(B24,DADOS_COTACAO,12,0),VLOOKUP(B24,DADOS_COMPOSICAO,13,0)))))) -> 7721.1 | M24: =K24*L24 -> 7721.1
D29: RESPONSÁVEL TÉCNICO: | G29: =DADOS!D16 -> FLÁVIA CRISTINA BARBOSA
G30: =DADOS!D18 -> CREA - MG 187.842/D

Sheet COT
A2: PLANILHA DE COTAÇÕES | K2: Revisão: | L2: =DADOS!D6 -> R00
K3: Data: | L3: =DADOS!D2 -> 2023-01-05
A4: Projeto: | D4: Responsável: | G4: Cliente: | K4: Bancos:
A5: =DADOS!D8 -> CONSTRUÇÃO DE COBERTURA DA QUADRA COLINA DE SANTA BARBARA | D5: =DADOS!G8 -> 0 | K5: =DADOS!D14 -> SINAPI: 11/2022 Minas Gerais SETOP: 10/2022 Minas Gerais SICRO : 07/2022 Minas Gerais SUDECAP: 10/2022 Minas Gerais
K8: BDI 1: | L8: =DADOS!D10 -> 0.2652
K9: BDI 2: | L9: =DADOS!D12 -> 0.2025
A11: =A2&" DE "&DADOS!D20&" - "&A5 -> PLANILHA DE COTAÇÕES DE PROJETO EXECUTIVO - CONSTRUÇÃO DE COBERTURA DA QUADRA COLINA DE SANTA BARBARA
A13: COT-EST-256-001 | B13: COBERTURA EM POLICARBONATO | I13: UN | L13: =MEDIAN(L15:XFD17) -> 78500
A14: EMPRESA | B14: CIDADE | C14: LOCAL / LINK | G14: CNPJ | H14: CONTATO | I14: UN | J14: VALOR | K14: FRETE | L14: TOTAL
A15: SOLUSOL COBERTURAS | B15: PIQUERI/SP | C15: https://www.solusoltoldos.com.br/index.html | G15: 15.351.137/0001-68 | H15: (11) 94782-1121 | I15: UN | J15: 78500 | L15: =J15+K15 -> 78500
A16: UNI - CONSTRUÇÕES METÁLICAS | B16: GUARULHOS/SP | G16: 10.375.586/0001-22 | H16: (11) 94329-2999 | I16: UN | J16: 80141.4 | L16: =J16+K16 -> 80141.4
A17: DI TOLDOS | B17: SÃO PAULO/SP | C17: http://ditoldos.com.br/toldos/ | G17: 35.211.726/0001-58 | H17: (11) 3714 - 4989 | I17: UN | J17: 69000 | L17: =J17+K17 -> 69000
C23: RESPONSÁVEL TÉCNICO: | F23: =DADOS!D16 -> FLÁVIA CRISTINA BARBOSA
F24: =DADOS!D18 -> CREA - MG 187.842/D

Sheet SINAPI
B1: SINAPI NOVEMBRO 2022
A2: CÓDIGO | B2: DESCRIÇÃO | C2: UNIDADE | D2: PREÇO
A3: 97141 | B3: ASSENTAMENTO DE TUBO DE FERRO FUNDIDO PARA REDE DE ÁGUA, DN 80 MM, JUNTA ELÁSTICA, INSTALADO EM LOCAL COM NÍVEL ALTO DE INTERFERÊNCIAS (NÃO INCLUI FORNECIMENTO). AF_11/2017 | C3: M | D3: 8.16 | E3: =1*A3 -> 97141
A4: 97142 | B4: ASSENTAMENTO DE TUBO DE FERRO FUNDIDO PARA REDE DE ÁGUA, DN 100 MM, JUNTA ELÁSTICA, INSTALADO EM LOCAL COM NÍVEL ALTO DE INTERFERÊNCIAS (NÃO INCLUI FORNECIMENTO). AF_11/2017 | C4: M | D4: 9.05 | E4: =1*A4 -> 97142
A5: 97143 | B5: ASSENTAMENTO DE TUBO DE FERRO FUNDIDO PARA REDE DE ÁGUA, DN 150 MM, JUNTA ELÁSTICA, INSTALADO EM LOCAL COM NÍVEL ALTO DE INTERFERÊNCIAS (NÃO INCLUI FORNECIMENTO). AF_11/2017 | C5: M | D5: 11.3 | E5: 97143
A6: 97144 | B6: ASSENTAMENTO DE TUBO DE FERRO FUNDIDO PARA REDE DE ÁGUA, DN 200 MM, JUNTA ELÁSTICA, INSTALADO EM LOCAL COM NÍVEL ALTO DE INTERFERÊNCIAS (NÃO INCLUI FORNECIMENTO). AF_11/2017 | C6: M | D6: 13.53 | E6: 97144
A7: 97145 | B7: ASSENTAMENTO DE TUBO DE FERRO FUNDIDO PARA REDE DE ÁGUA, DN 250 MM, JUNTA ELÁSTICA, INSTALADO EM LOCAL COM NÍVEL ALTO DE INTERFERÊNCIAS (NÃO INCLUI FORNECIMENTO). AF_11/2017 | C7: M | D7: 15.79 | E7: 97145
A8: 97146 | B8: ASSENTAMENTO DE TUBO DE FERRO FUNDIDO PARA REDE DE ÁGUA, DN 300 MM, JUNTA ELÁSTICA, INSTALADO EM LOCAL COM NÍVEL ALTO DE INTERFERÊNCIAS (NÃO INCLUI FORNECIMENTO). AF_11/2017 | C8: M | D8: 18.04 | E8: 97146
A9: 97147 | B9: ASSENTAMENTO DE TUBO DE FERRO FUNDIDO PARA REDE DE ÁGUA, DN 350 MM, JUNTA ELÁSTICA, INSTALADO EM LOCAL COM NÍVEL ALTO DE INTERFERÊNCIAS (NÃO INCLUI FORNECIMENTO). AF_11/2017 | C9: M | D9: 20.32 | E9: 97147
A10: 97148 | B10: ASSENTAMENTO DE TUBO DE FERRO FUNDIDO PARA REDE DE ÁGUA, DN 400 MM, JUNTA ELÁSTICA, INSTALADO EM LOCAL COM NÍVEL ALTO DE INTERFERÊNCIAS (NÃO INCLUI FORNECIMENTO). AF_11/2017 | C10: M | D10: 22.56 | E10: 97148
A11: 97149 | B11: ASSENTAMENTO DE TUBO DE FERRO FUNDIDO PARA REDE DE ÁGUA, DN 450 MM, JUNTA ELÁSTICA, INSTALADO EM LOCAL COM NÍVEL ALTO DE INTERFERÊNCIAS (NÃO INCLUI FORNECIMENTO). AF_11/2017 | C11: M | D11: 24.85 | E11: 97149
A12: 97150 | B12: ASSENTAMENTO DE TUBO DE FERRO FUNDIDO PARA REDE DE ÁGUA, DN 500 MM, JUNTA ELÁSTICA, INSTALADO EM LOCAL COM NÍVEL ALTO DE INTERFERÊNCIAS (NÃO INCLUI FORNECIMENTO). AF_11/2017 | C12: M | D12: 31.57 | E12: 97150
A13: 97151 | B13: ASSENTAMENTO DE TUBO DE FERRO FUNDIDO PARA REDE DE ÁGUA, DN 600 MM, JUNTA ELÁSTICA, INSTALADO EM LOCAL COM NÍVEL ALTO DE INTERFERÊNCIAS (NÃO INCLUI FORNECIMENTO). AF_11/2017 | C13: M | D13: 36.77 | E13: 97151
A14: 97152 | B14: ASSENTAMENTO DE TUBO DE FERRO FUNDIDO PARA REDE DE ÁGUA, DN 700 MM, JUNTA ELÁSTICA, INSTALADO EM LOCAL COM NÍVEL ALTO DE INTERFERÊNCIAS (NÃO INCLUI FORNECIMENTO). AF_11/2017 | C14: M | D14: 41.74 | E14: 97152
A15: 97153 | B15: ASSENTAMENTO DE TUBO DE FERRO FUNDIDO PARA REDE DE ÁGUA, DN 800 MM, JUNTA ELÁSTICA, INSTALADO EM LOCAL COM NÍVEL ALTO DE INTERFERÊNCIAS (NÃO INCLUI FORNECIMENTO). AF_11/2017 | C15: M | D15: 46.84 | E15: 97153
A16: 97154 | B16: ASSENTAMENTO DE TUBO DE FERRO FUNDIDO PARA REDE DE ÁGUA, DN 900 MM, JUNTA ELÁSTICA, INSTALADO EM LOCAL COM NÍVEL ALTO DE INTERFERÊNCIAS (NÃO INCLUI FORNECIMENTO). AF_11/2017 | C16: M | D16: 51.99 | E16: 97154
A17: 97155 | B17: ASSENTAMENTO DE TUBO DE FERRO FUNDIDO PARA REDE DE ÁGUA, DN 1000 MM, JUNTA ELÁSTICA, INSTALADO EM LOCAL COM NÍVEL ALTO DE INTERFERÊNCIAS (NÃO INCLUI FORNECIMENTO). AF_11/2017 | C17: M | D17: 57.12 | E17: 97155
A18: 97156 | B18: ASSENTAMENTO DE TUBO DE FERRO FUNDIDO PARA REDE DE ÁGUA, DN 1200 MM, JUNTA ELÁSTICA, INSTALADO EM LOCAL COM NÍVEL ALTO DE INTERFERÊNCIAS (NÃO INCLUI FORNECIMENTO). AF_11/2017 | C18: M | D18: 67.74 | E18: 97156
A19: 97157 | B19: ASSENTAMENTO DE TUBO DE FERRO FUNDIDO PARA REDE DE ÁGUA, DN 80 MM, JUNTA ELÁSTICA, INSTALADO EM LOCAL COM NÍVEL BAIXO DE INTERFERÊNCIAS (NÃO INCLUI FORNECIMENTO). AF_11/2017 | C19: M | D19: 4.96 | E19: 97157
A20: 97158 | B20: ASSENTAMENTO DE TUBO DE FERRO FUNDIDO PARA REDE DE ÁGUA, DN 100 MM, JUNTA ELÁSTICA, INSTALADO EM LOCAL COM NÍVEL BAIXO DE INTERFERÊNCIAS (NÃO INCLUI FORNECIMENTO). AF_11/2017 | C20: M | D20: 5.51 | E20: 97158
A21: 97159 | B21: ASSENTAMENTO DE TUBO DE FERRO FUNDIDO PARA REDE DE ÁGUA, DN 150 MM, JUNTA ELÁSTICA, INSTALADO EM LOCAL COM NÍVEL BAIXO DE INTERFERÊNCIAS (NÃO INCLUI FORNECIMENTO). AF_11/2017 | C21: M | D21: 6.9 | E21: 97159
A22: 97160 | B22: ASSENTAMENTO DE TUBO DE FERRO FUNDIDO PARA REDE DE ÁGUA, DN 200 MM, JUNTA ELÁSTICA, INSTALADO EM LOCAL COM NÍVEL BAIXO DE INTERFERÊNCIAS (NÃO INCLUI FORNECIMENTO). AF_11/2017 | C22: M | D22: 8.25 | E22: 97160
A23: 97161 | B23: ASSENTAMENTO DE TUBO DE FERRO FUNDIDO PARA REDE DE ÁGUA, DN 250 MM, JUNTA ELÁSTICA, INSTALADO EM LOCAL COM NÍVEL BAIXO DE INTERFERÊNCIAS (NÃO INCLUI FORNECIMENTO). AF_11/2017 | C23: M | D23: 9.65 | E23: 97161
A24: 97162 | B24: ASSENTAMENTO DE TUBO DE FERRO FUNDIDO PARA REDE DE ÁGUA, DN 300 MM, JUNTA ELÁSTICA, INSTALADO EM LOCAL COM NÍVEL BAIXO DE INTERFERÊNCIAS (NÃO INCLUI FORNECIMENTO). AF_11/2017 | C24: M | D24: 11.03 | E24: 97162
A25: 97163 | B25: ASSENTAMENTO DE TUBO DE FERRO FUNDIDO PARA REDE DE ÁGUA, DN 350 MM, JUNTA ELÁSTICA, INSTALADO EM LOCAL COM NÍVEL BAIXO DE INTERFERÊNCIAS (NÃO INCLUI FORNECIMENTO). AF_11/2017 | C25: M | D25: 12.43 | E25: 97163
A26: 97164 | B26: ASSENTAMENTO DE TUBO DE FERRO FUNDIDO PARA REDE DE ÁGUA, DN 400 MM, JUNTA ELÁSTICA, INSTALADO EM LOCAL COM NÍVEL BAIXO DE INTERFERÊNCIAS (NÃO INCLUI FORNECIMENTO). AF_11/2017 | C26: M | D26: 13.8 | E26: 97164
A27: 97165 | B27: ASSENTAMENTO DE TUBO DE FERRO FUNDIDO PARA REDE DE ÁGUA, DN 450 MM, JUNTA ELÁSTICA, INSTALADO EM LOCAL COM NÍVEL BAIXO DE INTERFERÊNCIAS (NÃO INCLUI FORNECIMENTO). AF_11/2017 | C27: M | D27: 15.22 | E27: 97165
A28: 97166 | B28: ASSENTAMENTO DE TUBO DE FERRO FUNDIDO PARA REDE DE ÁGUA, DN 500 MM, JUNTA ELÁSTICA, INSTALADO EM LOCAL COM NÍVEL BAIXO DE INTERFERÊNCIAS (NÃO INCLUI FORNECIMENTO). AF_11/2017 | C28: M | D28: 19.35 | E28: 97166
A29: 97167 | B29: ASSENTAMENTO DE TUBO DE FERRO FUNDIDO PARA REDE DE ÁGUA, DN 600 MM, JUNTA ELÁSTICA, INSTALADO EM LOCAL COM NÍVEL BAIXO DE INTERFERÊNCIAS (NÃO INCLUI FORNECIMENTO). AF_11/2017 | C29: M | D29: 22.56 | E29: 97167
A30: 97168 | B30: ASSENTAMENTO DE TUBO DE FERRO FUNDIDO PARA REDE DE ÁGUA, DN 700 MM, JUNTA ELÁSTICA, INSTALADO EM LOCAL COM NÍVEL BAIXO DE INTERFERÊNCIAS (NÃO INCLUI FORNECIMENTO). AF_11/2017 | C30: M | D30: 25.55 | E30: 97168
A31: 97169 | B31: ASSENTAMENTO DE TUBO DE FERRO FUNDIDO PARA REDE DE ÁGUA, DN 800 MM, JUNTA ELÁSTICA, INSTALADO EM LOCAL COM NÍVEL BAIXO DE INTERFERÊNCIAS (NÃO INCLUI FORNECIMENTO). AF_11/2017 | C31: M | D31: 28.67 | E31: 97169
A32: 97170 | B32: ASSENTAMENTO DE TUBO DE FERRO FUNDIDO PARA REDE DE ÁGUA, DN 900 MM, JUNTA ELÁSTICA, INSTALADO EM LOCAL COM NÍVEL BAIXO DE INTERFERÊNCIAS (NÃO INCLUI FORNECIMENTO). AF_11/2017 | C32: M | D32: 31.83 | E32: 97170
A33: 97171 | B33: ASSENTAMENTO DE TUBO DE FERRO FUNDIDO PARA REDE DE ÁGUA, DN 1000 MM, JUNTA ELÁSTICA, INSTALADO EM LOCAL COM NÍVEL BAIXO DE INTERFERÊNCIAS (NÃO INCLUI FORNECIMENTO). AF_11/2017 | C33: M | D33: 34.98 | E33: 97171
A34: 97172 | B34: ASSENTAMENTO DE TUBO DE FERRO FUNDIDO PARA REDE DE ÁGUA, DN 1200 MM, JUNTA ELÁSTICA, INSTALADO EM LOCAL COM NÍVEL BAIXO DE INTERFERÊNCIAS (NÃO INCLUI FORNECIMENTO). AF_11/2017 | C34: M | D34: 41.64 | E34: 97172
A35: 97173 | B35: ASSENTAMENTO DE TUBO DE AÇO CARBONO PARA REDE DE ÁGUA, DN 600 MM (24), JUNTA SOLDADA, INSTALADO EM LOCAL COM NÍVEL ALTO DE INTERFERÊNCIAS (NÃO INCLUI FORNECIMENTO). AF_11/2017 | C35: M | D35: 39.6 | E35: 97173
A36: 97174 | B36: ASSENTAMENTO DE TUBO DE AÇO CARBONO PARA REDE DE ÁGUA, DN 700 MM (28), JUNTA SOLDADA, INSTALADO EM LOCAL COM NÍVEL ALTO DE INTERFERÊNCIAS (NÃO INCLUI FORNECIMENTO). AF_11/2017 | C36: M | D36: 45.88 | E36: 97174
A37: 97175 | B37: ASSENTAMENTO DE TUBO DE AÇO CARBONO PARA REDE DE ÁGUA, DN 800 MM (32), JUNTA SOLDADA, INSTALADO EM LOCAL COM NÍVEL ALTO DE INTERFERÊNCIAS (NÃO INCLUI FORNECIMENTO). AF_11/2017 | C37: M | D37: 52.16 | E37: 97175
A38: 97176 | B38: ASSENTAMENTO DE TUBO DE AÇO CARBONO PARA REDE DE ÁGUA, DN 900 MM (36), JUNTA SOLDADA, INSTALADO EM LOCAL COM NÍVEL ALTO DE INTERFERÊNCIAS (NÃO INCLUI FORNECIMENTO). AF_11/2017 | C38: M | D38: 58.45 | E38: 97176
A39: 97177 | B39: ASSENTAMENTO DE TUBO DE AÇO CARBONO PARA REDE DE ÁGUA, DN 1000 MM (40) OU DN 1100 MM (44), JUNTA SOLDADA, INSTALADO EM LOCAL COM NÍVEL ALTO DE INTERFERÊNCIAS (NÃO INCLUI FORNECIMENTO). AF_11/2017 | C39: M | D39: 71.03 | E39: 97177
A40: 97178 | B40: ASSENTAMENTO DE TUBO DE AÇO CARBONO PARA REDE DE ÁGUA, DN 1200 MM (48) OU DN 1300 MM (52), JUNTA SOLDADA, INSTALADO EM LOCAL COM NÍVEL ALTO DE INTERFERÊNCIAS (NÃO INCLUI FORNECIMENTO). AF_11/2017 | C40: M | D40: 83.62 | E40: 97178
A41: 97179 | B41: ASSENTAMENTO DE TUBO DE AÇO CARBONO PARA REDE DE ÁGUA, DN 1400 MM (56'') OU DN 1500 MM (60), JUNTA SOLDADA, INSTALADO EM LOCAL COM NÍVEL ALTO DE INTERFERÊNCIAS (NÃO INCLUI FORNECIMENTO). AF_11/2017 | C41: M | D41: 96.21 | E41: 97179
A42: 97180 | B42: ASSENTAMENTO DE TUBO DE AÇO CARBONO PARA REDE DE ÁGUA, DN 1600 MM (64) OU DN 1700 MM (68), JUNTA SOLDADA, INSTALADO EM LOCAL COM NÍVEL ALTO DE INTERFERÊNCIAS (NÃO INCLUI FORNECIMENTO). AF_11/2017 | C42: M | D42: 108.78 | E42: 97180
A43: 97181 | B43: ASSENTAMENTO DE TUBO DE AÇO CARBONO PARA REDE DE ÁGUA, DN 1800 MM (72) OU DN 1900 MM (76), JUNTA SOLDADA, INSTALADO EM LOCAL COM NÍVEL ALTO DE INTERFERÊNCIAS (NÃO INCLUI FORNECIMENTO). AF_11/2017 | C43: M | D43: 126.13 | E43: 97181
A44: 97182 | B44: ASSENTAMENTO DE TUBO DE AÇO CARBONO PARA REDE DE ÁGUA, DN 2000 MM (80) OU DN 2100 MM (84), JUNTA SOLDADA, INSTALADO EM LOCAL COM NÍVEL ALTO DE INTERFERÊNCIAS (NÃO INCLUI FORNECIMENTO). AF_11/2017 | C44: M | D44: 139.22 | E44: 97182
A45: 97183 | B45: ASSENTAMENTO DE TUBO DE AÇO CARBONO PARA REDE DE ÁGUA, DN 600 MM (24), JUNTA SOLDADA, INSTALADO EM LOCAL COM NÍVEL BAIXO DE INTERFERÊNCIAS (NÃO INCLUI FORNECIMENTO). AF_11/2017 | C45: M | D45: 32.68 | E45: 97183
A46: 97184 | B46: ASSENTAMENTO DE TUBO DE AÇO CARBONO PARA REDE DE ÁGUA, DN 700 MM (28), JUNTA SOLDADA, INSTALADO EM LOCAL COM NÍVEL BAIXO DE INTERFERÊNCIAS (NÃO INCLUI FORNECIMENTO). AF_11/2017 | C46: M | D46: 37.94 | E46: 97184
A47: 97185 | B47: ASSENTAMENTO DE TUBO DE AÇO CARBONO PARA REDE DE ÁGUA, DN 800 MM (32), JUNTA SOLDADA, INSTALADO EM LOCAL COM NÍVEL BAIXO DE INTERFERÊNCIAS (NÃO INCLUI FORNECIMENTO). AF_11/2017 | C47: M | D47: 43.19 | E47: 97185
A48: 97186 | B48: ASSENTAMENTO DE TUBO DE AÇO CARBONO PARA REDE DE ÁGUA, DN 900 MM (36), JUNTA SOLDADA, INSTALADO EM LOCAL COM NÍVEL BAIXO DE INTERFERÊNCIAS (NÃO INCLUI FORNECIMENTO). AF_11/2017 | C48: M | D48: 48.46 | E48: 97186
A49: 97187 | B49: ASSENTAMENTO DE TUBO DE AÇO CARBONO PARA REDE DE ÁGUA, DN 1000 MM (40 ) OU DN 1100 MM (44 ), JUNTA SOLDADA, INSTALADO EM LOCAL COM NÍVEL BAIXO DE INTERFERÊNCIAS (NÃO INCLUI FORNECIMENTO). AF_11/2017 | C49: M | D49: 58.98 | E49: 97187
A50: 97188 | B50: ASSENTAMENTO DE TUBO DE AÇO CARBONO PARA REDE DE ÁGUA, DN 1200 MM (48) OU DN 1300 MM (52), JUNTA SOLDADA, INSTALADO EM LOCAL COM NÍVEL BAIXO DE INTERFERÊNCIAS (NÃO INCLUI FORNECIMENTO). AF_11/2017 | C50: M | D50: 69.5 | E50: 97188
A51: 97189 | B51: ASSENTAMENTO DE TUBO DE AÇO CARBONO PARA REDE DE ÁGUA, DN 1400 MM (56'') OU DN 1500 MM (60), JUNTA SOLDADA, INSTALADO EM LOCAL COM NÍVEL BAIXO DE INTERFERÊNCIAS (NÃO INCLUI FORNECIMENTO). AF_11/2017 | C51: M | D51: 80.02 | E51: 97189
A52: 97190 | B52: ASSENTAMENTO DE TUBO DE AÇO CARBONO PARA REDE DE ÁGUA, DN 1600 MM (64) OU DN 1700 MM (68), JUNTA SOLDADA, INSTALADO EM LOCAL COM NÍVEL BAIXO DE INTERFERÊNCIAS (NÃO INCLUI FORNECIMENTO). AF_11/2017 | C52: M | D52: 90.55 | E52: 97190
A53: 97191 | B53: ASSENTAMENTO DE TUBO DE AÇO CARBONO PARA REDE DE ÁGUA, DN 1800 MM (72) OU DN 1900 MM (76), JUNTA SOLDADA, INSTALADO EM LOCAL COM NÍVEL BAIXO DE INTERFERÊNCIAS (NÃO INCLUI FORNECIMENTO). AF_11/2017 | C53: M | D53: 104.61 | E53: 97191
A54: 97192 | B54: ASSENTAMENTO DE TUBO DE AÇO CARBONO PARA REDE DE ÁGUA, DN 2000 MM (80) OU DN 2100 MM (84), JUNTA SOLDADA, INSTALADO EM LOCAL COM NÍVEL BAIXO DE INTERFERÊNCIAS (NÃO INCLUI FORNECIMENTO). AF_11/2017 | C54: M | D54: 115.51 | E54: 97192
A55: 90694 | B55: TUBO DE PVC PARA REDE COLETORA DE ESGOTO DE PAREDE MACIÇA, DN 100 MM, JUNTA ELÁSTICA - FORNECIMENTO E ASSENTAMENTO. AF_01/2021 | C55: M | D55: 56.07 | E55: 90694
A56: 90695 | B56: TUBO DE PVC PARA REDE COLETORA DE ESGOTO DE PAREDE MACIÇA, DN 150 MM, JUNTA ELÁSTICA - FORNECIMENTO E ASSENTAMENTO. AF_01/2021 | C56: M | D56: 107.48 | E56: 90695
A57: 90696 | B57: TUBO DE PVC PARA REDE COLETORA DE ESGOTO DE PAREDE MACIÇA, DN 200 MM, JUNTA ELÁSTICA - FORNECIMENTO E ASSENTAMENTO. AF_01/2021 | C57: M | D57: 180.39 | E57: 90696
A58: 90697 | B58: TUBO DE PVC PARA REDE COLETORA DE ESGOTO DE PAREDE MACIÇA, DN 250 MM, JUNTA ELÁSTICA - FORNECIMENTO E ASSENTAMENTO. AF_01/2021 | C58: M | D58: 280.61 | E58: 90697
A59: 90698 | B59: TUBO DE PVC PARA REDE COLETORA DE ESGOTO DE PAREDE MACIÇA, DN 300 MM, JUNTA ELÁSTICA, FORNECIMENTO E ASSENTAMENTO. AF_01/2021 | C59: M | D59: 429.78 | E59: 90698
A60: 90699 | B60: TUBO DE PVC PARA REDE COLETORA DE ESGOTO DE PAREDE MACIÇA, DN 350 MM, JUNTA ELÁSTICA - FORNECIMENTO E ASSENTAMENTO. AF_01/2021 | C60: M | D60: 605.61 | E60: 90699
A61: 90700 | B61: TUBO DE PVC PARA REDE COLETORA DE ESGOTO DE PAREDE MACIÇA, DN 400 MM, JUNTA ELÁSTICA FORNECIMENTO E ASSENTAMENTO. AF_01/2021 | C61: M | D61: 707.36 | E61: 90700
A62: 90701 | B62: TUBO DE PVC CORRUGADO DE DUPLA PAREDE PARA REDE COLETORA DE ESGOTO, DN 150 MM, JUNTA ELÁSTICA - FORNECIMENTO E ASSENTAMENTO. AF_01/2021 | C62: M | D62: 83.57 | E62: 90701
A63: 90702 | B63: TUBO DE PVC CORRUGADO DE DUPLA PAREDE PARA REDE COLETORA DE ESGOTO, DN 200 MM, JUNTA ELÁSTICA - FORNECIMENTO E ASSENTAMENTO. AF_01/2021 | C63: M | D63: 139.32 | E63: 90702
A64: 90703 | B64: TUBO DE PVC CORRUGADO DE DUPLA PAREDE PARA REDE COLETORA DE ESGOTO, DN 250 MM, JUNTA ELÁSTICA - FORNECIMENTO E ASSENTAMENTO. AF_01/2021 | C64: M | D64: 218.61 | E64: 90703
A65: 90704 | B65: TUBO DE PVC CORRUGADO DE DUPLA PAREDE PARA REDE COLETORA DE ESGOTO, DN 300 MM, JUNTA ELÁSTICA - FORNECIMENTO E ASSENTAMENTO. AF_01/2021 | C65: M | D65: 324.78 | E65: 90704
A66: 90705 | B66: TUBO DE PVC CORRUGADO DE DUPLA PAREDE PARA REDE COLETORA DE ESGOTO, DN 350 MM, JUNTA ELÁSTICA - FORNECIMENTO E ASSENTAMENTO. AF_01/2021 | C66: M | D66: 426.69 | E66: 90705
A67: 90706 | B67: TUBO DE PVC CORRUGADO DE DUPLA PAREDE PARA REDE COLETORA DE ESGOTO, DN 400 MM, JUNTA ELÁSTICA - FORNECIMENTO E ASSENTAMENTO. AF_01/2021 | C67: M | D67: 565.85 | E67: 90706
A68: 90708 | B68: TUBO DE PEAD CORRUGADO DE DUPLA PAREDE PARA REDE COLETORA DE ESGOTO, DN 600 MM, JUNTA ELÁSTICA INTEGRADA - FORNECIMENTO E ASSENTAMENTO. AF_01/2021 | C68: M | D68: 881.22 | E68: =1*A68 -> 90708
A69: 90724 | B69: JUNTA ARGAMASSADA ENTRE TUBO DN 100 MM E O POÇO DE VISITA/ CAIXA DE CONCRETO OU ALVENARIA EM REDES DE ESGOTO. AF_01/2021 | C69: UN | D69: 21.76 | E69: 90724
A70: 90725 | B70: JUNTA ARGAMASSADA ENTRE TUBO DN 150 MM E O POÇO DE VISITA/ CAIXA DE CONCRETO OU ALVENARIA EM REDES DE ESGOTO. AF_01/2021 | C70: UN | D70: 26.79 | E70: 90725
A71: 90726 | B71: JUNTA ARGAMASSADA ENTRE TUBO DN 200 MM E O POÇO/ CAIXA DE CONCRETO OU ALVENARIA EM REDES DE ESGOTO. AF_01/2021 | C71: UN | D71: 31.88 | E71: 90726
A72: 90727 | B72: JUNTA ARGAMASSADA ENTRE TUBO DN 250 MM E O POÇO DE VISITA/ CAIXA DE CONCRETO OU ALVENARIA EM REDES DE ESGOTO. AF_01/2021 | C72: UN | D72: 36.9 | E72: 90727
A73: 90728 | B73: JUNTA ARGAMASSADA ENTRE TUBO DN 300 MM E O POÇO DE VISITA/ CAIXA DE CONCRETO OU ALVENARIA EM REDES DE ESGOTO. AF_01/2021 | C73: UN | D73: 41.94 | E73: 90728
A74: 90729 | B74: JUNTA ARGAMASSADA ENTRE TUBO DN 350 MM E O POÇO DE VISITA/ CAIXA DE CONCRETO OU ALVENARIA EM REDES DE ESGOTO. AF_01/2021 | C74: UN | D74: 46.97 | E74: 90729
A75: 90730 | B75: JUNTA ARGAMASSADA ENTRE TUBO DN 400 MM E O POÇO DE VISITA/ CAIXA DE CONCRETO OU ALVENARIA EM REDES DE ESGOTO. AF_01/2021 | C75: UN | D75: 52 | E75: 90730
A76: 90731 | B76: JUNTA ARGAMASSADA ENTRE TUBO DN 450 MM E O POÇO DE VISITA/ CAIXA DE CONCRETO OU ALVENARIA EM REDES DE ESGOTO. AF_01/2021 | C76: UN | D76: 57.03 | E76: 90731
A77: 90732 | B77: JUNTA ARGAMASSADA ENTRE TUBO DN 600 MM E O POÇO DE VISITA/ CAIXA DE CONCRETO OU ALVENARIA EM REDES DE ESGOTO. AF_01/2021 | C77: UN | D77: 72.11 | E77: 90732
A78: 90733 | B78: ASSENTAMENTO DE TUBO DE PVC PARA REDE COLETORA DE ESGOTO DE PAREDE MACIÇA, DN 100 MM, JUNTA ELÁSTICA (NÃO INCLUI FORNECIMENTO). AF_01/2021 | C78: M | D78: 3.05 | E78: 90733
A79: 90734 | B79: ASSENTAMENTO DE TUBO DE PVC PARA REDE COLETORA DE ESGOTO DE PAREDE MACIÇA, DN 150 MM, JUNTA ELÁSTICA, (NÃO INCLUI FORNECIMENTO). AF_01/2021 | C79: M | D79: 3.61 | E79: 90734
A80: 90735 | B80: ASSENTAMENTO DE TUBO DE PVC PARA REDE COLETORA DE ESGOTO DE PAREDE MACIÇA, DN 200 MM, JUNTA ELÁSTICA (NÃO INCLUI FORNECIMENTO). AF_01/2021 | C80: M | D80: 4.17 | E80: 90735
A81: 90736 | B81: ASSENTAMENTO DE TUBO DE PVC PARA REDE COLETORA DE ESGOTO DE PAREDE MACIÇA, DN 250 MM, JUNTA ELÁSTICA (NÃO INCLUI FORNECIMENTO). AF_01/2021 | C81: M | D81: 4.73 | E81: 90736
A82: 90737 | B82: ASSENTAMENTO DE TUBO DE PVC PARA REDE COLETORA DE ESGOTO DE PAREDE MACIÇA, DN 300 MM, JUNTA ELÁSTICA (NÃO INCLUI FORNECIMENTO). AF_01/2021 | C82: M | D82: 5.3 | E82: 90737
A83: 90738 | B83: ASSENTAMENTO DE TUBO DE PVC PARA REDE COLETORA DE ESGOTO DE PAREDE MACIÇA, DN 350 MM, JUNTA ELÁSTICA (NÃO INCLUI FORNECIMENTO). AF_01/2021 | C83: M | D83: 5.86 | E83: 90738
A84: 90739 | B84: ASSENTAMENTO DE TUBO DE PVC PARA REDE COLETORA DE ESGOTO DE PAREDE MACIÇA, DN 400 MM, JUNTA ELÁSTICA (NÃO INCLUI FORNECIMENTO). AF_01/2021 | C84: M | D84: 8.89 | E84: 90739
A85: 90740 | B85: ASSENTAMENTO DE TUBO DE PVC CORRUGADO DE DUPLA PAREDE PARA REDE COLETORA DE ESGOTO, DN 150 MM, JUNTA ELÁSTICA (NÃO INCLUI FORNECIMENTO). AF_01/2021 | C85: M | D85: 4.02 | E85: 90740
A86: 90741 | B86: ASSENTAMENTO DE TUBO DE PVC CORRUGADO DE DUPLA PAREDE PARA REDE COLETORA DE ESGOTO, DN 200 MM, JUNTA ELÁSTICA (NÃO INCLUI FORNECIMENTO). AF_01/2021 | C86: M | D86: 4.59 | E86: 90741
A87: 90742 | B87: ASSENTAMENTO DE TUBO DE PVC CORRUGADO DE DUPLA PAREDE PARA REDE COLETORA DE ESGOTO, DN 250 MM, JUNTA ELÁSTICA (NÃO INCLUI FORNECIMENTO). AF_01/2021 | C87: M | D87: 5.14 | E87: 90742
A88: 90743 | B88: ASSENTAMENTO DE TUBO DE PVC CORRUGADO DE DUPLA PAREDE PARA REDE COLETORA DE ESGOTO, DN 300 MM, JUNTA ELÁSTICA (NÃO INCLUI FORNECIMENTO). AF_01/2021 | C88: M | D88: 5.71 | E88: 90743
A89: 90744 | B89: ASSENTAMENTO DE TUBO DE PVC CORRUGADO DE DUPLA PAREDE PARA REDE COLETORA DE ESGOTO, DN 350 MM, JUNTA ELÁSTICA (NÃO INCLUI FORNECIMENTO). AF_01/2021 | C89: M | D89: 6.27 | E89: 90744
A90: 90745 | B90: ASSENTAMENTO DE TUBO DE PVC CORRUGADO DE DUPLA PAREDE PARA REDE COLETORA DE ESGOTO, DN 400 MM, JUNTA ELÁSTICA (NÃO INCLUI FORNECIMENTO). AF_01/2021 | C90: M | D90: 9.92 | E90: 90745
A91: 90746 | B91: ASSENTAMENTO DE TUBO DE PEAD CORRUGADO DE DUPLA PAREDE PARA REDE COLETORA DE ESGOTO, DN 450 MM, JUNTA ELÁSTICA INTEGRADA (NÃO INCLUI FORNECIMENTO). AF_01/2021 | C91: M | D91: 3.29 | E91: 90746
A92: 90747 | B92: ASSENTAMENTO DE TUBO DE PEAD CORRUGADO DE DUPLA PAREDE PARA REDE COLETORA DE ESGOTO, DN 600 MM, JUNTA ELÁSTICA INTEGRADA (NÃO INCLUI FORNECIMENTO). AF_01/2021 | C92: M | D92: 16.66 | E92: 90747
A93: 94869 | B93: TUBO DE PEAD CORRUGADO DE DUPLA PAREDE PARA REDE COLETORA DE ESGOTO, DN 250 MM, JUNTA ELÁSTICA INTEGRADA - FORNECIMENTO E ASSENTAMENTO. AF_01/2021 | C93: M | D93: 155.43 | E93: 94869
A94: 94870 | B94: ASSENTAMENTO DE TUBO DE PEAD CORRUGADO DE DUPLA PAREDE PARA REDE COLETORA DE ESGOTO, DN 250 MM, JUNTA ELÁSTICA INTEGRADA (NÃO INCLUI FORNECIMENTO). AF_01/2021 | C94: M | D94: 1.66 | E94: 94870
A95: 94871 | B95: TUBO DE PEAD CORRUGADO DE DUPLA PAREDE PARA REDE COLETORA DE ESGOTO, DN 300 MM, JUNTA ELÁSTICA INTEGRADA - FORNECIMENTO E ASSENTAMENTO. AF_01/2021 | C95: M | D95: 243.26 | E95: 94871
A96: 94872 | B96: ASSENTAMENTO DE TUBO DE PEAD CORRUGADO DE DUPLA PAREDE PARA REDE COLETORA DE ESGOTO, DN 300 MM, JUNTA ELÁSTICA INTEGRADA (NÃO INCLUI FORNECIMENTO). AF_01/2021 | C96: M | D96: 2.35 | E96: 94872
A97: 94875 | B97: TUBO DE PEAD CORRUGADO DE DUPLA PAREDE PARA REDE COLETORA DE ESGOTO, DN 800 MM, JUNTA ELÁSTICA INTEGRADA - FORNECIMENTO E ASSENTAMENTO. AF_01/2021 | C97: M | D97: 1431.27 | E97: 94875
A98: 94876 | B98: ASSENTAMENTO DE TUBO DE PEAD CORRUGADO DE DUPLA PAREDE PARA REDE COLETORA DE ESGOTO, DN 800 MM, JUNTA ELÁSTICA INTEGRADA (NÃO INCLUI FORNECIMENTO). AF_01/2021 | C98: M | D98: 27.6 | E98: 94876
A99: 94878 | B99: ASSENTAMENTO DE TUBO DE PEAD CORRUGADO DE DUPLA PAREDE PARA REDE COLETORA DE ESGOTO, DN 900 MM, JUNTA ELÁSTICA INTEGRADA (NÃO INCLUI FORNECIMENTO). AF_01/2021 | C99: M | D99: 31.98 | E99: 94878
A100: 94879 | B100: TUBO DE PEAD CORRUGADO DE DUPLA PAREDE PARA REDE COLETORA DE ESGOTO, DN 1000 MM, JUNTA ELÁSTICA INTEGRADA - FORNECIMENTO E ASSENTAMENTO. AF_01/2021 | C100: M | D100: 2203.32 | E100: 94879
A101: 94880 | B101: ASSENTAMENTO DE TUBO DE PEAD CORRUGADO DE DUPLA PAREDE PARA REDE COLETORA DE ESGOTO, DN 1000 MM, JUNTA ELÁSTICA INTEGRADA (NÃO INCLUI FORNECIMENTO). AF_01/2021 | C101: M | D101: 41.01 | E101: 94880
A102: 94881 | B102: TUBO DE PEAD CORRUGADO DE DUPLA PAREDE PARA REDE COLETORA DE ESGOTO, DN 1200 MM, JUNTA ELÁSTICA INTEGRADA - FORNECIMENTO E ASSENTAMENTO. AF_01/2021 | C102: M | D102: 3036.2 | E102: 94881
A103: 94882 | B103: ASSENTAMENTO DE TUBO DE PEAD CORRUGADO DE DUPLA PAREDE PARA REDE COLETORA DE ESGOTO, DN 1200 MM, JUNTA ELÁSTICA INTEGRADA (NÃO INCLUI FORNECIMENTO). AF_01/2021 | C103: M | D103: 47.75 | E103: 94882
A104: 94884 | B104: ASSENTAMENTO DE TUBO DE PEAD CORRUGADO DE DUPLA PAREDE PARA REDE COLETORA DE ESGOTO, DN 1500 MM, JUNTA ELÁSTICA INTEGRADA (NÃO INCLUI FORNECIMENTO). AF_01/2021 | C104: M | D104: 61.43 | E104: 94884
A105: 97121 | B105: ASSENTAMENTO DE TUBO DE PVC PBA PARA REDE DE ÁGUA, DN 50 MM, JUNTA ELÁSTICA INTEGRADA, INSTALADO EM LOCAL COM NÍVEL ALTO DE INTERFERÊNCIAS (NÃO INCLUI FORNECIMENTO). AF_11/2017 | C105: M | D105: 1.8 | E105: 97121
A106: 97122 | B106: ASSENTAMENTO DE TUBO DE PVC PBA PARA REDE DE ÁGUA, DN 75 MM, JUNTA ELÁSTICA INTEGRADA, INSTALADO EM LOCAL COM NÍVEL ALTO DE INTERFERÊNCIAS (NÃO INCLUI FORNECIMENTO). AF_11/2017 | C106: M | D106: 2.52 | E106: 97122
A107: 97123 | B107: ASSENTAMENTO DE TUBO DE PVC PBA PARA REDE DE ÁGUA, DN 100 MM, JUNTA ELÁSTICA INTEGRADA, INSTALADO EM LOCAL COM NÍVEL ALTO DE INTERFERÊNCIAS (NÃO INCLUI FORNECIMENTO). AF_11/2017 | C107: M | D107: 3.19 | E107: 97123
A108: 97124 | B108: ASSENTAMENTO DE TUBO DE PVC PBA PARA REDE DE ÁGUA, DN 50 MM, JUNTA ELÁSTICA INTEGRADA, INSTALADO EM LOCAL COM NÍVEL BAIXO DE INTERFERÊNCIAS (NÃO INCLUI FORNECIMENTO). AF_11/2017 | C108: M | D108: 0.79 | E108: 97124
A109: 97125 | B109: ASSENTAMENTO DE TUBO DE PVC PBA PARA REDE DE ÁGUA, DN 75 MM, JUNTA ELÁSTICA INTEGRADA, INSTALADO EM LOCAL COM NÍVEL BAIXO DE INTERFERÊNCIAS (NÃO INCLUI FORNECIMENTO). AF_11/2017 | C109: M | D109: 1.14 | E109: 97125
A110: 97126 | B110: ASSENTAMENTO DE TUBO DE PVC PBA PARA REDE DE ÁGUA, DN 100 MM, JUNTA ELÁSTICA INTEGRADA, INSTALADO EM LOCAL COM NÍVEL BAIXO DE INTERFERÊNCIAS (NÃO INCLUI FORNECIMENTO). AF_11/2017 | C110: M | D110: 1.44 | E110: 97126
A111: 102264 | B111: TUBO DE PVC BRANCO PARA REDE COLETORA DE ESGOTO CONDOMINIAL DE PAREDE MACIÇA, DN 100 MM, JUNTA ELÁSTICA - FORNECIMENTO E ASSENTAMENTO. AF_01/2021 | C111: M | D111: 23.44 | E111: 102264
A112: 102265 | B112: JUNTA ARGAMASSADA ENTRE TUBO DN 800 MM E O POÇO DE VISITA/ CAIXA DE CONCRETO OU ALVENARIA EM REDES DE ESGOTO. AF_01/2021 | C112: UN | D112: 92.23 | E112: 102265
A113: 102266 | B113: JUNTA ARGAMASSADA ENTRE TUBO DN 900 MM E O POÇO DE VISITA/ CAIXA DE CONCRETO OU ALVENARIA EM REDES DE ESGOTO. AF_01/2021 | C113: UN | D113: 102.29 | E113: 102266
A114: 102267 | B114: JUNTA ARGAMASSADA ENTRE TUBO DN 1000 MM E O POÇO DE VISITA/ CAIXA DE CONCRETO OU ALVENARIA EM REDES DE ESGOTO. AF_01/2021 | C114: UN | D114: 117.44 | E114: 102267
A115: 102268 | B115: JUNTA ARGAMASSADA ENTRE TUBO DN 1200 MM E O POÇO DE VISITA/ CAIXA DE CONCRETO OU ALVENARIA EM REDES DE ESGOTO. AF_01/2021 | C115: UN | D115: 132.53 | E115: 102268
A116: 102269 | B116: JUNTA ARGAMASSADA ENTRE TUBO DN 1500 MM E O POÇO DE VISITA/ CAIXA DE CONCRETO OU ALVENARIA EM REDES DE ESGOTO. AF_01/2021 | C116: UN | D116: 162.71 | E116: 102269
A117: 92833 | B117: TUBO DE CONCRETO PARA REDES COLETORAS DE ESGOTO SANITÁRIO, DIÂMETRO DE 300 MM, JUNTA ELÁSTICA, INSTALADO EM LOCAL COM BAIXO NÍVEL DE INTERFERÊNCIAS - FORNECIMENTO E ASSENTAMENTO. AF_12/2015 | C117: M | D117: 218.23 | E117: 92833
A118: 92834 | B118: ASSENTAMENTO DE TUBO DE CONCRETO PARA REDES COLETORAS DE ESGOTO SANITÁRIO, DIÂMETRO DE 300 MM, JUNTA ELÁSTICA, INSTALADO EM LOCAL COM BAIXO NÍVEL DE INTERFERÊNCIAS (NÃO INCLUI FORNECIMENTO). AF_12/2015 | C118: M | D118: 8.71 | E118: 92834
A119: 92835 | B119: TUBO DE CONCRETO PARA REDES COLETORAS DE ESGOTO SANITÁRIO, DIÂMETRO DE 400 MM, JUNTA ELÁSTICA, INSTALADO EM LOCAL COM BAIXO NÍVEL DE INTERFERÊNCIAS - FORNECIMENTO E ASSENTAMENTO. AF_12/2015 | C119: M | D119: 227.91 | E119: 92835
A120: 92836 | B120: ASSENTAMENTO DE TUBO DE CONCRETO PARA REDES COLETORAS DE ESGOTO SANITÁRIO, DIÂMETRO DE 400 MM, JUNTA ELÁSTICA, INSTALADO EM LOCAL COM BAIXO NÍVEL DE INTERFERÊNCIAS (NÃO INCLUI FORNECIMENTO). AF_12/2015 | C120: M | D120: 11.14 | E120: 92836
A121: 92837 | B121: TUBO DE CONCRETO PARA REDES COLETORAS DE ESGOTO SANITÁRIO, DIÂMETRO DE 500 MM, JUNTA ELÁSTICA, INSTALADO EM LOCAL COM BAIXO NÍVEL DE INTERFERÊNCIAS - FORNECIMENTO E ASSENTAMENTO. AF_12/2015 | C121: M | D121: 405.58 | E121: 92837
A122: 92838 | B122: ASSENTAMENTO DE TUBO DE CONCRETO PARA REDES COLETORAS DE ESGOTO SANITÁRIO, DIÂMETRO DE 500 MM, JUNTA ELÁSTICA, INSTALADO EM LOCAL COM BAIXO NÍVEL DE INTERFERÊNCIAS (NÃO INCLUI FORNECIMENTO). AF_12/2015 | C122: M | D122: 13.34 | E122: 92838
A123: 92839 | B123: TUBO DE CONCRETO PARA REDES COLETORAS DE ESGOTO SANITÁRIO, DIÂMETRO DE 600 MM, JUNTA ELÁSTICA, INSTALADO EM LOCAL COM BAIXO NÍVEL DE INTERFERÊNCIAS - FORNECIMENTO E ASSENTAMENTO. AF_12/2015 | C123: M | D123: 496.48 | E123: 92839
A124: 92840 | B124: ASSENTAMENTO DE TUBO DE CONCRETO PARA REDES COLETORAS DE ESGOTO SANITÁRIO, DIÂMETRO DE 600 MM, JUNTA ELÁSTICA, INSTALADO EM LOCAL COM BAIXO NÍVEL DE INTERFERÊNCIAS (NÃO INCLUI FORNECIMENTO). AF_12/2015 | C124: M | D124: 15.83 | E124: 92840
A125: 92841 | B125: TUBO DE CONCRETO PARA REDES COLETORAS DE ESGOTO SANITÁRIO, DIÂMETRO DE 700 MM, JUNTA ELÁSTICA, INSTALADO EM LOCAL COM BAIXO NÍVEL DE INTERFERÊNCIAS - FORNECIMENTO E ASSENTAMENTO. AF_12/2015 | C125: M | D125: 646.96 | E125: 92841
A126: 92842 | B126: ASSENTAMENTO DE TUBO DE CONCRETO PARA REDES COLETORAS DE ESGOTO SANITÁRIO, DIÂMETRO DE 700 MM, JUNTA ELÁSTICA, INSTALADO EM LOCAL COM BAIXO NÍVEL DE INTERFERÊNCIAS (NÃO INCLUI FORNECIMENTO). AF_12/2015 | C126: M | D126: 18.06 | E126: 92842
A127: 92843 | B127: TUBO DE CONCRETO PARA REDES COLETORAS DE ESGOTO SANITÁRIO, DIÂMETRO DE 800 MM, JUNTA ELÁSTICA, INSTALADO EM LOCAL COM BAIXO NÍVEL DE INTERFERÊNCIAS - FORNECIMENTO E ASSENTAMENTO. AF_12/2015 | C127: M | D127: 668.76 | E127: 92843
A128: 92844 | B128: ASSENTAMENTO DE TUBO DE CONCRETO PARA REDES COLETORAS DE ESGOTO SANITÁRIO, DIÂMETRO DE 800 MM, JUNTA ELÁSTICA, INSTALADO EM LOCAL COM BAIXO NÍVEL DE INTERFERÊNCIAS (NÃO INCLUI FORNECIMENTO). AF_12/2015 | C128: M | D128: 20.54 | E128: 92844
A129: 92845 | B129: TUBO DE CONCRETO PARA REDES COLETORAS DE ESGOTO SANITÁRIO, DIÂMETRO DE 900 MM, JUNTA ELÁSTICA, INSTALADO EM LOCAL COM BAIXO NÍVEL DE INTERFERÊNCIAS - FORNECIMENTO E ASSENTAMENTO. AF_12/2015 | C129: M | D129: 994.29 | E129: 92845
A130: 92846 | B130: ASSENTAMENTO DE TUBO DE CONCRETO PARA REDES COLETORAS DE ESGOTO SANITÁRIO, DIÂMETRO DE 900 MM, JUNTA ELÁSTICA, INSTALADO EM LOCAL COM BAIXO NÍVEL DE INTERFERÊNCIAS (NÃO INCLUI FORNECIMENTO). AF_12/2015 | C130: M | D130: 22.76 | E130: 92846
A131: 92847 | B131: TUBO DE CONCRETO PARA REDES COLETORAS DE ESGOTO SANITÁRIO, DIÂMETRO DE 1000 MM, JUNTA ELÁSTICA, INSTALADO EM LOCAL COM BAIXO NÍVEL DE INTERFERÊNCIAS - FORNECIMENTO E ASSENTAMENTO. AF_12/2015 | C131: M | D131: 1019.47 | E131: 92847
A132: 92848 | B132: ASSENTAMENTO DE TUBO DE CONCRETO PARA REDES COLETORAS DE ESGOTO SANITÁRIO, DIÂMETRO DE 1000 MM, JUNTA ELÁSTICA, INSTALADO EM LOCAL COM BAIXO NÍVEL DE INTERFERÊNCIAS (NÃO INCLUI FORNECIMENTO). AF_12/2015 | C132: M | D132: 25.26 | E132: =1*A132 -> 92848
A133: 92849 | B133: TUBO DE CONCRETO PARA REDES COLETORAS DE ESGOTO SANITÁRIO, DIÂMETRO DE 300 MM, JUNTA ELÁSTICA, INSTALADO EM LOCAL COM ALTO NÍVEL DE INTERFERÊNCIAS - FORNECIMENTO E ASSENTAMENTO. AF_12/2015 | C133: M | D133: 226.01 | E133: 92849
A134: 92850 | B134: ASSENTAMENTO DE TUBO DE CONCRETO PARA REDES COLETORAS DE ESGOTO SANITÁRIO, DIÂMETRO DE 300 MM, JUNTA ELÁSTICA, INSTALADO EM LOCAL COM ALTO NÍVEL DE INTERFERÊNCIAS (NÃO INCLUI FORNECIMENTO). AF_12/2015 | C134: M | D134: 16.49 | E134: 92850
A135: 92851 | B135: TUBO DE CONCRETO PARA REDES COLETORAS DE ESGOTO SANITÁRIO, DIÂMETRO DE 400 MM, JUNTA ELÁSTICA, INSTALADO EM LOCAL COM ALTO NÍVEL DE INTERFERÊNCIAS - FORNECIMENTO E ASSENTAMENTO. AF_12/2015 | C135: M | D135: 237.58 | E135: 92851
A136: 92852 | B136: ASSENTAMENTO DE TUBO DE CONCRETO PARA REDES COLETORAS DE ESGOTO SANITÁRIO, DIÂMETRO DE 400 MM, JUNTA ELÁSTICA, INSTALADO EM LOCAL COM ALTO NÍVEL DE INTERFERÊNCIAS (NÃO INCLUI FORNECIMENTO). AF_12/2015 | C136: M | D136: 20.81 | E136: 92852
A137: 92853 | B137: TUBO DE CONCRETO PARA REDES COLETORAS DE ESGOTO SANITÁRIO, DIÂMETRO DE 500 MM, JUNTA ELÁSTICA, INSTALADO EM LOCAL COM ALTO NÍVEL DE INTERFERÊNCIAS - FORNECIMENTO E ASSENTAMENTO. AF_12/2015 | C137: M | D137: 417.58 | E137: 92853
A138: 92854 | B138: ASSENTAMENTO DE TUBO DE CONCRETO PARA REDES COLETORAS DE ESGOTO SANITÁRIO, DIÂMETRO DE 500 MM, JUNTA ELÁSTICA, INSTALADO EM LOCAL COM ALTO NÍVEL DE INTERFERÊNCIAS (NÃO INCLUI FORNECIMENTO). AF_12/2015 | C138: M | D138: 25.34 | E138: 92854
A139: 92855 | B139: TUBO DE CONCRETO PARA REDES COLETORAS DE ESGOTO SANITÁRIO, DIÂMETRO DE 600 MM, JUNTA ELÁSTICA, INSTALADO EM LOCAL COM ALTO NÍVEL DE INTERFERÊNCIAS - FORNECIMENTO E ASSENTAMENTO. AF_12/2015 | C139: M | D139: 510.52 | E139: 92855
A140: 92856 | B140: ASSENTAMENTO DE TUBO DE CONCRETO PARA REDES COLETORAS DE ESGOTO SANITÁRIO, DIÂMETRO DE 600 MM, JUNTA ELÁSTICA, INSTALADO EM LOCAL COM ALTO NÍVEL DE INTERFERÊNCIAS (NÃO INCLUI FORNECIMENTO). AF_12/2015 | C140: M | D140: 29.87 | E140: 92856
A141: 92857 | B141: TUBO DE CONCRETO PARA REDES COLETORAS DE ESGOTO SANITÁRIO, DIÂMETRO DE 700 MM, JUNTA ELÁSTICA, INSTALADO EM LOCAL COM ALTO NÍVEL DE INTERFERÊNCIAS - FORNECIMENTO E ASSENTAMENTO. AF_12/2015 | C141: M | D141: 663.07 | E141: 92857
A142: 92858 | B142: ASSENTAMENTO DE TUBO DE CONCRETO PARA REDES COLETORAS DE ESGOTO SANITÁRIO, DIÂMETRO DE 700 MM, JUNTA ELÁSTICA, INSTALADO EM LOCAL COM ALTO NÍVEL DE INTERFERÊNCIAS (NÃO INCLUI FORNECIMENTO). AF_12/2015 | C142: M | D142: 34.17 | E142: 92858
A143: 92859 | B143: TUBO DE CONCRETO PARA REDES COLETORAS DE ESGOTO SANITÁRIO, DIÂMETRO DE 800 MM, JUNTA ELÁSTICA, INSTALADO EM LOCAL COM ALTO NÍVEL DE INTERFERÊNCIAS - FORNECIMENTO E ASSENTAMENTO. AF_12/2015 | C143: M | D143: 687.03 | E143: 92859
A144: 92860 | B144: ASSENTAMENTO DE TUBO DE CONCRETO PARA REDES COLETORAS DE ESGOTO SANITÁRIO, DIÂMETRO DE 800 MM, JUNTA ELÁSTICA, INSTALADO EM LOCAL COM ALTO NÍVEL DE INTERFERÊNCIAS (NÃO INCLUI FORNECIMENTO). AF_12/2015 | C144: M | D144: 38.81 | E144: 92860
A145: 92861 | B145: TUBO DE CONCRETO PARA REDES COLETORAS DE ESGOTO SANITÁRIO, DIÂMETRO DE 900 MM, JUNTA ELÁSTICA, INSTALADO EM LOCAL COM ALTO NÍVEL DE INTERFERÊNCIAS - FORNECIMENTO E ASSENTAMENTO. AF_12/2015 | C145: M | D145: 1014.85 | E145: 92861
A146: 92862 | B146: ASSENTAMENTO DE TUBO DE CONCRETO PARA REDES COLETORAS DE ESGOTO SANITÁRIO, DIÂMETRO DE 900 MM, JUNTA ELÁSTICA, INSTALADO EM LOCAL COM ALTO NÍVEL DE INTERFERÊNCIAS (NÃO INCLUI FORNECIMENTO). AF_12/2015 | C146: M | D146: 43.32 | E146: 92862
A147: 92863 | B147: TUBO DE CONCRETO PARA REDES COLETORAS DE ESGOTO SANITÁRIO, DIÂMETRO DE 1000 MM, JUNTA ELÁSTICA, INSTALADO EM LOCAL COM ALTO NÍVEL DE INTERFERÊNCIAS - FORNECIMENTO E ASSENTAMENTO. AF_12/2015 | C147: M | D147: 1042.08 | E147: 92863
A148: 92864 | B148: ASSENTAMENTO DE TUBO DE CONCRETO PARA REDES COLETORAS DE ESGOTO SANITÁRIO, DIÂMETRO DE 1000 MM, JUNTA ELÁSTICA, INSTALADO EM LOCAL COM ALTO NÍVEL DE INTERFERÊNCIAS (NÃO INCLUI FORNECIMENTO). AF_12/2015 | C148: M | D148: 47.87 | E148: 92864
A149: 92210 | B149: TUBO DE CONCRETO PARA REDES COLETORAS DE ÁGUAS PLUVIAIS, DIÂMETRO DE 400 MM, JUNTA RÍGIDA, INSTALADO EM LOCAL COM BAIXO NÍVEL DE INTERFERÊNCIAS - FORNECIMENTO E ASSENTAMENTO. AF_12/2015 | C149: M | D149: 175.48 | E149: 92210
A150: 92211 | B150: TUBO DE CONCRETO PARA REDES COLETORAS DE ÁGUAS PLUVIAIS, DIÂMETRO DE 500 MM, JUNTA RÍGIDA, INSTALADO EM LOCAL COM BAIXO NÍVEL DE INTERFERÊNCIAS - FORNECIMENTO E ASSENTAMENTO. AF_12/2015 | C150: M | D150: 210.82 | E150: 92211
A151: 92212 | B151: TUBO DE CONCRETO PARA REDES COLETORAS DE ÁGUAS PLUVIAIS, DIÂMETRO DE 600 MM, JUNTA RÍGIDA, INSTALADO EM LOCAL COM BAIXO NÍVEL DE INTERFERÊNCIAS - FORNECIMENTO E ASSENTAMENTO. AF_12/2015 | C151: M | D151: 315.15 | E151: 92212
A152: 92213 | B152: TUBO DE CONCRETO PARA REDES COLETORAS DE ÁGUAS PLUVIAIS, DIÂMETRO DE 700 MM, JUNTA RÍGIDA, INSTALADO EM LOCAL COM BAIXO NÍVEL DE INTERFERÊNCIAS - FORNECIMENTO E ASSENTAMENTO. AF_12/2015 | C152: M | D152: 414.56 | E152: 92213
A153: 92214 | B153: TUBO DE CONCRETO PARA REDES COLETORAS DE ÁGUAS PLUVIAIS, DIÂMETRO DE 800 MM, JUNTA RÍGIDA, INSTALADO EM LOCAL COM BAIXO NÍVEL DE INTERFERÊNCIAS - FORNECIMENTO E ASSENTAMENTO. AF_12/2015 | C153: M | D153: 501.04 | E153: 92214
A154: 92215 | B154: TUBO DE CONCRETO PARA REDES COLETORAS DE ÁGUAS PLUVIAIS, DIÂMETRO DE 900 MM, JUNTA RÍGIDA, INSTALADO EM LOCAL COM BAIXO NÍVEL DE INTERFERÊNCIAS - FORNECIMENTO E ASSENTAMENTO. AF_12/2015 | C154: M | D154: 575.32 | E154: 92215
A155: 92216 | B155: TUBO DE CONCRETO PARA REDES COLETORAS DE ÁGUAS PLUVIAIS, DIÂMETRO DE 1000 MM, JUNTA RÍGIDA, INSTALADO EM LOCAL COM BAIXO NÍVEL DE INTERFERÊNCIAS - FORNECIMENTO E ASSENTAMENTO. AF_12/2015 | C155: M | D155: 600.96 | E155: 92216
A156: 92219 | B156: TUBO DE CONCRETO PARA REDES COLETORAS DE ÁGUAS PLUVIAIS, DIÂMETRO DE 400 MM, JUNTA RÍGIDA, INSTALADO EM LOCAL COM ALTO NÍVEL DE INTERFERÊNCIAS - FORNECIMENTO E ASSENTAMENTO. AF_12/2015 | C156: M | D156: 185.15 | E156: 92219
A157: 92220 | B157: TUBO DE CONCRETO PARA REDES COLETORAS DE ÁGUAS PLUVIAIS, DIÂMETRO DE 500 MM, JUNTA RÍGIDA, INSTALADO EM LOCAL COM ALTO NÍVEL DE INTERFERÊNCIAS - FORNECIMENTO E ASSENTAMENTO. AF_12/2015 | C157: M | D157: 222.81 | E157: 92220
A158: 92221 | B158: TUBO DE CONCRETO PARA REDES COLETORAS DE ÁGUAS PLUVIAIS, DIÂMETRO DE 600 MM, JUNTA RÍGIDA, INSTALADO EM LOCAL COM ALTO NÍVEL DE INTERFERÊNCIAS - FORNECIMENTO E ASSENTAMENTO. AF_12/2015 | C158: M | D158: 329.19 | E158: 92221
A159: 92222 | B159: TUBO DE CONCRETO PARA REDES COLETORAS DE ÁGUAS PLUVIAIS, DIÂMETRO DE 700 MM, JUNTA RÍGIDA, INSTALADO EM LOCAL COM ALTO NÍVEL DE INTERFERÊNCIAS - FORNECIMENTO E ASSENTAMENTO. AF_12/2015 | C159: M | D159: 430.9 | E159: 92222
A160: 92223 | B160: TUBO DE CONCRETO PARA REDES COLETORAS DE ÁGUAS PLUVIAIS, DIÂMETRO DE 800 MM, JUNTA RÍGIDA, INSTALADO EM LOCAL COM ALTO NÍVEL DE INTERFERÊNCIAS - FORNECIMENTO E ASSENTAMENTO. AF_12/2015 | C160: M | D160: 519.29 | E160: 92223
A161: 92224 | B161: TUBO DE CONCRETO PARA REDES COLETORAS DE ÁGUAS PLUVIAIS, DIÂMETRO DE 900 MM, JUNTA RÍGIDA, INSTALADO EM LOCAL COM ALTO NÍVEL DE INTERFERÊNCIAS - FORNECIMENTO E ASSENTAMENTO. AF_12/2015 | C161: M | D161: 595.59 | E161: 92224
A162: 92226 | B162: TUBO DE CONCRETO PARA REDES COLETORAS DE ÁGUAS PLUVIAIS, DIÂMETRO DE 1000 MM, JUNTA RÍGIDA, INSTALADO EM LOCAL COM ALTO NÍVEL DE INTERFERÊNCIAS - FORNECIMENTO E ASSENTAMENTO. AF_12/2015 | C162: M | D162: 623.67 | E162: 92226
A163: 92808 | B163: ASSENTAMENTO DE TUBO DE CONCRETO PARA REDES COLETORAS DE ÁGUAS PLUVIAIS, DIÂMETRO DE 300 MM, JUNTA RÍGIDA, INSTALADO EM LOCAL COM BAIXO NÍVEL DE INTERFERÊNCIAS (NÃO INCLUI FORNECIMENTO). AF_12/2015 | C163: M | D163: 39.28 | E163: 92808
A164: 92809 | B164: ASSENTAMENTO DE TUBO DE CONCRETO PARA REDES COLETORAS DE ÁGUAS PLUVIAIS, DIÂMETRO DE 400 MM, JUNTA RÍGIDA, INSTALADO EM LOCAL COM BAIXO NÍVEL DE INTERFERÊNCIAS (NÃO INCLUI FORNECIMENTO). AF_12/2015 | C164: M | D164: 50.4 | E164: 92809
A165: 92810 | B165: ASSENTAMENTO DE TUBO DE CONCRETO PARA REDES COLETORAS DE ÁGUAS PLUVIAIS, DIÂMETRO DE 500 MM, JUNTA RÍGIDA, INSTALADO EM LOCAL COM BAIXO NÍVEL DE INTERFERÊNCIAS (NÃO INCLUI FORNECIMENTO). AF_12/2015 | C165: M | D165: 61.33 | E165: 92810
A166: 92811 | B166: ASSENTAMENTO DE TUBO DE CONCRETO PARA REDES COLETORAS DE ÁGUAS PLUVIAIS, DIÂMETRO DE 600 MM, JUNTA RÍGIDA, INSTALADO EM LOCAL COM BAIXO NÍVEL DE INTERFERÊNCIAS (NÃO INCLUI FORNECIMENTO). AF_12/2015 | C166: M | D166: 73.1 | E166: 92811
A167: 92812 | B167: ASSENTAMENTO DE TUBO DE CONCRETO PARA REDES COLETORAS DE ÁGUAS PLUVIAIS, DIÂMETRO DE 700 MM, JUNTA RÍGIDA, INSTALADO EM LOCAL COM BAIXO NÍVEL DE INTERFERÊNCIAS (NÃO INCLUI FORNECIMENTO). AF_12/2015 | C167: M | D167: 84.65 | E167: 92812
A168: 92813 | B168: ASSENTAMENTO DE TUBO DE CONCRETO PARA REDES COLETORAS DE ÁGUAS PLUVIAIS, DIÂMETRO DE 800 MM, JUNTA RÍGIDA, INSTALADO EM LOCAL COM BAIXO NÍVEL DE INTERFERÊNCIAS (NÃO INCLUI FORNECIMENTO). AF_12/2015 | C168: M | D168: 98.31 | E168: 92813
A169: 92814 | B169: ASSENTAMENTO DE TUBO DE CONCRETO PARA REDES COLETORAS DE ÁGUAS PLUVIAIS, DIÂMETRO DE 900 MM, JUNTA RÍGIDA, INSTALADO EM LOCAL COM BAIXO NÍVEL DE INTERFERÊNCIAS (NÃO INCLUI FORNECIMENTO). AF_12/2015 | C169: M | D169: 112.59 | E169: 92814
A170: 92815 | B170: ASSENTAMENTO DE TUBO DE CONCRETO PARA REDES COLETORAS DE ÁGUAS PLUVIAIS, DIÂMETRO DE 1000 MM, JUNTA RÍGIDA, INSTALADO EM LOCAL COM BAIXO NÍVEL DE INTERFERÊNCIAS (NÃO INCLUI FORNECIMENTO). AF_12/2015 | C170: M | D170: 129.07 | E170: 92815
A171: 92816 | B171: TUBO DE CONCRETO PARA REDES COLETORAS DE ÁGUAS PLUVIAIS, DIÂMETRO DE 1200 MM, JUNTA RÍGIDA, INSTALADO EM LOCAL COM BAIXO NÍVEL DE INTERFERÊNCIAS - FORNECIMENTO E ASSENTAMENTO. AF_12/2015 | C171: M | D171: 866.29 | E171: 92816
A172: 92817 | B172: ASSENTAMENTO DE TUBO DE CONCRETO PARA REDES COLETORAS DE ÁGUAS PLUVIAIS, DIÂMETRO DE 1200 MM, JUNTA RÍGIDA, INSTALADO EM LOCAL COM BAIXO NÍVEL DE INTERFERÊNCIAS (NÃO INCLUI FORNECIMENTO). AF_12/2015 | C172: M | D172: 161.51 | E172: 92817
A173: 92818 | B173: TUBO DE CONCRETO PARA REDES COLETORAS DE ÁGUAS PLUVIAIS, DIÂMETRO DE 1500 MM, JUNTA RÍGIDA, INSTALADO EM LOCAL COM BAIXO NÍVEL DE INTERFERÊNCIAS - FORNECIMENTO E ASSENTAMENTO. AF_12/2015 | C173: M | D173: 1238.48 | E173: 92818
A174: 92819 | B174: ASSENTAMENTO DE TUBO DE CONCRETO PARA REDES COLETORAS DE ÁGUAS PLUVIAIS, DIÂMETRO DE 1500 MM, JUNTA RÍGIDA, INSTALADO EM LOCAL COM BAIXO NÍVEL DE INTERFERÊNCIAS (NÃO INCLUI FORNECIMENTO). AF_12/2015 | C174: M | D174: 217.4 | E174: 92819
A175: 92820 | B175: ASSENTAMENTO DE TUBO DE CONCRETO PARA REDES COLETORAS DE ÁGUAS PLUVIAIS, DIÂMETRO DE 300 MM, JUNTA RÍGIDA, INSTALADO EM LOCAL COM ALTO NÍVEL DE INTERFERÊNCIAS (NÃO INCLUI FORNECIMENTO). AF_12/2015 | C175: M | D175: 46.83 | E175: 92820
A176: 92821 | B176: ASSENTAMENTO DE TUBO DE CONCRETO PARA REDES COLETORAS DE ÁGUAS PLUVIAIS, DIÂMETRO DE 400 MM, JUNTA RÍGIDA, INSTALADO EM LOCAL COM ALTO NÍVEL DE INTERFERÊNCIAS (NÃO INCLUI FORNECIMENTO). AF_12/2015 | C176: M | D176: 60.07 | E176: 92821
A177: 92822 | B177: ASSENTAMENTO DE TUBO DE CONCRETO PARA REDES COLETORAS DE ÁGUAS PLUVIAIS, DIÂMETRO DE 500 MM, JUNTA RÍGIDA, INSTALADO EM LOCAL COM ALTO NÍVEL DE INTERFERÊNCIAS (NÃO INCLUI FORNECIMENTO). AF_12/2015 | C177: M | D177: 73.32 | E177: 92822
A178: 92824 | B178: ASSENTAMENTO DE TUBO DE CONCRETO PARA REDES COLETORAS DE ÁGUAS PLUVIAIS, DIÂMETRO DE 600 MM, JUNTA RÍGIDA, INSTALADO EM LOCAL COM ALTO NÍVEL DE INTERFERÊNCIAS (NÃO INCLUI FORNECIMENTO). AF_12/2015 | C178: M | D178: 87.14 | E178: 92824
A179: 92825 | B179: ASSENTAMENTO DE TUBO DE CONCRETO PARA REDES COLETORAS DE ÁGUAS PLUVIAIS, DIÂMETRO DE 700 MM, JUNTA RÍGIDA, INSTALADO EM LOCAL COM ALTO NÍVEL DE INTERFERÊNCIAS (NÃO INCLUI FORNECIMENTO). AF_12/2015 | C179: M | D179: 100.99 | E179: 92825
A180: 92826 | B180: ASSENTAMENTO DE TUBO DE CONCRETO PARA REDES COLETORAS DE ÁGUAS PLUVIAIS, DIÂMETRO DE 800 MM, JUNTA RÍGIDA, INSTALADO EM LOCAL COM ALTO NÍVEL DE INTERFERÊNCIAS (NÃO INCLUI FORNECIMENTO). AF_12/2015 | C180: M | D180: 116.56 | E180: 92826
A181: 92827 | B181: ASSENTAMENTO DE TUBO DE CONCRETO PARA REDES COLETORAS DE ÁGUAS PLUVIAIS, DIÂMETRO DE 900 MM, JUNTA RÍGIDA, INSTALADO EM LOCAL COM ALTO NÍVEL DE INTERFERÊNCIAS (NÃO INCLUI FORNECIMENTO). AF_12/2015 | C181: M | D181: 132.86 | E181: 92827
A182: 92828 | B182: ASSENTAMENTO DE TUBO DE CONCRETO PARA REDES COLETORAS DE ÁGUAS PLUVIAIS, DIÂMETRO DE 1000 MM, JUNTA RÍGIDA, INSTALADO EM LOCAL COM ALTO NÍVEL DE INTERFERÊNCIAS (NÃO INCLUI FORNECIMENTO). AF_12/2015 | C182: M | D182: 151.78 | E182: 92828
A183: 92829 | B183: TUBO DE CONCRETO PARA REDES COLETORAS DE ÁGUAS PLUVIAIS, DIÂMETRO DE 1200 MM, JUNTA RÍGIDA, INSTALADO EM LOCAL COM ALTO NÍVEL DE INTERFERÊNCIAS - FORNECIMENTO E ASSENTAMENTO. AF_12/2015 | C183: M | D183: 893.04 | E183: 92829
A184: 92830 | B184: ASSENTAMENTO DE TUBO DE CONCRETO PARA REDES COLETORAS DE ÁGUAS PLUVIAIS, DIÂMETRO DE 1200 MM, JUNTA RÍGIDA, INSTALADO EM LOCAL COM ALTO NÍVEL DE INTERFERÊNCIAS (NÃO INCLUI FORNECIMENTO). AF_12/2015 | C184: M | D184: 188.26 | E184: 92830
A185: 92831 | B185: TUBO DE CONCRETO PARA REDES COLETORAS DE ÁGUAS PLUVIAIS, DIÂMETRO DE 1500 MM, JUNTA RÍGIDA, INSTALADO EM LOCAL COM ALTO NÍVEL DE INTERFERÊNCIAS - FORNECIMENTO E ASSENTAMENTO. AF_12/2015 | C185: M | D185: 1271.36 | E185: 92831
A186: 92832 | B186: ASSENTAMENTO DE TUBO DE CONCRETO PARA REDES COLETORAS DE ÁGUAS PLUVIAIS, DIÂMETRO DE 1500 MM, JUNTA RÍGIDA, INSTALADO EM LOCAL COM ALTO NÍVEL DE INTERFERÊNCIAS (NÃO INCLUI FORNECIMENTO). AF_12/2015 | C186: M | D186: 250.28 | E186: 92832
A187: 95565 | B187: TUBO DE CONCRETO PARA REDES COLETORAS DE ÁGUAS PLUVIAIS, DIÂMETRO DE 300MM, JUNTA RÍGIDA, INSTALADO EM LOCAL COM BAIXO NÍVEL DE INTERFERÊNCIAS - FORNECIMENTO E ASSENTAMENTO. AF_12/2015 | C187: M | D187: 150.12 | E187: 95565
A188: 95566 | B188: TUBO DE CONCRETO PARA REDES COLETORAS DE ÁGUAS PLUVIAIS, DIÂMETRO DE 300MM, JUNTA RÍGIDA, INSTALADO EM LOCAL COM ALTO NÍVEL DE INTERFERÊNCIAS - FORNECIMENTO E ASSENTAMENTO. AF_12/2015 | C188: M | D188: 157.67 | E188: 95566
A189: 95567 | B189: TUBO DE CONCRETO (SIMPLES) PARA REDES COLETORAS DE ÁGUAS PLUVIAIS, DIÂMETRO DE 300 MM, JUNTA RÍGIDA, INSTALADO EM LOCAL COM BAIXO NÍVEL DE INTERFERÊNCIAS - FORNECIMENTO E ASSENTAMENTO. AF_12/2015 | C189: M | D189: 118.07 | E189: 95567
A190: 95568 | B190: TUBO DE CONCRETO (SIMPLES) PARA REDES COLETORAS DE ÁGUAS PLUVIAIS, DIÂMETRO DE 400 MM, JUNTA RÍGIDA, INSTALADO EM LOCAL COM BAIXO NÍVEL DE INTERFERÊNCIAS - FORNECIMENTO E ASSENTAMENTO. AF_12/2015 | C190: M | D190: 143.51 | E190: 95568
A191: 95569 | B191: TUBO DE CONCRETO (SIMPLES) PARA REDES COLETORAS DE ÁGUAS PLUVIAIS, DIÂMETRO DE 500 MM, JUNTA RÍGIDA, INSTALADO EM LOCAL COM BAIXO NÍVEL DE INTERFERÊNCIAS - FORNECIMENTO E ASSENTAMENTO. AF_12/2015 | C191: M | D191: 199.9 | E191: 95569
A192: 95570 | B192: TUBO DE CONCRETO (SIMPLES) PARA REDES COLETORAS DE ÁGUAS PLUVIAIS, DIÂMETRO DE 300 MM, JUNTA RÍGIDA, INSTALADO EM LOCAL COM ALTO NÍVEL DE INTERFERÊNCIAS - FORNECIMENTO E ASSENTAMENTO. AF_12/2015 | C192: M | D192: 125.62 | E192: 95570
A193: 95571 | B193: TUBO DE CONCRETO (SIMPLES) PARA REDES COLETORAS DE ÁGUAS PLUVIAIS, DIÂMETRO DE 400 MM, JUNTA RÍGIDA, INSTALADO EM LOCAL COM ALTO NÍVEL DE INTERFERÊNCIAS - FORNECIMENTO E ASSENTAMENTO. AF_12/2015 | C193: M | D193: 153.18 | E193: 95571
A194: 95572 | B194: TUBO DE CONCRETO (SIMPLES) PARA REDES COLETORAS DE ÁGUAS PLUVIAIS, DIÂMETRO DE 500 MM, JUNTA RÍGIDA, INSTALADO EM LOCAL COM ALTO NÍVEL DE INTERFERÊNCIAS - FORNECIMENTO E ASSENTAMENTO. AF_12/2015 | C194: M | D194: 211.89 | E194: 95572
A195: 97127 | B195: ASSENTAMENTO DE TUBO DE PVC DEFOFO OU PRFV OU RPVC PARA REDE DE ÁGUA, DN 150 MM, JUNTA ELÁSTICA INTEGRADA, INSTALADO EM LOCAL COM NÍVEL ALTO DE INTERFERÊNCIAS (NÃO INCLUI FORNECIMENTO). AF_11/2017 | C195: M | D195: 4.59 | E195: 97127
A196: 97128 | B196: ASSENTAMENTO DE TUBO DE PVC DEFOFO OU PRFV OU RPVC PARA REDE DE ÁGUA, DN 200 MM, JUNTA ELÁSTICA INTEGRADA, INSTALADO EM LOCAL COM NÍVEL ALTO DE INTERFERÊNCIAS (NÃO INCLUI FORNECIMENTO). AF_11/2017 | C196: M | D196: 9.76 | E196: =1*A196 -> 97128
A197: 97129 | B197: ASSENTAMENTO DE TUBO DE PVC DEFOFO OU PRFV OU RPVC PARA REDE DE ÁGUA, DN 250 MM, JUNTA ELÁSTICA INTEGRADA, INSTALADO EM LOCAL COM NÍVEL ALTO DE INTERFERÊNCIAS (NÃO INCLUI FORNECIMENTO). AF_11/2017 | C197: M | D197: 12 | E197: 97129
A198: 97130 | B198: ASSENTAMENTO DE TUBO DE PVC DEFOFO OU PRFV OU RPVC PARA REDE DE ÁGUA, DN 300 MM, JUNTA ELÁSTICA INTEGRADA, INSTALADO EM LOCAL COM NÍVEL ALTO DE INTERFERÊNCIAS (NÃO INCLUI FORNECIMENTO). AF_11/2017 | C198: M | D198: 14.25 | E198: 97130
A199: 97131 | B199: ASSENTAMENTO DE TUBO DE PVC DEFOFO OU PRFV OU RPVC PARA REDE DE ÁGUA, DN 350 MM, JUNTA ELÁSTICA INTEGRADA, INSTALADO EM LOCAL COM NÍVEL ALTO DE INTERFERÊNCIAS (NÃO INCLUI FORNECIMENTO). AF_11/2017 | C199: M | D199: 16.49 | E199: 97131
A200: 97132 | B200: ASSENTAMENTO DE TUBO DE PVC DEFOFO OU PRFV OU RPVC PARA REDE DE ÁGUA, DN 400 MM, JUNTA ELÁSTICA INTEGRADA, INSTALADO EM LOCAL COM NÍVEL ALTO DE INTERFERÊNCIAS (NÃO INCLUI FORNECIMENTO). AF_11/2017 | C200: M | D200: 18.72 | E200: 97132
... 12323 more rows

Sheet SETOP
B1: SETOP OUTUBRO 2022
A2: CÓDIGO | B2: DESCRIÇÃO | C2: UNIDADE | D2: PREÇO
A3: 8662 | B3: MOBILIZAÇÃO E DESMOBILIZAÇÃO DE OBRA
A4: 8700 | B4: OBRAS EM CENTRO URBANO OU REGIÃO LIMÍTROFE
A5: ED-50394 | B5: MOBILIZAÇÃO E DESMOBILIZAÇÃO DE OBRA EM CENTRO URBANO OU REGIÃO LIMÍTROFE COM VALOR ACIMA DE 3.000.000,01 | C5: % | D5: 0.2
A6: ED-50392 | B6: MOBILIZAÇÃO E DESMOBILIZAÇÃO DE OBRA EM CENTRO URBANO OU REGIÃO LIMÍTROFE COM VALOR ATÉ O VALOR DE 1.000.000,00 | C6: % | D6: 0.5
A7: ED-50393 | B7: MOBILIZAÇÃO E DESMOBILIZAÇÃO DE OBRA EM CENTRO URBANO OU REGIÃO LIMÍTROFE COM VALOR ENTRE 1.000.000,01 E 3.000.000,00 | C7: % | D7: 0.3
A8: 8701 | B8: OBRA DISTANTE DE CENTRO URBANO
A9: ED-50391 | B9: MOBILIZAÇÃO E DESMOBILIZAÇÃO OBRA DISTANTE DE CENTRO URBANO COM ACIMA DE 3.000.000,01 | C9: % | D9: 1
A10: ED-50390 | B10: MOBILIZAÇÃO E DESMOBILIZAÇÃO OBRA DISTANTE DE CENTRO URBANO COM ENTRE 1.000.000,01 E 3.000.000,00 | C10: % | D10: 1.5
A11: ED-50389 | B11: MOBILIZAÇÃO E DESMOBILIZAÇÃO OBRA DISTANTE DE CENTRO URBANO COM VALOR ATÉ O VALOR DE 1.000.000,00 | C11: % | D11: 2
A12: 8663 | B12: SERVIÇOS PRELIMINARES
A13: 8702 | B13: LIMPEZA DO TERRENO
A14: ED-50701 | B14: CAPINA MANUAL DO TERRENO, EXCLUSIVE RASTELAMENTO E QUEIMA | C14: m2 | D14: 1.2
A15: ED-28163 | B15: DESTOCAMENTO E AFASTAMENTO DE REMANESCENTE ARBÓREO, INCLUSIVE TRANSPORTE E RETIRADA DO MATERIAL ESCAVADO (EM CAÇAMBA) | C15: un | D15: 412.28
A16: ED-50703 | B16: LIMPEZA DE TERRENO, INCLUSIVE CAPINA, RASTELAMENTO COM AFASTAMENTO ATÉ VINTE (20) METROS E QUEIMA CONTROLADA | C16: m2 | D16: 2.13
A17: ED-8143 | B17: RASTELAMENTO DE ÁREA COM AFASTAMENTO DE ATÉ VINTE (20) METROS, EXCLUSIVE CAPINA OU ROÇADA MANUAL | C17: m2 | D17: 0.8
A18: ED-28162 | B18: ROÇADA MANUAL DE TERRENO COM ROÇADEIRA COSTAL, EXCLUSIVE RASTELAMENTO E QUEIMA | C18: m2 | D18: 0.17
A19: 8703 | B19: DESMATAMENTO E DESTOCAMENTO
A20: ED-50702 | B20: DESMATAMENTO, DESTOCAMENTO E LIMPEZA, INCLUSIVE TRANSPORTE ATÉ CINQUENTA (50) METROS | C20: m2 | D20: 0.49
A21: 8704 | B21: SUPRESSÃO DE ÁRVORE
A22: ED-50699 | B22: CORTE DE ÁRVORE COM MOTOSSERRA, DIÂMETRO DO TRONCO ACIMA DE TRINTA (30) CENTÍMETROS ATÉ CINQUENTA (50) CENTÍMETROS, EXCLUSIVE DESTOCAMENTO E AFASTAMENTO | C22: un | D22: 83.14
A23: ED-50697 | B23: CORTE DE ÁRVORE COM MOTOSSERRA, DIÂMETRO DO TRONCO DE QUINZE (15) CENTÍMETROS ATÉ TRINTA (30) CENTÍMETROS, EXCLUSIVE DESTOCAMENTO E AFASTAMENTO | C23: un | D23: 49.88
A24: 8706 | B24: REMOÇÃO DE TELHADO
A25: ED-48438 | B25: REMOÇÃO DE CALHA EM CHAPA GALVANIZADA OU EM PVC, COM REAPROVEITAMENTO, INCLUSIVE AFASTAMENTO E EMPILHAMENTO, EXCLUSIVE TRANSPORTE E RETIRADA DO MATERIAL REMOVIDO NÃO REAPROVEITÁVEL | C25: m | D25: 4.21
A26: ED-48446 | B26: REMOÇÃO MANUAL DE CONDUTOR EM PVC OU METÁLICO, COM REAPROVEITAMENTO, INCLUSIVE AFASTAMENTO E EMPILHAMENTO, EXCLUSIVE TRANSPORTE E RETIRADA DO MATERIAL REMOVIDO NÃO REAPROVEITÁVEL | C26: m | D26: 5.01
A27: ED-48455 | B27: REMOÇÃO MANUAL DE ENGRADAMENTO PARA TELHA TIPO CALHA ESTRUTURAL EM FIBROCIMENTO, COM REAPROVEITAMENTO, INCLUSIVE AFASTAMENTO E EMPILHAMENTO, EXCLUSIVE TRANSPORTE E RETIRADA DO MATERIAL REMOVIDO NÃO REAPROVEITÁVEL | C27: m2 | D27: 10.2
A28: ED-48457 | B28: REMOÇÃO MANUAL DE ENGRADAMENTO PARA TELHA TIPO CERÂMICA OU CONCRETO, INCLUSIVE AFASTAMENTO E EMPILHAMENTO, EXCLUSIVE TRANSPORTE E RETIRADA DO MATERIAL REMOVIDO NÃO REAPROVEITÁVEL | C28: m2 | D28: 20.41
A29: ED-48454 | B29: REMOÇÃO MANUAL DE ENGRADAMENTO PARA TELHA TIPO METÁLICA, PVC OU FIBROCIMENTO, COM REAPROVEITAMENTO, INCLUSIVE AFASTAMENTO E EMPILHAMENTO, EXCLUSIVE TRANSPORTE E RETIRADA DO MATERIAL REMOVIDO NÃO REAPROVEITÁVEL | C29: m2 | D29: 13.6
A30: ED-48506 | B30: REMOÇÃO MANUAL DE RUFO METÁLICO, COM REAPROVEITAMENTO, INCLUSIVE AFASTAMENTO E EMPILHAMENTO, EXCLUSIVE TRANSPORTE E RETIRADA DO MATERIAL REMOVIDO NÃO REAPROVEITÁVEL | C30: m | D30: 6.2
A31: ED-48510 | B31: REMOÇÃO MANUAL DE TELHA EM FIBROCIMENTO, TIPO CALHA ESTRUTURAL, COM REAPROVEITAMENTO, INCLUSIVE AFASTAMENTO E EMPILHAMENTO, EXCLUSIVE TRANSPORTE E RETIRADA DO MATERIAL REMOVIDO NÃO REAPROVEITÁVEL | C31: m2 | D31: 13.06
A32: ED-48512 | B32: REMOÇÃO MANUAL DE TELHA EM FIBROCIMENTO, TIPO ONDULADA, COM REAPROVEITAMENTO, INCLUSIVE AFASTAMENTO E EMPILHAMENTO, EXCLUSIVE TRANSPORTE E RETIRADA DO MATERIAL REMOVIDO NÃO REAPROVEITÁVEL | C32: m2 | D32: 11.66
A33: ED-48514 | B33: REMOÇÃO MANUAL DE TELHA CERÂMICA, COM REAPROVEITAMENTO, INCLUSIVE AFASTAMENTO E EMPILHAMENTO, EXCLUSIVE TRANSPORTE E RETIRADA DO MATERIAL REMOVIDO NÃO REAPROVEITÁVEL | C33: m2 | D33: 21.91
A34: ED-48509 | B34: REMOÇÃO MANUAL DE TELHA METÁLICA OU PVC, COM REAPROVEITAMENTO, INCLUSIVE AFASTAMENTO E EMPILHAMENTO, EXCLUSIVE TRANSPORTE E RETIRADA DO MATERIAL REMOVIDO NÃO REAPROVEITÁVEL | C34: m2 | D34: 8.15
A35: 8707 | B35: DEMOLIÇÃO E REMOÇÃO DE INSTALAÇÃO
A36: ED-48500 | B36: DEMOLIÇÃO MANUAL DE TUBULAÇÕES EMBUTIDAS DE REDE (ÁGUA, ELÉTRICA, GASES, ETC.), INCLUSIVE RASGO EM ALVENARIA, REMOÇÃO DE ACESSÓRIOS DE FIXAÇÃO, AFASTAMENTO E EMPILHAMENTO, EXCLUSIVE TRANSPORTE E RETIRADA DO MATERIAL DEMOLIDO | C36: m | D36: 7.52
A37: ED-48466 | B37: REMOÇÃO MANUAL DE INTERFONE, COM REAPROVEITAMENTO, INCLUSIVE AFASTAMENTO E EMPILHAMENTO, EXCLUSIVE TRANSPORTE E RETIRADA DO MATERIAL REMOVIDO NÃO REAPROVEITÁVEL | C37: un | D37: 39.81
A38: ED-48468 | B38: REMOÇÃO MANUAL DE LUMINÁRIA COMERCIAL, EMBUTIDA OU SOBREPOR, COM REAPROVEITAMENTO, INCLUSIVE AFASTAMENTO E EMPILHAMENTO, EXCLUSIVE TRANSPORTE E RETIRADA DO MATERIAL REMOVIDO NÃO REAPROVEITÁVEL | C38: un | D38: 9.58
A39: ED-48469 | B39: REMOÇÃO MANUAL DE LUMINÁRIA COMPACTA (PLAFON, PAINEL LED, ETC.) EMBUTIDA OU SOBREPOR, COM REAPROVEITAMENTO, INCLUSIVE AFASTAMENTO E EMPILHAMENTO, EXCLUSIVE TRANSPORTE E RETIRADA DO MATERIAL REMOVIDO NÃO REAPROVEITÁVEL | C39: un | D39: 5.58
A40: ED-48499 | B40: REMOÇÃO MANUAL DE REDES DE DUTOS PARA CLIMATIZAÇÃO, INCLUSIVE AFASTAMENTO E EMPILHAMENTO, EXCLUSIVE TRANSPORTE E RETIRADA DO MATERIAL REMOVIDO NÃO REAPROVEITÁVEL | C40: m | D40: 8.36
A41: ED-48515 | B41: REMOÇÃO MANUAL DE TUBULAÇÕES EMBUTIDAS DE REDE (ÁGUA, ELÉTRICA, GASES, ETC.), COM REAPROVEITAMENTO, INCLUSIVE RASGO EM ALVENARIA, REMOÇÃO DE ACESSÓRIOS DE FIXAÇÃO, AFASTAMENTO E EMPILHAMENTO, EXCLUSIVE TRANSPORTE E RETIRADA DO MATERIAL REMOVIDO NÃO REAPROVEITÁVEL | C41: m | D41: 10.85
A42: 8708 | B42: DEMOLIÇÃO DE FORRO
A43: ED-48463 | B43: DEMOLIÇÃO MANUAL DE FORRO DE CHAPA OU PLACA DE GESSO, INCLUSIVE DEMOLIÇÃO DA ESTRUTURA DE SUSTENTAÇÃO, AFASTAMENTO E EMPILHAMENTO, EXCLUSIVE TRANSPORTE E RETIRADA DO MATERIAL DEMOLIDO | C43: m2 | D43: 5
A44: 8709 | B44: REMOÇÃO DE FORRO
A45: ED-48460 | B45: REMOÇÃO MANUAL DE FORRO DE PLACAS (GESSO, MINERAL, FIBRA, ISOPOR, COLMEIA, PVC, ETC.), COM REAPROVEITAMENTO, INCLUSIVE AFASTAMENTO E EMPILHAMENTO, EXCLUSIVE DEMOLIÇÃO DA ESTRUTURA DE SUSTENTAÇÃO, TRANSPORTE E RETIRADA DO MATERIAL REMOVIDO NÃO REAPROVEITÁVEL | C45: m2 | D45: 1.88
A46: ED-48459 | B46: REMOÇÃO MANUAL DE FORRO DE PLACAS (GESSO, MINERAL, FIBRA, ISOPOR, COLMEIA, PVC, ETC.), COM REAPROVEITAMENTO, INCLUSIVE DEMOLIÇÃO ESTRUTURA DE SUSTENTAÇÃO, AFASTAMENTO E EMPILHAMENTO, EXCLUSIVE TRANSPORTE E RETIRADA DO MATERIAL REMOVIDO NÃO REAPROVEITÁVEL | C46: m2 | D46: 5.64
A47: ED-48464 | B47: REMOÇÃO MANUAL DE FORRO DE TÁBUAS DE PINHO, COM REAPROVEITAMENTO, INCLUSIVE AFASTAMENTO E EMPILHAMENTO, EXCLUSIVE REMOÇÃO DA ESTRUTURA DE SUSTENTAÇÃO, TRANSPORTE E RETIRADA DO MATERIAL REMOVIDO NÃO REAPROVEITÁVEL | C47: m2 | D47: 8.91
A48: ED-28355 | B48: REMOÇÃO MANUAL ESTRUTURA OU TRAMA DE SUSTENTAÇÃO DE MADEIRA OU METÁLICA PARA FORRO, COM REAPROVEITAMENTO, INCLUSIVE AFASTAMENTO E EMPILHAMENTO, EXCLUSIVE TRANSPORTE E RETIRADA DO MATERIAL REMOVIDO NÃO REAPROVEITÁVEL | C48: m2 | D48: 3.76
A49: 8710 | B49: REMOÇÃO DE ESQUADRIA
A50: ED-48496 | B50: REMOÇÃO MANUAL DE CONJUNTO DE ALIZARES, COM REAPROVEITAMENTO, INCLUSIVE AFASTAMENTO E EMPILHAMENTO, EXCLUSIVE TRANSPORTE E RETIRADA DO MATERIAL REMOVIDO NÃO REAPROVEITÁVEL | C50: cj | D50: 3.16
A51: ED-48458 | B51: REMOÇÃO MANUAL DE CONJUNTO DE FERRAGENS (DOBRADIÇAS, FECHADURA E MAÇANETAS), COM REAPROVEITAMENTO, INCLUSIVE AFASTAMENTO E EMPILHAMENTO, EXCLUSIVE TRANSPORTE E RETIRADA DO MATERIAL REMOVIDO NÃO REAPROVEITÁVEL | C51: un | D51: 19.43
A52: ED-48493 | B52: REMOÇÃO MANUAL DE ESQUADRIA EM MADEIRA, COM REAPROVEITAMENTO, INCLUSIVE REMOÇÃO DE MARCO/ALIZAR/GUARNIÇÕES, AFASTAMENTO E EMPILHAMENTO, EXCLUSIVE TRANSPORTE E RETIRADA DO MATERIAL REMOVIDO NÃO REAPROVEITÁVEL | C52: m2 | D52: 12.04
A53: ED-48497 | B53: REMOÇÃO MANUAL DE ESQUADRIA METÁLICA, COM REAPROVEITAMENTO, INCLUSIVE MARCO/ALIZAR/GUARNIÇÕES, AFASTAMENTO E EMPILHAMENTO, EXCLUSIVE TRANSPORTE E RETIRADA DO MATERIAL REMOVIDO NÃO REAPROVEITÁVEL | C53: m2 | D53: 16.72
A54: ED-48494 | B54: REMOÇÃO MANUAL DE FOLHA DE PORTA OU JANELA DE MADEIRA OU METÁLICA, COM REAPROVEITAMENTO, INCLUSIVE AFASTAMENTO E EMPILHAMENTO, EXCLUSIVE TRANSPORTE E RETIRADA DO MATERIAL REMOVIDO NÃO REAPROVEITÁVEL | C54: m2 | D54: 8.13
A55: ED-48495 | B55: REMOÇÃO MANUAL DE MARCO EM MADEIRA OU METÁLICO, COM REAPROVEITAMENTO, INCLUSIVE AFASTAMENTO E EMPILHAMENTO, EXCLUSIVE TRANSPORTE E RETIRADA DO MATERIAL REMOVIDO NÃO REAPROVEITÁVEL | C55: un | D55: 16.46
A56: 8711 | B56: DEMOLIÇÃO DE IMPERMEABILIZAÇÃO
A57: ED-48465 | B57: DEMOLIÇÃO MANUAL DE IMPERMEABILIZAÇÃO E PROTEÇÃO MECÂNICA, INCLUSIVE AFASTAMENTO E EMPILHAMENTO, EXCLUSIVE TRANSPORTE E RETIRADA DO MATERIAL DEMOLIDO | C57: m2 | D57: 24.92
A58: 8712 | B58: REMOÇÃO DE LOUÇA E ACESSÓRIOS
A59: ED-48467 | B59: REMOÇÃO DE LOUÇAS (LAVATÓRIO, BANHEIRA, PIA, VASO SANITÁRIO, TANQUE), COM REAPROVEITAMENTO, INCLUSIVE AFASTAMENTO E EMPILHAMENTO, EXCLUSIVE TRANSPORTE E RETIRADA DO MATERIAL REMOVIDO NÃO REAPROVEITÁVEL | C59: un | D59: 38.98
A60: ED-48470 | B60: REMOÇÃO MANUAL DE METAIS COMUNS E ACABAMENTOS (TORNEIRA, ACABAMENTO PARA REGISTRO, SIFÃO, ENGATE FLEXÍVEL, ETC.), COM REAPROVEITAMENTO, INCLUSIVE AFASTAMENTO E EMPILHAMENTO, EXCLUSIVE TRANSPORTE E RETIRADA DO MATERIAL REMOVIDO NÃO REAPROVEITÁVEL | C60: un | D60: 5.82
A61: ED-48471 | B61: REMOÇÃO MANUAL DE METAIS EMBUTIDOS (BASE DE REGISTRO, VÁLVULA DE DESCARGA, TORNEIRA ANTIVANDALISMO, ETC.), COM REAPROVEITAMENTO, INCLUSIVE AFASTAMENTO E EMPILHAMENTO, EXCLUSIVE TRANSPORTE E RETIRADA DO MATERIAL REMOVIDO NÃO REAPROVEITÁVEL | C61: un | D61: 18.5
A62: 8713 | B62: DEMOLIÇÃO E REMOÇÃO DE DIVISÓRIA E BANCADA
A63: ED-48452 | B63: DEMOLIÇÃO MANUAL DE ALVENARIA/DIVISÓRIA DE ELEMENTOS VAZADOS (COBOGÓ, ETC. ), INCLUSIVE AFASTAMENTO E EMPILHAMENTO, EXCLUSIVE TRANSPORTE E RETIRADA DO MATERIAL DEMOLIDO | C63: m2 | D63: 15.85
A64: ED-48453 | B64: DEMOLIÇÃO MANUAL DE DIVISÓRIA COMERCIAL EM LAMINADO, INCLUSIVE AFASTAMENTO E EMPILHAMENTO, EXCLUSIVE TRANSPORTE E RETIRADA DO MATERIAL DEMOLIDO | C64: m2 | D64: 6.4
A65: ED-8024 | B65: DEMOLIÇÃO MANUAL DE DIVISÓRIA DE MADEIRA, INCLUSIVE AFASTAMENTO E EMPILHAMENTO, EXCLUSIVE TRANSPORTE E RETIRADA DO MATERIAL DEMOLIDO | C65: m2 | D65: 9.79
A66: ED-48437 | B66: REMOÇÃO MANUAL DE BANCADA DE PEDRA (MÁRMORE, GRANITO, ARDÓSIA, MARMORITE, ETC.), COM REAPROVEITAMENTO, INCLUSIVE RASGO EM ALVENARIA, REMOÇÃO DE ACESSÓRIOS DE FIXAÇÃO, AFASTAMENTO E EMPILHAMENTO, EXCLUSIVE TRANSPORTE E RETIRADA DO MATERIAL REMOVIDO NÃO REAPROVEITÁVEL | C66: m2 | D66: 48.55
A67: ED-28348 | B67: REMOÇÃO MANUAL DE DIVISÓRIA EM PEDRA (MÁRMORE, GRANITO, ARDÓSIA, MARMORITE, ETC.), COM REAPROVEITAMENTO, INCLUSIVE RASGO EM ALVENARIA, REMOÇÃO DE ACESSÓRIOS DE FIXAÇÃO, AFASTAMENTO E EMPILHAMENTO, EXCLUSIVE TRANSPORTE E RETIRADA DO MATERIAL REMOVIDO NÃO REAPROVEITÁVEL | C67: m2 | D67: 40.56
A68: 8714 | B68: DEMOLIÇÃO DE ALVENARIA
A69: ED-48436 | B69: DEMOLIÇÃO MANUAL DE ALVENARIA DE TIJOLO CERÂMICO MACIÇO, INCLUSIVE AFASTAMENTO E EMPILHAMENTO, EXCLUSIVE TRANSPORTE E RETIRADA DO MATERIAL DEMOLIDO | C69: m3 | D69: 136.89
A70: ED-48435 | B70: DEMOLIÇÃO MANUAL DE ALVENARIA DE TIJOLO CERÂMICO OU BLOCO DE CONCRETO, INCLUSIVE AFASTAMENTO E EMPILHAMENTO, EXCLUSIVE TRANSPORTE E RETIRADA DO MATERIAL DEMOLIDO | C70: m3 | D70: 94.11
A71: ED-28338 | B71: DEMOLIÇÃO MANUAL DE CONSTRUÇÃO EM ALVENARIAS DE VEDAÇÃO, COM ESPESSURA MÁXIMA DE 15CM, INCLUSIVE REMOÇÃO COM REAPROVEITAMENTO DE ESQUADRIAS, AFASTAMENTO E EMPILHAMENTO, EXCLUSIVE TRANSPORTE E RETIRADA DO MATERIAL DEMOLIDO/REMOVIDO NÃO REAPROVEITÁVEL | C71: m2 | D71: 14.96
A72: 8715 | B72: DEMOLIÇÃO DE CONCRETO
A73: ED-48441 | B73: DEMOLIÇÃO MANUAL DE CONCRETO ARMADO, INCLUSIVE AFASTAMENTO E EMPILHAMENTO, EXCLUSIVE TRANSPORTE E RETIRADA DO MATERIAL DEMOLIDO | C73: m3 | D73: 344.17
A74: ED-48440 | B74: DEMOLIÇÃO MANUAL DE CONCRETO, SEM ARMAÇÃO, INCLUSIVE AFASTAMENTO E EMPILHAMENTO, EXCLUSIVE TRANSPORTE E RETIRADA DO MATERIAL DEMOLIDO | C74: m3 | D74: 260.74
A75: ED-48443 | B75: DEMOLIÇÃO MECANIZADA DE CONCRETO ARMADO, COM EQUIPAMENTO ELÉTRICO, INCLUSIVE AFASTAMENTO E EMPILHAMENTO, EXCLUSIVE TRANSPORTE E RETIRADA DO MATERIAL DEMOLIDO | C75: m3 | D75: 142.52
A76: ED-48445 | B76: DEMOLIÇÃO MECANIZADA DE CONCRETO ARMADO, COM EQUIPAMENTO PNEUMÁTICO, INCLUSIVE AFASTAMENTO E EMPILHAMENTO, EXCLUSIVE TRANSPORTE E RETIRADA DO MATERIAL DEMOLIDO | C76: m3 | D76: 204.89
A77: ED-48442 | B77: DEMOLIÇÃO MECANIZADA DE CONCRETO, SEM ARMAÇÃO, COM EQUIPAMENTO ELÉTRICO, INCLUSIVE AFASTAMENTO E EMPILHAMENTO, EXCLUSIVE TRANSPORTE E RETIRADA DO MATERIAL DEMOLIDO | C77: m3 | D77: 137.29
A78: ED-48444 | B78: DEMOLIÇÃO MECANIZADA DE CONCRETO, SEM ARMAÇÃO, COM EQUIPAMENTO PNEUMÁTICO, INCLUSIVE AFASTAMENTO E EMPILHAMENTO, EXCLUSIVE TRANSPORTE E RETIRADA DO MATERIAL DEMOLIDO | C78: m3 | D78: 194.79
A79: 8716 | B79: REMOÇÃO DE PADRÃO CONCESSIONÁRIA
A80: ED-48475 | B80: REMOÇÃO MANUAL DE PADRÃO DE ENTRADA DE ÁGUA, COM REAPROVEITAMENTO, INCLUSIVE AFASTAMENTO E EMPILHAMENTO, EXCLUSIVE TRANSPORTE E RETIRADA DO MATERIAL REMOVIDO NÃO REAPROVEITÁVEL | C80: un | D80: 89.12
A81: ED-48474 | B81: REMOÇÃO MANUAL DE PADRÃO DE ENTRADA DE ENERGIA, COM REAPROVEITAMENTO, INCLUSIVE AFASTAMENTO E EMPILHAMENTO, EXCLUSIVE TRANSPORTE E RETIRADA DO MATERIAL REMOVIDO NÃO REAPROVEITÁVEL | C81: un | D81: 223.85
A82: 8717 | B82: DEMOLIÇÃO E REMOÇÃO DE PAVIMENTAÇÃO
A83: ED-48487 | B83: DEMOLIÇÃO MANUAL DE LAJE DE CONCRETO ARMADO, COM ESPESSURA DE ATÉ 15CM, INCLUSIVE AFASTAMENTO E EMPILHAMENTO, EXCLUSIVE TRANSPORTE E RETIRADA DO MATERIAL DEMOLIDO | C83: m2 | D83: 30.1
A84: ED-48507 | B84: DEMOLIÇÃO MANUAL DE SARJETA OU SARJETÃO DE CONCRETO, INCLUSIVE AFASTAMENTO E EMPILHAMENTO, EXCLUSIVE TRANSPORTE E RETIRADA DO MATERIAL DEMOLIDO | C84: m2 | D84: 9.4
A85: ED-48489 | B85: DEMOLIÇÃO MECANIZADA DE LAJE DE CONCRETO ARMADO, COM ESPESSURA DE ATÉ 15CM, , COM EQUIPAMENTO ELÉTRICO, INCLUSIVE AFASTAMENTO E EMPILHAMENTO, EXCLUSIVE TRANSPORTE E RETIRADA DO MATERIAL DEMOLIDO | C85: m2 | D85: 16.63
A86: ED-48486 | B86: DEMOLIÇÃO MECANIZADA DE LAJE DE CONCRETO ARMADO, COM ESPESSURA DE ATÉ 15CM, , COM EQUIPAMENTO PNEUMÁTICO, INCLUSIVE AFASTAMENTO E EMPILHAMENTO, EXCLUSIVE TRANSPORTE E RETIRADA DO MATERIAL DEMOLIDO | C86: m2 | D86: 14.48
A87: ED-48492 | B87: DEMOLIÇÃO MECANIZADA DE REVESTIMENTO ASFÁLTICO, COM EQUIPAMENTO PNEUMÁTICO, INCLUSIVE AFASTAMENTO E EMPILHAMENTO, EXCLUSIVE TRANSPORTE E RETIRADA DO MATERIAL DEMOLIDO | C87: m2 | D87: 9.39
A88: ED-48490 | B88: REMOÇÃO MANUAL DE ALVENARIA POLIÉDRICA, COM REAPROVEITAMENTO, INCLUSIVE AFASTAMENTO E EMPILHAMENTO, EXCLUSIVE TRANSPORTE E RETIRADA DO MATERIAL REMOVIDO NÃO REAPROVEITÁVEL | C88: m2 | D88: 12.93
A89: ED-48488 | B89: REMOÇÃO MANUAL DE CALÇADA PORTUGUESA, COM REAPROVEITAMENTO, INCLUSIVE AFASTAMENTO E EMPILHAMENTO, EXCLUSIVE TRANSPORTE E RETIRADA DO MATERIAL REMOVIDO NÃO REAPROVEITÁVEL | C89: m2 | D89: 7.79
A90: ED-48473 | B90: REMOÇÃO MANUAL DE GUIA DE MEIO-FIO EM PEDRA (GNAISSE, BASALTO, ETC.), COM REAPROVEITAMENTO, INCLUSIVE AFASTAMENTO E EMPILHAMENTO, EXCLUSIVE TRANSPORTE E RETIRADA DO MATERIAL REMOVIDO NÃO REAPROVEITÁVEL | C90: m | D90: 18.81
A91: ED-48472 | B91: REMOÇÃO MANUAL DE GUIA DE MEIO-FIO PRÉ-MOLDADA EM CONCRETO, COM REAPROVEITAMENTO, INCLUSIVE AFASTAMENTO E EMPILHAMENTO, EXCLUSIVE TRANSPORTE E RETIRADA DO MATERIAL REMOVIDO NÃO REAPROVEITÁVEL | C91: m | D91: 10.02
A92: ED-48476 | B92: REMOÇÃO MANUAL DE PAVIMENTAÇÃO INTERTRAVADA EM PRÉ-MOLDADO DE CONCRETO, COM REAPROVEITAMENTO, INCLUSIVE AFASTAMENTO E EMPILHAMENTO, EXCLUSIVE TRANSPORTE E RETIRADA DO MATERIAL REMOVIDO NÃO REAPROVEITÁVEL | C92: m2 | D92: 12.93
A93: ED-48491 | B93: REMOÇÃO MANUAL DE PAVIMENTO PARALELEPÍPEDO, COM REAPROVEITAMENTO, INCLUSIVE AFASTAMENTO E EMPILHAMENTO, EXCLUSIVE TRANSPORTE E RETIRADA DO MATERIAL REMOVIDO NÃO REAPROVEITÁVEL | C93: m2 | D93: 14.36
A94: 8718 | B94: DEMOLIÇÃO E REMOÇÃO DE REVESTIMENTO
A95: ED-48504 | B95: DEMOLIÇÃO MANUAL DE LAMINADO MELAMÍNICO EM SUPERFÍCIE DE MADEIRA OU PAREDE, INCLUSIVE AFASTAMENTO E EMPILHAMENTO, EXCLUSIVE TRANSPORTE E RETIRADA DO MATERIAL DEMOLIDO | C95: m2 | D95: 9.4
A96: ED-48501 | B96: DEMOLIÇÃO MANUAL DE REBOCO OU EMBOÇO, COM ESPESSURA DE ATÉ 55MM, INCLUSIVE AFASTAMENTO E EMPILHAMENTO, EXCLUSIVE TRANSPORTE E RETIRADA DO MATERIAL DEMOLIDO | C96: m2 | D96: 8.96
A97: ED-48502 | B97: DEMOLIÇÃO MANUAL DE REVESTIMENTO CERÂMICO, AZULEJO OU LADRILHO HIDRÁULICO, INCLUSIVE AFASTAMENTO E EMPILHAMENTO, EXCLUSIVE DEMOLIÇÃO DO REBOCO OU EMBOÇO, TRANSPORTE E RETIRADA DO MATERIAL DEMOLIDO | C97: m2 | D97: 18.69
A98: ED-48503 | B98: DEMOLIÇÃO MANUAL DE REVESTIMENTO DE PEDRA (MÁRMORE, GRANITO, ARDÓSIA, ETC.), INCLUSIVE AFASTAMENTO E EMPILHAMENTO, EXCLUSIVE DEMOLIÇÃO DO REBOCO OU EMBOÇO, TRANSPORTE E RETIRADA DO MATERIAL DEMOLIDO | C98: m2 | D98: 22.42
A99: ED-48478 | B99: REMOÇÃO MANUAL DE PEITORIL DE MÁRMORE OU GRANITO, COM REAPROVEITAMENTO, INCLUSIVE AFASTAMENTO E EMPILHAMENTO, EXCLUSIVE TRANSPORTE E RETIRADA DO MATERIAL REMOVIDO NÃO REAPROVEITÁVEL | C99: m | D99: 7.36
A100: 8719 | B100: DEMOLIÇÃO E REMOÇÃO DE PISO
A101: ED-48480 | B101: DEMOLIÇÃO MANUAL DE PISO CERÂMICO OU LADRILHO HIDRÁULICO, INCLUSIVE AFASTAMENTO E EMPILHAMENTO, EXCLUSIVE DEMOLIÇÃO DE CONTRAPISO, TRANSPORTE E RETIRADA DO MATERIAL DEMOLIDO | C101: m2 | D101: 14.94
A102: ED-48479 | B102: DEMOLIÇÃO MANUAL DE PISO CIMENTADO OU CONTRAPISO DE ARGAMASSA, COM ESPESSURA MÁXIMA DE 10CM, INCLUSIVE AFASTAMENTO E EMPILHAMENTO, EXCLUSIVE TRANSPORTE E RETIRADA DO MATERIAL DEMOLIDO | C102: m2 | D102: 16.01
A103: ED-48481 | B103: DEMOLIÇÃO MANUAL DE PISO DE PEDRAS (MÁRMORE, GRANITO, ARDÓSIA, ETC.), INCLUSIVE AFASTAMENTO E EMPILHAMENTO, EXCLUSIVE DEMOLIÇÃO DE CONTRAPISO, TRANSPORTE E RETIRADA DO MATERIAL DEMOLIDO | C103: m2 | D103: 18.69
A104: ED-48483 | B104: DEMOLIÇÃO MANUAL DE PISO EM GRANILITE/MARMORITE, INCLUSIVE AFASTAMENTO E EMPILHAMENTO, EXCLUSIVE TRANSPORTE E RETIRADA DO MATERIAL DEMOLIDO | C104: m2 | D104: 20.38
A105: ED-48482 | B105: DEMOLIÇÃO MANUAL DE PISO VINÍLICO, INCLUSIVE AFASTAMENTO E EMPILHAMENTO, EXCLUSIVE TRANSPORTE E RETIRADA DO MATERIAL DEMOLIDO | C105: m2 | D105: 7.92
A106: ED-48505 | B106: DEMOLIÇÃO MANUAL DE RODAPÉ, INCLUSIVE ARGAMASSA DE ASSENTAMENTO E AFASTAMENTO, EXCLUSIVE TRANSPORTE E RETIRADA DO MATERIAL DEMOLIDO | C106: m | D106: 2.46
A107: ED-48485 | B107: REMOÇÃO MANUAL DE PISO DE TÁBUAS, COM REAPROVEITAMENTO, INCLUSIVE AFASTAMENTO E EMPILHAMENTO, EXCLUSIVE TRANSPORTE E RETIRADA DO MATERIAL REMOVIDO NÃO REAPROVEITÁVEL | C107: m2 | D107: 22.42
A108: ED-48484 | B108: REMOÇÃO MANUAL DE PISO DE TACO DE MADEIRA, COM REAPROVEITAMENTO, INCLUSIVE AFASTAMENTO E EMPILHAMENTO, EXCLUSIVE TRANSPORTE E RETIRADA DO MATERIAL REMOVIDO NÃO REAPROVEITÁVEL | C108: m2 | D108: 19.5
A109: ED-48508 | B109: REMOÇÃO MANUAL DE SOLEIRA DE MÁRMORE OU GRANITO, COM REAPROVEITAMENTO, INCLUSIVE AFASTAMENTO E EMPILHAMENTO, EXCLUSIVE TRANSPORTE E RETIRADA DO MATERIAL REMOVIDO NÃO REAPROVEITÁVEL | C109: m | D109: 7.86
A110: 8720 | B110: REMOÇÃO DE CERCA E ALAMBRADO
A111: ED-48434 | B111: REMOÇÃO MANUAL DE ALAMBRADO METÁLICO, COM REAPROVEITAMENTO, INCLUSIVE AFASTAMENTO E EMPILHAMENTO, EXCLUSIVE TRANSPORTE E RETIRADA DO MATERIAL REMOVIDO NÃO REAPROVEITÁVEL | C111: m2 | D111: 17.25
A112: ED-48439 | B112: REMOÇÃO MANUAL DE CERCA, COM REAPROVEITAMENTO, INCLUSIVE AFASTAMENTO E EMPILHAMENTO, EXCLUSIVE TRANSPORTE E RETIRADA DO MATERIAL REMOVIDO NÃO REAPROVEITÁVEL | C112: m2 | D112: 14.94
A113: ED-48449 | B113: REMOÇÃO MANUAL DE CONCERTINA, COM DIÂMETRO DE ATÉ 730MM, COM REAPROVEITAMENTO, INCLUSIVE AFASTAMENTO E EMPILHAMENTO, EXCLUSIVE TRANSPORTE E RETIRADA DO MATERIAL REMOVIDO NÃO REAPROVEITÁVEL | C113: m | D113: 2.49
A114: 8721 | B114: REMOÇÃO DE VIDRO
A115: ED-48516 | B115: REMOÇÃO MANUAL DE VIDRO EM ESQUADRIAS, COM REAPROVEITAMENTO, INCLUSIVE LIMPEZA DO ENCAIXE, AFASTAMENTO E EMPILHAMENTO, EXCLUSIVE TRANSPORTE E RETIRADA DO MATERIAL REMOVIDO NÃO REAPROVEITÁVEL | C115: m2 | D115: 5.86
A116: 8722 | B116: REMOÇÃO DE ITEM ESCOLAR
A117: ED-48498 | B117: REMOÇÃO MANUAL DE QUADRO NEGRO, COM REAPROVEITAMENTO, INCLUSIVE AFASTAMENTO E EMPILHAMENTO, EXCLUSIVE TRANSPORTE E RETIRADA DO MATERIAL REMOVIDO NÃO REAPROVEITÁVEL | C117: m2 | D117: 25.09
A118: 8664 | B118: INSTALAÇÕES PROVISÓRIAS
A119: 8723 | B119: PLACA DE OBRA
A120: ED-16660 | B120: FORNECIMENTO E COLOCAÇÃO DE PLACA DE OBRA EM CHAPA GALVANIZADA #26, ESP. 0,45 MM, PLOTADA COM ADESIVO VINÍLICO, AFIXADA COM REBITES 4,8X40 MM, EM ESTRUTURA METÁLICA DE METALON 20X20 MM, ESP. 1,25 MM, INCLUSIVE SUPORTE EM EUCALIPTO AUTOCLAVADO PINTADO COM TINTA PVA DUAS (2) DEMÃOS | C120: m2 | D120: 297.88
A121: ED-28427 | B121: FORNECIMENTO E COLOCAÇÃO DE PLACA DE OBRA EM CHAPA GALVANIZADA #26, ESP. 0,45MM, DIMENSÃO (3X1,5)M, PLOTADA COM ADESIVO VINÍLICO, AFIXADA COM REBITES 4,8X40MM, EM ESTRUTURA METÁLICA DE METALON 20X20MM, ESP. 1,25MM, INCLUSIVE SUPORTE EM EUCALIPTO AUTOCLAVADO PINTADO COM TINTA PVA DUAS (2) DEMÃOS | C121: un | D121: 1340.46
A122: ED-28428 | B122: FORNECIMENTO E COLOCAÇÃO DE PLACA DE OBRA EM CHAPA GALVANIZADA #26, ESP. 0,45MM, DIMENSÃO (4X3)M, PLOTADA COM ADESIVO VINÍLICO, AFIXADA COM REBITES 4,8X40MM, EM ESTRUTURA METÁLICA DE METALON 20X20MM, ESP. 1,25MM, INCLUSIVE SUPORTE EM EUCALIPTO AUTOCLAVADO PINTADO COM TINTA PVA DUAS (2) DEMÃOS | C122: un | D122: 3574.56
A123: ED-28429 | B123: FORNECIMENTO E COLOCAÇÃO DE PLACA DE OBRA EM CHAPA GALVANIZADA #26, ESP. 0,45MM, DIMENSÃO (6X3)M, PLOTADA COM ADESIVO VINÍLICO, AFIXADA COM REBITES 4,8X40MM, EM ESTRUTURA METÁLICA DE METALON 20X20MM, ESP. 1,25MM, INCLUSIVE SUPORTE EM EUCALIPTO AUTOCLAVADO PINTADO COM TINTA PVA DUAS (2) DEMÃOS | C123: un | D123: 5361.84
A124: 8724 | B124: INSTALAÇÃO PROVISÓRIA ÁGUA E ENERGIA
A125: ED-50150 | B125: LIGAÇÃO DE ÁGUA PROVISÓRIA PARA CANTEIRO, INCLUSIVE HIDRÔMETRO E CAVALETE PARA MEDIÇÃO DE ÁGUA - ENTRADA PRINCIPAL, EM AÇO GALVANIZADO DN 20MM (1/2") - PADRÃO CONCESSIONÁRIA | C125: un | D125: 376.96
A126: ED-50151 | B126: LIGAÇÃO PROVISÓRIA COM ENTRADA DE ENERGIA AÉREA, PADRÃO CEMIG, CARGA INSTALADA DE 15,1KVA ATÉ 30KVA, TRIFÁSICO, COM SAÍDA SUBTERRÂNEA, INCLUSIVE POSTE, CAIXA PARA MEDIDOR, DISJUNTOR, BARRAMENTO, ATERRAMENTO E ACESSÓRIOS | C126: un | D126: 1148.59
A127: 8725 | B127: ESCRITÓRIO DE OBRA
A128: ED-50125 | B128: ÁREA COBERTA EM TELHA FIBROCIMENTO PARA CENTRAL DE CORTE/DOBRA/MONTAGEM EM CANTEIRO DE OBRAS, INCLUSIVE BANCADA E INSTALAÇÕES ELÉTRICAS, EXCLUSIVE VEDAÇÕES LATERAIS | C128: m2 | D128: 124.04
A129: ED-50135 | B129: BARRACÃO DE OBRA, EM CHAPA DE COMPENSADO RESINADO, INCLUSIVE INSTALAÇÕES SANITÁRIAS E MOBILIÁRIO - PADRÃO DER-MG | C129: m2 | D129: 560.37
A130: ED-50128 | B130: BARRACÃO DE OBRA PARA DEPÓSITO E FERRAMENTARIA TIPO-I, ÁREA INTERNA 14,52M2, EM CHAPA DE COMPENSADO RESINADO, INCLUSIVE MOBILIÁRIO (OBRA DE PEQUENO PORTE, EFETIVO ATÉ 30 HOMENS), PADRÃO DER-MG | C130: un | D130: 7560.55
A131: ED-50129 | B131: BARRACÃO DE OBRA PARA DEPÓSITO E FERRAMENTARIA TIPO-II, ÁREA INTERNA 25,41M2, EM CHAPA DE COMPENSADO RESINADO, INCLUSIVE MOBILIÁRIO (OBRA DE MÉDIO PORTE, EFETIVO DE 30 A 60 HOMENS), PADRÃO DER-MG | C131: un | D131: 12480.92
A132: ED-50148 | B132: BARRACÃO DE OBRA PARA ESCRITÓRIO DA EMPREITEIRA TIPO-I, ÁREA INTERNA 18,15M2, EM CHAPA DE COMPENSADO RESINADO, INCLUSIVE MOBILIÁRIO (OBRA DE PEQUENO A MÉDIO PORTE, EFETIVO ATÉ 60 HOMENS) - PADRÃO DER-MG | C132: un | D132: 9928.7
A133: ED-50149 | B133: BARRACÃO DE OBRA PARA ESCRITÓRIO DA EMPREITEIRA TIPO-II, ÁREA INTERNA 21,78M2, EM CHAPA DE COMPENSADO RESINADO, INCLUSIVE MOBILIÁRIO (OBRA DE GRANDE PORTE, EFETIVO ACIMA 60 HOMENS) - PADRÃO DER-MG | C133: un | D133: 11499.64
A134: ED-50146 | B134: BARRACÃO DE OBRA PARA ESCRITÓRIO DA FISCALIZAÇÃO TIPO-I, ÁREA INTERNA 18,15M2, EM CHAPA DE COMPENSADO RESINADO, INCLUSIVE MOBILIÁRIO (OBRA DE PEQUENO A MÉDIO PORTE, EFETIVO ATÉ 60 HOMENS) - PADRÃO DER-MG | C134: un | D134: 9870.88
A135: ED-50147 | B135: BARRACÃO DE OBRA PARA ESCRITÓRIO DA FISCALIZAÇÃO TIPO-II, ÁREA INTERNA 21,78M2, EM CHAPA DE COMPENSADO RESINADO, INCLUSIVE MOBILIÁRIO (OBRA DE GRANDE PORTE, EFETIVO ACIMA 60 HOMENS) - PADRÃO DER-MG | C135: un | D135: 11441.82
A136: ED-50130 | B136: BARRACÃO DE OBRA PARA INSTALAÇÃO SANITÁRIA TIPO-I, ÁREA INTERNA 14,52M2, EM CHAPA DE COMPENSADO RESINADO (OBRA DE PEQUENO PORTE, EFETIVO ATÉ 30 HOMENS), PADRÃO DER-MG | C136: un | D136: 8475.88
A137: ED-50131 | B137: BARRACÃO DE OBRA PARA INSTALAÇÃO SANITÁRIA TIPO-II, ÁREA INTERNA 18,15M2, EM CHAPA DE COMPENSADO RESINADO (OBRA DE MÉDIO PORTE, EFETIVO DE 30 A 60 HOMENS), PADRÃO DER-MG | C137: un | D137: 10819.16
A138: ED-50132 | B138: BARRACÃO DE OBRA PARA INSTALAÇÃO SANITÁRIA TIPO-III, ÁREA INTERNA 25,41M2, EM CHAPA DE COMPENSADO RESINADO (OBRA DE GRANDE PORTE, EFETIVO ACIMA DE 60 HOMENS), PADRÃO DER-MG | C138: un | D138: 15216.21
A139: ED-50133 | B139: BARRACÃO DE OBRA PARA REFEITÓRIO TIPO-I, ÁREA INTERNA 18,15M2, EM CHAPA DE COMPENSADO RESINADO (OBRA DE MÉDIO PORTE, EFETIVO DE 30 A 60 HOMENS), PADRÃO DER-MG | C139: un | D139: 9547.91
A140: ED-50134 | B140: BARRACÃO DE OBRA PARA REFEITÓRIO TIPO-II, ÁREA INTERNA 25,41M2, EM CHAPA DE COMPENSADO RESINADO (OBRA DE GRANDE PORTE, EFETIVO ACIMA DE 60 HOMENS), PADRÃO DER-MG | C140: un | D140: 12901.37
A141: ED-50126 | B141: BARRACÃO DE OBRA PARA VESTIÁRIO TIPO-I, ÁREA INTERNA 25,41M2, EM CHAPA DE COMPENSADO RESINADO, INCLUSIVE MOBILIÁRIO (OBRA DE PEQUENO PORTE, EFETIVO ATÉ 30 HOMENS), PADRÃO DER-MG | C141: un | D141: 13101.96
A142: ED-50127 | B142: BARRACÃO DE OBRA PARA VESTIÁRIO TIPO-II, ÁREA INTERNA 67,76M2, EM CHAPA DE COMPENSADO RESINADO, INCLUSIVE MOBILIÁRIO (OBRA DE MÉDIO PORTE, EFETIVO DE 30 A 60 HOMENS), PADRÃO DER-MG | C142: un | D142: 25165.88
A143: ED-16341 | B143: LIGAÇÃO PROVISÓRIA DE ÁGUA E ESGOTO PARA CONTAINER (ESCRITÓRIO DE OBRA) | C143: un | D143: 295.77
A144: ED-16343 | B144: LIGAÇÃO PROVISÓRIA DE ÁGUA E ESGOTO PARA CONTAINER (VESTIÁRIO DE OBRA), EXCLUSIVE CHUVEIRO ELÉTRICO | C144: un | D144: 348.87
A145: ED-16342 | B145: LIGAÇÃO PROVISÓRIA DE ENERGIA ELÉTRICA PARA CONTAINER | C145: un | D145: 327.92
A146: ED-16356 | B146: LIGAÇÕES PROVISÓRIAS PARA CONTAINER TIPO 1 (CORRESPONDENTE AO CÓDIGO ED-16348) | C146: un | D146: 327.92
A147: ED-16357 | B147: LIGAÇÕES PROVISÓRIAS PARA CONTAINER TIPO 2 (CORRESPONDENTE AO CÓDIGO ED-16349) | C147: un | D147: 623.69
A148: ED-16358 | B148: LIGAÇÕES PROVISÓRIAS PARA CONTAINER TIPO 3 (CORRESPONDENTE AO CÓDIGO ED-16350) | C148: un | D148: 327.92
A149: ED-16359 | B149: LIGAÇÕES PROVISÓRIAS PARA CONTAINER TIPO 4 (CORRESPONDENTE AO CÓDIGO ED-16351) | C149: un | D149: 327.92
A150: ED-16360 | B150: LIGAÇÕES PROVISÓRIAS PARA CONTAINER TIPO 5 (CORRESPONDENTE AO CÓDIGO ED-16352) | C150: un | D150: 1048.98
A151: ED-16361 | B151: LIGAÇÕES PROVISÓRIAS PARA CONTAINER TIPO 6 (CORRESPONDENTE AO CÓDIGO ED-16353) | C151: un | D151: 676.79
A152: ED-16362 | B152: LIGAÇÕES PROVISÓRIAS PARA CONTAINER TIPO 7 (CORRESPONDENTE AO CÓDIGO ED-16354) | C152: un | D152: 889.47
A153: ED-16363 | B153: LIGAÇÕES PROVISÓRIAS PARA CONTAINER TIPO 8 (CORRESPONDENTE AO CÓDIGO ED-16355) | C153: un | D153: 327.92
A154: ED-50155 | B154: LOCAÇÃO DE BANHEIRO QUÍMICO, DIMENSÃO (110X120X230)CM, LINHA PADRÃO, CONTENDO UMA (1) PIA/HIGIENIZADOR DE MÃOS, INCLUSIVE MANUTENÇÃO E MOBILIZAÇÃO/DESMOBILIZAÇÃO | C154: mês | D154: 800
A155: ED-16348 | B155: LOCAÇÃO DE CONTAINER COM ISOLAMENTO TÉRMICO, TIPO 1, PARA ESCRITÓRIO DE OBRA, COM MEDIDAS REFERENCIAIS DE (6) METROS COMPRIMENTO, (2,3) METROS LARGURA E (2,5) METROS ALTURA ÚTIL INTERNA, INCLUSIVE AR CONDICIONADO E LIGAÇÕES ELÉTRICAS INTERNAS, EXCLUSIVE MOBILIZAÇÃO/DESMOBILIZAÇÃO E LIGAÇÕES PROVISÓRIAS EXTERNAS | C155: mês | D155: 784.6
A156: ED-16349 | B156: LOCAÇÃO DE CONTAINER COM ISOLAMENTO TÉRMICO, TIPO 2, PARA ESCRITÓRIO DE OBRA COM SANITÁRIO CONTENDO UM (1) VASO SANITÁRIO E UM (1) LAVATÓRIO, COM MEDIDAS REFERENCIAIS DE (6) METROS COMPRIMENTO, (2,3) METROS LARGURA E (2,5) METROS ALTURA ÚTIL INTERNA, INCLUSIVE AR CONDICIONADO E LIGAÇÕES ELÉTRICAS E HIDROSSANITÁRIAS INTERNAS, EXCLUSIVE MOBILIZAÇÃO/DESMOBILIZAÇÃO E LIGAÇÕES PROVISÓRIAS EXTERNAS | C156: mês | D156: 938.84
A157: ED-16350 | B157: LOCAÇÃO DE CONTAINER COM ISOLAMENTO TÉRMICO, TIPO 3, PARA DEPÓSITO/FERRAMENTARIA DE OBRA, COM MEDIDAS REFERENCIAIS DE (6) METROS COMPRIMENTO, (2,3) METROS LARGURA E (2,5) METROS ALTURA ÚTIL INTERNA, INCLUSIVE LIGAÇÕES ELÉTRICAS INTERNAS, EXCLUSIVE MOBILIZAÇÃO/DESMOBILIZAÇÃO E LIGAÇÕES PROVISÓRIAS EXTERNAS | C157: mês | D157: 676.39
A158: ED-16351 | B158: LOCAÇÃO DE CONTAINER COM ISOLAMENTO TÉRMICO, TIPO 4, PARA REFEITÓRIO DE OBRA, COM MEDIDAS REFERENCIAIS DE (6) METROS COMPRIMENTO, (2,3) METROS LARGURA E (2,5) METROS ALTURA ÚTIL INTERNA, INCLUSIVE LIGAÇÕES ELÉTRICAS INTERNAS, EXCLUSIVE MOBILIZAÇÃO/DESMOBILIZAÇÃO E LIGAÇÕES PROVISÓRIAS EXTERNAS | C158: mês | D158: 601.9
A159: ED-16352 | B159: LOCAÇÃO DE CONTAINER COM ISOLAMENTO TÉRMICO, TIPO 5, PARA VESTIÁRIO DE OBRA COM SETE (7) CHUVEIROS E DOIS (2) LAVATÓRIOS, COM MEDIDAS REFERENCIAIS DE (6) METROS COMPRIMENTO, (2,3) METROS LARGURA E (2,5) METROS ALTURA ÚTIL INTERNA, INCLUSIVE LIGAÇÕES ELÉTRICAS E HIDROSSANITÁRIAS INTERNAS, EXCLUSIVE MOBILIZAÇÃO/DESMOBILIZAÇÃO E LIGAÇÕES PROVISÓRIAS EXTERNAS | C159: mês | D159: 809.96
A160: ED-16353 | B160: LOCAÇÃO DE CONTAINER COM ISOLAMENTO TÉRMICO, TIPO 6, PARA VESTIÁRIO DE OBRA COM SETE (7) VASOS SANITÁRIOS, UM (1) MICTÓRIO E UM (1) LAVATÓRIO, COM MEDIDAS REFERENCIAIS DE (6) METROS COMPRIMENTO, (2,3) METROS LARGURA E (2,5) METROS ALTURA ÚTIL INTERNA, INCLUSIVE LIGAÇÕES ELÉTRICAS E HIDROSSANITÁRIAS INTERNAS, EXCLUSIVE MOBILIZAÇÃO/DESMOBILIZAÇÃO E LIGAÇÕES PROVISÓRIAS EXTERNAS | C160: mês | D160: 794.94
A161: ED-16354 | B161: LOCAÇÃO DE CONTAINER COM ISOLAMENTO TÉRMICO, TIPO 7, PARA VESTIÁRIO DE OBRA COM QUATRO (4) CHUVEIROS, TRÊS (3) VASOS SANITÁRIOS, UM (1) MICTÓRIO E UM (1) LAVATÓRIO, COM MEDIDAS REFERENCIAIS DE (6) METROS COMPRIMENTO, (2,3) METROS LARGURA E (2,5) METROS ALTURA ÚTIL INTERNA, INCLUSIVE LIGAÇÕES ELÉTRICAS E HIDROSSANITÁRIAS INTERNAS, EXCLUSIVE MOBILIZAÇÃO/DESMOBILIZAÇÃO E LIGAÇÕES PROVISÓRIAS EXTERNAS | C161: mês | D161: 787.91
A162: ED-16355 | B162: LOCAÇÃO DE CONTAINER COM ISOLAMENTO TÉRMICO, TIPO 8, PARA VESTIÁRIO DE OBRA COM OITO (8) BANCOS E CINCO (5) ARMÁRIOS, COM MEDIDAS REFERENCIAIS DE (6) METROS COMPRIMENTO, (2,3) METROS LARGURA E (2,5) METROS ALTURA ÚTIL INTERNA, INCLUSIVE LIGAÇÕES ELÉTRICAS INTERNAS, EXCLUSIVE MOBILIZAÇÃO/DESMOBILIZAÇÃO E LIGAÇÕES PROVISÓRIAS EXTERNAS | C162: mês | D162: 614.75
A163: ED-50137 | B163: MOBILIZAÇÃO E DESMOBILIZAÇÃO DE CONTAINER, INCLUSIVE CARGA, DESCARGA E TRANSPORTE EM CAMINHÃO CARROCERIA COM GUINDAUTO (MUNCK), EXCLUSIVE LOCAÇÃO DO CONTAINER | C163: un | D163: 686.28
A164: 8726 | B164: LOCAÇÃO DA OBRA
A165: ED-17989 | B165: LOCAÇÃO DE OBRA COM GABARITO DE TÁBUAS CORRIDAS PONTALETADAS A CADA 2,00M, REAPROVEITAMENTO (2X), INCLUSIVE ACOMPANHAMENTO DE EQUIPE TOPOGRÁFICA PARA MARCAÇÃO DE PONTO TOPOGRÁFICO | C165: m | D165: 58.85
A166: ED-50276 | B166: LOCAÇÃO TOPOGRÁFICA ACIMA DE CINQUENTA (50) PONTOS REFERENCIAIS, INCLUSIVE ESTACA (PIQUETE) DE MARCAÇÃO | C166: un | D166: 34.12
A167: ED-50275 | B167: LOCAÇÃO TOPOGRÁFICA DE VINTE UM (21) ATÉ CINQUENTA (50) PONTOS REFERENCIAIS, INCLUSIVE ESTACA (PIQUETE) DE MARCAÇÃO | C167: un | D167: 58.9
A168: ED-50274 | B168: LOCAÇÃO TOPOGRÁFICA PARA ATÉ VINTE (20) PONTOS REFERENCIAIS, INCLUSIVE ESTACA (PIQUETE) DE MARCAÇÃO | C168: un | D168: 78.17
A169: 8727 | B169: TAPUME E CERCA
A170: ED-50162 | B170: ABERTURA PARA PORTÃO EM TAPUME FIXO DE PROTEÇÃO PARA FECHAMENTO DE OBRA EM CHAPA DE COMPENSADO, ESP. 12MM, COM MÓDULO NA DIMENSÃO DE (110X220)CM, INCLUSIVE PINTURA LÁTEX (PVA) COM DUAS (2) DEMÃOS | C170: m2 | D170: 154.5
A171: ED-50136 | B171: CERCA COM MOURÕES DE MADEIRA ROLIÇA, COM CINCO (5) FIOS DE ARAME FARPADO, BWG 14 (2,0MM), ALTURA DE 150CM, INCLUSIVE ESCAVAÇÃO, REATERRO COMPACTADO E FORNECIMENTO | C171: m | D171: 39.19
A172: ED-50166 | B172: REMANEJAMENTO DE TAPUME FIXO DE PROTEÇÃO PARA FECHAMENTO DE OBRA, INCLUSIVE ESCAVAÇÃO MANUAL E REATERRO COMPACTADO | C172: m2 | D172: 9.51
A173: ED-50163 | B173: TAPUME DE PROTEÇÃO PARA TRANSEUNTE EM TELA DE POLIETILENO, COM MÓDULO NA DIMENSÃO DE (150X150)CM, INCLUSIVE BASE DE APOIO EM CONCRETO MAGRO, DIMENSÃO (40X40)CM, ALTURA DE 20CM, EM PONTALETE, FORNECIMENTO E MOVIMENTAÇÃO | C173: m | D173: 17.42
A174: ED-50159 | B174: TAPUME FIXO DE PROTEÇÃO PARA FECHAMENTO DE OBRA EM CHAPA DE COMPENSADO, ESP. 12MM, COM MÓDULO NA DIMENSÃO DE (110X220)CM, INCLUSIVE PINTURA LÁTEX (PVA) COM DUAS (2) DEMÃOS, EXCLUSIVE ABERTURA PARA PORTÃO | C174: m | D174: 236.32
A175: ED-50164 | B175: TAPUME FIXO DE PROTEÇÃO PARA FECHAMENTO DE OBRA EM TELA GALVANIZADA, COM TRAMA LOSANGULAR DE 2"X2", FIO BWG 14, COM MÓDULO NA DIMENSÃO DE (300X220)CM, INCLUSIVE PINTURA ESMALTE COM DUAS (2) DEMÃOS, EXCLUSIVE ABERTURA PARA PORTÃO | C175: m2 | D175: 78.25
A176: ED-28444 | B176: TAPUME FIXO DE PROTEÇÃO PARA FECHAMENTO DE OBRA EM TELHA METÁLICA GALVANIZADA, TIPO TRAPEZOIDAL, ESP. 0,5MM, COM MÓDULO NA DIMENSÃO DE (300X220)CM, COM REAPROVEITAMENTO, EXCLUSIVE PINTURA ESMALTE, INCLUSIVE PONTALETE E FIXAÇÃO | C176: m | D176: 170.97
A177: ED-50165 | B177: TAPUME REMOVÍVEL DE PROTEÇÃO PARA FECHAMENTO DE OBRA EM TELA GALVANIZADA, COM TRAMA LOSANGULAR DE 2"X2", FIO BWG 14, COM MÓDULO NA DIMENSÃO DE (300X220)CM, INCLUSIVE BASE DE APOIO EM CONCRETO MAGRO, DIMENSÃO (40X40)CM, ALTURA DE 20CM EM PONTALETE | C177: m2 | D177: 88.39
A178: 8728 | B178: PROTEÇÃO DE TRANSEUNTE
A179: ED-27006 | B179: CONE PARA SINALIZAÇÃO/ISOLAMENTO DE ÁREAS, ALTURA 75CM, INCLUSIVE FORNECIMENTO E MOVIMENTAÇÃO | C179: un | D179: 4.6
A180: ED-50157 | B180: FITA ZEBRADA AMARELA PARA SINALIZAÇÃO ISOLAMENTO DE ÁREA, EXCLUSIVE SUPORTE PARA SUSTENTAÇÃO, INCLUSIVE FIXAÇÃO E FORNECIMENTO | C180: m | D180: 2.55
A181: ED-50156 | B181: PROTEÇÃO COM FITA ZEBRADA AMARELA PARA ISOLAMENTO DE ÁREA, INCLUSIVE BASE DE APOIO EM CONCRETO MAGRO , DIMENSÃO (40X40)CM, ALTURA DE 150CM, EM PONTALETE, FORNECIMENTO E MOVIMENTAÇÃO | C181: m | D181: 7.43
A182: 8729 | B182: ANDAIME
A183: ED-28530 | B183: ANDAIME EM CAVALETE METÁLICO PARA ALVENARIA, COM CHAPA DE COMPENSADO E TÁBUA, COM REAPROVEITAMENTO, INCLUSIVE MONTAGEM/DESMONTAGEM E REMANEJAMENTO | C183: m | D183: 1.52
A184: ED-28533 | B184: ANDAIME EM CAVALETE METÁLICO PARA FORRO DE GESSO, COM CHAPA DE COMPENSADO E TÁBUA, COM REAPROVEITAMENTO, INCLUSIVE MONTAGEM/DESMONTAGEM E REMANEJAMENTO | C184: m2 | D184: 1.37
A185: ED-48243 | B185: CONDUTOR/DUTO DE ENTULHO EM POLIETILENO, INCLUSIVE ACESSÓRIOS DE FIXAÇÃO, SUPORTES, MONTAGEM/DESMONTAGEM E REMANEJAMENTO | C185: mxmês | D185: 43.77
A186: ED-9075 | B186: FORNECIMENTO DE ANDAIME METÁLICO PARA FACHADA (LOCAÇÃO), INCLUSIVE PISO METÁLICO E SAPATAS, EXCLUSIVE MONTAGEM E DESMONTAGEM | C186: m2xmês | D186: 6.66
A187: ED-9076 | B187: FORNECIMENTO DE ANDAIME METÁLICO TUBULAR TIPO TORRE (LOCAÇÃO), INCLUSIVE RODÍZIOS, EXCLUSIVE MONTAGEM E DESMONTAGEM | C187: mxmês | D187: 20
A188: ED-48246 | B188: MONTAGEM E DESMONTAGEM DE ANDAIME METÁLICO PARA FACHADA COM PISO METÁLICO, EXCLUSIVE FORNECIMENTO DO ANDAIME E RODAPÉ/GUARDA-CORPO EM MADEIRA | C188: m2 | D188: 8.48
A189: ED-48245 | B189: MONTAGEM E DESMONTAGEM DE ANDAIME METÁLICO PARA FACHADA COM PISO METÁLICO, INCLUSIVE RODAPÉ/GUARDA-CORPO EM MADEIRA, EXCLUSIVE FORNECIMENTO DO ANDAIME | C189: m2 | D189: 15.61
A190: ED-9077 | B190: MONTAGEM E DESMONTAGEM DE ANDAIME METÁLICO TUBULAR TIPO TORRE, EXCLUSIVE FORNECIMENTO DO ANDAIME | C190: m | D190: 9.47
A191: ED-48249 | B191: TELA DE PROTEÇÃO, TIPO FACHADEIRA, INSTALADA EM ANDAIME METÁLICO PARA FACHADA, EXCLUSIVE ANDAIME METÁLICO, INCLUSIVE ACESSÓRIOS DE FIXAÇÃO | C191: m2 | D191: 6.16
A192: ED-48248 | B192: TELA PARA PROTEÇÃO DE FACHADA EM POLIETILENO, EXCLUSIVE BANDEJA SALVA VIDAS, INCLUSIVE ACESSÓRIOS DE FIXAÇÃO | C192: m2 | D192: 7.74
A193: 8730 | B193: BANDEJA DE PROTEÇÃO/SALVA VIDAS
A194: ED-28493 | B194: BANDEJA SALVA VIDAS, TIPO PRIMÁRIA, EM SUPORTE METÁLICO COM FORRO EM COMPENSADO RESINADO E TÁBUA, COMPRIMENTO DE 250CM COM COMPLEMENTO DE 80CM, INCLUSIVE ACESSÓRIOS DE FIXAÇÃO E INSTALAÇÃO | C194: m | D194: 286.02
A195: ED-28494 | B195: BANDEJA SALVA VIDAS, TIPO SECUNDÁRIA, EM SUPORTE METÁLICO COM FORRO EM COMPENSADO RESINADO E TÁBUA, COMPRIMENTO DE 140CM COM COMPLEMENTO DE 80CM, INCLUSIVE ACESSÓRIOS DE FIXAÇÃO E INSTALAÇÃO | C195: m | D195: 178.32
A196: 8665 | B196: TERRAPLENAGEM/TRABALHOS EM TERRA
A197: 8731 | B197: REGULARIZAÇÃO E COMPACTAÇÃO DE SOLO
A198: ED-51100 | B198: CORTE E DESATERRO PARA REGULARIZAÇÃO E ARRASTAMENTO NIVELADO A CURTA DISTÂNCIA COM LÂMINA | C198: m3 | D198: 3.72
A199: ED-51123 | B199: REGULARIZAÇÃO E COMPACTAÇÃO DE TERRENO COM PLACA VIBRATÓRIA | C199: m2 | D199: 4.43
A200: ED-51124 | B200: REGULARIZAÇÃO E COMPACTAÇÃO DE TERRENO COM ROLO VIBRATÓRIO | C200: m2 | D200: 2.85
... 3973 more rows

Sheet SICRO
B1: SICRO JULHO 2022
A2: CÓDIGO | B2: DESCRIÇÃO | C2: UNIDADE | D2: PREÇO
A3: M0003 | B3: Aço CA 25 | C3: kg | D3: 7.626
A4: M0004 | B4: Aço CA 50 | C4: kg | D4: 6.5603
A5: M0005 | B5: Brita 0 | C5: m³ | D5: 145.7481
A6: M0006 | B6: Fibra de poliamida para concreto | C6: kg | D6: 18.2004
A7: M0007 | B7: Fibra de aço para concreto | C7: kg | D7: 13.8625
A8: M0008 | B8: Detergente líquido neutro | C8: l | D8: 3.7829
A9: M0009 | B9: Aço CP 175 RB | C9: kg | D9: 11.4146
A10: M0010 | B10: Aditivo superplastificante para concreto e argamassa | C10: kg | D10: 13.8131
A11: M0011 | B11: Aditivo modificador de viscosidade para concreto e argamassa | C11: kg | D11: 9.494
A12: M0012 | B12: Silicato de alumínio | C12: kg | D12: 1.5422
A13: M0013 | B13: Grampo de ancoragem em aço CA 50 - D = 12,5 mm | C13: kg | D13: 6.5603
A14: M0014 | B14: Aço CA 60 | C14: kg | D14: 7.6909
A15: M0015 | B15: Espoleta elétrica Nº 8 - D = 6,0 mm | C15: un | D15: 20.0628
A16: M0016 | B16: Grampo sargento em ferro fundido tipo C com abertura útil de 105 mm (4") | C16: un | D16: 54.2406
A17: M0017 | B17: Saco de aniagem ou de ráfia de 50 kg - C = 95 cm e L = 65 cm | C17: un | D17: 2.8
A18: M0018 | B18: Grampo pesado em aço-carbono para cabo de aço - D = 13 mm (1/2") | C18: un | D18: 18.1543
A19: M0019 | B19: Esticador em aço tipo olhal x olhal para cabo de aço - D = 13 mm | C19: un | D19: 125.7341
A20: M0020 | B20: Grampo de ancoragem em aço CA 50 - D = 6,3 mm | C20: kg | D20: 7.545
A21: M0021 | B21: Herbicida glifosato para áreas contínuas | C21: l | D21: 26.488
A22: M0025 | B22: Adesivo plástico para tubos de PVC | C22: kg | D22: 51.5788
A23: M0026 | B23: Aditivo aglutinante para argamassa | C23: l | D23: 7.7848
A24: M0028 | B24: Areia média | C24: m³ | D24: 145.6487
A25: M0029 | B25: Sílica ativa para concreto e argamassa (microssílica) | C25: kg | D25: 1.4996
A26: M0030 | B26: Aditivo plastificante e retardador de pega para concreto e argamassa | C26: kg | D26: 6.8877
A27: M0032 | B27: Adesivo de contato para laminado elastoplástico | C27: kg | D27: 33.7096
A28: M0035 | B28: Diluente tipo aguarrás para tintas e vernizes | C28: l | D28: 13.66
A29: M0039 | B29: Gasolina comum | C29: l | D29: 6.881
A30: M0041 | B30: Container com 2 banheiros - L = 2,44 m e C = 6,09 m (1 TEU) | C30: un | D30: 59304.3988
A31: M0042 | B31: Container com janela - L = 2,44 m e C = 6,09 m (1 TEU) | C31: un | D31: 40679.187
A32: M0043 | B32: Óleo diesel | C32: l | D32: 6.9385
A33: M0044 | B33: Abrasivo de vidro com granulometria de 210 a 420 micra | C33: kg | D33: 7.8985
A34: M0045 | B34: Barreira plástica monobloco para canalização de trânsito - C = 100 cm, L = 50 cm e H = 55 cm | C34: un | D34: 755.3723
A35: M0046 | B35: Barreira plástica para canalização de trânsito - C = 60 cm, L = 45 cm e H = 60 cm | C35: un | D35: 328.7812
A36: M0047 | B36: Cone de sinalização em polietileno - H = 75 cm e base quadrada de 40 x 40 cm | C36: un | D36: 84.7134
A37: M0048 | B37: Balizador cônico refletivo em polietileno semiflexível - H = 114 cm e base octogonal de D = 40 cm | C37: un | D37: 140.1143
A38: M0049 | B38: Delimitador de tráfego flexível com chumbador e duas faixas refletivas - H = 77 cm e D = 21 cm | C38: un | D38: 197.6558
A39: M0050 | B39: Aditivo natural tipo goma xantana para hidrossemeadura | C39: kg | D39: 95.914
A40: M0051 | B40: Cilindro canalizador de tráfego em polietileno - H = 117 cm e base quadrada de 60 x 60 cm | C40: un | D40: 210.2358
A41: M0052 | B41: Fita adesiva de PVC - L = 50 mm e C = 50 m | C41: m | D41: 0.0988
A42: M0053 | B42: Tela plástica em polipropileno na cor laranja para tapume - L = 1,2 m | C42: m | D42: 1.8496
A43: M0054 | B43: Fita zebrada de cor laranja e branca - L = 7 a 8 cm | C43: m | D43: 0.0695
A44: M0055 | B44: Barreira plástica articulável modular - C = 240 cm e H = 100 cm | C44: un | D44: 1587.317
A45: M0056 | B45: Ferramenta de corte para removedora de faixa de sinalização (Smith Cutter) | C45: un | D45: 5192.8113
A46: M0057 | B46: Container com janela - L = 4,88 m e C = 6,09 m (1 TEU duplo) | C46: un | D46: 90096.4988
A47: M0058 | B47: Container com janela e 2 banheiros - L = 4,88 m e C = 6,09 m (1 TEU duplo) | C47: un | D47: 93907.8988
A48: M0059 | B48: Container com revestimento térmico, janela e banheiro - L = 2,44 m e C = 6,09 m (1 TEU) | C48: un | D48: 57791.2437
A49: M0060 | B49: Container com janela - L = 2,44 m e C = 4,58 m (3/4 TEU) | C49: un | D49: 41649.36
A50: M0065 | B50: Container com janela e banheiro - L = 2,44 m e 4,58 m (3/4 TEU) | C50: un | D50: 42202.2397
A51: M0066 | B51: Container com revestimento térmico, janela e banheiro - L = 2,44 m e C = 12,90 m (2 TEU) | C51: un | D51: 70767.6915
A52: M0067 | B52: Tubo PEAD PE 100 PN 10 com flanges - D = 160 mm | C52: m | D52: 166.6215
A53: M0068 | B53: Caibro de pinho - L = 7,5 cm e E = 10,0 cm | C53: m | D53: 21.8092
A54: M0069 | B54: Arame farpado em aço galvanizado - D = 1,60 mm | C54: m | D54: 0.5994
A55: M0071 | B55: Container com 3 janelas para guarita - L = 2,44 m e C = 3,05 m (1/2 TEU) | C55: un | D55: 24082.0358
A56: M0072 | B56: Arame liso em aço galvanizado - D = 2,10 mm (14 BWG) | C56: kg | D56: 19.6885
A57: M0073 | B57: Muda de árvore com altura de 0,30 a 0,80 m | C57: un | D57: 8.2283
A58: M0074 | B58: Muda de arbusto com altura até 0,50 m | C58: un | D58: 11.87
A59: M0075 | B59: Arame liso recozido em aço-carbono - D = 1,24 mm (18 BWG) | C59: kg | D59: 8.9767
A60: M0076 | B60: Disco de corte abrasivo para policorte - D = 300 mm | C60: un | D60: 15.2299
A61: M0080 | B61: Areia fina | C61: m³ | D61: 147.4568
A62: M0081 | B62: Areia grossa | C62: m³ | D62: 140.0437
A63: M0082 | B63: Areia média lavada | C63: m³ | D63: 188.3175
A64: M0083 | B64: Argamassa pré-dosada para grauteamento | C64: kg | D64: 1.2555
A65: M0084 | B65: Argamassa pré-dosada autoadensável para grauteamento | C65: kg | D65: 1.5124
A66: M0085 | B66: Ancoragem ativa para 4 cordoalhas - D = 12,7 mm | C66: un | D66: 340.527
A67: M0086 | B67: Ancoragem ativa para 6 cordoalhas - D = 12,7 mm | C67: un | D67: 505.2627
A68: M0087 | B68: Ancoragem ativa para 7 cordoalhas - D = 12,7 mm | C68: un | D68: 585.8392
A69: M0088 | B69: Ancoragem ativa para 8 cordoalhas - D = 12,7 mm | C69: un | D69: 686.8995
A70: M0089 | B70: Ancoragem ativa para 9 cordoalhas - D = 12,7 mm | C70: un | D70: 777.681
A71: M0091 | B71: Ancoragem ativa para 10 cordoalhas - D = 12,7 mm | C71: un | D71: 846.6992
A72: M0092 | B72: Ancoragem ativa para 12 cordoalhas - D = 12,7 mm | C72: un | D72: 1078.8766
A73: M0093 | B73: Ancoragem ativa para 15 cordoalhas - D = 12,7 mm | C73: un | D73: 1491.4612
A74: M0094 | B74: Ancoragem ativa para 19 cordoalhas - D = 12,7 mm | C74: un | D74: 1903.4259
A75: M0098 | B75: Bambu com diâmetro médio de 10 cm | C75: m | D75: 14.819
A76: M0099 | B76: Equipamentos para a fábrica de dormentes de concreto protendido | C76: ISF | D76: 513.145
A77: M0100 | B77: Ancoragem ativa para 22 cordoalhas - D = 12,7 mm | C77: un | D77: 2453.0567
A78: M0101 | B78: Ancoragem ativa para 27 cordoalhas - D = 12,7 mm | C78: un | D78: 2940.3963
A79: M0102 | B79: Ancoragem ativa para 31 cordoalhas - D = 12,7 mm | C79: un | D79: 4052.6329
A80: M0103 | B80: Aditivo acelerador de pega para concreto e argamassa projetados | C80: kg | D80: 6.6217
A81: M0104 | B81: Asfalto diluído de petróleo - CM-30 | C81: t | D81: -
A82: M0105 | B82: Ancoragem ativa para 4 cordoalhas - D = 15,2 mm | C82: un | D82: 413.8783
A83: M0106 | B83: Ancoragem ativa para 6 cordoalhas - D = 15,2 mm | C83: un | D83: 634.7262
A84: M0107 | B84: Geocomposto para drenagem | C84: m² | D84: 24.9747
A85: M0108 | B85: Ancoragem ativa para 7 cordoalhas - D = 15,2 mm | C85: un | D85: 751.8365
A86: M0109 | B86: Geodreno vertical - L = 10 cm e E = 5 mm | C86: m | D86: 4.4232
A87: M0110 | B87: Ancoragem ativa para 10 cordoalhas - D = 15,2 mm | C87: un | D87: 1152.9787
A88: M0111 | B88: Ancoragem ativa para 9 cordoalhas - D = 15,2 mm | C88: un | D88: 1022.1986
A89: M0112 | B89: Disco diamantado segmentado para corte de pavimento - D = 1.000 mm | C89: un | D89: 5336.2611
A90: M0113 | B90: Ancoragem ativa para 12 cordoalhas - D = 15,2 mm | C90: un | D90: 1419.9628
A91: M0114 | B91: Disco diamantado segmentado para corte de pavimento - D = 1.500 mm | C91: un | D91: 23740.9104
A92: M0115 | B92: Biomanta vegetal de fibras de coco entrelaçadas com fios de polipropileno biodegradáveis - densidade 0,4 kg/m² | C92: m² | D92: 6.3018
A93: M0116 | B93: Mangote flangeado de borracha reforçada com lonas sintéticas - C = 1,80 m e D = 0,30 m | C93: un | D93: 15035.8126
A94: M0117 | B94: Mangote flangeado de borracha reforçada com lonas sintéticas - C = 1,80 m e D = 0,40 m | C94: un | D94: 15227.546
A95: M0118 | B95: Mangote flangeado de borracha reforçada com lonas sintéticas - C = 1,80 m e D = 0,45 m | C95: un | D95: 20571.159
A96: M0119 | B96: Mangote flangeado de borracha reforçada com lonas sintéticas - C = 1,80 m e D = 0,50 m | C96: un | D96: 21250.1459
A97: M0120 | B97: Tubo PEAD PE 100 PN 8 com flanges - D = 250 mm | C97: m | D97: 364.4325
A98: M0121 | B98: Tubo PEAD PE 100 PN 8 com flanges - D = 400 mm | C98: m | D98: 2353.11
A99: M0122 | B99: Tubo PEAD PE 100 PN 8 com flanges - D = 450 mm | C99: m | D99: 2953.7498
A100: M0123 | B100: Tubo PEAD PE 100 PN 8 com flanges - D = 500 mm | C100: m | D100: 3306.3203
A101: M0124 | B101: Flutuador bipartido em polietileno com núcleo de espuma em poliuretano para tubos - D = 0,30 m | C101: un | D101: 3237.9855
A102: M0125 | B102: Flutuador bipartido em polietileno com núcleo de espuma em poliuretano para tubos - D = 0,40 m | C102: un | D102: 4405.3621
A103: M0126 | B103: Flutuador bipartido em polietileno com núcleo de espuma em poliuretano para tubos - D = 0,45 m | C103: un | D103: 5071.2998
A104: M0127 | B104: Flutuador bipartido em polietileno com núcleo de espuma em poliuretano para tubos - D = 0,50 m | C104: un | D104: 5457.7514
A105: M0128 | B105: Biomanta vegetal de fibras de palha entrelaçadas com fios de polipropileno biodegradáveis - densidade 0,6 kg/m² | C105: m² | D105: 4.9
A106: M0129 | B106: Retentor de sedimento em fibras vegetais - D = 20 cm | C106: m | D106: 39.558
A107: M0130 | B107: Ancoragem ativa para 15 cordoalhas - D = 15,2 mm | C107: un | D107: 1850.9603
A108: M0131 | B108: Tubo PEAD corrugado com paredes estruturadas para drenagem - D = 400 mm | C108: m | D108: 204.3931
A109: M0132 | B109: Tubo PEAD corrugado com paredes estruturadas para drenagem - D = 450 mm | C109: m | D109: 221.1704
A110: M0133 | B110: Tubo PEAD corrugado com paredes estruturadas para drenagem - D = 500 mm | C110: m | D110: 335.7496
A111: M0134 | B111: Tubo PEAD corrugado com paredes estruturadas para drenagem - D = 600 mm | C111: m | D111: 490.2863
A112: M0135 | B112: Tubo PEAD corrugado com paredes estruturadas para drenagem - D = 750 mm | C112: m | D112: 649.6228
A113: M0136 | B113: Tubo PEAD corrugado com paredes estruturadas para drenagem - D = 800 mm | C113: m | D113: 715.8369
A114: M0137 | B114: Tubo PEAD corrugado com paredes estruturadas para drenagem - D = 900 mm | C114: m | D114: 852.6021
A115: M0138 | B115: Ancoragem ativa para 19 cordoalhas - D = 15,2 mm | C115: un | D115: 2421.3444
A116: M0139 | B116: Tubo PEAD corrugado com paredes estruturadas para drenagem - D = 1.000 mm | C116: m | D116: 1143.0476
A117: M0140 | B117: Bentonita | C117: kg | D117: 2.2147
A118: M0141 | B118: Tubo PEAD corrugado com paredes estruturadas para drenagem - D = 1.050 mm | C118: m | D118: 1183.3358
A119: M0142 | B119: Tubo PEAD corrugado com paredes estruturadas para drenagem - D = 1.200 mm | C119: m | D119: 1693.159
A120: M0143 | B120: Tubo PEAD corrugado com paredes estruturadas para drenagem - D = 1.500 mm | C120: m | D120: 2233.9155
A121: M0144 | B121: Tubo PEAD corrugado com paredes estruturadas para drenagem - D = 1.800 mm | C121: m | D121: 6890.4925
A122: M0145 | B122: Ancoragem ativa para 22 cordoalhas - D = 15,2 mm | C122: un | D122: 3103.1185
A123: M0146 | B123: Ancoragem ativa para 27 cordoalhas - D = 15,2 mm | C123: un | D123: 4086.0903
A124: M0147 | B124: Tubo PEAD corrugado com paredes estruturadas para drenagem - D = 2.000 mm | C124: m | D124: 8307.477
A125: M0148 | B125: Ancoragem ativa para lajes para 1 cordoalha - D = 12,7 mm | C125: un | D125: 221.0574
A126: M0149 | B126: Tubo PEAD corrugado com paredes estruturadas para drenagem - D = 2.500 mm | C126: m | D126: 13776.0234
A127: M0150 | B127: Tubo PEAD corrugado com paredes estruturadas para drenagem - D = 3.000 mm | C127: m | D127: 19181.8076
A128: M0151 | B128: Ancoragem ativa para lajes para 2 cordoalhas - D = 12,7 mm | C128: un | D128: 505.0187
A129: M0152 | B129: Ancoragem ativa para lajes para 3 cordoalhas - D = 12,7 mm | C129: un | D129: 1009.7424
A130: M0153 | B130: Ancoragem ativa para lajes para 4 cordoalhas - D = 12,7 mm | C130: un | D130: 1104.6678
A131: M0156 | B131: Bloco de concreto - L = 19 cm, A = 19 cm e C = 39 cm | C131: un | D131: 4.13
A132: M0158 | B132: Tela metálica galvanizada dobrada em L - C = 2,0 m, L = 0,4 m e H = 0,4 m | C132: un | D132: 264.5195
A133: M0160 | B133: Extintor de incêndio tipo espuma mecânica - V = 10 l | C133: un | D133: 467.7308
A134: M0161 | B134: Barra de fibra de vidro (vergalhão) - D = 25,0 mm | C134: m | D134: 55.4125
A135: M0162 | B135: Corrente de elo soldado em aço galvanizado com acabamento polido - D = 3,18 mm (1/8") | C135: m | D135: 6.1899
A136: M0163 | B136: Gonzo com aba em aço galvanizado - D = 12,7 mm (1/2") | C136: un | D136: 2.9139
A137: M0164 | B137: Tubo em aço galvanizado - E = 1,50 mm e seção de 20 x 20 mm | C137: m | D137: 15.8125
A138: M0166 | B138: Tubo em aço galvanizado - E = 2,25 mm e D = 20 mm (3/4") | C138: m | D138: 39.0775
A139: M0167 | B139: Tela de poliamida industrial - E = 0,40 mm e malha de 1,6 mm | C139: m² | D139: 11.9253
A140: M0168 | B140: Abraçadeira de poliamida - E = 3,6 mm e C = 200 mm | C140: un | D140: 0.1725
A141: M0169 | B141: Roda em aço e pneu com câmara de ar 83/203 mm (3,25"/8") para carrinho de mão | C141: un | D141: 62
A142: M0173 | B142: Ancoragem ativa para lajes para 1 cordoalha - D = 15,2 mm | C142: un | D142: 284.2912
A143: M0178 | B143: Ancoragem ativa para lajes para 2 cordoalhas - D = 15,2 mm | C143: un | D143: 662.9877
A144: M0181 | B144: Ancoragem ativa para lajes para 3 cordoalhas - D = 15,2 mm | C144: un | D144: 1262.5068
A145: M0184 | B145: Ancoragem ativa para lajes para 4 cordoalhas - D = 15,2 mm | C145: un | D145: 1357.2522
A146: M0191 | B146: Brita 1 | C146: m³ | D146: 141.3314
A147: M0192 | B147: Brita 2 | C147: m³ | D147: 137.4277
A148: M0193 | B148: Brita 3 | C148: m³ | D148: 136.7662
A149: M0194 | B149: Escória de aciaria | C149: m³ | D149: 12.9568
A150: M0198 | B150: Parafuso de cabeça chata em aço - D = 4,5 mm e bucha plástica - D = 8 mm (S8) | C150: un | D150: 0.2984
A151: M0199 | B151: Coroa de botões cruzados linha R32 - D = 43 mm (1 11/16’’) | C151: un | D151: 356.2977
A152: M0201 | B152: Coroa de botões esféricos linha T38 - D = 89 mm (3 1/2") | C152: un | D152: 1310.5015
A153: M0202 | B153: Coroa de botões esféricos linha T45 - D = 76 mm (3") | C153: un | D153: 672.7228
A154: M0204 | B154: Instalações físicas para a central de pré-moldagem de dormentes de concreto protendido | C154: CMCC | D154: 1698
A155: M0217 | B155: Enxofre | C155: kg | D155: 4.8242
A156: M0220 | B156: Adubo à base de nitrogênio, fósforo e potássio (NPK) | C156: kg | D156: 4.9104
A157: M0222 | B157: Filer calcário | C157: kg | D157: 0.2223
A158: M0223 | B158: Sementes para hidrossemeadura | C158: kg | D158: 30.1618
A159: M0224 | B159: Guia-chapéu pré-moldada - C = 120 cm | C159: un | D159: 58.8363
A160: M0225 | B160: Adubo orgânico composto | C160: kg | D160: 0.2525
A161: M0229 | B161: Gabião tipo colchão em liga de zinco e alumínio revestido com polímero de malha hexagonal - E = 0,17 m | C161: m² | D161: 200.5105
A162: M0230 | B162: Gabião tipo caixa em liga de zinco e alumínio de malha hexagonal - C = 2,00 m, L = 1,00 m e H = 0,50 m | C162: un | D162: 515.6173
A163: M0231 | B163: Gabião tipo caixa em liga de zinco e alumínio de malha hexagonal - C = 2,00 m, L = 1,00 m e H = 1,00 m | C163: un | D163: 1005.2757
A164: M0232 | B164: Gabião tipo caixa em liga de zinco e alumínio revestido com polímero de malha hexagonal - C = 2,00 m, L = 1,00 m e H = 0,50 m | C164: un | D164: 646.7265
A165: M0233 | B165: Gabião tipo caixa em liga de zinco e alumínio revestido com polímero de malha hexagonal - C = 2,00 m, L = 1,00 m e H = 1,00 m | C165: un | D165: 904.6244
A166: M0234 | B166: Gabião tipo saco em liga de zinco e alumínio revestido com polímero de malha hexagonal - D = 0,65 m | C166: m³ | D166: 554.0122
A167: M0235 | B167: Gabião tipo colchão em liga de zinco e alumínio revestido com polímero de malha hexagonal - E = 0,23 m | C167: m² | D167: 215.7751
A168: M0236 | B168: Gabião tipo colchão em liga de zinco e alumínio revestido com polímero de malha hexagonal - E = 0,30 m | C168: m² | D168: 236.486
A169: M0237 | B169: Energia elétrica | C169: kWh | D169: 0.8329
A170: M0253 | B170: Cabo de cobre flexível antichama isolado em PVC - tensão de 450/750 V e seção de 16 mm² | C170: m | D170: 12.7432
A171: M0254 | B171: Mistura gasosa de argônio e dióxido de carbono para solda MIG/MAG | C171: m³ | D171: 33.9643
A172: M0256 | B172: Tinta à base de etil silicato de zinco bicomponente para fundo preparador de pintura | C172: l | D172: 63.7721
A173: M0257 | B173: Diluente para tinta à base de etil silicato de zinco | C173: l | D173: 23.2251
A174: M0260 | B174: Cabo de cobre PP flexível isolado em PVC - tensão de 300/500 V e seção de 3 x 1,5 mm² | C174: m | D174: 3.9302
A175: M0264 | B175: Bomba de combustível industrial eletrônica simples | C175: un | D175: 29475.3543
A176: M0265 | B176: Tanque de combustível aéreo horizontal com escada para visita - capacidade de 5.000 l | C176: un | D176: 21547.3762
A177: M0266 | B177: Cabo de cobre flexível antichama isolado em PVC - tensão de 0,6/1,0 kV e seção de 240 mm² | C177: m | D177: 135.0562
A178: M0267 | B178: Módulo de torre de elevador de cremalheira | C178: un | D178: 3650
A179: M0268 | B179: Módulo de ancoragem de torre de elevador de cremalheira | C179: un | D179: 2745
A180: M0269 | B180: Cabo de cobre flexível antichama isolado em PVC - tensão de 0,6/1,0 kV e seção de 50 mm² | C180: m | D180: 34.1166
A181: M0284 | B181: Caibro de pinho - L = 7,5 cm e E = 7,5 cm | C181: m | D181: 14.9762
A182: M0285 | B182: Pontalete para escoramento - D = 15 cm | C182: m | D182: 9.3108
A183: M0286 | B183: Tábua - E = 2,5 cm e L = 30 cm | C183: m | D183: 13.3641
A184: M0289 | B184: Tábua - E = 2,5 cm e L = 15 cm | C184: m | D184: 4.9313
A185: M0290 | B185: Tábua - E = 2,5 cm e L = 10 cm | C185: m | D185: 4.0986
A186: M0301 | B186: Pontalete para escoramento - D = 10 cm | C186: m | D186: 5.5994
A187: M0310 | B187: Peça de madeira - L = 7,5 cm e E = 2,5 cm | C187: m | D187: 3.1218
A188: M0311 | B188: Filtro de aspiração de ar externo com capacidade 3,58 l/s para compressor de ar respirável | C188: un | D188: 182.828
A189: M0312 | B189: Filtro de purificação de ar comprimido com capacidade de 35 MPa para compressor de ar respirável | C189: un | D189: 170.6679
A190: M0344 | B190: Cal hidratada - a granel | C190: kg | D190: 0.5191
A191: M0345 | B191: Cal hidratada - saco | C191: kg | D191: 0.5354
A192: M0346 | B192: Disco de aço para bomba de projeção via seca | C192: un | D192: 256.9966
A193: M0347 | B193: Disco de aço para bomba de projeção via úmida | C193: un | D193: 810.1198
A194: M0348 | B194: Disco de borracha para bomba de projeção via seca | C194: un | D194: 214.1666
A195: M0349 | B195: Disco de borracha para bomba de projeção via úmida | C195: un | D195: 539.8935
A196: M0350 | B196: Bico para bomba de projeção | C196: un | D196: 290
A197: M0351 | B197: Mangote para bomba de projeção | C197: m | D197: 227.0373
A198: M0365 | B198: Cantoneira em ferro de abas iguais - L = 25,4 mm e E = 4,76 mm | C198: kg | D198: 10.04
A199: M0366 | B199: Cantoneira em aço ASTM A36 galvanizado | C199: kg | D199: 9.7333
A200: M0395 | B200: Chapa de alumínio - E = 1,5 mm | C200: m² | D200: 194.1948
... 7803 more rows

Sheet SUDECAP
B1: SUDECAP OUTUBRO 2022
A2: CÓDIGO | B2: DESCRIÇÃO | C2: UNIDADE | D2: PREÇO
A3: 01 | B3: INSTALAÇAO DA OBRA
A4: 01.01 | B4: ESCRITORIO DE OBRA
A5: 01.01.07 | B5: ESCRITORIO DA FISCALIZAÇAO TIPO I | C5: UN | D5: 7742.2
A6: 01.01.09 | B6: ESCRITORIO DE FISCALIZAÇAO TIPO II | C6: UN | D6: 9092.26
A7: 01.01.12 | B7: ESCRITORIO DA EMPREITEIRA TIPO II | C7: UN | D7: 9092.26
A8: 01.02 | B8: BARRACAO DE OBRA
A9: 01.02.06 | B9: VESTIARIO TIPO I | C9: UN | D9: 6296.73
A10: 01.02.07 | B10: VESTIARIO TIPO II | C10: UN | D10: 12693.72
A11: 01.02.08 | B11: VESTIARIO TIPO III | C11: UN | D11: 16937.46
A12: 01.02.11 | B12: AREA COBERTA EM TELHA ONDULADA DE FIBROCIMENTO 4MM | C12: M2 | D12: 70.03
A13: 01.02.12 | B13: DEPOSITO E FERRAMENTARIA TIPO I | C13: UN | D13: 5016.86
A14: 01.02.13 | B14: DEPOSITO E FERRAMENTARIA TIPO II | C14: UN | D14: 7662.2
A15: 01.02.14 | B15: DEPOSITO E FERRAMENTARIA TIPO III | C15: UN | D15: 10344.9
A16: 01.02.15 | B16: DEPOSITO DE MATERIAIS ENSACADOS | C16: UN | D16: 3717.95
A17: 01.02.20 | B17: INSTALAÇAO SANITARIA TIPO I | C17: UN | D17: 6270.23
A18: 01.02.21 | B18: INSTALAÇAO SANITARIA TIPO II | C18: UN | D18: 7868.98
A19: 01.02.22 | B19: INSTALAÇAO SANITARIA TIPO III | C19: UN | D19: 11127.23
A20: 01.02.25 | B20: REFEITORIO TIPO I | C20: UN | D20: 4941.08
A21: 01.02.26 | B21: REFEITORIO TIPO II | C21: UN | D21: 5596.86
A22: 01.03 | B22: PLACA DE OBRA AFIXADA COM PEÇAS DE MADEIRA
A23: 01.03.01 | B23: 3,00 X 2,00 M EM LONA IMPRESSAO DIGITAL P.SUDECAP | C23: UN | D23: 2412.43
A24: 01.03.02 | B24: PLACA DE OBRA EM LONA IMPRESSAO DIGITAL P. SUDECAP | C24: M2 | D24: 336.09
A25: 01.03.03 | B25: PLACA DE OBRA EM CHAPA GALVANIZADA ADESIVADA, DIMENSÕES 2,40 X 1,20 M, PADRÃO CEF | C25: M2 | D25: 366.87
A26: 01.04 | B26: TAPUME PADRAO SUDECAP (TIPO I, II E III)
A27: 01.04.01 | B27: COMPENSADO 10MM FIXAÇAO ENTERRADA COM INFORME PBH | C27: M | D27: 99.35
A28: 01.04.02 | B28: COMPENSADO 10MM FIXAÇAO ENTERRADA SEM INFORME PBH | C28: M | D28: 99.35
A29: 01.04.03 | B29: COMPENSADO 10MM COM BASE DE CONCRETO C/INFORME PBH | C29: M | D29: 102.7
A30: 01.04.04 | B30: COMPENSADO 10MM COM BASE DE CONCRETO S/INFORME PBH | C30: M | D30: 102.7
A31: 01.04.05 | B31: INFORME PUBLIC.LONA IMP.DIGITAL APLICADO EM TAPUME | C31: M2 | D31: 81.9
A32: 01.04.06 | B32: DE TELA GALVANIZADA #2" FIO 14 C/FIXAÇAO ENTERRADA | C32: M | D32: 50.14
A33: 01.04.07 | B33: DE TELA GALVANIZADA #2" FIO 14 C/BASE DE CONCRETO | C33: M | D33: 54.75
A34: 01.04.09 | B34: TELA-TAPUME DE POLIPROPILENO H= 1,20 M, INCL. BASE | C34: M | D34: 8.84
A35: 01.04.10 | B35: PROTEÇAO COM FITA ZEBRADA AMARELA L=7CM E PEÇA 7X7 | C35: M | D35: 7.07
A36: 01.04.11 | B36: FITA ZEBRADA AMARELA PARA SINALIZAÇAO L= 7CM | C36: M | D36: 2.75
A37: 01.04.12 | B37: TAPUME METÁLICO COM BASE DE CONCRETO | C37: M2 | D37: 46.35
A38: 01.04.13 | B38: TAPUME METÁLICO COM BASE ENTERRADA | C38: M2 | D38: 44.46
A39: 01.04.14 | B39: TAPUME METÁLICO COM TELA E BASE DE CONCRETO | C39: M2 | D39: 42.49
A40: 01.04.15 | B40: TAPUME METÁLICO COM TELA E BASE ENTERRADA | C40: M2 | D40: 40.6
A41: 01.04.20 | B41: REMANEJAMENTO DE TAPUME | C41: M | D41: 7.1
A42: 01.05 | B42: CERCA PADRAO SUDECAP
A43: 01.05.05 | B43: TIPO 1 - PECA 8X8 CADA 2,00M E 5 FIOS ARAME GALVANIZADO | C43: M | D43: 16.21
A44: 01.06 | B44: INSTALAÇAO PROVISORIA - CONCESSIONARIA
A45: 01.06.01 | B45: PADRÃO CEMIG PROVISÓRIO TIPO C3, DEMANDA PROVÁVEL DE 23,1 ATÉ 27,0KW (3F+N) | C45: UN | D45: 796.63
A46: 01.06.05 | B46: PADRAO COPASA - KIT CAVALTE METAL E REGISTRO 3/4" | C46: UN | D46: 442.91
A47: 01.07 | B47: FOSSA E SUMIDOURO
A48: 01.07.02 | B48: FOSSA SEPTICA E SUMIDOURO DN=1,20M H=4,00M | C48: UN | D48: 615.91
A49: 01.08 | B49: REDE INTERNA E PROVISORIA DE AGUA E ESGOTO
A50: 01.08.01 | B50: TUBO PVC D= 100 MM | C50: M | D50: 24.34
A51: 01.08.02 | B51: TUBO PVC D= 150 MM | C51: M | D51: 51.11
A52: 01.08.03 | B52: TUBO PVC D= 200 MM | C52: M | D52: 102.56
A53: 01.08.04 | B53: TUBO PVC D= 250 MM | C53: M | D53: 143.91
A54: 01.08.20 | B54: TUBO PVC AGUA SOLDA E CONEXOES D=20MM (1/2") | C54: M | D54: 6.37
A55: 01.08.21 | B55: TUBO PVC AGUA SOLDA E CONEXOES D=25MM (3/4") | C55: M | D55: 6.68
A56: 01.09 | B56: CONTAINER 6,0X2,30X2,82 M COM ISOLAMENTO TERMICO
A57: 01.09.01 | B57: MOBILIZACAO DE CONTAINER | C57: UN | D57: 600
A58: 01.09.02 | B58: ESCRITORIO COM AR CONDICIONADO | C58: MES | D58: 850
A59: 01.09.03 | B59: ESCRITORIO COM AR CONDICIONADO E SANITARIO | C59: MES | D59: 930
A60: 01.09.05 | B60: VESTIARIO COM 7 CHUVEIROS E 2 LAVATORIOS | C60: MES | D60: 1100
A61: 01.09.06 | B61: VESTIARIO BOX 7 SANIT. 2 LAVAT. 1 MICTORIO | C61: MES | D61: 1100
A62: 01.09.07 | B62: VESTIARIO 4 CHUV. 3 SANIT. 1LAVAT. 1 MICT. | C62: MES | D62: 850
A63: 01.09.08 | B63: VESTIARIO | C63: MES | D63: 650
A64: 01.09.09 | B64: REFEITORIO | C64: MES | D64: 650
A65: 01.09.10 | B65: DEPOSITO E FERRAMENTARIA COM LAVATORIO | C65: MES | D65: 730
A66: 01.09.11 | B66: DESMOBILIZAÇÃO DE CONTAINER | C66: UN | D66: 600
A67: 01.09.12 | B67: INSTALAÇÕES PARA CONTAINERS TIPO ESCRITORIO | C67: UN | D67: 748.98
A68: 01.09.13 | B68: INSTALAÇÕES PARA CONTAINER VESTIARIO COM BANCO E ARMÁRIO | C68: UN | D68: 224.39
A69: 01.09.14 | B69: INSTALAÇÕES PARA CONTAINER REFEITORIO | C69: UN | D69: 227.55
A70: 01.09.15 | B70: INSTALAÇÕES PARA CONTAINER DEPOSITO E FERRAMENTARIA COM LAVATORIO | C70: UN | D70: 381.11
A71: 01.09.16 | B71: CAIXA DÁGUA DE 1000L PARA ABASTECIMENTO DE CONTAINERS | C71: UN | D71: 261.63
A72: 01.10 | B72: BANHEIRO QUIMICO
A73: 01.10.01 | B73: BANHEIRO QUIMICO 110X120X230CM COM MANUTENCAO | C73: MES | D73: 680
A74: 01.10.02 | B74: BANHEIRO QUÍMICO E REBOQUE PARA TRANSPORTE DE BANHEIRO QUÍMICO | C74: MES | D74: 1022.1
A75: 01.11 | B75: SINALIZAÇAO
A76: 01.11.01 | B76: PLACA 1,0X0,60M DUPLA FACE CH.GALV. 26 EM CAVALETE | C76: UNMES | D76: 27.34
A77: 01.11.02 | B77: PLACA 1,0X0,60M CH.26 EM CAVALETE METALON 20X20MM | C77: UNMES | D77: 16.6
A78: 01.11.03 | B78: PLACA 0,50X0,50M DUPLA FACE CH.GALV.22 EM CAVALETE | C78: UNMES | D78: 14.8
A79: 01.11.04 | B79: PLACA 0,50X0,50M CH.GALV.22 CAVALETE METALON 20X20 | C79: UNMES | D79: 12.8
A80: 01.11.05 | B80: FAIXA 6,0X0,80M TECIDO MORIM SUPORTE EM EUCALIPTO | C80: UN | D80: 200.79
A81: 01.11.06 | B81: CONE MASTER 75CM BASE DE BORRACHA CORPO POLIETILEN | C81: UN | D81: 81.14
A82: 01.11.07 | B82: CONE EM PVC H= 75 CM | C82: UN | D82: 40.4
A83: 01.11.08 | B83: SINALIZADOR ELET.MONOLIGHT LED 60 A 70 FLASHES/MIN | C83: UN | D83: 142.09
A84: 01.12 | B84: VISTORIA CAUTELAR
A85: 01.12.01 | B85: VISTORIA CAUTELAR - ÁREA CONSTRUÍDA <= 100M2 | C85: UN | D85: 291.22
A86: 01.12.02 | B86: VISTORIA CAUTELAR - 101M2 < ÁREA CONSTRUÍDA <= 200M2 | C86: UN | D86: 362.44
A87: 01.12.03 | B87: VISTORIA CAUTELAR - 201M2 < ÁREA CONSTRUÍDA <= 500M2 | C87: UN | D87: 482.5
A88: 01.12.04 | B88: VISTORIA CAUTELAR - 501M2 < ÁREA CONSTRUÍDA <= 2000M2 | C88: UN | D88: 700.34
A89: 01.12.05 | B89: VISTORIA CAUTELAR - 2001M2 < ÁREA CONSTRUÍDA <= 7000M2 | C89: UN | D89: 1172.25
A90: 01.12.06 | B90: VISTORIA CAUTELAR - ÁREA CONSTRUÍDA > 7001M2 | C90: UN | D90: 1652.62
A91: 01.17 | B91: LOCAÇAO DE OBRA
A92: 01.17.01 | B92: GABARITO | C92: M | D92: 28.63
A93: 01.29 | B93: ANDAIME FACHADEIRO
A94: 01.29.01 | B94: ANDAIME FACHADEIRO INCLUSIVE FORRO METALICO | C94: M2MES | D94: 11
A95: 01.29.02 | B95: GUARDA CORPO MADEIRA L= 15 CM P/ ANDAIME FACHADEIRO | C95: M2 | D95: 8.82
A96: 01.29.03 | B96: MONTAGEM DE ANDAIME FACHADEIRO | C96: M2 | D96: 1.8
A97: 01.29.04 | B97: DESMONTAGEM DE ANDAIME FACHADEIRO | C97: M2 | D97: 1.8
A98: 01.30 | B98: MONTAGEM E DESMONTAGEM DE ANDAIME
A99: 01.30.02 | B99: ANDAIME INTERNO P/EXEC. DE ALVENARIA ALT. ATE 3,5M | C99: M2 | D99: 14.59
A100: 01.30.03 | B100: ANDAIME INTERNO DE MADEIRA P/ REVESTIMENTO DE TETO | C100: M2 | D100: 15.44
A101: 02 | B101: DEMOLIÇOES E REMOÇOES
A102: 02.01 | B102: REMOÇAO DE TELHA INCLUSIVE EMPILHAMENTO
A103: 02.01.01 | B103: METALICA OU PVC | C103: M2 | D103: 4
A104: 02.01.03 | B104: TIPO CALHA DE FIBROCIMENTO | C104: M2 | D104: 9.59
A105: 02.01.05 | B105: ONDULADA DE FIBROCIMENTO | C105: M2 | D105: 7.99
A106: 02.01.07 | B106: CERAMICA COLONIAL OU FRANCESA | C106: M2 | D106: 9.59
A107: 02.02 | B107: REMOÇAO DE CALHA, RUFO E CONDUTOR,INCL.AFASTAMENTO
A108: 02.02.01 | B108: DE CALHA GALVANIZADA OU PVC | C108: M | D108: 4.79
A109: 02.02.05 | B109: DE RUFO DE CHAPA GALVANIZADA | C109: M | D109: 3.2
A110: 02.02.10 | B110: DE CONDUTOR DE CHAPA GALVANIZADA OU PVC | C110: M | D110: 3.2
A111: 02.03 | B111: REMOÇAO DE ENGRADAMENTO DE TELHADO INCL.EMPILHAM.
A112: 02.03.01 | B112: DE TELHA METALICA OU PVC | C112: M2 | D112: 5.39
A113: 02.03.03 | B113: DE TELHA TIPO CALHA DE FIBROCIMENTO | C113: M2 | D113: 2.69
A114: 02.03.05 | B114: DE TELHA ONDULADA DE FIBROCIMENTO | C114: M2 | D114: 5.39
A115: 02.03.07 | B115: DE TELHA CERAMICA, COLONIAL OU FRANCESA | C115: M2 | D115: 7.58
A116: 02.04 | B116: REMOÇAO DE FORRO INCLUSIVE EMPILHAMENTO
A117: 02.04.01 | B117: DE PLACAS INCLUSIVE BARROTEAMENTO | C117: M2 | D117: 13.52
A118: 02.04.02 | B118: DE PLACAS EXCLUSIVE BARROTEAMENTO | C118: M2 | D118: 6.76
A119: 02.04.10 | B119: DE GESSO | C119: M2 | D119: 10.14
A120: 02.06 | B120: REMOÇAO DE ESQUADRIA DE MADEIRA INCL. EMPILHAMENTO
A121: 02.06.01 | B121: DE PORTA OU JANELA INCLUSIVE MARCO E ALIZAR | C121: M2 | D121: 9.56
A122: 02.06.02 | B122: DE FOLHA DE PORTA OU JANELA | C122: M2 | D122: 4.78
A123: 02.06.03 | B123: DE MARCO E ALIZAR | C123: UN | D123: 8.16
A124: 02.06.04 | B124: DE MARCO | C124: UN | D124: 5.77
A125: 02.06.05 | B125: DE ALIZAR | C125: CJ | D125: 2.39
A126: 02.07 | B126: REMOÇAO DE ESQUADRIA METALICA
A127: 02.07.01 | B127: DE PORTA OU JANELA | C127: M2 | D127: 11.95
A128: 02.09 | B128: DEMOLIÇAO DE REVESTIMENTO INCLUSIVE AFASTAMENTO
A129: 02.09.01 | B129: DE REBOCO | C129: M2 | D129: 2.21
A130: 02.09.03 | B130: CERAMICO, AZULEJO OU LADRILHO HIDRAULICO | C130: M2 | D130: 14.38
A131: 02.09.05 | B131: DE PEDRA (MARMORE, GRANITO, ARDOSIA, SAO TOME,ETC) | C131: M2 | D131: 15.98
A132: 02.09.06 | B132: DE FORMICA | C132: M2 | D132: 4.78
A133: 02.09.07 | B133: DE PEDRA ALMOFADADA | C133: M2 | D133: 33.8
A134: 02.10 | B134: DEMOLIÇAO DE PISO INCLUSIVE AFASTAMENTO
A135: 02.10.01 | B135: CIMENTADO OU CONTRAPISO DE ARGAMASSA | C135: M2 | D135: 2.21
A136: 02.10.03 | B136: CERAMICO OU LADRILHO HIDRAULICO | C136: M2 | D136: 11.19
A137: 02.10.05 | B137: DE PEDRA (MARMORE, GRANITO, ARDOSIA, SAO TOME,ETC) | C137: M2 | D137: 20.76
A138: 02.10.07 | B138: VINILICO | C138: M2 | D138: 5.6
A139: 02.10.08 | B139: DE MARMORITE | C139: M2 | D139: 13.18
A140: 02.10.09 | B140: DE TACO DE MADEIRA | C140: M2 | D140: 21.92
A141: 02.11 | B141: DEMOLIÇAO DE PASSEIO E PAVIMENTO
A142: 02.11.01 | B142: PASSEIO OU LAJE DE CONCRETO MANUALMENTE | C142: M2 | D142: 19.18
A143: 02.11.02 | B143: PASSEIO OU LAJE DE CONCRETO C/ EQUIP. PNEUMATICO | C143: M2 | D143: 13.34
A144: 02.11.03 | B144: CALÇADA PORTUGUESA | C144: M2 | D144: 4.49
A145: 02.11.04 | B145: PASSEIO OU LAJE DE CONCRETO C/EQUIPAMENTO ELETRICO | C145: M2 | D145: 5.52
A146: 02.11.05 | B146: MANUAL DE ALVENARIA POLIEDRICA | C146: M2 | D146: 5.6
A147: 02.11.07 | B147: DE REVESTIMENTO ASFALTICO COM EQUIP. PNEUMATICO | C147: M2 | D147: 13.34
A148: 02.12 | B148: CORTE MECANICO EM CONCRETO/ASFALTO
A149: 02.12.01 | B149: CORTE MECAN. C/ SERRA CIRCULAR EM CONCRETO/ASFALTO | C149: M | D149: 1.83
A150: 02.13 | B150: DEMOLIÇAO DE CONCRETO INCLUSIVE AFASTAMENTO
A151: 02.13.01 | B151: SIMPLES - MANUAL | C151: M3 | D151: 197.7
A152: 02.13.02 | B152: ARMADO - MANUAL | C152: M3 | D152: 271.66
A153: 02.13.03 | B153: SIMPLES - COM EQUIPAMENTO ELETRICO | C153: M3 | D153: 71.88
A154: 02.13.04 | B154: ARMADO - COM EQUIPAMENTO ELETRICO | C154: M3 | D154: 113.28
A155: 02.14 | B155: DEMOLIÇAO MANUAL, DE ALVENARIA INCL. AFASTAMENTO
A156: 02.14.01 | B156: DE ALVENARIA DE TIJOLOS E BLOCOS | C156: M3 | D156: 89.8
A157: 02.15 | B157: REMOÇAO DE MEIO-FIO
A158: 02.15.01 | B158: PREMOLDADO DE CONCRETO | C158: M | D158: 7
A159: 02.15.02 | B159: DE PEDRA (GNAISSE, BASALTO ETC.) | C159: M | D159: 21
A160: 02.16 | B160: DEMOLIÇAO, REMOÇAO E CARGA MECANICA
A161: 02.16.01 | B161: DE CONSTRUÇOES DE ALVENARIA | C161: M2 | D161: 7.47
A162: 02.16.04 | B162: DE GABIAO | C162: M3 | D162: 18.83
A163: 02.19 | B163: DEMOLIÇAO DE DIVISORIA INCLUSIVE AFASTAMENTO
A164: 02.19.01 | B164: DE PEDRA (MARMORE, ARDORSIA OU MARMORITE) | C164: M2 | D164: 33.8
A165: 02.19.03 | B165: DE MADEIRA | C165: M2 | D165: 12.36
A166: 02.19.05 | B166: DE ELEMENTOS VAZADOS (COBOGO, ETC) | C166: M2 | D166: 6.29
A167: 02.19.06 | B167: DE LAMINADO | C167: M2 | D167: 0.85
A168: 02.20 | B168: REMOÇAO DE QUADROS
A169: 02.20.01 | B169: NEGRO | C169: M2 | D169: 15.98
A170: 02.21 | B170: REMOÇAO DE PEÇAS DIVERSAS
A171: 02.21.01 | B171: LOUÇAS | C171: UN | D171: 50.7
A172: 02.21.02 | B172: FERRAGENS (DOBRADIÇAS, FECHADURAS, MAÇANETAS) | C172: UN | D172: 10.26
A173: 02.21.03 | B173: METAIS COMUNS(CONDUITE,SIFAO, REGISTRO, TORNEIRA) | C173: UN | D173: 10.96
A174: 02.21.04 | B174: METAIS ESPECIAIS(VALVULA DE DESCARGA, CAIXA SILEN) | C174: UN | D174: 10.96
A175: 02.21.05 | B175: REMOÇAO DE LUMINARIA FLUORESCENTE | C175: UN | D175: 2.68
A176: 02.21.06 | B176: REMOÇAO DE LUMNARIA INCANDESCENTE | C176: UN | D176: 0.7
A177: 02.21.20 | B177: REMOÇAO DE PADRAO CEMIG | C177: UN | D177: 67.6
A178: 02.21.21 | B178: REMOÇAO DE PADRAO COPASA | C178: UN | D178: 50.7
A179: 02.21.22 | B179: REMOÇAO DE INTERFONE | C179: UN | D179: 5.77
A180: 02.22 | B180: REMOÇAO DE BANCADA
A181: 02.22.01 | B181: DE PEDRA(MARMORE,GRANITO,ARDOSIA,MARMORITE, ETC) | C181: M2 | D181: 33.8
A182: 02.23 | B182: REMOÇAO DE CERCA E ALAMBRADO
A183: 02.23.01 | B183: CERCA DE ARAME | C183: M | D183: 8.81
A184: 02.23.03 | B184: ALAMBRADO | C184: M2 | D184: 11.95
A185: 02.26 | B185: TRANSPORTE DE MATERIAL DEMOLIDO EM CARRINHO DE MAO
A186: 02.26.01 | B186: DMT <= 50,0 M | C186: M3 | D186: 21
A187: 02.26.02 | B187: 50,0 M < DMT <= 100,0 M | C187: M3 | D187: 28
A188: 02.27 | B188: CARGA DE MATERIAL DEMOLIDO SOBRE CAMINHAO
A189: 02.27.01 | B189: MANUAL | C189: M3 | D189: 19.13
A190: 02.27.02 | B190: MECANICA | C190: M3 | D190: 3
A191: 02.28 | B191: TRANSPORTE DE MATERIAL DEMOLIDO EM CAMINHAO
A192: 02.28.01 | B192: DMT <= 1 KM | C192: M3 | D192: 3.72
A193: 02.28.02 | B193: 1 KM < DMT <= 2 KM | C193: M3 | D193: 7.14
A194: 02.28.03 | B194: 2 KM < DMT <= 5 KM | C194: M3KM | D194: 3.23
A195: 02.28.04 | B195: DMT > 5 KM | C195: M3KM | D195: 1.94
A196: 02.29 | B196: TRANSPORTE DE MAT.DE QUALQUER NATUREZA EM CAÇAMBA
A197: 02.29.01 | B197: CAÇAMBA 5m³ | C197: VG | D197: 280
A198: 02.30 | B198: LIMPEZA DO PAVIMENTO
A199: 02.30.01 | B199: CAPINA E VARRIÇAO DE PAVIMENTO EM ALVEN.POLIEDRICA | C199: M2 | D199: 2.33
A200: 03 | B200: TRABALHOS EM TERRA
... 2449 more rows

Sheet CRO 1 mes (hidden)
A2: CRONOGRAMA FÍSICO-FINANCEIRO | K2: Revisão: | L2: =DADOS!D6 -> R00
K3: Data: | L3: =DADOS!D2 -> 2023-01-05
A4: Projeto: | D4: Responsável: | H4: Cliente: | K4: Bancos:
A5: =DADOS!D8 -> CONSTRUÇÃO DE COBERTURA DA QUADRA COLINA DE SANTA BARBARA | K5: =DADOS!D14 -> SINAPI: 11/2022 Minas Gerais SETOP: 10/2022 Minas Gerais SICRO : 07/2022 Minas Gerais SUDECAP: 10/2022 Minas Gerais
K8: BDI 1: | L8: =DADOS!D10 -> 0.2652
K9: BDI 2: | L9: =DADOS!D12 -> 0.2025
A11: =A2&" DE "&DADOS!D20&" - "&A5 -> CRONOGRAMA FÍSICO-FINANCEIRO DE PROJETO EXECUTIVO - CONSTRUÇÃO DE COBERTURA DA QUADRA COLINA DE SANTA BARBARA
A13: ITEM | B13: DESCRIÇÃO | F13: Unid. | G13: 30 DIAS | K13: Total por Etapa
A15: 1 | B15: =VLOOKUP(A15,ORC!$D:$N,2,0) -> CANTEIRO DE OBRA | F15: % | G15: 1 | K15: =SUM(G15:J15) -> 1
A16: =IFERROR(IF(B15<>"",100,B15),"") -> 100 | F16: R$ | G16: =IF(G15="","",IFERROR(G15*$K16,"")) -> 6886.92 | K16: =VLOOKUP(A15,ORC!$D:$N,11,0) -> 6886.92
A17: 2 | B17: =VLOOKUP(A17,ORC!$D:$N,2,0) -> SERVIÇOS PRELIMINARES | F17: % | K17: =SUM(G17:J17) -> 0
A18: =IFERROR(IF(B17<>"",100,B17),"") -> 100 | F18: R$ | G18: =IF(G17="","",IFERROR(G17*$K18,"")) ->  | K18: =VLOOKUP(A17,ORC!$D:$N,11,0) -> 14349.93
A19: 3 | B19: =VLOOKUP(A19,ORC!$D:$N,2,0) -> FUNDAÇÃO | F19: % | K19: =SUM(G19:J19) -> 0
A20: =IFERROR(IF(B19<>"",100,B19),"") -> 100 | F20: R$ | G20: =IF(G19="","",IFERROR(G19*$K20,"")) ->  | K20: =VLOOKUP(A19,ORC!$D:$N,11,0) -> 146564.97
A21: 4 | B21: =VLOOKUP(A21,ORC!$D:$N,2,0) -> COBERTURA METÁLICA | F21: % | K21: =SUM(G21:J21) -> 0
A22: =IFERROR(IF(B21<>"",100,B21),"") -> 100 | F22: R$ | G22: =IF(G21="","",IFERROR(G21*$K22,"")) ->  | K22: =VLOOKUP(A21,ORC!$D:$N,11,0) -> 1447539.43
A23: 5 | B23: =VLOOKUP(A23,ORC!$D:$N,2,0) -> DRENAGEM PLUVIAL | F23: % | K23: =SUM(G23:J23) -> 0
A24: =IFERROR(IF(B23<>"",100,B23),"") -> 100 | F24: R$ | G24: =IF(G23="","",IFERROR(G23*$K24,"")) ->  | K24: =VLOOKUP(A23,ORC!$D:$N,11,0) -> 51830.55
A25: 6 | B25: =VLOOKUP(A25,ORC!$D:$N,2,0) -> SERVIÇOS FINAIS | F25: % | K25: =SUM(G25:J25) -> 0
A26: =IFERROR(IF(B25<>"",100,B25),"") -> 100 | F26: R$ | G26: =IF(G25="","",IFERROR(G25*$K26,"")) ->  | K26: =VLOOKUP(A25,ORC!$D:$N,11,0) -> 26530.97
A27: 7 | B27: =VLOOKUP(A27,ORC!$D:$N,2,0) ->  | F27: % | K27: =SUM(G27:J27) -> 0
A28: =IFERROR(IF(B27<>"",100,B27),"") ->  | F28: R$ | G28: =IF(G27="","",IFERROR(G27*$K28,"")) ->  | K28: =VLOOKUP(A27,ORC!$D:$N,11,0) -> 
A29: 8 | B29: =VLOOKUP(A29,ORC!$D:$N,2,0) ->  | F29: % | K29: =SUM(G29:J29) -> 0
A30: =IFERROR(IF(B29<>"",100,B29),"") ->  | F30: R$ | G30: =IF(G29="","",IFERROR(G29*$K30,"")) ->  | K30: =VLOOKUP(A29,ORC!$D:$N,11,0) -> 
A31: 9 | B31: =VLOOKUP(A31,ORC!$D:$N,2,0) ->  | F31: % | K31: =SUM(G31:J31) -> 0
A32: =IFERROR(IF(B31<>"",100,B31),"") ->  | F32: R$ | G32: =IF(G31="","",IFERROR(G31*$K32,"")) ->  | K32: =VLOOKUP(A31,ORC!$D:$N,11,0) -> 
A33: 10 | B33: =VLOOKUP(A33,ORC!$D:$N,2,0) ->  | F33: % | K33: =SUM(G33:J33) -> 0
A34: =IFERROR(IF(B33<>"",100,B33),"") ->  | F34: R$ | G34: =IF(G33="","",IFERROR(G33*$K34,"")) ->  | K34: =VLOOKUP(A33,ORC!$D:$N,11,0) -> 
A35: 11 | B35: =VLOOKUP(A35,ORC!$D:$N,2,0) ->  | F35: % | K35: =SUM(G35:J35) -> 0
A36: =IFERROR(IF(B35<>"",100,B35),"") ->  | F36: R$ | G36: =IF(G35="","",IFERROR(G35*$K36,"")) ->  | K36: =VLOOKUP(A35,ORC!$D:$N,11,0) -> 
A37: 12 | B37: =VLOOKUP(A37,ORC!$D:$N,2,0) ->  | F37: % | K37: =SUM(G37:J37) -> 0
A38: =IFERROR(IF(B37<>"",100,B37),"") ->  | F38: R$ | G38: =IF(G37="","",IFERROR(G37*$K38,"")) ->  | K38: =VLOOKUP(A37,ORC!$D:$N,11,0) -> 
A39: 13 | B39: =VLOOKUP(A39,ORC!$D:$N,2,0) ->  | F39: % | K39: =SUM(G39:J39) -> 0
A40: =IFERROR(IF(B39<>"",100,B39),"") ->  | F40: R$ | G40: =IF(G39="","",IFERROR(G39*$K40,"")) ->  | K40: =VLOOKUP(A39,ORC!$D:$N,11,0) -> 
A41: 14 | B41: =VLOOKUP(A41,ORC!$D:$N,2,0) ->  | F41: % | K41: =SUM(G41:J41) -> 0
A42: =IFERROR(IF(B41<>"",100,B41),"") ->  | F42: R$ | G42: =IF(G41="","",IFERROR(G41*$K42,"")) ->  | K42: =VLOOKUP(A41,ORC!$D:$N,11,0) -> 
A43: 15 | B43: =VLOOKUP(A43,ORC!$D:$N,2,0) ->  | F43: % | K43: =SUM(G43:J43) -> 0
A44: =IFERROR(IF(B43<>"",100,B43),"") ->  | F44: R$ | G44: =IF(G43="","",IFERROR(G43*$K44,"")) ->  | K44: =VLOOKUP(A43,ORC!$D:$N,11,0) -> 
A45: 16 | B45: =VLOOKUP(A45,ORC!$D:$N,2,0) ->  | F45: % | K45: =SUM(G45:J45) -> 0
A46: =IFERROR(IF(B45<>"",100,B45),"") ->  | F46: R$ | G46: =IF(G45="","",IFERROR(G45*$K46,"")) ->  | K46: =VLOOKUP(A45,ORC!$D:$N,11,0) -> 
A47: 17 | B47: =VLOOKUP(A47,ORC!$D:$N,2,0) ->  | F47: % | K47: =SUM(G47:J47) -> 0
A48: =IFERROR(IF(B47<>"",100,B47),"") ->  | F48: R$ | G48: =IF(G47="","",IFERROR(G47*$K48,"")) ->  | K48: =VLOOKUP(A47,ORC!$D:$N,11,0) -> 
A49: 18 | B49: =VLOOKUP(A49,ORC!$D:$N,2,0) ->  | F49: % | K49: =SUM(G49:J49) -> 0
A50: =IFERROR(IF(B49<>"",100,B49),"") ->  | F50: R$ | G50: =IF(G49="","",IFERROR(G49*$K50,"")) ->  | K50: =VLOOKUP(A49,ORC!$D:$N,11,0) -> 
A51: 19 | B51: =VLOOKUP(A51,ORC!$D:$N,2,0) ->  | F51: % | K51: =SUM(G51:J51) -> 0
A52: =IFERROR(IF(B51<>"",100,B51),"") ->  | F52: R$ | G52: =IF(G51="","",IFERROR(G51*$K52,"")) ->  | K52: =VLOOKUP(A51,ORC!$D:$N,11,0) -> 
A54: 20 | B54: =VLOOKUP(A54,ORC!$D:$N,2,0) ->  | F54: % | K54: =SUM(G54:J54) -> 0
A55: =IFERROR(IF(B54<>"",100,B54),"") ->  | F55: R$ | G55: =IF(G54="","",IFERROR(G54*$K55,"")) ->  | K55: =VLOOKUP(A54,ORC!$D:$N,11,0) -> 
A56: 21 | B56: =VLOOKUP(A56,ORC!$D:$N,2,0) ->  | F56: % | K56: =SUM(G56:J56) -> 0
A57: =IFERROR(IF(B56<>"",100,B56),"") ->  | F57: R$ | G57: =IF(G56="","",IFERROR(G56*$K57,"")) ->  | K57: =VLOOKUP(A56,ORC!$D:$N,11,0) -> 
A58: 22 | B58: =VLOOKUP(A58,ORC!$D:$N,2,0) ->  | F58: % | K58: =SUM(G58:J58) -> 0
A59: =IFERROR(IF(B58<>"",100,B58),"") ->  | F59: R$ | G59: =IF(G58="","",IFERROR(G58*$K59,"")) ->  | K59: =VLOOKUP(A58,ORC!$D:$N,11,0) -> 
A60: 23 | B60: =VLOOKUP(A60,ORC!$D:$N,2,0) ->  | F60: % | K60: =SUM(G60:J60) -> 0
A61: =IFERROR(IF(B60<>"",100,B60),"") ->  | F61: R$ | G61: =IF(G60="","",IFERROR(G60*$K61,"")) ->  | K61: =VLOOKUP(A60,ORC!$D:$N,11,0) -> 
F63: Porcentagem | G63: =G64/$G$66 -> 
F64: Custo | G64: =SUMIF($A:$A,100,G:G) -> 6886.92
F65: Porcentagem Acumulada | G65: =I65+G63 -> 
F66: Custo Acumulado | G66: =IF(G64+I66=ORC!M226,G64+I66,"ERRO") -> ERRO
F70: RESPONSÁVEL TÉCNICO | G70: =DADOS!D16 -> FLÁVIA CRISTINA BARBOSA
G71: =DADOS!D18 -> CREA - MG 187.842/D

Sheet CRO 2 meses (hidden)
A2: CRONOGRAMA FÍSICO-FINANCEIRO | K2: Revisão: | L2: =DADOS!D6 -> R00
K3: Data: | L3: =DADOS!D2 -> 2023-01-05
A4: Projeto: | D4: Responsável: | H4: Cliente: | K4: Bancos:
A5: =DADOS!D8 -> CONSTRUÇÃO DE COBERTURA DA QUADRA COLINA DE SANTA BARBARA | K5: =DADOS!D14 -> SINAPI: 11/2022 Minas Gerais SETOP: 10/2022 Minas Gerais SICRO : 07/2022 Minas Gerais SUDECAP: 10/2022 Minas Gerais
K8: BDI 1: | L8: =DADOS!D10 -> 0.2652
K9: BDI 2: | L9: =DADOS!D12 -> 0.2025
A11: =A2&" DE "&DADOS!D20&" - "&A5 -> CRONOGRAMA FÍSICO-FINANCEIRO DE PROJETO EXECUTIVO - CONSTRUÇÃO DE COBERTURA DA QUADRA COLINA DE SANTA BARBARA
A13: ITEM | B13: DESCRIÇÃO | F13: Unid. | G13: 30 DIAS | I13: 60 DIAS | K13: Total por Etapa
A15: 1 | B15: =VLOOKUP(A15,ORC!$D:$N,2,0) -> CANTEIRO DE OBRA | F15: % | G15: 0.1 | I15: 0.9 | K15: =SUM(G15:J15) -> 1
A16: =IFERROR(IF(B15<>"",100,B15),"") -> 100 | F16: R$ | G16: =IF(G15="","",IFERROR(G15*$K16,"")) -> 688.692 | I16: =IF(I15="","",IFERROR(I15*$K16,"")) -> 6198.228 | K16: =VLOOKUP(A15,ORC!$D:$N,11,0) -> 6886.92
A17: 2 | B17: =VLOOKUP(A17,ORC!$D:$N,2,0) -> SERVIÇOS PRELIMINARES | F17: % | K17: =SUM(G17:J17) -> 0
A18: =IFERROR(IF(B17<>"",100,B17),"") -> 100 | F18: R$ | G18: =IF(G17="","",IFERROR(G17*$K18,"")) ->  | I18: =IF(I17="","",IFERROR(I17*$K18,"")) ->  | K18: =VLOOKUP(A17,ORC!$D:$N,11,0) -> 14349.93
A19: 3 | B19: =VLOOKUP(A19,ORC!$D:$N,2,0) -> FUNDAÇÃO | F19: % | K19: =SUM(G19:J19) -> 0
A20: =IFERROR(IF(B19<>"",100,B19),"") -> 100 | F20: R$ | G20: =IF(G19="","",IFERROR(G19*$K20,"")) ->  | I20: =IF(I19="","",IFERROR(I19*$K20,"")) ->  | K20: =VLOOKUP(A19,ORC!$D:$N,11,0) -> 146564.97
A21: 4 | B21: =VLOOKUP(A21,ORC!$D:$N,2,0) -> COBERTURA METÁLICA | F21: % | K21: =SUM(G21:J21) -> 0
A22: =IFERROR(IF(B21<>"",100,B21),"") -> 100 | F22: R$ | G22: =IF(G21="","",IFERROR(G21*$K22,"")) ->  | I22: =IF(I21="","",IFERROR(I21*$K22,"")) ->  | K22: =VLOOKUP(A21,ORC!$D:$N,11,0) -> 1447539.43
A23: 5 | B23: =VLOOKUP(A23,ORC!$D:$N,2,0) -> DRENAGEM PLUVIAL | F23: % | K23: =SUM(G23:J23) -> 0
A24: =IFERROR(IF(B23<>"",100,B23),"") -> 100 | F24: R$ | G24: =IF(G23="","",IFERROR(G23*$K24,"")) ->  | I24: =IF(I23="","",IFERROR(I23*$K24,"")) ->  | K24: =VLOOKUP(A23,ORC!$D:$N,11,0) -> 51830.55
A25: 6 | B25: =VLOOKUP(A25,ORC!$D:$N,2,0) -> SERVIÇOS FINAIS | F25: % | K25: =SUM(G25:J25) -> 0
A26: =IFERROR(IF(B25<>"",100,B25),"") -> 100 | F26: R$ | G26: =IF(G25="","",IFERROR(G25*$K26,"")) ->  | I26: =IF(I25="","",IFERROR(I25*$K26,"")) ->  | K26: =VLOOKUP(A25,ORC!$D:$N,11,0) -> 26530.97
A27: 7 | B27: =VLOOKUP(A27,ORC!$D:$N,2,0) ->  | F27: % | K27: =SUM(G27:J27) -> 0
A28: =IFERROR(IF(B27<>"",100,B27),"") ->  | F28: R$ | G28: =IF(G27="","",IFERROR(G27*$K28,"")) ->  | I28: =IF(I27="","",IFERROR(I27*$K28,"")) ->  | K28: =VLOOKUP(A27,ORC!$D:$N,11,0) -> 
A29: 8 | B29: =VLOOKUP(A29,ORC!$D:$N,2,0) ->  | F29: % | K29: =SUM(G29:J29) -> 0
A30: =IFERROR(IF(B29<>"",100,B29),"") ->  | F30: R$ | G30: =IF(G29="","",IFERROR(G29*$K30,"")) ->  | I30: =IF(I29="","",IFERROR(I29*$K30,"")) ->  | K30: =VLOOKUP(A29,ORC!$D:$N,11,0) -> 
A31: 9 | B31: =VLOOKUP(A31,ORC!$D:$N,2,0) ->  | F31: % | K31: =SUM(G31:J31) -> 0
A32: =IFERROR(IF(B31<>"",100,B31),"") ->  | F32: R$ | G32: =IF(G31="","",IFERROR(G31*$K32,"")) ->  | I32: =IF(I31="","",IFERROR(I31*$K32,"")) ->  | K32: =VLOOKUP(A31,ORC!$D:$N,11,0) -> 
A33: 10 | B33: =VLOOKUP(A33,ORC!$D:$N,2,0) ->  | F33: % | K33: =SUM(G33:J33) -> 0
A34: =IFERROR(IF(B33<>"",100,B33),"") ->  | F34: R$ | G34: =IF(G33="","",IFERROR(G33*$K34,"")) ->  | I34: =IF(I33="","",IFERROR(I33*$K34,"")) ->  | K34: =VLOOKUP(A33,ORC!$D:$N,11,0) -> 
A35: 11 | B35: =VLOOKUP(A35,ORC!$D:$N,2,0) ->  | F35: % | K35: =SUM(G35:J35) -> 0
A36: =IFERROR(IF(B35<>"",100,B35),"") ->  | F36: R$ | G36: =IF(G35="","",IFERROR(G35*$K36,"")) ->  | I36: =IF(I35="","",IFERROR(I35*$K36,"")) ->  | K36: =VLOOKUP(A35,ORC!$D:$N,11,0) -> 
A37: 12 | B37: =VLOOKUP(A37,ORC!$D:$N,2,0) ->  | F37: % | K37: =SUM(G37:J37) -> 0
A38: =IFERROR(IF(B37<>"",100,B37),"") ->  | F38: R$ | G38: =IF(G37="","",IFERROR(G37*$K38,"")) ->  | I38: =IF(I37="","",IFERROR(I37*$K38,"")) ->  | K38: =VLOOKUP(A37,ORC!$D:$N,11,0) -> 
A39: 13 | B39: =VLOOKUP(A39,ORC!$D:$N,2,0) ->  | F39: % | K39: =SUM(G39:J39) -> 0
A40: =IFERROR(IF(B39<>"",100,B39),"") ->  | F40: R$ | G40: =IF(G39="","",IFERROR(G39*$K40,"")) ->  | I40: =IF(I39="","",IFERROR(I39*$K40,"")) ->  | K40: =VLOOKUP(A39,ORC!$D:$N,11,0) -> 
A41: 14 | B41: =VLOOKUP(A41,ORC!$D:$N,2,0) ->  | F41: % | K41: =SUM(G41:J41) -> 0
A42: =IFERROR(IF(B41<>"",100,B41),"") ->  | F42: R$ | G42: =IF(G41="","",IFERROR(G41*$K42,"")) ->  | I42: =IF(I41="","",IFERROR(I41*$K42,"")) ->  | K42: =VLOOKUP(A41,ORC!$D:$N,11,0) -> 
A43: 15 | B43: =VLOOKUP(A43,ORC!$D:$N,2,0) ->  | F43: % | K43: =SUM(G43:J43) -> 0
A44: =IFERROR(IF(B43<>"",100,B43),"") ->  | F44: R$ | G44: =IF(G43="","",IFERROR(G43*$K44,"")) ->  | I44: =IF(I43="","",IFERROR(I43*$K44,"")) ->  | K44: =VLOOKUP(A43,ORC!$D:$N,11,0) -> 
A45: 16 | B45: =VLOOKUP(A45,ORC!$D:$N,2,0) ->  | F45: % | K45: =SUM(G45:J45) -> 0
A46: =IFERROR(IF(B45<>"",100,B45),"") ->  | F46: R$ | G46: =IF(G45="","",IFERROR(G45*$K46,"")) ->  | I46: =IF(I45="","",IFERROR(I45*$K46,"")) ->  | K46: =VLOOKUP(A45,ORC!$D:$N,11,0) -> 
A47: 17 | B47: =VLOOKUP(A47,ORC!$D:$N,2,0) ->  | F47: % | K47: =SUM(G47:J47) -> 0
A48: =IFERROR(IF(B47<>"",100,B47),"") ->  | F48: R$ | G48: =IF(G47="","",IFERROR(G47*$K48,"")) ->  | I48: =IF(I47="","",IFERROR(I47*$K48,"")) ->  | K48: =VLOOKUP(A47,ORC!$D:$N,11,0) -> 
A49: 18 | B49: =VLOOKUP(A49,ORC!$D:$N,2,0) ->  | F49: % | K49: =SUM(G49:J49) -> 0
A50: =IFERROR(IF(B49<>"",100,B49),"") ->  | F50: R$ | G50: =IF(G49="","",IFERROR(G49*$K50,"")) ->  | I50: =IF(I49="","",IFERROR(I49*$K50,"")) ->  | K50: =VLOOKUP(A49,ORC!$D:$N,11,0) -> 
A51: 19 | B51: =VLOOKUP(A51,ORC!$D:$N,2,0) ->  | F51: % | K51: =SUM(G51:J51) -> 0
A52: =IFERROR(IF(B51<>"",100,B51),"") ->  | F52: R$ | G52: =IF(G51="","",IFERROR(G51*$K52,"")) ->  | I52: =IF(I51="","",IFERROR(I51*$K52,"")) ->  | K52: =VLOOKUP(A51,ORC!$D:$N,11,0) -> 
A54: 20 | B54: =VLOOKUP(A54,ORC!$D:$N,2,0) ->  | F54: % | K54: =SUM(G54:J54) -> 0
A55: =IFERROR(IF(B54<>"",100,B54),"") ->  | F55: R$ | G55: =IF(G54="","",IFERROR(G54*$K55,"")) ->  | I55: =IF(I54="","",IFERROR(I54*$K55,"")) ->  | K55: =VLOOKUP(A54,ORC!$D:$N,11,0) -> 
A56: 21 | B56: =VLOOKUP(A56,ORC!$D:$N,2,0) ->  | F56: % | K56: =SUM(G56:J56) -> 0
A57: =IFERROR(IF(B56<>"",100,B56),"") ->  | F57: R$ | G57: =IF(G56="","",IFERROR(G56*$K57,"")) ->  | I57: =IF(I56="","",IFERROR(I56*$K57,"")) ->  | K57: =VLOOKUP(A56,ORC!$D:$N,11,0) -> 
A58: 22 | B58: =VLOOKUP(A58,ORC!$D:$N,2,0) ->  | F58: % | K58: =SUM(G58:J58) -> 0
A59: =IFERROR(IF(B58<>"",100,B58),"") ->  | F59: R$ | G59: =IF(G58="","",IFERROR(G58*$K59,"")) ->  | I59: =IF(I58="","",IFERROR(I58*$K59,"")) ->  | K59: =VLOOKUP(A58,ORC!$D:$N,11,0) -> 
A60: 23 | B60: =VLOOKUP(A60,ORC!$D:$N,2,0) ->  | F60: % | K60: =SUM(G60:J60) -> 0
A61: =IFERROR(IF(B60<>"",100,B60),"") ->  | F61: R$ | G61: =IF(G60="","",IFERROR(G60*$K61,"")) ->  | I61: =IF(I60="","",IFERROR(I60*$K61,"")) ->  | K61: =VLOOKUP(A60,ORC!$D:$N,11,0) -> 
F63: Porcentagem | G63: =G64/$I$66 ->  | I63: =I64/$I$66 -> 
F64: Custo | G64: =SUMIF($A:$A,100,G:G) -> 688.692 | I64: =SUMIF($A:$A,100,I:I) -> 6198.228
F65: Porcentagem Acumulada | G65: =G63 ->  | I65: =G65+I63 -> 
F66: Custo Acumulado | G66: =G64 -> 688.692 | I66: =IF(I64+G66=ORC!M226,I64+G66,"ERRO") -> ERRO
F70: RESPONSÁVEL TÉCNICO | G70: =DADOS!D16 -> FLÁVIA CRISTINA BARBOSA
G71: =DADOS!D18 -> CREA - MG 187.842/D

Sheet CRO 3 meses
A2: CRONOGRAMA FÍSICO-FINANCEIRO | M2: Revisão: | N2: =DADOS!D6 -> R00
M3: Data: | N3: =DADOS!D2 -> 2023-01-05
A4: Projeto: | D4: Responsável: | I4: Cliente: | M4: Bancos:
A5: =DADOS!D8 -> CONSTRUÇÃO DE COBERTURA DA QUADRA COLINA DE SANTA BARBARA | M5: =DADOS!D14 -> SINAPI: 11/2022 Minas Gerais SETOP: 10/2022 Minas Gerais SICRO : 07/2022 Minas Gerais SUDECAP: 10/2022 Minas Gerais
M8: BDI 1: | N8: =DADOS!D10 -> 0.2652
M9: BDI 2: | N9: =DADOS!D12 -> 0.2025
A11: =A2&" DE "&DADOS!D20&" - "&A5 -> CRONOGRAMA FÍSICO-FINANCEIRO DE PROJETO EXECUTIVO - CONSTRUÇÃO DE COBERTURA DA QUADRA COLINA DE SANTA BARBARA
A13: ITEM | B13: DESCRIÇÃO | F13: Unid. | G13: 30 DIAS | I13: 60 DIAS | K13: 90 DIAS | M13: Total por Etapa
A15: 1 | B15: =VLOOKUP(A15,ORC!$D:$N,2,0) -> CANTEIRO DE OBRA | F15: % | G15: 0.3333 | I15: 0.3334 | K15: 0.3333 | M15: =SUM(G15:L15) -> 1
A16: =IFERROR(IF(B15<>"",100,B15),"") -> 100 | F16: R$ | G16: =IF(G15="","",IFERROR(G15*$M16,"")) -> 2295.410436 | I16: =IF(I15="","",IFERROR(I15*$M16,"")) -> 2296.099128 | K16: =IF(K15="","",IFERROR(K15*$M16,"")) -> 2295.410436 | M16: =VLOOKUP(A15,ORC!$D:$N,11,0) -> 6886.92
A17: 2 | B17: =VLOOKUP(A17,ORC!$D:$N,2,0) -> SERVIÇOS PRELIMINARES | F17: % | G17: 0.3333 | I17: 0.3334 | K17: 0.3333 | M17: =SUM(G17:L17) -> 1
A18: =IFERROR(IF(B17<>"",100,B17),"") -> 100 | F18: R$ | G18: =IF(G17="","",IFERROR(G17*$M18,"")) -> 4782.831669 | I18: =IF(I17="","",IFERROR(I17*$M18,"")) -> 4784.266662 | K18: =IF(K17="","",IFERROR(K17*$M18,"")) -> 4782.831669 | M18: =VLOOKUP(A17,ORC!$D:$N,11,0) -> 14349.93
A19: 3 | B19: =VLOOKUP(A19,ORC!$D:$N,2,0) -> FUNDAÇÃO | F19: % | G19: 1 | M19: =SUM(G19:L19) -> 1
A20: =IFERROR(IF(B19<>"",100,B19),"") -> 100 | F20: R$ | G20: =IF(G19="","",IFERROR(G19*$M20,"")) -> 146564.97 | I20: =IF(I19="","",IFERROR(I19*$M20,"")) ->  | K20: =IF(K19="","",IFERROR(K19*$M20,"")) ->  | M20: =VLOOKUP(A19,ORC!$D:$N,11,0) -> 146564.97
A21: 4 | B21: =VLOOKUP(A21,ORC!$D:$N,2,0) -> COBERTURA METÁLICA | F21: % | G21: 0.25 | I21: 0.4 | K21: 0.35 | M21: =SUM(G21:L21) -> 1
A22: =IFERROR(IF(B21<>"",100,B21),"") -> 100 | F22: R$ | G22: =IF(G21="","",IFERROR(G21*$M22,"")) -> 361884.8575 | I22: =IF(I21="","",IFERROR(I21*$M22,"")) -> 579015.772 | K22: =IF(K21="","",IFERROR(K21*$M22,"")) -> 506638.8005 | M22: =VLOOKUP(A21,ORC!$D:$N,11,0) -> 1447539.43
A23: 5 | B23: =VLOOKUP(A23,ORC!$D:$N,2,0) -> DRENAGEM PLUVIAL | F23: % | I23: 0.2 | K23: 0.8 | M23: =SUM(G23:L23) -> 1
A24: =IFERROR(IF(B23<>"",100,B23),"") -> 100 | F24: R$ | G24: =IF(G23="","",IFERROR(G23*$M24,"")) ->  | I24: =IF(I23="","",IFERROR(I23*$M24,"")) -> 10366.11 | K24: =IF(K23="","",IFERROR(K23*$M24,"")) -> 41464.44 | M24: =VLOOKUP(A23,ORC!$D:$N,11,0) -> 51830.55
A25: 6 | B25: =VLOOKUP(A25,ORC!$D:$N,2,0) -> SERVIÇOS FINAIS | F25: % | K25: 1 | M25: =SUM(G25:L25) -> 1
A26: =IFERROR(IF(B25<>"",100,B25),"") -> 100 | F26: R$ | G26: =IF(G25="","",IFERROR(G25*$M26,"")) ->  | I26: =IF(I25="","",IFERROR(I25*$M26,"")) ->  | K26: =IF(K25="","",IFERROR(K25*$M26,"")) -> 26530.97 | M26: =VLOOKUP(A25,ORC!$D:$N,11,0) -> 26530.97
F28: Porcentagem | G28: =G29/$K$31 -> 0.3043793036 | I28: =I29/$K$31 -> 0.3521646527 | K28: =K29/$K$31 -> 0.3434560437
F29: Custo | G29: =SUMIF($A:$A,100,G:G) -> 515528.0696 | I29: =SUMIF($A:$A,100,I:I) -> 596462.2478 | K29: =SUMIF($A:$A,100,K:K) -> 581712.4526
F30: Porcentagem Acumulada | G30: =G28 -> 0.3043793036 | I30: =I28+G30 -> 0.6565439563 | K30: =K28+I30 -> 1
F31: Custo Acumulado | G31: =G29 -> 515528.0696 | I31: =I29+G31 -> 1111990.317 | K31: =IF(K29+I31=ORC!M226,K29+I31,"ERRO") -> 1693702.77
F34: RESPONSÁVEL TÉCNICO | G34: =DADOS!D16 -> FLÁVIA CRISTINA BARBOSA
G35: =DADOS!D18 -> CREA - MG 187.842/D

Sheet CRO 4 meses
A2: CRONOGRAMA FÍSICO-FINANCEIRO | K2: Revisão: | L2: =DADOS!D6 -> R00
K3: Data: | L3: =DADOS!D2 -> 2023-01-05
A4: Projeto: | D4: Responsável: | H4: Cliente: | K4: Bancos:
A5: =DADOS!D8 -> CONSTRUÇÃO DE COBERTURA DA QUADRA COLINA DE SANTA BARBARA | K5: =DADOS!D14 -> SINAPI: 11/2022 Minas Gerais SETOP: 10/2022 Minas Gerais SICRO : 07/2022 Minas Gerais SUDECAP: 10/2022 Minas Gerais
K8: BDI 1: | L8: =DADOS!D10 -> 0.2652
K9: BDI 2: | L9: =DADOS!D12 -> 0.2025
A11: =A2&" DE "&DADOS!D20&" - "&A5 -> CRONOGRAMA FÍSICO-FINANCEIRO DE PROJETO EXECUTIVO - CONSTRUÇÃO DE COBERTURA DA QUADRA COLINA DE SANTA BARBARA
A13: ITEM | B13: DESCRIÇÃO | F13: Unid. | G13: 30 DIAS | H13: 60 DIAS | I13: 90 DIAS | J13: 120 DIAS | K13: Total por Etapa
A15: 1 | B15: =VLOOKUP(A15,ORC!$D:$N,2,0) -> CANTEIRO DE OBRA | F15: % | G15: 0.1 | H15: 0.2 | I15: 0.3 | J15: 0.4 | K15: =SUM(G15:J15) -> 1
A16: =IFERROR(IF(B15<>"",100,B15),"") -> 100 | F16: R$ | G16: =IF(G15="","",IFERROR(G15*$K16,"")) -> 688.692 | H16: =IF(H15="","",IFERROR(H15*$K16,"")) -> 1377.384 | I16: 2066.076 | J16: 2754.768 | K16: =VLOOKUP(A15,ORC!$D:$N,11,0) -> 6886.92
A17: 2 | B17: =VLOOKUP(A17,ORC!$D:$N,2,0) -> SERVIÇOS PRELIMINARES | F17: % | K17: =SUM(G17:J17) -> 0
A18: =IFERROR(IF(B17<>"",100,B17),"") -> 100 | F18: R$ | G18: =IF(G17="","",IFERROR(G17*$K18,"")) ->  | H18: =IF(H17="","",IFERROR(H17*$K18,"")) ->  | I18: =IF(I17="","",IFERROR(I17*$K18,"")) ->  | J18: =IF(J17="","",IFERROR(J17*$K18,"")) ->  | K18: =VLOOKUP(A17,ORC!$D:$N,11,0) -> 14349.93
A19: 3 | B19: =VLOOKUP(A19,ORC!$D:$N,2,0) -> FUNDAÇÃO | F19: % | K19: =SUM(G19:J19) -> 0
A20: =IFERROR(IF(B19<>"",100,B19),"") -> 100 | F20: R$ | G20: =IF(G19="","",IFERROR(G19*$K20,"")) ->  | H20: =IF(H19="","",IFERROR(H19*$K20,"")) ->  | I20: =IF(I19="","",IFERROR(I19*$K20,"")) ->  | J20: =IF(J19="","",IFERROR(J19*$K20,"")) ->  | K20: =VLOOKUP(A19,ORC!$D:$N,11,0) -> 146564.97
A21: 4 | B21: =VLOOKUP(A21,ORC!$D:$N,2,0) -> COBERTURA METÁLICA | F21: % | K21: =SUM(G21:J21) -> 0
A22: =IFERROR(IF(B21<>"",100,B21),"") -> 100 | F22: R$ | G22: =IF(G21="","",IFERROR(G21*$K22,"")) ->  | H22: =IF(H21="","",IFERROR(H21*$K22,"")) ->  | I22: =IF(I21="","",IFERROR(I21*$K22,"")) ->  | J22: =IF(J21="","",IFERROR(J21*$K22,"")) ->  | K22: =VLOOKUP(A21,ORC!$D:$N,11,0) -> 1447539.43
A23: 5 | B23: =VLOOKUP(A23,ORC!$D:$N,2,0) -> DRENAGEM PLUVIAL | F23: % | K23: =SUM(G23:J23) -> 0
A24: =IFERROR(IF(B23<>"",100,B23),"") -> 100 | F24: R$ | G24: =IF(G23="","",IFERROR(G23*$K24,"")) ->  | H24: =IF(H23="","",IFERROR(H23*$K24,"")) ->  | I24: =IF(I23="","",IFERROR(I23*$K24,"")) ->  | J24: =IF(J23="","",IFERROR(J23*$K24,"")) ->  | K24: =VLOOKUP(A23,ORC!$D:$N,11,0) -> 51830.55
A25: 6 | B25: =VLOOKUP(A25,ORC!$D:$N,2,0) -> SERVIÇOS FINAIS | F25: % | K25: =SUM(G25:J25) -> 0
A26: =IFERROR(IF(B25<>"",100,B25),"") -> 100 | F26: R$ | G26: =IF(G25="","",IFERROR(G25*$K26,"")) ->  | H26: =IF(H25="","",IFERROR(H25*$K26,"")) ->  | I26: =IF(I25="","",IFERROR(I25*$K26,"")) ->  | J26: =IF(J25="","",IFERROR(J25*$K26,"")) ->  | K26: =VLOOKUP(A25,ORC!$D:$N,11,0) -> 26530.97
A27: 7 | B27: =VLOOKUP(A27,ORC!$D:$N,2,0) ->  | F27: % | K27: =SUM(G27:J27) -> 0
A28: =IFERROR(IF(B27<>"",100,B27),"") ->  | F28: R$ | G28: =IF(G27="","",IFERROR(G27*$K28,"")) ->  | H28: =IF(H27="","",IFERROR(H27*$K28,"")) ->  | I28: =IF(I27="","",IFERROR(I27*$K28,"")) ->  | J28: =IF(J27="","",IFERROR(J27*$K28,"")) ->  | K28: =VLOOKUP(A27,ORC!$D:$N,11,0) -> 
A29: 8 | B29: =VLOOKUP(A29,ORC!$D:$N,2,0) ->  | F29: % | K29: =SUM(G29:J29) -> 0
A30: =IFERROR(IF(B29<>"",100,B29),"") ->  | F30: R$ | G30: =IF(G29="","",IFERROR(G29*$K30,"")) ->  | H30: =IF(H29="","",IFERROR(H29*$K30,"")) ->  | I30: =IF(I29="","",IFERROR(I29*$K30,"")) ->  | J30: =IF(J29="","",IFERROR(J29*$K30,"")) ->  | K30: =VLOOKUP(A29,ORC!$D:$N,11,0) -> 
A31: 9 | B31: =VLOOKUP(A31,ORC!$D:$N,2,0) ->  | F31: % | K31: =SUM(G31:J31) -> 0
A32: =IFERROR(IF(B31<>"",100,B31),"") ->  | F32: R$ | G32: =IF(G31="","",IFERROR(G31*$K32,"")) ->  | H32: =IF(H31="","",IFERROR(H31*$K32,"")) ->  | I32: =IF(I31="","",IFERROR(I31*$K32,"")) ->  | J32: =IF(J31="","",IFERROR(J31*$K32,"")) ->  | K32: =VLOOKUP(A31,ORC!$D:$N,11,0) -> 
A33: 10 | B33: =VLOOKUP(A33,ORC!$D:$N,2,0) ->  | F33: % | K33: =SUM(G33:J33) -> 0
A34: =IFERROR(IF(B33<>"",100,B33),"") ->  | F34: R$ | G34: =IF(G33="","",IFERROR(G33*$K34,"")) ->  | H34: =IF(H33="","",IFERROR(H33*$K34,"")) ->  | I34: =IF(I33="","",IFERROR(I33*$K34,"")) ->  | J34: =IF(J33="","",IFERROR(J33*$K34,"")) ->  | K34: =VLOOKUP(A33,ORC!$D:$N,11,0) -> 
A35: 11 | B35: =VLOOKUP(A35,ORC!$D:$N,2,0) ->  | F35: % | K35: =SUM(G35:J35) -> 0
A36: =IFERROR(IF(B35<>"",100,B35),"") ->  | F36: R$ | G36: =IF(G35="","",IFERROR(G35*$K36,"")) ->  | H36: =IF(H35="","",IFERROR(H35*$K36,"")) ->  | I36: =IF(I35="","",IFERROR(I35*$K36,"")) ->  | J36: =IF(J35="","",IFERROR(J35*$K36,"")) ->  | K36: =VLOOKUP(A35,ORC!$D:$N,11,0) -> 
A37: 12 | B37: =VLOOKUP(A37,ORC!$D:$N,2,0) ->  | F37: % | K37: =SUM(G37:J37) -> 0
A38: =IFERROR(IF(B37<>"",100,B37),"") ->  | F38: R$ | G38: =IF(G37="","",IFERROR(G37*$K38,"")) ->  | H38: =IF(H37="","",IFERROR(H37*$K38,"")) ->  | I38: =IF(I37="","",IFERROR(I37*$K38,"")) ->  | J38: =IF(J37="","",IFERROR(J37*$K38,"")) ->  | K38: =VLOOKUP(A37,ORC!$D:$N,11,0) -> 
A39: 13 | B39: =VLOOKUP(A39,ORC!$D:$N,2,0) ->  | F39: % | K39: =SUM(G39:J39) -> 0
A40: =IFERROR(IF(B39<>"",100,B39),"") ->  | F40: R$ | G40: =IF(G39="","",IFERROR(G39*$K40,"")) ->  | H40: =IF(H39="","",IFERROR(H39*$K40,"")) ->  | I40: =IF(I39="","",IFERROR(I39*$K40,"")) ->  | J40: =IF(J39="","",IFERROR(J39*$K40,"")) ->  | K40: =VLOOKUP(A39,ORC!$D:$N,11,0) -> 
A41: 14 | B41: =VLOOKUP(A41,ORC!$D:$N,2,0) ->  | F41: % | K41: =SUM(G41:J41) -> 0
A42: =IFERROR(IF(B41<>"",100,B41),"") ->  | F42: R$ | G42: =IF(G41="","",IFERROR(G41*$K42,"")) ->  | H42: =IF(H41="","",IFERROR(H41*$K42,"")) ->  | I42: =IF(I41="","",IFERROR(I41*$K42,"")) ->  | J42: =IF(J41="","",IFERROR(J41*$K42,"")) ->  | K42: =VLOOKUP(A41,ORC!$D:$N,11,0) -> 
A43: 15 | B43: =VLOOKUP(A43,ORC!$D:$N,2,0) ->  | F43: % | K43: =SUM(G43:J43) -> 0
A44: =IFERROR(IF(B43<>"",100,B43),"") ->  | F44: R$ | G44: =IF(G43="","",IFERROR(G43*$K44,"")) ->  | H44: =IF(H43="","",IFERROR(H43*$K44,"")) ->  | I44: =IF(I43="","",IFERROR(I43*$K44,"")) ->  | J44: =IF(J43="","",IFERROR(J43*$K44,"")) ->  | K44: =VLOOKUP(A43,ORC!$D:$N,11,0) -> 
A45: 16 | B45: =VLOOKUP(A45,ORC!$D:$N,2,0) ->  | F45: % | K45: =SUM(G45:J45) -> 0
A46: =IFERROR(IF(B45<>"",100,B45),"") ->  | F46: R$ | G46: =IF(G45="","",IFERROR(G45*$K46,"")) ->  | H46: =IF(H45="","",IFERROR(H45*$K46,"")) ->  | I46: =IF(I45="","",IFERROR(I45*$K46,"")) ->  | J46: =IF(J45="","",IFERROR(J45*$K46,"")) ->  | K46: =VLOOKUP(A45,ORC!$D:$N,11,0) -> 
A47: 17 | B47: =VLOOKUP(A47,ORC!$D:$N,2,0) ->  | F47: % | K47: =SUM(G47:J47) -> 0
A48: =IFERROR(IF(B47<>"",100,B47),"") ->  | F48: R$ | G48: =IF(G47="","",IFERROR(G47*$K48,"")) ->  | H48: =IF(H47="","",IFERROR(H47*$K48,"")) ->  | I48: =IF(I47="","",IFERROR(I47*$K48,"")) ->  | J48: =IF(J47="","",IFERROR(J47*$K48,"")) ->  | K48: =VLOOKUP(A47,ORC!$D:$N,11,0) -> 
A49: 18 | B49: =VLOOKUP(A49,ORC!$D:$N,2,0) ->  | F49: % | K49: =SUM(G49:J49) -> 0
A50: =IFERROR(IF(B49<>"",100,B49),"") ->  | F50: R$ | G50: =IF(G49="","",IFERROR(G49*$K50,"")) ->  | H50: =IF(H49="","",IFERROR(H49*$K50,"")) ->  | I50: =IF(I49="","",IFERROR(I49*$K50,"")) ->  | J50: =IF(J49="","",IFERROR(J49*$K50,"")) ->  | K50: =VLOOKUP(A49,ORC!$D:$N,11,0) -> 
A51: 19 | B51: =VLOOKUP(A51,ORC!$D:$N,2,0) ->  | F51: % | K51: =SUM(G51:J51) -> 0
A52: =IFERROR(IF(B51<>"",100,B51),"") ->  | F52: R$ | G52: =IF(G51="","",IFERROR(G51*$K52,"")) ->  | H52: =IF(H51="","",IFERROR(H51*$K52,"")) ->  | I52: =IF(I51="","",IFERROR(I51*$K52,"")) ->  | J52: =IF(J51="","",IFERROR(J51*$K52,"")) ->  | K52: =VLOOKUP(A51,ORC!$D:$N,11,0) -> 
A54: 20 | B54: =VLOOKUP(A54,ORC!$D:$N,2,0) ->  | F54: % | K54: =SUM(G54:J54) -> 0
A55: =IFERROR(IF(B54<>"",100,B54),"") ->  | F55: R$ | G55: =IF(G54="","",IFERROR(G54*$K55,"")) ->  | H55: =IF(H54="","",IFERROR(H54*$K55,"")) ->  | I55: =IF(I54="","",IFERROR(I54*$K55,"")) ->  | J55: =IF(J54="","",IFERROR(J54*$K55,"")) ->  | K55: =VLOOKUP(A54,ORC!$D:$N,11,0) -> 
A56: 21 | B56: =VLOOKUP(A56,ORC!$D:$N,2,0) ->  | F56: % | K56: =SUM(G56:J56) -> 0
A57: =IFERROR(IF(B56<>"",100,B56),"") ->  | F57: R$ | G57: =IF(G56="","",IFERROR(G56*$K57,"")) ->  | H57: =IF(H56="","",IFERROR(H56*$K57,"")) ->  | I57: =IF(I56="","",IFERROR(I56*$K57,"")) ->  | J57: =IF(J56="","",IFERROR(J56*$K57,"")) ->  | K57: =VLOOKUP(A56,ORC!$D:$N,11,0) -> 
A58: 22 | B58: =VLOOKUP(A58,ORC!$D:$N,2,0) ->  | F58: % | K58: =SUM(G58:J58) -> 0
A59: =IFERROR(IF(B58<>"",100,B58),"") ->  | F59: R$ | G59: =IF(G58="","",IFERROR(G58*$K59,"")) ->  | H59: =IF(H58="","",IFERROR(H58*$K59,"")) ->  | I59: =IF(I58="","",IFERROR(I58*$K59,"")) ->  | J59: =IF(J58="","",IFERROR(J58*$K59,"")) ->  | K59: =VLOOKUP(A58,ORC!$D:$N,11,0) -> 
A60: 23 | B60: =VLOOKUP(A60,ORC!$D:$N,2,0) ->  | F60: % | K60: =SUM(G60:J60) -> 0
A61: =IFERROR(IF(B60<>"",100,B60),"") ->  | F61: R$ | G61: =IF(G60="","",IFERROR(G60*$K61,"")) ->  | H61: =IF(H60="","",IFERROR(H60*$K61,"")) ->  | I61: =IF(I60="","",IFERROR(I60*$K61,"")) ->  | J61: =IF(J60="","",IFERROR(J60*$K61,"")) ->  | K61: =VLOOKUP(A60,ORC!$D:$N,11,0) -> 
F63: Porcentagem | G63: =G64/$J$66 ->  | H63: =H64/$J$66 ->  | I63: =I64/$J$66 ->  | J63: =J64/$J$66 -> 
F64: Custo | G64: =SUMIF($A:$A,100,G:G) -> 688.692 | H64: =SUMIF($A:$A,100,H:H) -> 1377.384 | I64: =SUMIF($A:$A,100,I:I) -> 2066.076 | J64: =SUMIF($A:$A,100,J:J) -> 2754.768
F65: Porcentagem Acumulada | G65: =G63 ->  | H65: =G65+H63 ->  | I65: =H65+I63 -> 
F66: Custo Acumulado | G66: =G64 -> 688.692 | H66: =H64+G66 -> 2066.076 | I66: =I64+H66 -> 4132.152 | J66: =IF(J64+I66=ORC!M226,J64+I66,"ERRO") -> ERRO
F70: RESPONSÁVEL TÉCNICO | G70: =DADOS!D16 -> FLÁVIA CRISTINA BARBOSA
G71: =DADOS!D18 -> CREA - MG 187.842/D

Sheet CRO 5 meses
A2: CRONOGRAMA FÍSICO-FINANCEIRO | L2: Revisão: | M2: =DADOS!D6 -> R00
L3: Data: | M3: =DADOS!D2 -> 2023-01-05
A4: Projeto: | D4: Responsável: | I4: Cliente: | L4: Bancos:
A5: =DADOS!D8 -> CONSTRUÇÃO DE COBERTURA DA QUADRA COLINA DE SANTA BARBARA | L5: =DADOS!D14 -> SINAPI: 11/2022 Minas Gerais SETOP: 10/2022 Minas Gerais SICRO : 07/2022 Minas Gerais SUDECAP: 10/2022 Minas Gerais
L8: BDI 1: | M8: =DADOS!D10 -> 0.2652
L9: BDI 2: | M9: =DADOS!D12 -> 0.2025
A11: =A2&" DE "&DADOS!D20&" - "&A5 -> CRONOGRAMA FÍSICO-FINANCEIRO DE PROJETO EXECUTIVO - CONSTRUÇÃO DE COBERTURA DA QUADRA COLINA DE SANTA BARBARA
A13: ITEM | B13: DESCRIÇÃO | F13: Unid. | G13: 30 DIAS | H13: 60 DIAS | I13: 90 DIAS | J13: 120 DIAS | K13: 150 DIAS | L13: Total por Etapa
A15: 1 | B15: =VLOOKUP(A15,ORC!$D:$N,2,0) -> CANTEIRO DE OBRA | F15: % | G15: 0.1 | H15: 0.2 | I15: 0.3 | J15: 0.4 | L15: =SUM(G15:K15) -> 1
A16: =IFERROR(IF(B15<>"",100,B15),"") -> 100 | F16: R$ | G16: =IF(G15="","",IFERROR(G15*$L16,"")) -> 688.692 | H16: =IF(H15="","",IFERROR(H15*$L16,"")) -> 1377.384 | I16: 2066.076 | J16: 2754.768 | L16: =VLOOKUP(A15,ORC!$D:$N,11,0) -> 6886.92
A17: 2 | B17: =VLOOKUP(A17,ORC!$D:$N,2,0) -> SERVIÇOS PRELIMINARES | F17: % | L17: =SUM(G17:K17) -> 0
A18: =IFERROR(IF(B17<>"",100,B17),"") -> 100 | F18: R$ | G18: =IF(G17="","",IFERROR(G17*$L18,"")) ->  | H18: =IF(H17="","",IFERROR(H17*$L18,"")) ->  | I18: =IF(I17="","",IFERROR(I17*$L18,"")) ->  | J18: =IF(J17="","",IFERROR(J17*$L18,"")) ->  | K18: =IF(K17="","",IFERROR(K17*$L18,"")) ->  | L18: =VLOOKUP(A17,ORC!$D:$N,11,0) -> 14349.93
A19: 3 | B19: =VLOOKUP(A19,ORC!$D:$N,2,0) -> FUNDAÇÃO | F19: % | L19: =SUM(G19:K19) -> 0
A20: =IFERROR(IF(B19<>"",100,B19),"") -> 100 | F20: R$ | G20: =IF(G19="","",IFERROR(G19*$L20,"")) ->  | H20: =IF(H19="","",IFERROR(H19*$L20,"")) ->  | I20: =IF(I19="","",IFERROR(I19*$L20,"")) ->  | J20: =IF(J19="","",IFERROR(J19*$L20,"")) ->  | K20: =IF(K19="","",IFERROR(K19*$L20,"")) ->  | L20: =VLOOKUP(A19,ORC!$D:$N,11,0) -> 146564.97
A21: 4 | B21: =VLOOKUP(A21,ORC!$D:$N,2,0) -> COBERTURA METÁLICA | F21: % | L21: =SUM(G21:K21) -> 0
A22: =IFERROR(IF(B21<>"",100,B21),"") -> 100 | F22: R$ | G22: =IF(G21="","",IFERROR(G21*$L22,"")) ->  | H22: =IF(H21="","",IFERROR(H21*$L22,"")) ->  | I22: =IF(I21="","",IFERROR(I21*$L22,"")) ->  | J22: =IF(J21="","",IFERROR(J21*$L22,"")) ->  | K22: =IF(K21="","",IFERROR(K21*$L22,"")) ->  | L22: =VLOOKUP(A21,ORC!$D:$N,11,0) -> 1447539.43
A23: 5 | B23: =VLOOKUP(A23,ORC!$D:$N,2,0) -> DRENAGEM PLUVIAL | F23: % | L23: =SUM(G23:K23) -> 0
A24: =IFERROR(IF(B23<>"",100,B23),"") -> 100 | F24: R$ | G24: =IF(G23="","",IFERROR(G23*$L24,"")) ->  | H24: =IF(H23="","",IFERROR(H23*$L24,"")) ->  | I24: =IF(I23="","",IFERROR(I23*$L24,"")) ->  | J24: =IF(J23="","",IFERROR(J23*$L24,"")) ->  | K24: =IF(K23="","",IFERROR(K23*$L24,"")) ->  | L24: =VLOOKUP(A23,ORC!$D:$N,11,0) -> 51830.55
A25: 6 | B25: =VLOOKUP(A25,ORC!$D:$N,2,0) -> SERVIÇOS FINAIS | F25: % | L25: =SUM(G25:K25) -> 0
A26: =IFERROR(IF(B25<>"",100,B25),"") -> 100 | F26: R$ | G26: =IF(G25="","",IFERROR(G25*$L26,"")) ->  | H26: =IF(H25="","",IFERROR(H25*$L26,"")) ->  | I26: =IF(I25="","",IFERROR(I25*$L26,"")) ->  | J26: =IF(J25="","",IFERROR(J25*$L26,"")) ->  | K26: =IF(K25="","",IFERROR(K25*$L26,"")) ->  | L26: =VLOOKUP(A25,ORC!$D:$N,11,0) -> 26530.97
A27: 7 | B27: =VLOOKUP(A27,ORC!$D:$N,2,0) ->  | F27: % | L27: =SUM(G27:K27) -> 0
A28: =IFERROR(IF(B27<>"",100,B27),"") ->  | F28: R$ | G28: =IF(G27="","",IFERROR(G27*$L28,"")) ->  | H28: =IF(H27="","",IFERROR(H27*$L28,"")) ->  | I28: =IF(I27="","",IFERROR(I27*$L28,"")) ->  | J28: =IF(J27="","",IFERROR(J27*$L28,"")) ->  | K28: =IF(K27="","",IFERROR(K27*$L28,"")) ->  | L28: =VLOOKUP(A27,ORC!$D:$N,11,0) -> 
A29: 8 | B29: =VLOOKUP(A29,ORC!$D:$N,2,0) ->  | F29: % | L29: =SUM(G29:K29) -> 0
A30: =IFERROR(IF(B29<>"",100,B29),"") ->  | F30: R$ | G30: =IF(G29="","",IFERROR(G29*$L30,"")) ->  | H30: =IF(H29="","",IFERROR(H29*$L30,"")) ->  | I30: =IF(I29="","",IFERROR(I29*$L30,"")) ->  | J30: =IF(J29="","",IFERROR(J29*$L30,"")) ->  | K30: =IF(K29="","",IFERROR(K29*$L30,"")) ->  | L30: =VLOOKUP(A29,ORC!$D:$N,11,0) -> 
A32: 9 | B32: =VLOOKUP(A32,ORC!$D:$N,2,0) ->  | F32: % | L32: =SUM(G32:K32) -> 0
A33: =IFERROR(IF(B32<>"",100,B32),"") ->  | F33: R$ | G33: =IF(G32="","",IFERROR(G32*$L33,"")) ->  | H33: =IF(H32="","",IFERROR(H32*$L33,"")) ->  | I33: =IF(I32="","",IFERROR(I32*$L33,"")) ->  | J33: =IF(J32="","",IFERROR(J32*$L33,"")) ->  | K33: =IF(K32="","",IFERROR(K32*$L33,"")) ->  | L33: =VLOOKUP(A32,ORC!$D:$N,11,0) -> 
A34: 10 | B34: =VLOOKUP(A34,ORC!$D:$N,2,0) ->  | F34: % | L34: =SUM(G34:K34) -> 0
A35: =IFERROR(IF(B34<>"",100,B34),"") ->  | F35: R$ | G35: =IF(G34="","",IFERROR(G34*$L35,"")) ->  | H35: =IF(H34="","",IFERROR(H34*$L35,"")) ->  | I35: =IF(I34="","",IFERROR(I34*$L35,"")) ->  | J35: =IF(J34="","",IFERROR(J34*$L35,"")) ->  | K35: =IF(K34="","",IFERROR(K34*$L35,"")) ->  | L35: =VLOOKUP(A34,ORC!$D:$N,11,0) -> 
A36: 11 | B36: =VLOOKUP(A36,ORC!$D:$N,2,0) ->  | F36: % | L36: =SUM(G36:K36) -> 0
A37: =IFERROR(IF(B36<>"",100,B36),"") ->  | F37: R$ | G37: =IF(G36="","",IFERROR(G36*$L37,"")) ->  | H37: =IF(H36="","",IFERROR(H36*$L37,"")) ->  | I37: =IF(I36="","",IFERROR(I36*$L37,"")) ->  | J37: =IF(J36="","",IFERROR(J36*$L37,"")) ->  | K37: =IF(K36="","",IFERROR(K36*$L37,"")) ->  | L37: =VLOOKUP(A36,ORC!$D:$N,11,0) -> 
A38: 12 | B38: =VLOOKUP(A38,ORC!$D:$N,2,0) ->  | F38: % | L38: =SUM(G38:K38) -> 0
A39: =IFERROR(IF(B38<>"",100,B38),"") ->  | F39: R$ | G39: =IF(G38="","",IFERROR(G38*$L39,"")) ->  | H39: =IF(H38="","",IFERROR(H38*$L39,"")) ->  | I39: =IF(I38="","",IFERROR(I38*$L39,"")) ->  | J39: =IF(J38="","",IFERROR(J38*$L39,"")) ->  | K39: =IF(K38="","",IFERROR(K38*$L39,"")) ->  | L39: =VLOOKUP(A38,ORC!$D:$N,11,0) -> 
A40: 13 | B40: =VLOOKUP(A40,ORC!$D:$N,2,0) ->  | F40: % | L40: =SUM(G40:K40) -> 0
A41: =IFERROR(IF(B40<>"",100,B40),"") ->  | F41: R$ | G41: =IF(G40="","",IFERROR(G40*$L41,"")) ->  | H41: =IF(H40="","",IFERROR(H40*$L41,"")) ->  | I41: =IF(I40="","",IFERROR(I40*$L41,"")) ->  | J41: =IF(J40="","",IFERROR(J40*$L41,"")) ->  | K41: =IF(K40="","",IFERROR(K40*$L41,"")) ->  | L41: =VLOOKUP(A40,ORC!$D:$N,11,0) -> 
A42: 14 | B42: =VLOOKUP(A42,ORC!$D:$N,2,0) ->  | F42: % | L42: =SUM(G42:K42) -> 0
A43: =IFERROR(IF(B42<>"",100,B42),"") ->  | F43: R$ | G43: =IF(G42="","",IFERROR(G42*$L43,"")) ->  | H43: =IF(H42="","",IFERROR(H42*$L43,"")) ->  | I43: =IF(I42="","",IFERROR(I42*$L43,"")) ->  | J43: =IF(J42="","",IFERROR(J42*$L43,"")) ->  | K43: =IF(K42="","",IFERROR(K42*$L43,"")) ->  | L43: =VLOOKUP(A42,ORC!$D:$N,11,0) -> 
A44: 15 | B44: =VLOOKUP(A44,ORC!$D:$N,2,0) ->  | F44: % | L44: =SUM(G44:K44) -> 0
A45: =IFERROR(IF(B44<>"",100,B44),"") ->  | F45: R$ | G45: =IF(G44="","",IFERROR(G44*$L45,"")) ->  | H45: =IF(H44="","",IFERROR(H44*$L45,"")) ->  | I45: =IF(I44="","",IFERROR(I44*$L45,"")) ->  | J45: =IF(J44="","",IFERROR(J44*$L45,"")) ->  | K45: =IF(K44="","",IFERROR(K44*$L45,"")) ->  | L45: =VLOOKUP(A44,ORC!$D:$N,11,0) -> 
A46: 16 | B46: =VLOOKUP(A46,ORC!$D:$N,2,0) ->  | F46: % | L46: =SUM(G46:K46) -> 0
A47: =IFERROR(IF(B46<>"",100,B46),"") ->  | F47: R$ | G47: =IF(G46="","",IFERROR(G46*$L47,"")) ->  | H47: =IF(H46="","",IFERROR(H46*$L47,"")) ->  | I47: =IF(I46="","",IFERROR(I46*$L47,"")) ->  | J47: =IF(J46="","",IFERROR(J46*$L47,"")) ->  | K47: =IF(K46="","",IFERROR(K46*$L47,"")) ->  | L47: =VLOOKUP(A46,ORC!$D:$N,11,0) -> 
A48: 17 | B48: =VLOOKUP(A48,ORC!$D:$N,2,0) ->  | F48: % | L48: =SUM(G48:K48) -> 0
A49: =IFERROR(IF(B48<>"",100,B48),"") ->  | F49: R$ | G49: =IF(G48="","",IFERROR(G48*$L49,"")) ->  | H49: =IF(H48="","",IFERROR(H48*$L49,"")) ->  | I49: =IF(I48="","",IFERROR(I48*$L49,"")) ->  | J49: =IF(J48="","",IFERROR(J48*$L49,"")) ->  | K49: =IF(K48="","",IFERROR(K48*$L49,"")) ->  | L49: =VLOOKUP(A48,ORC!$D:$N,11,0) -> 
A50: 18 | B50: =VLOOKUP(A50,ORC!$D:$N,2,0) ->  | F50: % | L50: =SUM(G50:K50) -> 0
A51: =IFERROR(IF(B50<>"",100,B50),"") ->  | F51: R$ | G51: =IF(G50="","",IFERROR(G50*$L51,"")) ->  | H51: =IF(H50="","",IFERROR(H50*$L51,"")) ->  | I51: =IF(I50="","",IFERROR(I50*$L51,"")) ->  | J51: =IF(J50="","",IFERROR(J50*$L51,"")) ->  | K51: =IF(K50="","",IFERROR(K50*$L51,"")) ->  | L51: =VLOOKUP(A50,ORC!$D:$N,11,0) -> 
A52: 19 | B52: =VLOOKUP(A52,ORC!$D:$N,2,0) ->  | F52: % | L52: =SUM(G52:K52) -> 0
A53: =IFERROR(IF(B52<>"",100,B52),"") ->  | F53: R$ | G53: =IF(G52="","",IFERROR(G52*$L53,"")) ->  | H53: =IF(H52="","",IFERROR(H52*$L53,"")) ->  | I53: =IF(I52="","",IFERROR(I52*$L53,"")) ->  | J53: =IF(J52="","",IFERROR(J52*$L53,"")) ->  | K53: =IF(K52="","",IFERROR(K52*$L53,"")) ->  | L53: =VLOOKUP(A52,ORC!$D:$N,11,0) -> 
A55: 20 | B55: =VLOOKUP(A55,ORC!$D:$N,2,0) ->  | F55: % | L55: =SUM(G55:K55) -> 0
A56: =IFERROR(IF(B55<>"",100,B55),"") ->  | F56: R$ | G56: =IF(G55="","",IFERROR(G55*$L56,"")) ->  | H56: =IF(H55="","",IFERROR(H55*$L56,"")) ->  | I56: =IF(I55="","",IFERROR(I55*$L56,"")) ->  | J56: =IF(J55="","",IFERROR(J55*$L56,"")) ->  | K56: =IF(K55="","",IFERROR(K55*$L56,"")) ->  | L56: =VLOOKUP(A55,ORC!$D:$N,11,0) -> 
A57: 21 | B57: =VLOOKUP(A57,ORC!$D:$N,2,0) ->  | F57: % | L57: =SUM(G57:K57) -> 0
A58: =IFERROR(IF(B57<>"",100,B57),"") ->  | F58: R$ | G58: =IF(G57="","",IFERROR(G57*$L58,"")) ->  | H58: =IF(H57="","",IFERROR(H57*$L58,"")) ->  | I58: =IF(I57="","",IFERROR(I57*$L58,"")) ->  | J58: =IF(J57="","",IFERROR(J57*$L58,"")) ->  | K58: =IF(K57="","",IFERROR(K57*$L58,"")) ->  | L58: =VLOOKUP(A57,ORC!$D:$N,11,0) -> 
A59: 22 | B59: =VLOOKUP(A59,ORC!$D:$N,2,0) ->  | F59: % | L59: =SUM(G59:K59) -> 0
A60: =IFERROR(IF(B59<>"",100,B59),"") ->  | F60: R$ | G60: =IF(G59="","",IFERROR(G59*$L60,"")) ->  | H60: =IF(H59="","",IFERROR(H59*$L60,"")) ->  | I60: =IF(I59="","",IFERROR(I59*$L60,"")) ->  | J60: =IF(J59="","",IFERROR(J59*$L60,"")) ->  | K60: =IF(K59="","",IFERROR(K59*$L60,"")) ->  | L60: =VLOOKUP(A59,ORC!$D:$N,11,0) -> 
A61: 23 | B61: =VLOOKUP(A61,ORC!$D:$N,2,0) ->  | F61: % | L61: =SUM(G61:K61) -> 0
A62: =IFERROR(IF(B61<>"",100,B61),"") ->  | F62: R$ | G62: =IF(G61="","",IFERROR(G61*$L62,"")) ->  | H62: =IF(H61="","",IFERROR(H61*$L62,"")) ->  | I62: =IF(I61="","",IFERROR(I61*$L62,"")) ->  | J62: =IF(J61="","",IFERROR(J61*$L62,"")) ->  | K62: =IF(K61="","",IFERROR(K61*$L62,"")) ->  | L62: =VLOOKUP(A61,ORC!$D:$N,11,0) -> 
F64: Porcentagem | G64: =G65/$K$67 ->  | K64: =K65/$K$67 -> 
F65: Custo | G65: =SUMIF($A:$A,100,G:G) -> 688.692 | H65: =SUMIF($A:$A,100,H:H) -> 1377.384 | I65: =SUMIF($A:$A,100,I:I) -> 2066.076 | J65: =SUMIF($A:$A,100,J:J) -> 2754.768 | K65: =SUMIF($A:$A,100,K:K) -> 0
F66: Porcentagem Acumulada | G66: =G64 ->  | H66: =G66+H64 ->  | I66: =H66+I64 -> 
F67: Custo Acumulado | G67: =G65 -> 688.692 | H67: =H65+G67 -> 2066.076 | I67: =I65+H67 -> 4132.152 | J67: 6886.92 | K67: =IF(K65+J67=ORC!M226,K65+J67,"ERRO") -> ERRO
F71: RESPONSÁVEL TÉCNICO | G71: =DADOS!D16 -> FLÁVIA CRISTINA BARBOSA
G72: =DADOS!D18 -> CREA - MG 187.842/D

Sheet CRO 6 meses
A2: CRONOGRAMA FÍSICO-FINANCEIRO | M2: Revisão: | N2: =DADOS!D6 -> R00
M3: Data: | N3: =DADOS!D2 -> 2023-01-05
A4: Projeto: | D4: Responsável: | I4: Cliente: | M4: Bancos:
A5: =DADOS!D8 -> CONSTRUÇÃO DE COBERTURA DA QUADRA COLINA DE SANTA BARBARA | M5: =DADOS!D14 -> SINAPI: 11/2022 Minas Gerais SETOP: 10/2022 Minas Gerais SICRO : 07/2022 Minas Gerais SUDECAP: 10/2022 Minas Gerais
M8: BDI 1: | N8: =DADOS!D10 -> 0.2652
M9: BDI 2: | N9: =DADOS!D12 -> 0.2025
A11: =A2&" DE "&DADOS!D20&" - "&A5 -> CRONOGRAMA FÍSICO-FINANCEIRO DE PROJETO EXECUTIVO - CONSTRUÇÃO DE COBERTURA DA QUADRA COLINA DE SANTA BARBARA
A13: ITEM | B13: DESCRIÇÃO | F13: Unid. | G13: 30 DIAS | H13: 60 DIAS | I13: 90 DIAS | J13: 120 DIAS | K13: 150 DIAS | L13: 180 DIAS | M13: Total por Etapa
A15: 1 | B15: =VLOOKUP(A15,ORC!$D:$N,2,0) -> CANTEIRO DE OBRA | F15: % | G15: 0.1 | H15: 0.2 | I15: 0.3 | J15: 0.4 | M15: =SUM(G15:L15) -> 1
A16: =IFERROR(IF(B15<>"",100,B15),"") -> 100 | F16: R$ | G16: =IF(G15="","",IFERROR(G15*$M16,"")) -> 688.692 | H16: =IF(H15="","",IFERROR(H15*$M16,"")) -> 1377.384 | I16: 2066.076 | J16: 2754.768 | M16: =VLOOKUP(A15,ORC!$D:$N,11,0) -> 6886.92
A17: 2 | B17: =VLOOKUP(A17,ORC!$D:$N,2,0) -> SERVIÇOS PRELIMINARES | F17: % | M17: =SUM(G17:L17) -> 0
A18: =IFERROR(IF(B17<>"",100,B17),"") -> 100 | F18: R$ | G18: =IF(G17="","",IFERROR(G17*$M18,"")) ->  | H18: =IF(H17="","",IFERROR(H17*$M18,"")) ->  | I18: =IF(I17="","",IFERROR(I17*$M18,"")) ->  | J18: =IF(J17="","",IFERROR(J17*$M18,"")) ->  | K18: =IF(K17="","",IFERROR(K17*$M18,"")) ->  | L18: =IF(L17="","",IFERROR(L17*$M18,"")) ->  | M18: =VLOOKUP(A17,ORC!$D:$N,11,0) -> 14349.93
A19: 3 | B19: =VLOOKUP(A19,ORC!$D:$N,2,0) -> FUNDAÇÃO | F19: % | M19: =SUM(G19:L19) -> 0
A20: =IFERROR(IF(B19<>"",100,B19),"") -> 100 | F20: R$ | G20: =IF(G19="","",IFERROR(G19*$M20,"")) ->  | H20: =IF(H19="","",IFERROR(H19*$M20,"")) ->  | I20: =IF(I19="","",IFERROR(I19*$M20,"")) ->  | J20: =IF(J19="","",IFERROR(J19*$M20,"")) ->  | K20: =IF(K19="","",IFERROR(K19*$M20,"")) ->  | L20: =IF(L19="","",IFERROR(L19*$M20,"")) ->  | M20: =VLOOKUP(A19,ORC!$D:$N,11,0) -> 146564.97
A21: 4 | B21: =VLOOKUP(A21,ORC!$D:$N,2,0) -> COBERTURA METÁLICA | F21: % | M21: =SUM(G21:L21) -> 0
A22: =IFERROR(IF(B21<>"",100,B21),"") -> 100 | F22: R$ | G22: =IF(G21="","",IFERROR(G21*$M22,"")) ->  | H22: =IF(H21="","",IFERROR(H21*$M22,"")) ->  | I22: =IF(I21="","",IFERROR(I21*$M22,"")) ->  | J22: =IF(J21="","",IFERROR(J21*$M22,"")) ->  | K22: =IF(K21="","",IFERROR(K21*$M22,"")) ->  | L22: =IF(L21="","",IFERROR(L21*$M22,"")) ->  | M22: =VLOOKUP(A21,ORC!$D:$N,11,0) -> 1447539.43
A23: 5 | B23: =VLOOKUP(A23,ORC!$D:$N,2,0) -> DRENAGEM PLUVIAL | F23: % | M23: =SUM(G23:L23) -> 0
A24: =IFERROR(IF(B23<>"",100,B23),"") -> 100 | F24: R$ | G24: =IF(G23="","",IFERROR(G23*$M24,"")) ->  | H24: =IF(H23="","",IFERROR(H23*$M24,"")) ->  | I24: =IF(I23="","",IFERROR(I23*$M24,"")) ->  | J24: =IF(J23="","",IFERROR(J23*$M24,"")) ->  | K24: =IF(K23="","",IFERROR(K23*$M24,"")) ->  | L24: =IF(L23="","",IFERROR(L23*$M24,"")) ->  | M24: =VLOOKUP(A23,ORC!$D:$N,11,0) -> 51830.55
A25: 6 | B25: =VLOOKUP(A25,ORC!$D:$N,2,0) -> SERVIÇOS FINAIS | F25: % | M25: =SUM(G25:L25) -> 0
A26: =IFERROR(IF(B25<>"",100,B25),"") -> 100 | F26: R$ | G26: =IF(G25="","",IFERROR(G25*$M26,"")) ->  | H26: =IF(H25="","",IFERROR(H25*$M26,"")) ->  | I26: =IF(I25="","",IFERROR(I25*$M26,"")) ->  | J26: =IF(J25="","",IFERROR(J25*$M26,"")) ->  | K26: =IF(K25="","",IFERROR(K25*$M26,"")) ->  | L26: =IF(L25="","",IFERROR(L25*$M26,"")) ->  | M26: =VLOOKUP(A25,ORC!$D:$N,11,0) -> 26530.97
A27: 7 | B27: =VLOOKUP(A27,ORC!$D:$N,2,0) ->  | F27: % | M27: =SUM(G27:L27) -> 0
A28: =IFERROR(IF(B27<>"",100,B27),"") ->  | F28: R$ | G28: =IF(G27="","",IFERROR(G27*$M28,"")) ->  | H28: =IF(H27="","",IFERROR(H27*$M28,"")) ->  | I28: =IF(I27="","",IFERROR(I27*$M28,"")) ->  | J28: =IF(J27="","",IFERROR(J27*$M28,"")) ->  | K28: =IF(K27="","",IFERROR(K27*$M28,"")) ->  | L28: =IF(L27="","",IFERROR(L27*$M28,"")) ->  | M28: =VLOOKUP(A27,ORC!$D:$N,11,0) -> 
A29: 8 | B29: =VLOOKUP(A29,ORC!$D:$N,2,0) ->  | F29: % | M29: =SUM(G29:L29) -> 0
A30: =IFERROR(IF(B29<>"",100,B29),"") ->  | F30: R$ | G30: =IF(G29="","",IFERROR(G29*$M30,"")) ->  | H30: =IF(H29="","",IFERROR(H29*$M30,"")) ->  | I30: =IF(I29="","",IFERROR(I29*$M30,"")) ->  | J30: =IF(J29="","",IFERROR(J29*$M30,"")) ->  | K30: =IF(K29="","",IFERROR(K29*$M30,"")) ->  | L30: =IF(L29="","",IFERROR(L29*$M30,"")) ->  | M30: =VLOOKUP(A29,ORC!$D:$N,11,0) -> 
A32: 9 | B32: =VLOOKUP(A32,ORC!$D:$N,2,0) ->  | F32: % | M32: =SUM(G32:L32) -> 0
A33: =IFERROR(IF(B32<>"",100,B32),"") ->  | F33: R$ | G33: =IF(G32="","",IFERROR(G32*$M33,"")) ->  | H33: =IF(H32="","",IFERROR(H32*$M33,"")) ->  | I33: =IF(I32="","",IFERROR(I32*$M33,"")) ->  | J33: =IF(J32="","",IFERROR(J32*$M33,"")) ->  | K33: =IF(K32="","",IFERROR(K32*$M33,"")) ->  | L33: =IF(L32="","",IFERROR(L32*$M33,"")) ->  | M33: =VLOOKUP(A32,ORC!$D:$N,11,0) -> 
A34: 10 | B34: =VLOOKUP(A34,ORC!$D:$N,2,0) ->  | F34: % | M34: =SUM(G34:L34) -> 0
A35: =IFERROR(IF(B34<>"",100,B34),"") ->  | F35: R$ | G35: =IF(G34="","",IFERROR(G34*$M35,"")) ->  | H35: =IF(H34="","",IFERROR(H34*$M35,"")) ->  | I35: =IF(I34="","",IFERROR(I34*$M35,"")) ->  | J35: =IF(J34="","",IFERROR(J34*$M35,"")) ->  | K35: =IF(K34="","",IFERROR(K34*$M35,"")) ->  | L35: =IF(L34="","",IFERROR(L34*$M35,"")) ->  | M35: =VLOOKUP(A34,ORC!$D:$N,11,0) -> 
A36: 11 | B36: =VLOOKUP(A36,ORC!$D:$N,2,0) ->  | F36: % | M36: =SUM(G36:L36) -> 0
A37: =IFERROR(IF(B36<>"",100,B36),"") ->  | F37: R$ | G37: =IF(G36="","",IFERROR(G36*$M37,"")) ->  | H37: =IF(H36="","",IFERROR(H36*$M37,"")) ->  | I37: =IF(I36="","",IFERROR(I36*$M37,"")) ->  | J37: =IF(J36="","",IFERROR(J36*$M37,"")) ->  | K37: =IF(K36="","",IFERROR(K36*$M37,"")) ->  | L37: =IF(L36="","",IFERROR(L36*$M37,"")) ->  | M37: =VLOOKUP(A36,ORC!$D:$N,11,0) -> 
A38: 12 | B38: =VLOOKUP(A38,ORC!$D:$N,2,0) ->  | F38: % | M38: =SUM(G38:L38) -> 0
A39: =IFERROR(IF(B38<>"",100,B38),"") ->  | F39: R$ | G39: =IF(G38="","",IFERROR(G38*$M39,"")) ->  | H39: =IF(H38="","",IFERROR(H38*$M39,"")) ->  | I39: =IF(I38="","",IFERROR(I38*$M39,"")) ->  | J39: =IF(J38="","",IFERROR(J38*$M39,"")) ->  | K39: =IF(K38="","",IFERROR(K38*$M39,"")) ->  | L39: =IF(L38="","",IFERROR(L38*$M39,"")) ->  | M39: =VLOOKUP(A38,ORC!$D:$N,11,0) -> 
A40: 13 | B40: =VLOOKUP(A40,ORC!$D:$N,2,0) ->  | F40: % | M40: =SUM(G40:L40) -> 0
A41: =IFERROR(IF(B40<>"",100,B40),"") ->  | F41: R$ | G41: =IF(G40="","",IFERROR(G40*$M41,"")) ->  | H41: =IF(H40="","",IFERROR(H40*$M41,"")) ->  | I41: =IF(I40="","",IFERROR(I40*$M41,"")) ->  | J41: =IF(J40="","",IFERROR(J40*$M41,"")) ->  | K41: =IF(K40="","",IFERROR(K40*$M41,"")) ->  | L41: =IF(L40="","",IFERROR(L40*$M41,"")) ->  | M41: =VLOOKUP(A40,ORC!$D:$N,11,0) -> 
A42: 14 | B42: =VLOOKUP(A42,ORC!$D:$N,2,0) ->  | F42: % | M42: =SUM(G42:L42) -> 0
A43: =IFERROR(IF(B42<>"",100,B42),"") ->  | F43: R$ | G43: =IF(G42="","",IFERROR(G42*$M43,"")) ->  | H43: =IF(H42="","",IFERROR(H42*$M43,"")) ->  | I43: =IF(I42="","",IFERROR(I42*$M43,"")) ->  | J43: =IF(J42="","",IFERROR(J42*$M43,"")) ->  | K43: =IF(K42="","",IFERROR(K42*$M43,"")) ->  | L43: =IF(L42="","",IFERROR(L42*$M43,"")) ->  | M43: =VLOOKUP(A42,ORC!$D:$N,11,0) -> 
A44: 15 | B44: =VLOOKUP(A44,ORC!$D:$N,2,0) ->  | F44: % | M44: =SUM(G44:L44) -> 0
A45: =IFERROR(IF(B44<>"",100,B44),"") ->  | F45: R$ | G45: =IF(G44="","",IFERROR(G44*$M45,"")) ->  | H45: =IF(H44="","",IFERROR(H44*$M45,"")) ->  | I45: =IF(I44="","",IFERROR(I44*$M45,"")) ->  | J45: =IF(J44="","",IFERROR(J44*$M45,"")) ->  | K45: =IF(K44="","",IFERROR(K44*$M45,"")) ->  | L45: =IF(L44="","",IFERROR(L44*$M45,"")) ->  | M45: =VLOOKUP(A44,ORC!$D:$N,11,0) -> 
A46: 16 | B46: =VLOOKUP(A46,ORC!$D:$N,2,0) ->  | F46: % | M46: =SUM(G46:L46) -> 0
A47: =IFERROR(IF(B46<>"",100,B46),"") ->  | F47: R$ | G47: =IF(G46="","",IFERROR(G46*$M47,"")) ->  | H47: =IF(H46="","",IFERROR(H46*$M47,"")) ->  | I47: =IF(I46="","",IFERROR(I46*$M47,"")) ->  | J47: =IF(J46="","",IFERROR(J46*$M47,"")) ->  | K47: =IF(K46="","",IFERROR(K46*$M47,"")) ->  | L47: =IF(L46="","",IFERROR(L46*$M47,"")) ->  | M47: =VLOOKUP(A46,ORC!$D:$N,11,0) -> 
A48: 17 | B48: =VLOOKUP(A48,ORC!$D:$N,2,0) ->  | F48: % | M48: =SUM(G48:L48) -> 0
A49: =IFERROR(IF(B48<>"",100,B48),"") ->  | F49: R$ | G49: =IF(G48="","",IFERROR(G48*$M49,"")) ->  | H49: =IF(H48="","",IFERROR(H48*$M49,"")) ->  | I49: =IF(I48="","",IFERROR(I48*$M49,"")) ->  | J49: =IF(J48="","",IFERROR(J48*$M49,"")) ->  | K49: =IF(K48="","",IFERROR(K48*$M49,"")) ->  | L49: =IF(L48="","",IFERROR(L48*$M49,"")) ->  | M49: =VLOOKUP(A48,ORC!$D:$N,11,0) -> 
A50: 18 | B50: =VLOOKUP(A50,ORC!$D:$N,2,0) ->  | F50: % | M50: =SUM(G50:L50) -> 0
A51: =IFERROR(IF(B50<>"",100,B50),"") ->  | F51: R$ | G51: =IF(G50="","",IFERROR(G50*$M51,"")) ->  | H51: =IF(H50="","",IFERROR(H50*$M51,"")) ->  | I51: =IF(I50="","",IFERROR(I50*$M51,"")) ->  | J51: =IF(J50="","",IFERROR(J50*$M51,"")) ->  | K51: =IF(K50="","",IFERROR(K50*$M51,"")) ->  | L51: =IF(L50="","",IFERROR(L50*$M51,"")) ->  | M51: =VLOOKUP(A50,ORC!$D:$N,11,0) -> 
A52: 19 | B52: =VLOOKUP(A52,ORC!$D:$N,2,0) ->  | F52: % | M52: =SUM(G52:L52) -> 0
A53: =IFERROR(IF(B52<>"",100,B52),"") ->  | F53: R$ | G53: =IF(G52="","",IFERROR(G52*$M53,"")) ->  | H53: =IF(H52="","",IFERROR(H52*$M53,"")) ->  | I53: =IF(I52="","",IFERROR(I52*$M53,"")) ->  | J53: =IF(J52="","",IFERROR(J52*$M53,"")) ->  | K53: =IF(K52="","",IFERROR(K52*$M53,"")) ->  | L53: =IF(L52="","",IFERROR(L52*$M53,"")) ->  | M53: =VLOOKUP(A52,ORC!$D:$N,11,0) -> 
A55: 20 | B55: =VLOOKUP(A55,ORC!$D:$N,2,0) ->  | F55: % | M55: =SUM(G55:L55) -> 0
A56: =IFERROR(IF(B55<>"",100,B55),"") ->  | F56: R$ | G56: =IF(G55="","",IFERROR(G55*$M56,"")) ->  | H56: =IF(H55="","",IFERROR(H55*$M56,"")) ->  | I56: =IF(I55="","",IFERROR(I55*$M56,"")) ->  | J56: =IF(J55="","",IFERROR(J55*$M56,"")) ->  | K56: =IF(K55="","",IFERROR(K55*$M56,"")) ->  | L56: =IF(L55="","",IFERROR(L55*$M56,"")) ->  | M56: =VLOOKUP(A55,ORC!$D:$N,11,0) -> 
A57: 21 | B57: =VLOOKUP(A57,ORC!$D:$N,2,0) ->  | F57: % | M57: =SUM(G57:L57) -> 0
A58: =IFERROR(IF(B57<>"",100,B57),"") ->  | F58: R$ | G58: =IF(G57="","",IFERROR(G57*$M58,"")) ->  | H58: =IF(H57="","",IFERROR(H57*$M58,"")) ->  | I58: =IF(I57="","",IFERROR(I57*$M58,"")) ->  | J58: =IF(J57="","",IFERROR(J57*$M58,"")) ->  | K58: =IF(K57="","",IFERROR(K57*$M58,"")) ->  | L58: =IF(L57="","",IFERROR(L57*$M58,"")) ->  | M58: =VLOOKUP(A57,ORC!$D:$N,11,0) -> 
A59: 22 | B59: =VLOOKUP(A59,ORC!$D:$N,2,0) ->  | F59: % | M59: =SUM(G59:L59) -> 0
A60: =IFERROR(IF(B59<>"",100,B59),"") ->  | F60: R$ | G60: =IF(G59="","",IFERROR(G59*$M60,"")) ->  | H60: =IF(H59="","",IFERROR(H59*$M60,"")) ->  | I60: =IF(I59="","",IFERROR(I59*$M60,"")) ->  | J60: =IF(J59="","",IFERROR(J59*$M60,"")) ->  | K60: =IF(K59="","",IFERROR(K59*$M60,"")) ->  | L60: =IF(L59="","",IFERROR(L59*$M60,"")) ->  | M60: =VLOOKUP(A59,ORC!$D:$N,11,0) -> 
A61: 5 | B61: =VLOOKUP(A61,ORC!$D:$N,2,0) -> DRENAGEM PLUVIAL | F61: % | M61: =SUM(G61:L61) -> 0
A62: =IFERROR(IF(B61<>"",100,B61),"") -> 100 | F62: R$ | G62: =IF(G61="","",IFERROR(G61*$M62,"")) ->  | H62: =IF(H61="","",IFERROR(H61*$M62,"")) ->  | I62: =IF(I61="","",IFERROR(I61*$M62,"")) ->  | J62: =IF(J61="","",IFERROR(J61*$M62,"")) ->  | K62: =IF(K61="","",IFERROR(K61*$M62,"")) ->  | L62: =IF(L61="","",IFERROR(L61*$M62,"")) ->  | M62: =VLOOKUP(A61,ORC!$D:$N,11,0) -> 51830.55
F64: Porcentagem | G64: =G65/$L$67 -> 
F65: Custo | G65: =SUMIF($A:$A,100,G:G) -> 688.692 | H65: 1377.384 | I65: 2066.076 | J65: 2754.768 | K65: 0 | L65: 0
F66: Porcentagem Acumulada | G66: =G64 ->  | H66: =G66+H64 ->  | I66: =H66+I64 -> 
F67: Custo Acumulado | G67: =G65 -> 688.692 | H67: =H65+G67 -> 2066.076 | I67: =I65+H67 -> 4132.152 | J67: 6886.92 | K67: 6886.92 | L67: =IF(L65+K67=ORC!M226,L65+K67,"ERRO") -> ERRO
F71: RESPONSÁVEL TÉCNICO | G71: =DADOS!D16 -> FLÁVIA CRISTINA BARBOSA
G72: =DADOS!D18 -> CREA - MG 187.842/D

Sheet CRO 7 meses
A2: CRONOGRAMA FÍSICO-FINANCEIRO | K2: Revisão: | L2: =DADOS!D6 -> R00 | M2: CRONOGRAMA FÍSICO-FINANCEIRO | Y2: Revisão: | Z2: =DADOS!$D$6 -> R00
K3: Data: | L3: =DADOS!D2 -> 2023-01-05 | Y3: Data: | Z3: =DADOS!$D$2 -> 2023-01-05
A4: Projeto: | D4: Responsável: | H4: Cliente: | K4: Bancos: | M4: Projeto: | P4: Responsável: | U4: Cliente: | Y4: Bancos:
A5: =DADOS!D8 -> CONSTRUÇÃO DE COBERTURA DA QUADRA COLINA DE SANTA BARBARA | K5: =DADOS!D14 -> SINAPI: 11/2022 Minas Gerais SETOP: 10/2022 Minas Gerais SICRO : 07/2022 Minas Gerais SUDECAP: 10/2022 Minas Gerais | M5: =DADOS!$D$8 -> CONSTRUÇÃO DE COBERTURA DA QUADRA COLINA DE SANTA BARBARA | Y5: =DADOS!$D$14 -> SINAPI: 11/2022 Minas Gerais SETOP: 10/2022 Minas Gerais SICRO : 07/2022 Minas Gerais SUDECAP: 10/2022 Minas Gerais
K8: BDI 1: | L8: =DADOS!D10 -> 0.2652 | Y8: BDI 1: | Z8: =DADOS!$D$10 -> 0.2652
K9: BDI 2: | L9: =DADOS!D12 -> 0.2025 | Y9: BDI 2: | Z9: =DADOS!$D$12 -> 0.2025
A11: =A2&" DE "&DADOS!D20&" - "&A5 -> CRONOGRAMA FÍSICO-FINANCEIRO DE PROJETO EXECUTIVO - CONSTRUÇÃO DE COBERTURA DA QUADRA COLINA DE SANTA BARBARA | M11: =M2&" DE "&DADOS!$D$20&" - "&M5 -> CRONOGRAMA FÍSICO-FINANCEIRO DE PROJETO EXECUTIVO - CONSTRUÇÃO DE COBERTURA DA QUADRA COLINA DE SANTA BARBARA
A13: ITEM | B13: DESCRIÇÃO | F13: Unid. | G13: 30 DIAS | H13: 60 DIAS | I13: 90 DIAS | J13: 120 DIAS | K13: Total por Etapa | M13: ITEM | N13: DESCRIÇÃO | R13: Unid. | S13: 150 DIAS | U13: 180 DIAS | W13: 210 DIAS | Y13: Total por Etapa
A15: 1 | B15: =VLOOKUP(A15,ORC!$D:$N,2,0) -> CANTEIRO DE OBRA | F15: % | G15: 0.28 | H15: 0.12 | I15: 0.12 | J15: 0.12 | K15: =SUM(G15:J15)+SUM(S15:X15) -> 1 | M15: 1 | N15: =VLOOKUP(M15,ORC!$D:$N,2,0) -> CANTEIRO DE OBRA | R15: % | S15: 0.12 | U15: 0.12 | W15: 0.12 | Y15: =K15 -> 1
A16: =IFERROR(IF(B15<>"",100,B15),"") -> 100 | F16: R$ | G16: =IF(G15="","",IFERROR(G15*$K16,"")) -> 1928.3376 | H16: =IF(H15="","",IFERROR(H15*$K16,"")) -> 826.4304 | I16: 826.4304 | J16: 826.4304 | K16: =VLOOKUP(A15,ORC!$D:$N,11,0) -> 6886.92 | M16: =IFERROR(IF(N15<>"",100,N15),"") -> 100 | R16: R$ | S16: =IF(S15="","",IFERROR(S15*$K16,"")) -> 826.4304 | U16: =IF(U15="","",IFERROR(U15*$K16,"")) -> 826.4304 | W16: =IF(W15="","",IFERROR(W15*$K16,"")) -> 826.4304 | Y16: 6886.92
A17: 2 | B17: =VLOOKUP(A17,ORC!$D:$N,2,0) -> SERVIÇOS PRELIMINARES | F17: % | K17: =SUM(G17:J17)+SUM(S17:X17) -> 0 | M17: 2 | N17: =VLOOKUP(M17,ORC!$D:$N,2,0) -> SERVIÇOS PRELIMINARES | R17: % | Y17: 0
A18: =IFERROR(IF(B17<>"",100,B17),"") -> 100 | F18: R$ | G18: =IF(G17="","",IFERROR(G17*$K18,"")) ->  | H18: =IF(H17="","",IFERROR(H17*$K18,"")) ->  | K18: =VLOOKUP(A17,ORC!$D:$N,11,0) -> 14349.93 | M18: =IFERROR(IF(N17<>"",100,N17),"") -> 100 | R18: R$ | S18: =IF(S17="","",IFERROR(S17*$K18,"")) ->  | U18: =IF(U17="","",IFERROR(U17*$K18,"")) ->  | W18: =IF(W17="","",IFERROR(W17*$K18,"")) ->  | Y18: 14349.93
A19: 3 | B19: =VLOOKUP(A19,ORC!$D:$N,2,0) -> FUNDAÇÃO | F19: % | K19: =SUM(G19:J19)+SUM(S19:X19) -> 0 | M19: 3 | N19: =VLOOKUP(M19,ORC!$D:$N,2,0) -> FUNDAÇÃO | R19: % | Y19: 0
A20: =IFERROR(IF(B19<>"",100,B19),"") -> 100 | F20: R$ | G20: =IF(G19="","",IFERROR(G19*$K20,"")) ->  | H20: =IF(H19="","",IFERROR(H19*$K20,"")) ->  | K20: =VLOOKUP(A19,ORC!$D:$N,11,0) -> 146564.97 | M20: =IFERROR(IF(N19<>"",100,N19),"") -> 100 | R20: R$ | S20: =IF(S19="","",IFERROR(S19*$K20,"")) ->  | U20: =IF(U19="","",IFERROR(U19*$K20,"")) ->  | W20: =IF(W19="","",IFERROR(W19*$K20,"")) ->  | Y20: 146564.97
A21: 4 | B21: =VLOOKUP(A21,ORC!$D:$N,2,0) -> COBERTURA METÁLICA | F21: % | K21: =SUM(G21:J21)+SUM(S21:X21) -> 0 | M21: 4 | N21: =VLOOKUP(M21,ORC!$D:$N,2,0) -> COBERTURA METÁLICA | R21: % | Y21: 0
A22: =IFERROR(IF(B21<>"",100,B21),"") -> 100 | F22: R$ | G22: =IF(G21="","",IFERROR(G21*$K22,"")) ->  | H22: =IF(H21="","",IFERROR(H21*$K22,"")) ->  | K22: =VLOOKUP(A21,ORC!$D:$N,11,0) -> 1447539.43 | M22: =IFERROR(IF(N21<>"",100,N21),"") -> 100 | R22: R$ | S22: =IF(S21="","",IFERROR(S21*$K22,"")) ->  | U22: =IF(U21="","",IFERROR(U21*$K22,"")) ->  | W22: =IF(W21="","",IFERROR(W21*$K22,"")) ->  | Y22: 1447539.43
A23: 5 | B23: =VLOOKUP(A23,ORC!$D:$N,2,0) -> DRENAGEM PLUVIAL | F23: % | K23: =SUM(G23:J23)+SUM(S23:X23) -> 0 | M23: 5 | N23: =VLOOKUP(M23,ORC!$D:$N,2,0) -> DRENAGEM PLUVIAL | R23: % | Y23: 0
A24: =IFERROR(IF(B23<>"",100,B23),"") -> 100 | F24: R$ | G24: =IF(G23="","",IFERROR(G23*$K24,"")) ->  | H24: =IF(H23="","",IFERROR(H23*$K24,"")) ->  | K24: =VLOOKUP(A23,ORC!$D:$N,11,0) -> 51830.55 | M24: =IFERROR(IF(N23<>"",100,N23),"") -> 100 | R24: R$ | S24: =IF(S23="","",IFERROR(S23*$K24,"")) ->  | U24: =IF(U23="","",IFERROR(U23*$K24,"")) ->  | W24: =IF(W23="","",IFERROR(W23*$K24,"")) ->  | Y24: 51830.55
A25: 6 | B25: =VLOOKUP(A25,ORC!$D:$N,2,0) -> SERVIÇOS FINAIS | F25: % | K25: =SUM(G25:J25)+SUM(S25:X25) -> 0 | M25: 6 | N25: =VLOOKUP(M25,ORC!$D:$N,2,0) -> SERVIÇOS FINAIS | R25: % | Y25: 0
A26: =IFERROR(IF(B25<>"",100,B25),"") -> 100 | F26: R$ | G26: =IF(G25="","",IFERROR(G25*$K26,"")) ->  | H26: =IF(H25="","",IFERROR(H25*$K26,"")) ->  | K26: =VLOOKUP(A25,ORC!$D:$N,11,0) -> 26530.97 | M26: =IFERROR(IF(N25<>"",100,N25),"") -> 100 | R26: R$ | S26: =IF(S25="","",IFERROR(S25*$K26,"")) ->  | U26: =IF(U25="","",IFERROR(U25*$K26,"")) ->  | W26: =IF(W25="","",IFERROR(W25*$K26,"")) ->  | Y26: 26530.97
A27: 7 | B27: =VLOOKUP(A27,ORC!$D:$N,2,0) ->  | F27: % | K27: =SUM(G27:J27)+SUM(S27:X27) -> 0 | M27: 7 | N27: =VLOOKUP(M27,ORC!$D:$N,2,0) ->  | R27: % | Y27: 0
A28: =IFERROR(IF(B27<>"",100,B27),"") ->  | F28: R$ | G28: =IF(G27="","",IFERROR(G27*$K28,"")) ->  | H28: =IF(H27="","",IFERROR(H27*$K28,"")) ->  | K28: =VLOOKUP(A27,ORC!$D:$N,11,0) ->  | M28: =IFERROR(IF(N27<>"",100,N27),"") ->  | R28: R$ | S28: =IF(S27="","",IFERROR(S27*$K28,"")) ->  | U28: =IF(U27="","",IFERROR(U27*$K28,"")) ->  | W28: =IF(W27="","",IFERROR(W27*$K28,"")) -> 
A29: 8 | B29: =VLOOKUP(A29,ORC!$D:$N,2,0) ->  | F29: % | K29: =SUM(G29:J29)+SUM(S29:X29) -> 0 | M29: 8 | N29: =VLOOKUP(M29,ORC!$D:$N,2,0) ->  | R29: % | Y29: 0
A30: =IFERROR(IF(B29<>"",100,B29),"") ->  | F30: R$ | G30: =IF(G29="","",IFERROR(G29*$K30,"")) ->  | H30: =IF(H29="","",IFERROR(H29*$K30,"")) ->  | K30: =VLOOKUP(A29,ORC!$D:$N,11,0) ->  | M30: =IFERROR(IF(N29<>"",100,N29),"") ->  | R30: R$ | S30: =IF(S29="","",IFERROR(S29*$K30,"")) ->  | U30: =IF(U29="","",IFERROR(U29*$K30,"")) ->  | W30: =IF(W29="","",IFERROR(W29*$K30,"")) -> 
A31: 9 | B31: =VLOOKUP(A31,ORC!$D:$N,2,0) ->  | F31: % | K31: =SUM(G31:J31)+SUM(S31:X31) -> 0 | M31: 9 | N31: =VLOOKUP(M31,ORC!$D:$N,2,0) ->  | R31: % | Y31: 0
A32: =IFERROR(IF(B31<>"",100,B31),"") ->  | F32: R$ | G32: =IF(G31="","",IFERROR(G31*$K32,"")) ->  | H32: =IF(H31="","",IFERROR(H31*$K32,"")) ->  | K32: =VLOOKUP(A31,ORC!$D:$N,11,0) ->  | M32: =IFERROR(IF(N31<>"",100,N31),"") ->  | R32: R$ | S32: =IF(S31="","",IFERROR(S31*$K32,"")) ->  | U32: =IF(U31="","",IFERROR(U31*$K32,"")) ->  | W32: =IF(W31="","",IFERROR(W31*$K32,"")) -> 
A33: 10 | B33: =VLOOKUP(A33,ORC!$D:$N,2,0) ->  | F33: % | K33: =SUM(G33:J33)+SUM(S33:X33) -> 0 | M33: 10 | N33: =VLOOKUP(M33,ORC!$D:$N,2,0) ->  | R33: % | Y33: 0
A34: =IFERROR(IF(B33<>"",100,B33),"") ->  | F34: R$ | G34: =IF(G33="","",IFERROR(G33*$K34,"")) ->  | H34: =IF(H33="","",IFERROR(H33*$K34,"")) ->  | K34: =VLOOKUP(A33,ORC!$D:$N,11,0) ->  | M34: =IFERROR(IF(N33<>"",100,N33),"") ->  | R34: R$ | S34: =IF(S33="","",IFERROR(S33*$K34,"")) ->  | U34: =IF(U33="","",IFERROR(U33*$K34,"")) ->  | W34: =IF(W33="","",IFERROR(W33*$K34,"")) -> 
A35: 11 | B35: =VLOOKUP(A35,ORC!$D:$N,2,0) ->  | F35: % | K35: =SUM(G35:J35)+SUM(S35:X35) -> 0 | M35: 11 | N35: =VLOOKUP(M35,ORC!$D:$N,2,0) ->  | R35: % | Y35: 0
A36: =IFERROR(IF(B35<>"",100,B35),"") ->  | F36: R$ | G36: =IF(G35="","",IFERROR(G35*$K36,"")) ->  | H36: =IF(H35="","",IFERROR(H35*$K36,"")) ->  | K36: =VLOOKUP(A35,ORC!$D:$N,11,0) ->  | M36: =IFERROR(IF(N35<>"",100,N35),"") ->  | R36: R$ | S36: =IF(S35="","",IFERROR(S35*$K36,"")) ->  | U36: =IF(U35="","",IFERROR(U35*$K36,"")) ->  | W36: =IF(W35="","",IFERROR(W35*$K36,"")) -> 
A37: 12 | B37: =VLOOKUP(A37,ORC!$D:$N,2,0) ->  | F37: % | K37: =SUM(G37:J37)+SUM(S37:X37) -> 0 | M37: 12 | N37: =VLOOKUP(M37,ORC!$D:$N,2,0) ->  | R37: % | Y37: 0
A38: =IFERROR(IF(B37<>"",100,B37),"") ->  | F38: R$ | G38: =IF(G37="","",IFERROR(G37*$K38,"")) ->  | H38: =IF(H37="","",IFERROR(H37*$K38,"")) ->  | K38: =VLOOKUP(A37,ORC!$D:$N,11,0) ->  | M38: =IFERROR(IF(N37<>"",100,N37),"") ->  | R38: R$ | S38: =IF(S37="","",IFERROR(S37*$K38,"")) ->  | U38: =IF(U37="","",IFERROR(U37*$K38,"")) ->  | W38: =IF(W37="","",IFERROR(W37*$K38,"")) -> 
A39: 13 | B39: =VLOOKUP(A39,ORC!$D:$N,2,0) ->  | F39: % | K39: =SUM(G39:J39)+SUM(S39:X39) -> 0 | M39: 13 | N39: =VLOOKUP(M39,ORC!$D:$N,2,0) ->  | R39: % | Y39: 0
A40: =IFERROR(IF(B39<>"",100,B39),"") ->  | F40: R$ | G40: =IF(G39="","",IFERROR(G39*$K40,"")) ->  | H40: =IF(H39="","",IFERROR(H39*$K40,"")) ->  | K40: =VLOOKUP(A39,ORC!$D:$N,11,0) ->  | M40: =IFERROR(IF(N39<>"",100,N39),"") ->  | R40: R$ | S40: =IF(S39="","",IFERROR(S39*$M40,"")) ->  | U40: =IF(U39="","",IFERROR(U39*$M40,"")) ->  | W40: =IF(W39="","",IFERROR(W39*$M40,"")) -> 
A41: 14 | B41: =VLOOKUP(A41,ORC!$D:$N,2,0) ->  | F41: % | K41: =SUM(G41:J41)+SUM(S41:X41) -> 0 | M41: 14 | N41: =VLOOKUP(M41,ORC!$D:$N,2,0) ->  | R41: % | Y41: 0
A42: =IFERROR(IF(B41<>"",100,B41),"") ->  | F42: R$ | G42: =IF(G41="","",IFERROR(G41*$K42,"")) ->  | H42: =IF(H41="","",IFERROR(H41*$K42,"")) ->  | K42: =VLOOKUP(A41,ORC!$D:$N,11,0) ->  | M42: =IFERROR(IF(N41<>"",100,N41),"") ->  | R42: R$ | S42: =IF(S41="","",IFERROR(S41*$M42,"")) -> 
A43: 15 | B43: =VLOOKUP(A43,ORC!$D:$N,2,0) ->  | F43: % | K43: =SUM(G43:J43)+SUM(S43:X43) -> 0 | M43: 15 | N43: =VLOOKUP(M43,ORC!$D:$N,2,0) ->  | R43: % | Y43: 0
A44: =IFERROR(IF(B43<>"",100,B43),"") ->  | F44: R$ | G44: =IF(G43="","",IFERROR(G43*$K44,"")) ->  | H44: =IF(H43="","",IFERROR(H43*$K44,"")) ->  | K44: =VLOOKUP(A43,ORC!$D:$N,11,0) ->  | M44: =IFERROR(IF(N43<>"",100,N43),"") ->  | R44: R$ | S44: =IF(S43="","",IFERROR(S43*$M44,"")) -> 
A45: 16 | B45: =VLOOKUP(A45,ORC!$D:$N,2,0) ->  | F45: % | K45: =SUM(G45:J45)+SUM(S45:X45) -> 0 | M45: 16 | N45: =VLOOKUP(M45,ORC!$D:$N,2,0) ->  | R45: % | Y45: 0
A46: =IFERROR(IF(B45<>"",100,B45),"") ->  | F46: R$ | G46: =IF(G45="","",IFERROR(G45*$K46,"")) ->  | H46: =IF(H45="","",IFERROR(H45*$K46,"")) ->  | K46: =VLOOKUP(A45,ORC!$D:$N,11,0) ->  | M46: =IFERROR(IF(N45<>"",100,N45),"") ->  | R46: R$ | S46: =IF(S45="","",IFERROR(S45*$M46,"")) -> 
A47: 17 | B47: =VLOOKUP(A47,ORC!$D:$N,2,0) ->  | F47: % | K47: =SUM(G47:J47)+SUM(S47:X47) -> 0 | M47: 17 | N47: =VLOOKUP(M47,ORC!$D:$N,2,0) ->  | R47: % | Y47: 0
A48: =IFERROR(IF(B47<>"",100,B47),"") ->  | F48: R$ | G48: =IF(G47="","",IFERROR(G47*$K48,"")) ->  | H48: =IF(H47="","",IFERROR(H47*$K48,"")) ->  | K48: =VLOOKUP(A47,ORC!$D:$N,11,0) ->  | M48: =IFERROR(IF(N47<>"",100,N47),"") ->  | R48: R$ | S48: =IF(S47="","",IFERROR(S47*$M48,"")) -> 
A49: 18 | B49: =VLOOKUP(A49,ORC!$D:$N,2,0) ->  | F49: % | K49: =SUM(G49:J49)+SUM(S49:X49) -> 0 | M49: 18 | N49: =VLOOKUP(M49,ORC!$D:$N,2,0) ->  | R49: % | Y49: 0
A50: =IFERROR(IF(B49<>"",100,B49),"") ->  | F50: R$ | G50: =IF(G49="","",IFERROR(G49*$K50,"")) ->  | H50: =IF(H49="","",IFERROR(H49*$K50,"")) ->  | K50: =VLOOKUP(A49,ORC!$D:$N,11,0) ->  | M50: =IFERROR(IF(N49<>"",100,N49),"") ->  | R50: R$ | S50: =IF(S49="","",IFERROR(S49*$M50,"")) -> 
A51: 19 | B51: =VLOOKUP(A51,ORC!$D:$N,2,0) ->  | F51: % | K51: =SUM(G51:J51)+SUM(S51:X51) -> 0 | M51: 19 | N51: =VLOOKUP(M51,ORC!$D:$N,2,0) ->  | R51: % | Y51: 0
A52: =IFERROR(IF(B51<>"",100,B51),"") ->  | F52: R$ | G52: =IF(G51="","",IFERROR(G51*$K52,"")) ->  | H52: =IF(H51="","",IFERROR(H51*$K52,"")) ->  | K52: =VLOOKUP(A51,ORC!$D:$N,11,0) ->  | M52: =IFERROR(IF(N51<>"",100,N51),"") ->  | R52: R$ | S52: =IF(S51="","",IFERROR(S51*$M52,"")) -> 
A54: 20 | B54: =VLOOKUP(A54,ORC!$D:$N,2,0) ->  | F54: % | K54: =SUM(G54:J54)+SUM(S54:X54) -> 0 | M54: 20 | N54: =VLOOKUP(M54,ORC!$D:$N,2,0) ->  | R54: % | Y54: =K54 -> 0
A55: =IFERROR(IF(B54<>"",100,B54),"") ->  | F55: R$ | G55: =IF(G54="","",IFERROR(G54*$K55,"")) ->  | H55: =IF(H54="","",IFERROR(H54*$K55,"")) ->  | K55: =VLOOKUP(A54,ORC!$D:$N,11,0) ->  | M55: =IFERROR(IF(N54<>"",100,N54),"") ->  | R55: R$ | S55: =IF(S54="","",IFERROR(S54*$M55,"")) ->  | U55: =IF(U54="","",IFERROR(U54*$M55,"")) ->  | W55: =IF(W54="","",IFERROR(W54*$M55,"")) -> 
A56: 21 | B56: =VLOOKUP(A56,ORC!$D:$N,2,0) ->  | F56: % | K56: =SUM(G56:J56)+SUM(S56:X56) -> 0 | M56: 21 | N56: =VLOOKUP(M56,ORC!$D:$N,2,0) ->  | R56: % | Y56: 0
A57: =IFERROR(IF(B56<>"",100,B56),"") ->  | F57: R$ | G57: =IF(G56="","",IFERROR(G56*$K57,"")) ->  | H57: =IF(H56="","",IFERROR(H56*$K57,"")) ->  | K57: =VLOOKUP(A56,ORC!$D:$N,11,0) ->  | M57: =IFERROR(IF(N56<>"",100,N56),"") ->  | R57: R$ | S57: =IF(S56="","",IFERROR(S56*$M57,"")) ->  | U57: =IF(U56="","",IFERROR(U56*$M57,"")) ->  | W57: =IF(W56="","",IFERROR(W56*$M57,"")) -> 
A58: 22 | B58: =VLOOKUP(A58,ORC!$D:$N,2,0) ->  | F58: % | K58: =SUM(G58:J58)+SUM(S58:X58) -> 0 | M58: 22 | N58: =VLOOKUP(M58,ORC!$D:$N,2,0) ->  | R58: % | Y58: 0
A59: =IFERROR(IF(B58<>"",100,B58),"") ->  | F59: R$ | G59: =IF(G58="","",IFERROR(G58*$K59,"")) ->  | H59: =IF(H58="","",IFERROR(H58*$K59,"")) ->  | K59: =VLOOKUP(A58,ORC!$D:$N,11,0) ->  | M59: =IFERROR(IF(N58<>"",100,N58),"") ->  | R59: R$ | S59: =IF(S58="","",IFERROR(S58*$M59,"")) ->  | U59: =IF(U58="","",IFERROR(U58*$M59,"")) ->  | W59: =IF(W58="","",IFERROR(W58*$M59,"")) -> 
A60: 23 | B60: =VLOOKUP(A60,ORC!$D:$N,2,0) ->  | F60: % | K60: =SUM(G60:J60)+SUM(S60:X60) -> 0 | M60: 5 | N60: =VLOOKUP(M60,ORC!$D:$N,2,0) -> DRENAGEM PLUVIAL | R60: % | Y60: 0
A61: =IFERROR(IF(B60<>"",100,B60),"") ->  | F61: R$ | G61: =IF(G60="","",IFERROR(G60*$K61,"")) ->  | H61: =IF(H60="","",IFERROR(H60*$K61,"")) ->  | K61: =VLOOKUP(A60,ORC!$D:$N,11,0) ->  | M61: =IFERROR(IF(N60<>"",100,N60),"") -> 100 | R61: R$ | S61: =IF(S60="","",IFERROR(S60*$M61,"")) ->  | U61: =IF(U60="","",IFERROR(U60*$M61,"")) ->  | W61: =IF(W60="","",IFERROR(W60*$M61,"")) -> 
F63: Porcentagem | G63: =G64/$W$66 ->  | H63: =H64/$W$66 ->  | R63: Porcentagem | S63: =S64/$W$66 ->  | U63: =U64/$W$66 ->  | W63: =W64/$W$66 -> 
F64: Custo | G64: =SUMIF($A:$A,100,G:G) -> 1928.3376 | H64: =SUMIF($A:$A,100,H:H) -> 826.4304 | I64: =SUMIF($A:$A,100,I:I) -> 826.4304 | J64: =SUMIF($A:$A,100,J:J) -> 826.4304 | R64: Custo | S64: =SUMIF($A:$A,100,S:S) -> 826.4304 | U64: =SUMIF($A:$A,100,U:U) -> 826.4304 | W64: =SUMIF($A:$A,100,W:W) -> 826.4304
F65: Porcentagem Acumulada | G65: =G63 ->  | H65: =G65+H63 ->  | I65: =H65+I63 ->  | R65: Porcentagem Acumulada | S65: =S63+J65 ->  | U65: =U63+S65 ->  | W65: =W63+U65 -> 
F66: Custo Acumulado | G66: =G64 -> 1928.3376 | H66: =H64+G66 -> 2754.768 | I66: =I64+H66 -> 3581.1984 | J66: =J64+I66 -> 4407.6288 | R66: Custo Acumulado | S66: =S64+J66 -> 5234.0592 | U66: =U64+S66 -> 6060.4896 | W66: =IF(W64+U66=ORC!M226,W64+U66,"ERRO") -> ERRO
F70: RESPONSÁVEL TÉCNICO | G70: =DADOS!D16 -> FLÁVIA CRISTINA BARBOSA | R70: RESPONSÁVEL TÉCNICO | S70: =DADOS!$D$16 -> FLÁVIA CRISTINA BARBOSA
G71: =DADOS!D18 -> CREA - MG 187.842/D | S71: =DADOS!$D$18 -> CREA - MG 187.842/D

Sheet CRO 8 meses
A2: CRONOGRAMA FÍSICO-FINANCEIRO | K2: Revisão: | L2: =DADOS!D6 -> R00 | M2: CRONOGRAMA FÍSICO-FINANCEIRO | W2: Revisão: | X2: =DADOS!D6 -> R00
K3: Data: | L3: =DADOS!D2 -> 2023-01-05 | W3: Data: | X3: =DADOS!D2 -> 2023-01-05
A4: Projeto: | D4: Responsável: | H4: Cliente: | K4: Bancos: | M4: Projeto: | P4: Responsável: | T4: Cliente: | W4: Bancos:
A5: =DADOS!D8 -> CONSTRUÇÃO DE COBERTURA DA QUADRA COLINA DE SANTA BARBARA | K5: =DADOS!D14 -> SINAPI: 11/2022 Minas Gerais SETOP: 10/2022 Minas Gerais SICRO : 07/2022 Minas Gerais SUDECAP: 10/2022 Minas Gerais | M5: =DADOS!D8 -> CONSTRUÇÃO DE COBERTURA DA QUADRA COLINA DE SANTA BARBARA | W5: =DADOS!D14 -> SINAPI: 11/2022 Minas Gerais SETOP: 10/2022 Minas Gerais SICRO : 07/2022 Minas Gerais SUDECAP: 10/2022 Minas Gerais
K8: BDI 1: | L8: =DADOS!D10 -> 0.2652 | W8: BDI 1: | X8: =DADOS!D10 -> 0.2652
K9: BDI 2: | L9: =DADOS!D12 -> 0.2025 | W9: BDI 2: | X9: =DADOS!D12 -> 0.2025
A11: =A2&" DE "&DADOS!D20&" - "&A5 -> CRONOGRAMA FÍSICO-FINANCEIRO DE PROJETO EXECUTIVO - CONSTRUÇÃO DE COBERTURA DA QUADRA COLINA DE SANTA BARBARA | M11: =M2&" DE "&DADOS!D20&" - "&M5 -> CRONOGRAMA FÍSICO-FINANCEIRO DE PROJETO EXECUTIVO - CONSTRUÇÃO DE COBERTURA DA QUADRA COLINA DE SANTA BARBARA
A13: ITEM | B13: DESCRIÇÃO | F13: Unid. | G13: 30 DIAS | H13: 60 DIAS | I13: 90 DIAS | J13: 120 DIAS | K13: Total por Etapa | M13: ITEM | N13: DESCRIÇÃO | R13: Unid. | S13: 150 DIAS | T13: 180 DIAS | U13: 210 DIAS | V13: 240 DIAS | W13: Total por Etapa
A15: 1 | B15: =VLOOKUP(A15,ORC!$D:$N,2,0) -> CANTEIRO DE OBRA | F15: % | G15: 0.1 | H15: 0.1 | I15: 0.1 | J15: 0.1 | K15: =SUM(G15:J15)+SUM(S15:V15) -> 1 | M15: 1 | N15: =VLOOKUP(M15,ORC!$D:$N,2,0) -> CANTEIRO DE OBRA | R15: % | S15: 0.05 | T15: 0.15 | U15: 0.05 | V15: 0.35 | W15: =K15 -> 1
A16: =IFERROR(IF(B15<>"",100,B15),"") -> 100 | F16: R$ | G16: =IF(G15="","",IFERROR(G15*$K16,"")) -> 688.692 | H16: =IF(H15="","",IFERROR(H15*$K16,"")) -> 688.692 | I16: 688.692 | J16: 688.692 | K16: =VLOOKUP(A15,ORC!$D:$N,11,0) -> 6886.92 | M16: =IFERROR(IF(N15<>"",100,N15),"") -> 100 | R16: R$ | S16: =IF(S15="","",IFERROR(S15*$K16,"")) -> 344.346 | T16: =IF(T15="","",IFERROR(T15*$K16,"")) -> 1033.038 | U16: 344.346 | V16: 2410.422 | W16: 6886.92
A17: 2 | B17: =VLOOKUP(A17,ORC!$D:$N,2,0) -> SERVIÇOS PRELIMINARES | F17: % | K17: =SUM(G17:J17)+SUM(S17:V17) -> 0 | M17: 2 | N17: =VLOOKUP(M17,ORC!$D:$N,2,0) -> SERVIÇOS PRELIMINARES | R17: % | W17: 0
A18: =IFERROR(IF(B17<>"",100,B17),"") -> 100 | F18: R$ | G18: =IF(G17="","",IFERROR(G17*$K18,"")) ->  | H18: =IF(H17="","",IFERROR(H17*$K18,"")) ->  | K18: =VLOOKUP(A17,ORC!$D:$N,11,0) -> 14349.93 | M18: =IFERROR(IF(N17<>"",100,N17),"") -> 100 | R18: R$ | S18: =IF(S17="","",IFERROR(S17*$K18,"")) ->  | T18: =IF(T17="","",IFERROR(T17*$K18,"")) ->  | W18: 14349.93
A19: 3 | B19: =VLOOKUP(A19,ORC!$D:$N,2,0) -> FUNDAÇÃO | F19: % | K19: =SUM(G19:J19)+SUM(S19:V19) -> 0 | M19: 3 | N19: =VLOOKUP(M19,ORC!$D:$N,2,0) -> FUNDAÇÃO | R19: % | W19: 0
A20: =IFERROR(IF(B19<>"",100,B19),"") -> 100 | F20: R$ | G20: =IF(G19="","",IFERROR(G19*$K20,"")) ->  | H20: =IF(H19="","",IFERROR(H19*$K20,"")) ->  | K20: =VLOOKUP(A19,ORC!$D:$N,11,0) -> 146564.97 | M20: =IFERROR(IF(N19<>"",100,N19),"") -> 100 | R20: R$ | S20: =IF(S19="","",IFERROR(S19*$K20,"")) ->  | T20: =IF(T19="","",IFERROR(T19*$K20,"")) ->  | W20: 146564.97
A21: 4 | B21: =VLOOKUP(A21,ORC!$D:$N,2,0) -> COBERTURA METÁLICA | F21: % | K21: =SUM(G21:J21)+SUM(S21:V21) -> 0 | M21: 4 | N21: =VLOOKUP(M21,ORC!$D:$N,2,0) -> COBERTURA METÁLICA | R21: % | W21: 0
A22: =IFERROR(IF(B21<>"",100,B21),"") -> 100 | F22: R$ | G22: =IF(G21="","",IFERROR(G21*$K22,"")) ->  | H22: =IF(H21="","",IFERROR(H21*$K22,"")) ->  | K22: =VLOOKUP(A21,ORC!$D:$N,11,0) -> 1447539.43 | M22: =IFERROR(IF(N21<>"",100,N21),"") -> 100 | R22: R$ | S22: =IF(S21="","",IFERROR(S21*$K22,"")) ->  | T22: =IF(T21="","",IFERROR(T21*$K22,"")) ->  | W22: 1447539.43
A23: 5 | B23: =VLOOKUP(A23,ORC!$D:$N,2,0) -> DRENAGEM PLUVIAL | F23: % | K23: =SUM(G23:J23)+SUM(S23:V23) -> 0 | M23: 5 | N23: =VLOOKUP(M23,ORC!$D:$N,2,0) -> DRENAGEM PLUVIAL | R23: % | W23: 0
A24: =IFERROR(IF(B23<>"",100,B23),"") -> 100 | F24: R$ | G24: =IF(G23="","",IFERROR(G23*$K24,"")) ->  | H24: =IF(H23="","",IFERROR(H23*$K24,"")) ->  | K24: =VLOOKUP(A23,ORC!$D:$N,11,0) -> 51830.55 | M24: =IFERROR(IF(N23<>"",100,N23),"") -> 100 | R24: R$ | S24: =IF(S23="","",IFERROR(S23*$K24,"")) ->  | T24: =IF(T23="","",IFERROR(T23*$K24,"")) ->  | W24: 51830.55
A25: 6 | B25: =VLOOKUP(A25,ORC!$D:$N,2,0) -> SERVIÇOS FINAIS | F25: % | K25: =SUM(G25:J25)+SUM(S25:V25) -> 0 | M25: 6 | N25: =VLOOKUP(M25,ORC!$D:$N,2,0) -> SERVIÇOS FINAIS | R25: % | W25: 0
A26: =IFERROR(IF(B25<>"",100,B25),"") -> 100 | F26: R$ | G26: =IF(G25="","",IFERROR(G25*$K26,"")) ->  | H26: =IF(H25="","",IFERROR(H25*$K26,"")) ->  | K26: =VLOOKUP(A25,ORC!$D:$N,11,0) -> 26530.97 | M26: =IFERROR(IF(N25<>"",100,N25),"") -> 100 | R26: R$ | S26: =IF(S25="","",IFERROR(S25*$K26,"")) ->  | T26: =IF(T25="","",IFERROR(T25*$K26,"")) ->  | W26: 26530.97
A27: 7 | B27: =VLOOKUP(A27,ORC!$D:$N,2,0) ->  | F27: % | K27: =SUM(G27:J27)+SUM(S27:V27) -> 0 | M27: 7 | N27: =VLOOKUP(M27,ORC!$D:$N,2,0) ->  | R27: % | W27: 0
A28: =IFERROR(IF(B27<>"",100,B27),"") ->  | F28: R$ | G28: =IF(G27="","",IFERROR(G27*$K28,"")) ->  | H28: =IF(H27="","",IFERROR(H27*$K28,"")) ->  | K28: =VLOOKUP(A27,ORC!$D:$N,11,0) ->  | M28: =IFERROR(IF(N27<>"",100,N27),"") ->  | R28: R$ | S28: =IF(S27="","",IFERROR(S27*$K28,"")) ->  | T28: =IF(T27="","",IFERROR(T27*$K28,"")) -> 
A29: 8 | B29: =VLOOKUP(A29,ORC!$D:$N,2,0) ->  | F29: % | K29: =SUM(G29:J29)+SUM(S29:V29) -> 0 | M29: 8 | N29: =VLOOKUP(M29,ORC!$D:$N,2,0) ->  | R29: % | W29: 0
A30: =IFERROR(IF(B29<>"",100,B29),"") ->  | F30: R$ | G30: =IF(G29="","",IFERROR(G29*$K30,"")) ->  | H30: =IF(H29="","",IFERROR(H29*$K30,"")) ->  | K30: =VLOOKUP(A29,ORC!$D:$N,11,0) ->  | M30: =IFERROR(IF(N29<>"",100,N29),"") ->  | R30: R$ | S30: =IF(S29="","",IFERROR(S29*$K30,"")) ->  | T30: =IF(T29="","",IFERROR(T29*$K30,"")) -> 
A31: 9 | B31: =VLOOKUP(A31,ORC!$D:$N,2,0) ->  | F31: % | K31: =SUM(G31:J31)+SUM(S31:V31) -> 0 | M31: 9 | N31: =VLOOKUP(M31,ORC!$D:$N,2,0) ->  | R31: % | W31: 0
A32: =IFERROR(IF(B31<>"",100,B31),"") ->  | F32: R$ | G32: =IF(G31="","",IFERROR(G31*$K32,"")) ->  | H32: =IF(H31="","",IFERROR(H31*$K32,"")) ->  | K32: =VLOOKUP(A31,ORC!$D:$N,11,0) ->  | M32: =IFERROR(IF(N31<>"",100,N31),"") ->  | R32: R$ | S32: =IF(S31="","",IFERROR(S31*$K32,"")) ->  | T32: =IF(T31="","",IFERROR(T31*$K32,"")) -> 
A33: 10 | B33: =VLOOKUP(A33,ORC!$D:$N,2,0) ->  | F33: % | K33: =SUM(G33:J33)+SUM(S33:V33) -> 0 | M33: 10 | N33: =VLOOKUP(M33,ORC!$D:$N,2,0) ->  | R33: % | W33: 0
A34: =IFERROR(IF(B33<>"",100,B33),"") ->  | F34: R$ | G34: =IF(G33="","",IFERROR(G33*$K34,"")) ->  | H34: =IF(H33="","",IFERROR(H33*$K34,"")) ->  | K34: =VLOOKUP(A33,ORC!$D:$N,11,0) ->  | M34: =IFERROR(IF(N33<>"",100,N33),"") ->  | R34: R$ | S34: =IF(S33="","",IFERROR(S33*$K34,"")) ->  | T34: =IF(T33="","",IFERROR(T33*$K34,"")) -> 
A35: 11 | B35: =VLOOKUP(A35,ORC!$D:$N,2,0) ->  | F35: % | K35: =SUM(G35:J35)+SUM(S35:V35) -> 0 | M35: 11 | N35: =VLOOKUP(M35,ORC!$D:$N,2,0) ->  | R35: % | W35: 0
A36: =IFERROR(IF(B35<>"",100,B35),"") ->  | F36: R$ | G36: =IF(G35="","",IFERROR(G35*$K36,"")) ->  | H36: =IF(H35="","",IFERROR(H35*$K36,"")) ->  | K36: =VLOOKUP(A35,ORC!$D:$N,11,0) ->  | M36: =IFERROR(IF(N35<>"",100,N35),"") ->  | R36: R$ | S36: =IF(S35="","",IFERROR(S35*$K36,"")) ->  | T36: =IF(T35="","",IFERROR(T35*$K36,"")) -> 
A37: 12 | B37: =VLOOKUP(A37,ORC!$D:$N,2,0) ->  | F37: % | K37: =SUM(G37:J37)+SUM(S37:V37) -> 0 | M37: 12 | N37: =VLOOKUP(M37,ORC!$D:$N,2,0) ->  | R37: % | W37: 0
A38: =IFERROR(IF(B37<>"",100,B37),"") ->  | F38: R$ | G38: =IF(G37="","",IFERROR(G37*$K38,"")) ->  | H38: =IF(H37="","",IFERROR(H37*$K38,"")) ->  | K38: =VLOOKUP(A37,ORC!$D:$N,11,0) ->  | M38: =IFERROR(IF(N37<>"",100,N37),"") ->  | R38: R$ | S38: =IF(S37="","",IFERROR(S37*$K38,"")) ->  | T38: =IF(T37="","",IFERROR(T37*$K38,"")) -> 
